{"text_format":"1","workbook":"xlsx","n_sheets":8,"sheets":["Portada","Análisis","Registradas y Recibidas","Traslados","Peticiones asignadas a la entid","Peticiones ciudadanas por tema","Recomendaciones a la ciudadanía","para pqr"],"not_rendered":{"charts":1,"images":6,"macros":1,"external_links":4,"defined_names":36,"comments":0,"pivot_tables":4},"unopened":[],"bounds":{"document_bytes":16777216,"sheet_cells":100000,"rows_first":2000,"rows_last":500,"rows_between":2000,"halvings":0,"cell_chars":16384,"cell_head_chars":4096},"cells_cut":0,"cells_raw":0,"read":"whole","date_system":"1900"}

{"sheet":"Portada","index":0,"n_rows":0,"n_cols":0,"rows_kept":0,"cut":false,"hidden":false,"merged":[]}

{"sheet":"Análisis","index":1,"n_rows":77,"n_cols":33,"rows_kept":77,"cut":false,"hidden":false,"merged":[[57,2,61,3],[52,6,52,15],[52,16,52,17],[52,26,52,27],[52,24,52,25],[52,18,52,19],[52,20,52,21],[52,22,52,23],[47,32,47,33],[48,16,48,17],[48,24,48,25],[48,26,48,27],[48,28,48,29],[48,30,48,31],[51,16,51,17],[51,24,51,25],[51,26,51,27],[51,28,51,29],[49,16,49,17],[49,24,49,25],[49,26,49,27],[49,28,49,29],[50,24,50,25],[50,26,50,27],[52,32,52,33],[51,6,51,15],[47,6,47,15],[46,16,46,17],[46,24,46,25],[46,26,46,27],[46,28,46,29],[51,32,51,33],[49,6,49,15],[52,28,52,29],[50,6,50,15],[48,6,48,15],[48,32,48,33],[49,32,49,33],[50,32,50,33],[50,16,50,17],[50,28,50,29],[50,22,50,23],[51,18,51,19],[51,20,51,21],[51,22,51,23],[39,5,39,34],[37,15,37,24],[36,25,36,33],[37,5,37,14],[36,5,36,14],[37,25,37,33],[36,15,36,24],[35,25,35,33],[33,15,33,24],[34,15,34,24],[35,15,35,24],[33,25,33,33],[31,15,31,24],[31,5,31,14],[32,5,32,14],[31,25,31,33],[33,5,33,14],[35,5,35,14],[34,5,34,14],[32,25,32,33],[32,15,32,24],[34,25,34,33],[28,15,28,24],[29,15,29,24],[30,15,30,24],[21,2,23,3],[25,2,26,3],[25,5,26,34],[20,5,23,34],[27,5,27,14],[27,25,27,33],[27,15,27,24],[30,25,30,33],[29,25,29,33],[28,25,28,33],[28,5,28,14],[29,5,29,14],[30,5,30,14],[42,2,44,3],[40,5,43,34],[46,6,46,15],[47,28,47,29],[47,26,47,27],[47,16,47,17],[47,24,47,25],[46,32,46,33],[46,30,46,31],[47,30,47,31],[49,30,49,31],[50,30,50,31],[51,30,51,31],[52,30,52,31],[46,18,46,19],[46,20,46,21],[46,22,46,23],[47,18,47,19],[47,20,47,21],[47,22,47,23],[48,18,48,19],[48,20,48,21],[48,22,48,23],[49,18,49,19],[49,20,49,21],[49,22,49,23],[50,18,50,19],[50,20,50,21]]}
[]
[]
[]
[]
[]
[]
[]
[]
[]
[]
[]
[]
[]
[]
[]
[]
[]
[]
[null,null,null,null,null,null,null,null,null,null,null,null,null,null,"Octubre 2025"]
[]
[null,null,null,null,null,"Tiempos de respuesta de las solicitudes de información recibidas "]
[null,null,"Tipología de Peticiones recibidas en el mes "]
[]
[]
[]
[null,null,"En la siguiente tabla se registra la cantidad de peticiones recibidas por la Defensoría del Espacio Público en el mes de estudio. ",null,null,"A partir del tiempo estipulado en la Ley 1755 del 2015 y el reporte emitido por la Secretaría General como insumo para la presentación del presente informe se presenta el tiempo promedio por tipología a continuación"]
[]
[null,null,null,null,null,"Tipología",null,null,null,null,null,null,null,null,null,"Tiempos Ley 1755 de 2015",null,null,null,null,null,null,null,null,null,"Promedio Tiempos de Respuesta"]
[null,null,null,null,null,"Consulta",null,null,null,null,null,null,null,null,null,30,null,null,null,null,null,null,null,null,null,"13 días"]
[null,null,null,null,null,"Derecho de Interés Particular",null,null,null,null,null,null,null,null,null,15,null,null,null,null,null,null,null,null,null,"7 días"]
[null,null,null,null,null,"Derecho de Interés General",null,null,null,null,null,null,null,null,null,15,15,null,null,null,15,15,null,null,null,"9 días"]
[null,null,null,null,null,"Denuncia por Actos de Corrupción",null,null,null,null,null,null,null,null,null,15,15,null,null,null,15,15,null,null,null,"5 días"]
[null,null,null,null,null,"Felicitación",null,null,null,null,null,null,null,null,null,15,15,null,null,null,15,15,null,null,null,"15 días"]
[null,null,null,null,null,"Queja",null,null,null,null,null,null,null,null,null,15,15,null,null,null,15,15,null,null,null,"10 días"]
[null,null,null,null,null,"Reclamo",null,null,null,null,null,null,null,null,null,15,15,null,null,null,15,15,null,null,null,"8 días"]
[null,null,null,null,null,"Sugerencia",null,null,null,null,null,null,null,null,null,15,15,null,null,null,15,15,null,null,null,"0 días"]
[null,null,null,null,null,"Solicitud Acceso a la Información",null,null,null,null,null,null,null,null,null,10,10,null,null,null,10,10,null,null,null,"0 días"]
[null,null,null,null,null,"Solicitud de Copia",null,null,null,null,null,null,null,null,null,10,10,null,null,null,10,10,null,null,null,"8 días"]
[]
[null,null,"Número de solicitudes \nrecibidas y registradas","Número de solicitudes trasladadas a otra entidad",null,"Nota: Para las tipologías:  Sugerencia y Solicitud Acceso a la Información; no se presentaron durante el mes de octubre del 2025."]
[null,null,820,531,null,"Con base en el reporte del Sistema de Gestión de Peticiones Ciudadanas Bogotá te escucha y de conformidad con el tiempo promedio de respuesta de las dependencias y/o áreas de la Defensoría del Espacio Público fue de 08 días, sin embargo, es pertinente aclarar que este reporte para el mes de análisis tiene el promedio del total de las peticiones ingresadas:"]
[]
[null,null,"De acuerdo con las cifras anteriores, tomadas del reporte del sistema Bogotá te escucha, las solicitudes recibidas y registradas por la Defensoría del Espacio Público se clasifican de la siguiente manera por tipo de petición:"]
[]
[]
[]
[null,null,"Tipo de petición","Cantidad",null,null,"Dependencia",null,null,null,null,null,null,null,null,null,"CONSULTA",null,"DERECHO DE PETICION DE INTERES GENERAL",null,"DERECHO DE PETICION DE INTERES PARTICULAR",null,"QUEJA",null,"RECLAMO",null,"DENUNCIA POR ACTOS DE CORRUPCION",null,"FELICITACION",null,"SOLICITUD DE COPIA",null,"Total general"]
[null,null,"DERECHO DE PETICION DE INTERES GENERAL",501,null,null,"AREA DE ATENCION A LA CIUDADANIA",null,null,null,null,null,null,null,null,null,1,null,1.5909090909090908,null,1,null,1,null,1,null,null,null,null,null,1.2,null,{"$f":"+AVERAGE(Q48:AF48)","v":1.1318181818181818}]
[null,null,"DERECHO DE PETICION DE INTERES PARTICULAR",212,null,null,"SUBDIRECCION DE REGISTRO INMOBILIARIO",null,null,null,null,"SUBDIRECCION DE REGISTRO INMOBILIARIO",null,null,null,null,9.1999999999999993,null,null,null,9.5,null,null,null,null,null,null,null,null,null,9.2857142857142865,null,{"$f":"+AVERAGE(Q49:AF49)","v":9.3285714285714292}]
[null,null,"QUEJA",47,null,null,"SUBDIRECCION DE GESTION INMOBILIARIA Y DEL ESPACIO PUBLICO",null,null,null,null,"SUBDIRECCION DE GESTION INMOBILIARIA Y DEL ESPACIO PUBLICO",null,null,null,null,27.75,null,14.025,null,13.636363636363637,null,14,null,15,null,null,null,15,null,14.847457627118644,null,{"$f":"+AVERAGE(Q50:AF50)","v":16.322688751926041}]
[null,null,"CONSULTA",30,null,null,"OFICINA DE CONTROL DISCIPLINARIO INTERNO",null,null,null,null,"OFICINA DE CONTROL DISCIPLINARIO INTERNO",null,null,null,null,null,null,10,null,null,null,16,null,null,null,5,null,null,null,10.333333333333334,null,10.333333333333334]
[null,null,"RECLAMO",18,null,null,"OFICINA JURIDICA",null,null,null,null,"OFICINA JURIDICA",null,null,null,null,null,null,null,null,4,null,null,null,null,null,null,null,null,null,4,null,4]
[null,null,"SUGERENCIA",9,null,null,"Promedio días por tipología ",null,null,null,null,null,null,null,null,null,{"$f":"AVERAGE(Q48:R52)","v":12.65},null,{"$f":"AVERAGE(S48:T52)","v":8.538636363636364},null,{"$f":"AVERAGE(U48:V52)","v":7.0340909090909092},null,{"$f":"AVERAGE(W48:X52)","v":10.333333333333334},null,{"$f":"AVERAGE(Y48:Z52)","v":8},null,{"$f":"AVERAGE(AA48:AB52)","v":5},null,{"$f":"AVERAGE(AC48:AD52)","v":15},null,{"$f":"AVERAGE(AE48:AF52)","v":7.9333010492332532},null,{"$f":"AVERAGE(AG48:AH52)","v":8.2232823391297973}]
[null,null,"SOLICITUD DE COPIA",2]
[null,null,"SOLICITUD DE ACCESO A LA INFORMACION",1]
[null,null,"Total general",{"$f":"SUM(D48:D55)","v":820}]
[]
[{"$f":"+#REF!","v":{"$error":"#REF!"}},null,"NOTA: La Defensoría del Espacio Público trasladó por competencia, 531 solicitudes. Es de aclarar que este dato es el resultado de la aplicación de los filtros consignados en la Guía para la generación y manejo del “REPORTE GESTIÓN DE PETICIONES” "]
[{"$f":"+#REF!","v":{"$error":"#REF!"}}]
[{"$f":"+#REF!","v":{"$error":"#REF!"}}]
[{"$f":"+#REF!","v":{"$error":"#REF!"}}]
[]
[{"$f":"+#REF!","v":{"$error":"#REF!"}}]
[{"$f":"+#REF!","v":{"$error":"#REF!"}}]
[{"$f":"+#REF!","v":{"$error":"#REF!"}}]
[]
[]
[{"$f":"+#REF!","v":{"$error":"#REF!"}}]
[{"$f":"+#REF!","v":{"$error":"#REF!"}}]
[{"$f":"+#REF!","v":{"$error":"#REF!"}}]
[]
[{"$f":"+#REF!","v":{"$error":"#REF!"}}]
[{"$f":"+#REF!","v":{"$error":"#REF!"}}]
[{"$f":"+#REF!","v":{"$error":"#REF!"}}]
[{"$f":"+#REF!","v":{"$error":"#REF!"}}]
[{"$f":"+#REF!","v":{"$error":"#REF!"}}]
[{"$f":"+#REF!","v":{"$error":"#REF!"}}]

{"sheet":"Registradas y Recibidas","index":2,"n_rows":839,"n_cols":7,"rows_kept":839,"cut":false,"hidden":false,"merged":[[8,1,14,2],[12,3,14,4]]}
[]
[]
[]
[]
[]
[]
[]
[]
[null,"REPORTE  GESTIÓN DE PETICIONES\n\nFecha:  2025- 10- 01    a   2025 - 10 - 31\nEstado de Petición:  Al Periodo"]
[]
[]
[]
[]
[]
[]
[]
[]
[]
[null,"Número petición\nNumero de registro en el Sistema","Dependencia:\nNombre asociado al usuario que tiene a cargo la petición ","Canal:\nNombre del canal parametrizado en el sistema por el cual fue registrada la petición","Tipología actualizada: \nTipo de documento utilizado por la entidad","Días gestión\nDías calendario transcurridos desde la fecha de inicio de términos hasta el último día del mes","Estado del Requerimiento\n \"Gestionado\" o \"Pendiente\" de respuesta definitiva por  parte de la Defensoría del Espacio Público o de las entidades competentes"]
[null,4577592025,"SUBDIRECCION DE GESTION INMOBILIARIA Y DEL ESPACIO PUBLICO","E-MAIL","DERECHO DE PETICION DE INTERES PARTICULAR",12,"PENDIENTE"]
[null,4877752025,"SUBDIRECCION DE GESTION INMOBILIARIA Y DEL ESPACIO PUBLICO","WEB","DERECHO DE PETICION DE INTERES PARTICULAR",14,"GESTIONADO"]
[null,4918142025,"AREA DE ATENCION A LA CIUDADANIA","E-MAIL","DERECHO DE PETICION DE INTERES PARTICULAR",1,"GESTIONADO"]
[null,4931812025,"AREA DE ATENCION A LA CIUDADANIA","WEB","DERECHO DE PETICION DE INTERES GENERAL",1,"GESTIONADO"]
[null,4991022025,"AREA DE ATENCION A LA CIUDADANIA","E-MAIL","DERECHO DE PETICION DE INTERES PARTICULAR",1,"GESTIONADO"]
[null,4994872025,"AREA DE ATENCION A LA CIUDADANIA","TELEFONO","DERECHO DE PETICION DE INTERES GENERAL",1,"GESTIONADO"]
[null,5057352025,"AREA DE ATENCION A LA CIUDADANIA","E-MAIL","DERECHO DE PETICION DE INTERES GENERAL",1,"GESTIONADO"]
[null,5057462025,"AREA DE ATENCION A LA CIUDADANIA","E-MAIL","DERECHO DE PETICION DE INTERES GENERAL",1,"GESTIONADO"]
[null,5061322025,"AREA DE ATENCION A LA CIUDADANIA","WEB","DERECHO DE PETICION DE INTERES PARTICULAR",1,"GESTIONADO"]
[null,5062862025,"AREA DE ATENCION A LA CIUDADANIA","WEB","DERECHO DE PETICION DE INTERES PARTICULAR",1,"GESTIONADO"]
[null,5073212025,"AREA DE ATENCION A LA CIUDADANIA","ESCRITO","DERECHO DE PETICION DE INTERES PARTICULAR",1,"GESTIONADO"]
[null,5087252025,"AREA DE ATENCION A LA CIUDADANIA","ESCRITO","DERECHO DE PETICION DE INTERES GENERAL",1,"GESTIONADO"]
[null,5125242025,"AREA DE ATENCION A LA CIUDADANIA","E-MAIL","DERECHO DE PETICION DE INTERES PARTICULAR",1,"GESTIONADO"]
[null,5128262025,"AREA DE ATENCION A LA CIUDADANIA","E-MAIL","DERECHO DE PETICION DE INTERES PARTICULAR",1,"GESTIONADO"]
[null,5137402025,"AREA DE ATENCION A LA CIUDADANIA","TELEFONO","DERECHO DE PETICION DE INTERES GENERAL",1,"GESTIONADO"]
[null,5141542025,"AREA DE ATENCION A LA CIUDADANIA","WEB","DERECHO DE PETICION DE INTERES GENERAL",1,"GESTIONADO"]
[null,5152762025,"AREA DE ATENCION A LA CIUDADANIA","WEB","DERECHO DE PETICION DE INTERES GENERAL",1,"GESTIONADO"]
[null,5154712025,"AREA DE ATENCION A LA CIUDADANIA","WEB","DERECHO DE PETICION DE INTERES GENERAL",1,"GESTIONADO"]
[null,5167632025,"AREA DE ATENCION A LA CIUDADANIA","WEB","QUEJA",1,"GESTIONADO"]
[null,5168472025,"AREA DE ATENCION A LA CIUDADANIA","E-MAIL","DERECHO DE PETICION DE INTERES PARTICULAR",1,"GESTIONADO"]
[null,5170032025,"AREA DE ATENCION A LA CIUDADANIA","E-MAIL","DERECHO DE PETICION DE INTERES PARTICULAR",1,"GESTIONADO"]
[null,5170292025,"SUBDIRECCION DE GESTION INMOBILIARIA Y DEL ESPACIO PUBLICO","ESCRITO","DERECHO DE PETICION DE INTERES PARTICULAR",14,"GESTIONADO"]
[null,5174572025,"AREA DE ATENCION A LA CIUDADANIA","WEB","RECLAMO",1,"GESTIONADO"]
[null,5176012025,"AREA DE ATENCION A LA CIUDADANIA","E-MAIL","DERECHO DE PETICION DE INTERES PARTICULAR",1,"GESTIONADO"]
[null,5197052025,"AREA DE ATENCION A LA CIUDADANIA","E-MAIL","DERECHO DE PETICION DE INTERES PARTICULAR",1,"GESTIONADO"]
[null,5211712025,"AREA DE ATENCION A LA CIUDADANIA","WEB","QUEJA",1,"GESTIONADO"]
[null,5225672025,"AREA DE ATENCION A LA CIUDADANIA","E-MAIL","DERECHO DE PETICION DE INTERES PARTICULAR",1,"GESTIONADO"]
[null,5234842025,"AREA DE ATENCION A LA CIUDADANIA","E-MAIL","DERECHO DE PETICION DE INTERES PARTICULAR",1,"GESTIONADO"]
[null,5235992025,"AREA DE ATENCION A LA CIUDADANIA","ESCRITO","DERECHO DE PETICION DE INTERES PARTICULAR",1,"GESTIONADO"]
[null,5240042025,"AREA DE ATENCION A LA CIUDADANIA","E-MAIL","SUGERENCIA",1,"GESTIONADO"]
[null,5244152025,"AREA DE ATENCION A LA CIUDADANIA","PRESENCIAL","DERECHO DE PETICION DE INTERES PARTICULAR",1,"GESTIONADO"]
[null,5260952025,"AREA DE ATENCION A LA CIUDADANIA","WEB","DERECHO DE PETICION DE INTERES GENERAL",1,"GESTIONADO"]
[null,5263192025,"AREA DE ATENCION A LA CIUDADANIA","E-MAIL","DERECHO DE PETICION DE INTERES GENERAL",1,"GESTIONADO"]
[null,5263892025,"AREA DE ATENCION A LA CIUDADANIA","REDES SOCIALES","DERECHO DE PETICION DE INTERES GENERAL",1,"GESTIONADO"]
[null,5269112025,"AREA DE ATENCION A LA CIUDADANIA","E-MAIL","DERECHO DE PETICION DE INTERES GENERAL",1,"GESTIONADO"]
[null,5270282025,"AREA DE ATENCION A LA CIUDADANIA","WEB","QUEJA",1,"GESTIONADO"]
[null,5272512025,"SUBDIRECCION DE GESTION INMOBILIARIA Y DEL ESPACIO PUBLICO","TELEFONO","DERECHO DE PETICION DE INTERES GENERAL",15,"GESTIONADO"]
[null,5276522025,"AREA DE ATENCION A LA CIUDADANIA","WEB","DERECHO DE PETICION DE INTERES PARTICULAR",1,"GESTIONADO"]
[null,5276632025,"AREA DE ATENCION A LA CIUDADANIA","WEB","DERECHO DE PETICION DE INTERES PARTICULAR",1,"GESTIONADO"]
[null,5276702025,"AREA DE ATENCION A LA CIUDADANIA","WEB","DERECHO DE PETICION DE INTERES PARTICULAR",1,"GESTIONADO"]
[null,5276752025,"AREA DE ATENCION A LA CIUDADANIA","WEB","DERECHO DE PETICION DE INTERES PARTICULAR",1,"GESTIONADO"]
[null,5282282025,"AREA DE ATENCION A LA CIUDADANIA","WEB","DERECHO DE PETICION DE INTERES GENERAL",1,"GESTIONADO"]
[null,5283102025,"AREA DE ATENCION A LA CIUDADANIA","BUZON","DERECHO DE PETICION DE INTERES PARTICULAR",1,"GESTIONADO"]
[null,5283342025,"AREA DE ATENCION A LA CIUDADANIA","WEB","DERECHO DE PETICION DE INTERES PARTICULAR",1,"GESTIONADO"]
[null,5301332025,"AREA DE ATENCION A LA CIUDADANIA","TELEFONO","RECLAMO",1,"GESTIONADO"]
[null,5303212025,"AREA DE ATENCION A LA CIUDADANIA","WEB","QUEJA",1,"GESTIONADO"]
[null,5304892025,"AREA DE ATENCION A LA CIUDADANIA","WEB","QUEJA",1,"GESTIONADO"]
[null,5304922025,"AREA DE ATENCION A LA CIUDADANIA","E-MAIL","DERECHO DE PETICION DE INTERES PARTICULAR",1,"GESTIONADO"]
[null,5306092025,"AREA DE ATENCION A LA CIUDADANIA","E-MAIL","DERECHO DE PETICION DE INTERES PARTICULAR",1,"GESTIONADO"]
[null,5306932025,"AREA DE ATENCION A LA CIUDADANIA","E-MAIL","DERECHO DE PETICION DE INTERES GENERAL",1,"GESTIONADO"]
[null,5312142025,"AREA DE ATENCION A LA CIUDADANIA","WEB","RECLAMO",1,"GESTIONADO"]
[null,5312652025,"AREA DE ATENCION A LA CIUDADANIA","WEB","QUEJA",1,"GESTIONADO"]
[null,5315822025,"AREA DE ATENCION A LA CIUDADANIA","WEB","DERECHO DE PETICION DE INTERES GENERAL",1,"GESTIONADO"]
[null,5316432025,"AREA DE ATENCION A LA CIUDADANIA","TELEFONO","DERECHO DE PETICION DE INTERES GENERAL",1,"GESTIONADO"]
[null,5324712025,"AREA DE ATENCION A LA CIUDADANIA","WEB","QUEJA",1,"GESTIONADO"]
[null,5324722025,"AREA DE ATENCION A LA CIUDADANIA","WEB","DERECHO DE PETICION DE INTERES GENERAL",1,"GESTIONADO"]
[null,5329352025,"AREA DE ATENCION A LA CIUDADANIA","WEB","RECLAMO",1,"GESTIONADO"]
[null,5330622025,"AREA DE ATENCION A LA CIUDADANIA","WEB","DERECHO DE PETICION DE INTERES GENERAL",1,"GESTIONADO"]
[null,5331572025,"AREA DE ATENCION A LA CIUDADANIA","WEB","DERECHO DE PETICION DE INTERES GENERAL",1,"GESTIONADO"]
[null,5336592025,"AREA DE ATENCION A LA CIUDADANIA","E-MAIL","DERECHO DE PETICION DE INTERES PARTICULAR",1,"GESTIONADO"]
[null,5339882025,"AREA DE ATENCION A LA CIUDADANIA","WEB","DERECHO DE PETICION DE INTERES PARTICULAR",1,"GESTIONADO"]
[null,5339952025,"AREA DE ATENCION A LA CIUDADANIA","WEB","DERECHO DE PETICION DE INTERES PARTICULAR",1,"GESTIONADO"]
[null,5340522025,"AREA DE ATENCION A LA CIUDADANIA","WEB","DERECHO DE PETICION DE INTERES PARTICULAR",1,"GESTIONADO"]
[null,5340592025,"AREA DE ATENCION A LA CIUDADANIA","WEB","DERECHO DE PETICION DE INTERES PARTICULAR",1,"GESTIONADO"]
[null,5343452025,"AREA DE ATENCION A LA CIUDADANIA","E-MAIL","CONSULTA",1,"GESTIONADO"]
[null,5343582025,"AREA DE ATENCION A LA CIUDADANIA","E-MAIL","DERECHO DE PETICION DE INTERES GENERAL",1,"GESTIONADO"]
[null,5344142025,"AREA DE ATENCION A LA CIUDADANIA","ESCRITO","DERECHO DE PETICION DE INTERES PARTICULAR",1,"GESTIONADO"]
[null,5344392025,"AREA DE ATENCION A LA CIUDADANIA","E-MAIL","QUEJA",1,"GESTIONADO"]
[null,5344932025,"AREA DE ATENCION A LA CIUDADANIA","WEB","QUEJA",1,"GESTIONADO"]
[null,5351092025,"AREA DE ATENCION A LA CIUDADANIA","TELEFONO","DERECHO DE PETICION DE INTERES PARTICULAR",1,"GESTIONADO"]
[null,5351782025,"AREA DE ATENCION A LA CIUDADANIA","E-MAIL","QUEJA",1,"GESTIONADO"]
[null,5354602025,"AREA DE ATENCION A LA CIUDADANIA","WEB","QUEJA",1,"GESTIONADO"]
[null,5354752025,"SUBDIRECCION DE GESTION INMOBILIARIA Y DEL ESPACIO PUBLICO","E-MAIL","DERECHO DE PETICION DE INTERES PARTICULAR",14,"GESTIONADO"]
[null,5357472025,"AREA DE ATENCION A LA CIUDADANIA","WEB","DERECHO DE PETICION DE INTERES GENERAL",1,"GESTIONADO"]
[null,5365162025,"AREA DE ATENCION A LA CIUDADANIA","TELEFONO","DERECHO DE PETICION DE INTERES PARTICULAR",1,"GESTIONADO"]
[null,5367832025,"AREA DE ATENCION A LA CIUDADANIA","E-MAIL","DERECHO DE PETICION DE INTERES PARTICULAR",1,"GESTIONADO"]
[null,5369962025,"AREA DE ATENCION A LA CIUDADANIA","E-MAIL","DERECHO DE PETICION DE INTERES GENERAL",1,"GESTIONADO"]
[null,5372612025,"AREA DE ATENCION A LA CIUDADANIA","WEB","DERECHO DE PETICION DE INTERES GENERAL",1,"GESTIONADO"]
[null,5373262025,"AREA DE ATENCION A LA CIUDADANIA","E-MAIL","DERECHO DE PETICION DE INTERES GENERAL",1,"GESTIONADO"]
[null,5377532025,"AREA DE ATENCION A LA CIUDADANIA","WEB","DERECHO DE PETICION DE INTERES GENERAL",1,"GESTIONADO"]
[null,5377652025,"AREA DE ATENCION A LA CIUDADANIA","WEB","QUEJA",1,"GESTIONADO"]
[null,5377662025,"AREA DE ATENCION A LA CIUDADANIA","WEB","QUEJA",1,"GESTIONADO"]
[null,5377682025,"AREA DE ATENCION A LA CIUDADANIA","WEB","QUEJA",1,"GESTIONADO"]
[null,5381342025,"AREA DE ATENCION A LA CIUDADANIA","E-MAIL","DERECHO DE PETICION DE INTERES PARTICULAR",1,"GESTIONADO"]
[null,5382222025,"AREA DE ATENCION A LA CIUDADANIA","E-MAIL","DERECHO DE PETICION DE INTERES PARTICULAR",1,"GESTIONADO"]
[null,5383102025,"AREA DE ATENCION A LA CIUDADANIA","E-MAIL","DERECHO DE PETICION DE INTERES GENERAL",1,"GESTIONADO"]
[null,5384432025,"OFICINA DE CONTROL DISCIPLINARIO INTERNO","WEB","DERECHO DE PETICION DE INTERES GENERAL",1,"GESTIONADO"]
[null,5385072025,"AREA DE ATENCION A LA CIUDADANIA","WEB","DERECHO DE PETICION DE INTERES PARTICULAR",1,"GESTIONADO"]
[null,5401052025,"AREA DE ATENCION A LA CIUDADANIA","BUZON","DERECHO DE PETICION DE INTERES GENERAL",1,"GESTIONADO"]
[null,5401802025,"AREA DE ATENCION A LA CIUDADANIA","TELEFONO","DERECHO DE PETICION DE INTERES GENERAL",1,"GESTIONADO"]
[null,5403022025,"AREA DE ATENCION A LA CIUDADANIA","WEB","RECLAMO",1,"GESTIONADO"]
[null,5404282025,"AREA DE ATENCION A LA CIUDADANIA","ESCRITO","DERECHO DE PETICION DE INTERES PARTICULAR",1,"GESTIONADO"]
[null,5405692025,"AREA DE ATENCION A LA CIUDADANIA","E-MAIL","QUEJA",1,"GESTIONADO"]
[null,5407102025,"AREA DE ATENCION A LA CIUDADANIA","E-MAIL","QUEJA",1,"GESTIONADO"]
[null,5407672025,"AREA DE ATENCION A LA CIUDADANIA","E-MAIL","QUEJA",1,"GESTIONADO"]
[null,5408302025,"AREA DE ATENCION A LA CIUDADANIA","WEB","QUEJA",1,"GESTIONADO"]
[null,5414682025,"AREA DE ATENCION A LA CIUDADANIA","E-MAIL","DERECHO DE PETICION DE INTERES GENERAL",1,"GESTIONADO"]
[null,5418452025,"AREA DE ATENCION A LA CIUDADANIA","PRESENCIAL","DERECHO DE PETICION DE INTERES PARTICULAR",1,"GESTIONADO"]
[null,5418952025,"AREA DE ATENCION A LA CIUDADANIA","WEB","RECLAMO",1,"GESTIONADO"]
[null,5419892025,"AREA DE ATENCION A LA CIUDADANIA","E-MAIL","DERECHO DE PETICION DE INTERES PARTICULAR",1,"GESTIONADO"]
[null,5420182025,"AREA DE ATENCION A LA CIUDADANIA","WEB","QUEJA",1,"GESTIONADO"]
[null,5423432025,"AREA DE ATENCION A LA CIUDADANIA","WEB","QUEJA",1,"GESTIONADO"]
[null,5436512025,"AREA DE ATENCION A LA CIUDADANIA","E-MAIL","DERECHO DE PETICION DE INTERES PARTICULAR",1,"GESTIONADO"]
[null,5438132025,"AREA DE ATENCION A LA CIUDADANIA","WEB","DERECHO DE PETICION DE INTERES GENERAL",1,"GESTIONADO"]
[null,5438382025,"AREA DE ATENCION A LA CIUDADANIA","WEB","DERECHO DE PETICION DE INTERES GENERAL",1,"GESTIONADO"]
[null,5441622025,"AREA DE ATENCION A LA CIUDADANIA","E-MAIL","DERECHO DE PETICION DE INTERES PARTICULAR",1,"GESTIONADO"]
[null,5442252025,"AREA DE ATENCION A LA CIUDADANIA","E-MAIL","DERECHO DE PETICION DE INTERES PARTICULAR",1,"GESTIONADO"]
[null,5442262025,"AREA DE ATENCION A LA CIUDADANIA","E-MAIL","DERECHO DE PETICION DE INTERES PARTICULAR",1,"GESTIONADO"]
[null,5443262025,"AREA DE ATENCION A LA CIUDADANIA","E-MAIL","DERECHO DE PETICION DE INTERES PARTICULAR",1,"GESTIONADO"]
[null,5447962025,"AREA DE ATENCION A LA CIUDADANIA","WEB","DERECHO DE PETICION DE INTERES PARTICULAR",1,"GESTIONADO"]
[null,5448352025,"AREA DE ATENCION A LA CIUDADANIA","E-MAIL","DERECHO DE PETICION DE INTERES PARTICULAR",1,"GESTIONADO"]
[null,5448552025,"AREA DE ATENCION A LA CIUDADANIA","E-MAIL","DERECHO DE PETICION DE INTERES PARTICULAR",1,"GESTIONADO"]
[null,5450442025,"SUBDIRECCION DE REGISTRO INMOBILIARIO","E-MAIL","DERECHO DE PETICION DE INTERES PARTICULAR",6,"GESTIONADO"]
[null,5450732025,"AREA DE ATENCION A LA CIUDADANIA","WEB","QUEJA",1,"GESTIONADO"]
[null,5453592025,"AREA DE ATENCION A LA CIUDADANIA","WEB","DERECHO DE PETICION DE INTERES GENERAL",1,"GESTIONADO"]
[null,5453632025,"OFICINA DE CONTROL DISCIPLINARIO INTERNO","WEB","DERECHO DE PETICION DE INTERES GENERAL",2,"GESTIONADO"]
[null,5455172025,"AREA DE ATENCION A LA CIUDADANIA","WEB","DERECHO DE PETICION DE INTERES PARTICULAR",1,"GESTIONADO"]
[null,5456902025,"AREA DE ATENCION A LA CIUDADANIA","E-MAIL","DERECHO DE PETICION DE INTERES PARTICULAR",1,"GESTIONADO"]
[null,5457462025,"AREA DE ATENCION A LA CIUDADANIA","E-MAIL","DERECHO DE PETICION DE INTERES PARTICULAR",1,"GESTIONADO"]
[null,5464742025,"AREA DE ATENCION A LA CIUDADANIA","WEB","DERECHO DE PETICION DE INTERES PARTICULAR",1,"GESTIONADO"]
[null,5465462025,"AREA DE ATENCION A LA CIUDADANIA","WEB","DERECHO DE PETICION DE INTERES GENERAL",1,"GESTIONADO"]
[null,5465542025,"AREA DE ATENCION A LA CIUDADANIA","E-MAIL","DERECHO DE PETICION DE INTERES PARTICULAR",1,"GESTIONADO"]
[null,5466602025,"AREA DE ATENCION A LA CIUDADANIA","E-MAIL","DERECHO DE PETICION DE INTERES GENERAL",1,"GESTIONADO"]
[null,5468532025,"AREA DE ATENCION A LA CIUDADANIA","BUZON","DERECHO DE PETICION DE INTERES GENERAL",1,"GESTIONADO"]
[null,5469172025,"AREA DE ATENCION A LA CIUDADANIA","E-MAIL","DERECHO DE PETICION DE INTERES GENERAL",1,"GESTIONADO"]
[null,5470102025,"AREA DE ATENCION A LA CIUDADANIA","BUZON","DERECHO DE PETICION DE INTERES GENERAL",1,"GESTIONADO"]
[null,5475962025,"AREA DE ATENCION A LA CIUDADANIA","E-MAIL","DERECHO DE PETICION DE INTERES GENERAL",1,"GESTIONADO"]
[null,5479402025,"AREA DE ATENCION A LA CIUDADANIA","WEB","QUEJA",1,"GESTIONADO"]
[null,5479662025,"AREA DE ATENCION A LA CIUDADANIA","REDES SOCIALES","DERECHO DE PETICION DE INTERES GENERAL",1,"GESTIONADO"]
[null,5479692025,"AREA DE ATENCION A LA CIUDADANIA","E-MAIL","DERECHO DE PETICION DE INTERES PARTICULAR",1,"GESTIONADO"]
[null,5481102025,"AREA DE ATENCION A LA CIUDADANIA","WEB","QUEJA",1,"GESTIONADO"]
[null,5481632025,"AREA DE ATENCION A LA CIUDADANIA","E-MAIL","DERECHO DE PETICION DE INTERES PARTICULAR",1,"GESTIONADO"]
[null,5482632025,"AREA DE ATENCION A LA CIUDADANIA","E-MAIL","DERECHO DE PETICION DE INTERES GENERAL",1,"GESTIONADO"]
[null,5493512025,"AREA DE ATENCION A LA CIUDADANIA","WEB","DERECHO DE PETICION DE INTERES GENERAL",1,"GESTIONADO"]
[null,5493682025,"AREA DE ATENCION A LA CIUDADANIA","WEB","DERECHO DE PETICION DE INTERES PARTICULAR",1,"GESTIONADO"]
[null,5493692025,"AREA DE ATENCION A LA CIUDADANIA","WEB","DERECHO DE PETICION DE INTERES PARTICULAR",1,"GESTIONADO"]
[null,5496122025,"AREA DE ATENCION A LA CIUDADANIA","WEB","QUEJA",1,"GESTIONADO"]
[null,5496132025,"AREA DE ATENCION A LA CIUDADANIA","WEB","RECLAMO",1,"GESTIONADO"]
[null,5496402025,"AREA DE ATENCION A LA CIUDADANIA","WEB","QUEJA",1,"GESTIONADO"]
[null,5496962025,"AREA DE ATENCION A LA CIUDADANIA","E-MAIL","DERECHO DE PETICION DE INTERES PARTICULAR",1,"GESTIONADO"]
[null,5497422025,"AREA DE ATENCION A LA CIUDADANIA","WEB","DERECHO DE PETICION DE INTERES PARTICULAR",1,"GESTIONADO"]
[null,5497822025,"AREA DE ATENCION A LA CIUDADANIA","WEB","QUEJA",1,"GESTIONADO"]
[null,5498642025,"AREA DE ATENCION A LA CIUDADANIA","WEB","DERECHO DE PETICION DE INTERES PARTICULAR",1,"PENDIENTE"]
[null,5498652025,"AREA DE ATENCION A LA CIUDADANIA","WEB","DERECHO DE PETICION DE INTERES PARTICULAR",1,"GESTIONADO"]
[null,5498682025,"AREA DE ATENCION A LA CIUDADANIA","WEB","DERECHO DE PETICION DE INTERES PARTICULAR",1,"GESTIONADO"]
[null,5499332025,"AREA DE ATENCION A LA CIUDADANIA","WEB","DERECHO DE PETICION DE INTERES GENERAL",1,"GESTIONADO"]
[null,5501502025,"AREA DE ATENCION A LA CIUDADANIA","E-MAIL","DERECHO DE PETICION DE INTERES GENERAL",1,"GESTIONADO"]
[null,5501532025,"AREA DE ATENCION A LA CIUDADANIA","E-MAIL","DERECHO DE PETICION DE INTERES GENERAL",1,"GESTIONADO"]
[null,5505512025,"AREA DE ATENCION A LA CIUDADANIA","WEB","RECLAMO",1,"GESTIONADO"]
[null,5505752025,"AREA DE ATENCION A LA CIUDADANIA","E-MAIL","DERECHO DE PETICION DE INTERES PARTICULAR",1,"GESTIONADO"]
[null,5510242025,"AREA DE ATENCION A LA CIUDADANIA","E-MAIL","DERECHO DE PETICION DE INTERES PARTICULAR",1,"GESTIONADO"]
[null,5511192025,"AREA DE ATENCION A LA CIUDADANIA","WEB","DERECHO DE PETICION DE INTERES PARTICULAR",1,"GESTIONADO"]
[null,5515302025,"AREA DE ATENCION A LA CIUDADANIA","WEB","DERECHO DE PETICION DE INTERES PARTICULAR",1,"GESTIONADO"]
[null,5518182025,"AREA DE ATENCION A LA CIUDADANIA","E-MAIL","DERECHO DE PETICION DE INTERES PARTICULAR",1,"GESTIONADO"]
[null,5520692025,"AREA DE ATENCION A LA CIUDADANIA","E-MAIL","QUEJA",1,"GESTIONADO"]
[null,5521572025,"SUBDIRECCION DE GESTION INMOBILIARIA Y DEL ESPACIO PUBLICO","WEB","DERECHO DE PETICION DE INTERES GENERAL",11,"PENDIENTE"]
[null,5521722025,"AREA DE ATENCION A LA CIUDADANIA","WEB","DERECHO DE PETICION DE INTERES PARTICULAR",1,"GESTIONADO"]
[null,5525022025,"AREA DE ATENCION A LA CIUDADANIA","E-MAIL","DERECHO DE PETICION DE INTERES GENERAL",1,"GESTIONADO"]
[null,5544312025,"AREA DE ATENCION A LA CIUDADANIA","E-MAIL","DERECHO DE PETICION DE INTERES PARTICULAR",1,"GESTIONADO"]
[null,5546172025,"AREA DE ATENCION A LA CIUDADANIA","WEB","DERECHO DE PETICION DE INTERES GENERAL",1,"GESTIONADO"]
[null,5546942025,"AREA DE ATENCION A LA CIUDADANIA","WEB","DERECHO DE PETICION DE INTERES GENERAL",1,"GESTIONADO"]
[null,5551142025,"AREA DE ATENCION A LA CIUDADANIA","E-MAIL","DERECHO DE PETICION DE INTERES PARTICULAR",1,"GESTIONADO"]
[null,5553742025,"AREA DE ATENCION A LA CIUDADANIA","E-MAIL","DERECHO DE PETICION DE INTERES GENERAL",1,"GESTIONADO"]
[null,5553782025,"AREA DE ATENCION A LA CIUDADANIA","WEB","DERECHO DE PETICION DE INTERES GENERAL",1,"GESTIONADO"]
[null,5554662025,"AREA DE ATENCION A LA CIUDADANIA","WEB","DERECHO DE PETICION DE INTERES GENERAL",1,"GESTIONADO"]
[null,5555372025,"AREA DE ATENCION A LA CIUDADANIA","WEB","DERECHO DE PETICION DE INTERES GENERAL",1,"GESTIONADO"]
[null,5558202025,"AREA DE ATENCION A LA CIUDADANIA","TELEFONO","RECLAMO",1,"GESTIONADO"]
[null,5565822025,"AREA DE ATENCION A LA CIUDADANIA","WEB","DERECHO DE PETICION DE INTERES GENERAL",1,"GESTIONADO"]
[null,5566072025,"AREA DE ATENCION A LA CIUDADANIA","WEB","DERECHO DE PETICION DE INTERES PARTICULAR",1,"GESTIONADO"]
[null,5583752025,"AREA DE ATENCION A LA CIUDADANIA","E-MAIL","DERECHO DE PETICION DE INTERES PARTICULAR",1,"GESTIONADO"]
[null,5590342025,"AREA DE ATENCION A LA CIUDADANIA","E-MAIL","DERECHO DE PETICION DE INTERES PARTICULAR",1,"GESTIONADO"]
[null,5597052025,"AREA DE ATENCION A LA CIUDADANIA","REDES SOCIALES","DERECHO DE PETICION DE INTERES PARTICULAR",1,"GESTIONADO"]
[null,5601192025,"SUBDIRECCION DE GESTION INMOBILIARIA Y DEL ESPACIO PUBLICO","E-MAIL","DERECHO DE PETICION DE INTERES GENERAL",3,"PENDIENTE"]
[null,5619352025,"AREA DE ATENCION A LA CIUDADANIA","ESCRITO","DERECHO DE PETICION DE INTERES GENERAL",1,"GESTIONADO"]
[null,5620782025,"SUBDIRECCION DE GESTION INMOBILIARIA Y DEL ESPACIO PUBLICO","WEB","DERECHO DE PETICION DE INTERES GENERAL",10,"PENDIENTE"]
[null,5624812025,"AREA DE ATENCION A LA CIUDADANIA","WEB","QUEJA",1,"GESTIONADO"]
[null,5625812025,"AREA DE ATENCION A LA CIUDADANIA","E-MAIL","DERECHO DE PETICION DE INTERES PARTICULAR",1,"GESTIONADO"]
[null,5629202025,"AREA DE ATENCION A LA CIUDADANIA","E-MAIL","DERECHO DE PETICION DE INTERES GENERAL",1,"GESTIONADO"]
[null,5630642025,"OFICINA JURIDICA","E-MAIL","DERECHO DE PETICION DE INTERES PARTICULAR",4,"GESTIONADO"]
[null,5630782025,"AREA DE ATENCION A LA CIUDADANIA","WEB","CONSULTA",1,"GESTIONADO"]
[null,5630872025,"AREA DE ATENCION A LA CIUDADANIA","WEB","DERECHO DE PETICION DE INTERES PARTICULAR",1,"GESTIONADO"]
[null,5634322025,"SUBDIRECCION DE GESTION INMOBILIARIA Y DEL ESPACIO PUBLICO","ESCRITO","DERECHO DE PETICION DE INTERES PARTICULAR",10,"PENDIENTE"]
[null,5636482025,"SUBDIRECCION DE GESTION INMOBILIARIA Y DEL ESPACIO PUBLICO","E-MAIL","DERECHO DE PETICION DE INTERES PARTICULAR",10,"PENDIENTE"]
[null,5636552025,"AREA DE ATENCION A LA CIUDADANIA","WEB","DERECHO DE PETICION DE INTERES PARTICULAR",1,"GESTIONADO"]
[null,5637192025,"AREA DE ATENCION A LA CIUDADANIA","ESCRITO","DERECHO DE PETICION DE INTERES GENERAL",1,"GESTIONADO"]
[null,5637592025,"AREA DE ATENCION A LA CIUDADANIA","WEB","DERECHO DE PETICION DE INTERES GENERAL",1,"GESTIONADO"]
[null,5648952025,"AREA DE ATENCION A LA CIUDADANIA","TELEFONO","DERECHO DE PETICION DE INTERES PARTICULAR",1,"GESTIONADO"]
[null,5649042025,"AREA DE ATENCION A LA CIUDADANIA","TELEFONO","DERECHO DE PETICION DE INTERES GENERAL",1,"GESTIONADO"]
[null,5654812025,"AREA DE ATENCION A LA CIUDADANIA","TELEFONO","DERECHO DE PETICION DE INTERES PARTICULAR",1,"GESTIONADO"]
[null,5657202025,"AREA DE ATENCION A LA CIUDADANIA","E-MAIL","DERECHO DE PETICION DE INTERES GENERAL",1,"GESTIONADO"]
[null,5658282025,"AREA DE ATENCION A LA CIUDADANIA","TELEFONO","DERECHO DE PETICION DE INTERES PARTICULAR",1,"GESTIONADO"]
[null,5659562025,"AREA DE ATENCION A LA CIUDADANIA","TELEFONO","DERECHO DE PETICION DE INTERES GENERAL",1,"GESTIONADO"]
[null,5660602025,"AREA DE ATENCION A LA CIUDADANIA","ESCRITO","DERECHO DE PETICION DE INTERES GENERAL",1,"GESTIONADO"]
[null,5660822025,"SUBDIRECCION DE GESTION INMOBILIARIA Y DEL ESPACIO PUBLICO","E-MAIL","CONSULTA",9,"PENDIENTE"]
[null,5665762025,"OFICINA JURIDICA","E-MAIL","CONSULTA",8,"PENDIENTE"]
[null,5667842025,"AREA DE ATENCION A LA CIUDADANIA","E-MAIL","DERECHO DE PETICION DE INTERES PARTICULAR",1,"GESTIONADO"]
[null,5669712025,"OFICINA JURIDICA","ESCRITO","CONSULTA",8,"PENDIENTE"]
[null,5671532025,"AREA DE ATENCION A LA CIUDADANIA","WEB","DERECHO DE PETICION DE INTERES PARTICULAR",1,"GESTIONADO"]
[null,5671722025,"AREA DE ATENCION A LA CIUDADANIA","WEB","RECLAMO",1,"GESTIONADO"]
[null,5674412025,"AREA DE ATENCION A LA CIUDADANIA","BUZON","DERECHO DE PETICION DE INTERES GENERAL",1,"GESTIONADO"]
[null,5674762025,"AREA DE ATENCION A LA CIUDADANIA","WEB","DERECHO DE PETICION DE INTERES GENERAL",1,"GESTIONADO"]
[null,5675862025,"AREA DE ATENCION A LA CIUDADANIA","E-MAIL","DERECHO DE PETICION DE INTERES PARTICULAR",1,"GESTIONADO"]
[null,5678582025,"AREA DE ATENCION A LA CIUDADANIA","WEB","DERECHO DE PETICION DE INTERES GENERAL",1,"GESTIONADO"]
[null,5679792025,"AREA DE ATENCION A LA CIUDADANIA","E-MAIL","DERECHO DE PETICION DE INTERES PARTICULAR",1,"GESTIONADO"]
[null,5692232025,"SUBDIRECCION DE GESTION INMOBILIARIA Y DEL ESPACIO PUBLICO","E-MAIL","DERECHO DE PETICION DE INTERES PARTICULAR",8,"PENDIENTE"]
[null,5694602025,"SUBDIRECCION DE GESTION INMOBILIARIA Y DEL ESPACIO PUBLICO","E-MAIL","DERECHO DE PETICION DE INTERES GENERAL",7,"PENDIENTE"]
[null,5695802025,"AREA DE ATENCION A LA CIUDADANIA","E-MAIL","DERECHO DE PETICION DE INTERES GENERAL",1,"GESTIONADO"]
[null,5697382025,"AREA DE ATENCION A LA CIUDADANIA","E-MAIL","DERECHO DE PETICION DE INTERES GENERAL",1,"GESTIONADO"]
[null,5698782025,"AREA DE ATENCION A LA CIUDADANIA","ESCRITO","DERECHO DE PETICION DE INTERES GENERAL",1,"GESTIONADO"]
[null,5700422025,"AREA DE ATENCION A LA CIUDADANIA","E-MAIL","DERECHO DE PETICION DE INTERES PARTICULAR",1,"GESTIONADO"]
[null,5704412025,"AREA DE ATENCION A LA CIUDADANIA","WEB","DERECHO DE PETICION DE INTERES PARTICULAR",1,"GESTIONADO"]
[null,5705602025,"AREA DE ATENCION A LA CIUDADANIA","E-MAIL","DERECHO DE PETICION DE INTERES GENERAL",1,"GESTIONADO"]
[null,5706332025,"AREA DE ATENCION A LA CIUDADANIA","E-MAIL","DERECHO DE PETICION DE INTERES PARTICULAR",1,"GESTIONADO"]
[null,5710582025,"AREA DE ATENCION A LA CIUDADANIA","WEB","DERECHO DE PETICION DE INTERES GENERAL",1,"GESTIONADO"]
[null,5714182025,"AREA DE ATENCION A LA CIUDADANIA","WEB","DERECHO DE PETICION DE INTERES GENERAL",1,"GESTIONADO"]
[null,5726942025,"AREA DE ATENCION A LA CIUDADANIA","WEB","RECLAMO",1,"GESTIONADO"]
[null,5728992025,"AREA DE ATENCION A LA CIUDADANIA","ESCRITO","DERECHO DE PETICION DE INTERES GENERAL",1,"GESTIONADO"]
[null,5729482025,"AREA DE ATENCION A LA CIUDADANIA","E-MAIL","DERECHO DE PETICION DE INTERES GENERAL",1,"GESTIONADO"]
[null,5730632025,"AREA DE ATENCION A LA CIUDADANIA","E-MAIL","DERECHO DE PETICION DE INTERES GENERAL",1,"GESTIONADO"]
[null,5734162025,"AREA DE ATENCION A LA CIUDADANIA","ESCRITO","DERECHO DE PETICION DE INTERES GENERAL",1,"GESTIONADO"]
[null,5734732025,"AREA DE ATENCION A LA CIUDADANIA","E-MAIL","DERECHO DE PETICION DE INTERES PARTICULAR",1,"GESTIONADO"]
[null,5734842025,"OFICINA JURIDICA","E-MAIL","CONSULTA",7,"PENDIENTE"]
[null,5735082025,"OFICINA JURIDICA","E-MAIL","CONSULTA",7,"PENDIENTE"]
[null,5736602025,"AREA DE ATENCION A LA CIUDADANIA","WEB","DERECHO DE PETICION DE INTERES GENERAL",1,"GESTIONADO"]
[null,5738532025,"OFICINA JURIDICA","E-MAIL","CONSULTA",7,"PENDIENTE"]
[null,5740422025,"AREA DE ATENCION A LA CIUDADANIA","E-MAIL","QUEJA",1,"GESTIONADO"]
[null,5740652025,"AREA DE ATENCION A LA CIUDADANIA","E-MAIL","DERECHO DE PETICION DE INTERES GENERAL",1,"GESTIONADO"]
[null,5744822025,"AREA DE ATENCION A LA CIUDADANIA","WEB","DERECHO DE PETICION DE INTERES PARTICULAR",1,"GESTIONADO"]
[null,5745052025,"AREA DE ATENCION A LA CIUDADANIA","E-MAIL","DERECHO DE PETICION DE INTERES PARTICULAR",1,"GESTIONADO"]
[null,5745722025,"AREA DE ATENCION A LA CIUDADANIA","WEB","DERECHO DE PETICION DE INTERES GENERAL",1,"GESTIONADO"]
[null,5746282025,"AREA DE ATENCION A LA CIUDADANIA","WEB","DERECHO DE PETICION DE INTERES GENERAL",1,"GESTIONADO"]
[null,5762432025,"AREA DE ATENCION A LA CIUDADANIA","WEB","QUEJA",1,"GESTIONADO"]
[null,5766492025,"AREA DE ATENCION A LA CIUDADANIA","E-MAIL","DERECHO DE PETICION DE INTERES PARTICULAR",1,"GESTIONADO"]
[null,5766892025,"AREA DE ATENCION A LA CIUDADANIA","E-MAIL","DERECHO DE PETICION DE INTERES PARTICULAR",1,"GESTIONADO"]
[null,5768222025,"AREA DE ATENCION A LA CIUDADANIA","WEB","DERECHO DE PETICION DE INTERES GENERAL",1,"GESTIONADO"]
[null,5768852025,"AREA DE ATENCION A LA CIUDADANIA","WEB","DERECHO DE PETICION DE INTERES GENERAL",1,"GESTIONADO"]
[null,5769032025,"SUBDIRECCION DE GESTION INMOBILIARIA Y DEL ESPACIO PUBLICO","WEB","CONSULTA",4,"PENDIENTE"]
[null,5771032025,"AREA DE ATENCION A LA CIUDADANIA","E-MAIL","DERECHO DE PETICION DE INTERES PARTICULAR",1,"GESTIONADO"]
[null,5773742025,"AREA DE ATENCION A LA CIUDADANIA","WEB","DERECHO DE PETICION DE INTERES GENERAL",1,"GESTIONADO"]
[null,5774182025,"AREA DE ATENCION A LA CIUDADANIA","WEB","DERECHO DE PETICION DE INTERES GENERAL",1,"GESTIONADO"]
[null,5774862025,"AREA DE ATENCION A LA CIUDADANIA","WEB","DERECHO DE PETICION DE INTERES GENERAL",1,"GESTIONADO"]
[null,5776212025,"AREA DE ATENCION A LA CIUDADANIA","WEB","DERECHO DE PETICION DE INTERES PARTICULAR",1,"GESTIONADO"]
[null,5777882025,"AREA DE ATENCION A LA CIUDADANIA","BUZON","DERECHO DE PETICION DE INTERES PARTICULAR",1,"GESTIONADO"]
[null,5785002025,"AREA DE ATENCION A LA CIUDADANIA","WEB","QUEJA",1,"GESTIONADO"]
[null,5786572025,"AREA DE ATENCION A LA CIUDADANIA","WEB","DERECHO DE PETICION DE INTERES GENERAL",1,"GESTIONADO"]
[null,5787502025,"AREA DE ATENCION A LA CIUDADANIA","E-MAIL","DERECHO DE PETICION DE INTERES GENERAL",1,"GESTIONADO"]
[null,5789302025,"AREA DE ATENCION A LA CIUDADANIA","ESCRITO","DERECHO DE PETICION DE INTERES GENERAL",1,"GESTIONADO"]
[null,5789422025,"AREA DE ATENCION A LA CIUDADANIA","WEB","QUEJA",1,"GESTIONADO"]
[null,5791422025,"AREA DE ATENCION A LA CIUDADANIA","E-MAIL","DERECHO DE PETICION DE INTERES PARTICULAR",1,"GESTIONADO"]
[null,5793012025,"AREA DE ATENCION A LA CIUDADANIA","E-MAIL","DERECHO DE PETICION DE INTERES PARTICULAR",1,"GESTIONADO"]
[null,5793222025,"AREA DE ATENCION A LA CIUDADANIA","WEB","RECLAMO",1,"GESTIONADO"]
[null,5794402025,"AREA DE ATENCION A LA CIUDADANIA","E-MAIL","QUEJA",1,"GESTIONADO"]
[null,5794832025,"OFICINA DE CONTROL DISCIPLINARIO INTERNO","BUZON","DERECHO DE PETICION DE INTERES PARTICULAR",5,"PENDIENTE"]
[null,5796062025,"AREA DE ATENCION A LA CIUDADANIA","WEB","DERECHO DE PETICION DE INTERES GENERAL",1,"GESTIONADO"]
[null,5798022025,"AREA DE ATENCION A LA CIUDADANIA","E-MAIL","DERECHO DE PETICION DE INTERES GENERAL",1,"GESTIONADO"]
[null,5798552025,"AREA DE ATENCION A LA CIUDADANIA","BUZON","DERECHO DE PETICION DE INTERES GENERAL",1,"GESTIONADO"]
[null,5801432025,"OFICINA JURIDICA","WEB","SOLICITUD DE ACCESO A LA INFORMACION",4,"PENDIENTE"]
[null,5803742025,"AREA DE ATENCION A LA CIUDADANIA","WEB","RECLAMO",1,"GESTIONADO"]
[null,5812192025,"AREA DE ATENCION A LA CIUDADANIA","WEB","DERECHO DE PETICION DE INTERES GENERAL",1,"GESTIONADO"]
[null,5812882025,"AREA DE ATENCION A LA CIUDADANIA","WEB","DERECHO DE PETICION DE INTERES PARTICULAR",1,"GESTIONADO"]
[null,5815202025,"AREA DE ATENCION A LA CIUDADANIA","WEB","CONSULTA",1,"GESTIONADO"]
[null,5819272025,"AREA DE ATENCION A LA CIUDADANIA","WEB","QUEJA",1,"GESTIONADO"]
[null,5820052025,"AREA DE ATENCION A LA CIUDADANIA","WEB","DERECHO DE PETICION DE INTERES PARTICULAR",1,"GESTIONADO"]
[null,5820212025,"AREA DE ATENCION A LA CIUDADANIA","WEB","DERECHO DE PETICION DE INTERES GENERAL",1,"GESTIONADO"]
[null,5821892025,"AREA DE ATENCION A LA CIUDADANIA","WEB","DERECHO DE PETICION DE INTERES PARTICULAR",1,"GESTIONADO"]
[null,5823332025,"AREA DE ATENCION A LA CIUDADANIA","WEB","QUEJA",1,"GESTIONADO"]
[null,5823402025,"AREA DE ATENCION A LA CIUDADANIA","WEB","QUEJA",1,"GESTIONADO"]
[null,5824932025,"AREA DE ATENCION A LA CIUDADANIA","ESCRITO","DERECHO DE PETICION DE INTERES GENERAL",1,"GESTIONADO"]
[null,5825602025,"AREA DE ATENCION A LA CIUDADANIA","TELEFONO","QUEJA",1,"GESTIONADO"]
[null,5830872025,"AREA DE ATENCION A LA CIUDADANIA","E-MAIL","DERECHO DE PETICION DE INTERES GENERAL",1,"GESTIONADO"]
[null,5833552025,"AREA DE ATENCION A LA CIUDADANIA","E-MAIL","DERECHO DE PETICION DE INTERES PARTICULAR",1,"GESTIONADO"]
[null,5833742025,"AREA DE ATENCION A LA CIUDADANIA","TELEFONO","RECLAMO",1,"GESTIONADO"]
[null,5840342025,"AREA DE ATENCION A LA CIUDADANIA","PRESENCIAL","DERECHO DE PETICION DE INTERES PARTICULAR",1,"GESTIONADO"]
[null,5840912025,"AREA DE ATENCION A LA CIUDADANIA","E-MAIL","DERECHO DE PETICION DE INTERES PARTICULAR",1,"GESTIONADO"]
[null,5861892025,"AREA DE ATENCION A LA CIUDADANIA","E-MAIL","DERECHO DE PETICION DE INTERES PARTICULAR",1,"GESTIONADO"]
[null,5862232025,"AREA DE ATENCION A LA CIUDADANIA","E-MAIL","DERECHO DE PETICION DE INTERES PARTICULAR",1,"GESTIONADO"]
[null,5862482025,"AREA DE ATENCION A LA CIUDADANIA","WEB","DERECHO DE PETICION DE INTERES GENERAL",1,"GESTIONADO"]
[null,5862672025,"AREA DE ATENCION A LA CIUDADANIA","E-MAIL","QUEJA",1,"GESTIONADO"]
[null,5863632025,"AREA DE ATENCION A LA CIUDADANIA","E-MAIL","QUEJA",1,"GESTIONADO"]
[null,5863902025,"AREA DE ATENCION A LA CIUDADANIA","WEB","DERECHO DE PETICION DE INTERES GENERAL",1,"GESTIONADO"]
[null,5866042025,"AREA DE ATENCION A LA CIUDADANIA","E-MAIL","QUEJA",1,"GESTIONADO"]
[null,5871462025,"SUBDIRECCION DE GESTION INMOBILIARIA Y DEL ESPACIO PUBLICO","WEB","DERECHO DE PETICION DE INTERES PARTICULAR",2,"PENDIENTE"]
[null,5887402025,"AREA DE ATENCION A LA CIUDADANIA","E-MAIL","DERECHO DE PETICION DE INTERES PARTICULAR",1,"GESTIONADO"]
[null,5888002025,"AREA DE ATENCION A LA CIUDADANIA","WEB","DERECHO DE PETICION DE INTERES GENERAL",1,"GESTIONADO"]
[null,5889032025,"AREA DE ATENCION A LA CIUDADANIA","WEB","DERECHO DE PETICION DE INTERES PARTICULAR",1,"GESTIONADO"]
[null,5889772025,"AREA DE ATENCION A LA CIUDADANIA","TELEFONO","DERECHO DE PETICION DE INTERES GENERAL",1,"GESTIONADO"]
[null,5893252025,"AREA DE ATENCION A LA CIUDADANIA","E-MAIL","DERECHO DE PETICION DE INTERES PARTICULAR",1,"GESTIONADO"]
[null,5893692025,"SUBDIRECCION DE REGISTRO INMOBILIARIO","E-MAIL","CONSULTA",1,"PENDIENTE"]
[null,5894252025,"AREA DE ATENCION A LA CIUDADANIA","E-MAIL","DERECHO DE PETICION DE INTERES GENERAL",1,"GESTIONADO"]
[null,5895252025,"AREA DE ATENCION A LA CIUDADANIA","WEB","DERECHO DE PETICION DE INTERES GENERAL",1,"GESTIONADO"]
[null,5901032025,"AREA DE ATENCION A LA CIUDADANIA","WEB","DERECHO DE PETICION DE INTERES GENERAL",1,"GESTIONADO"]
[null,5901102025,"AREA DE ATENCION A LA CIUDADANIA","TELEFONO","DERECHO DE PETICION DE INTERES GENERAL",1,"GESTIONADO"]
[null,5906112025,"AREA DE ATENCION A LA CIUDADANIA","TELEFONO","DERECHO DE PETICION DE INTERES GENERAL",1,"GESTIONADO"]
[null,5913682025,"OFICINA JURIDICA","E-MAIL","CONSULTA",1,"PENDIENTE"]
[null,5923942025,"AREA DE ATENCION A LA CIUDADANIA","TELEFONO","DERECHO DE PETICION DE INTERES GENERAL",1,"PENDIENTE"]
[null,5924002025,"AREA DE ATENCION A LA CIUDADANIA","WEB","DERECHO DE PETICION DE INTERES GENERAL",1,"PENDIENTE"]
[null,5924192025,"AREA DE ATENCION A LA CIUDADANIA","WEB","DERECHO DE PETICION DE INTERES GENERAL",1,"PENDIENTE"]
[null,5924472025,"AREA DE ATENCION A LA CIUDADANIA","ESCRITO","DERECHO DE PETICION DE INTERES GENERAL",1,"GESTIONADO"]
[null,5925742025,"AREA DE ATENCION A LA CIUDADANIA","TELEFONO","DERECHO DE PETICION DE INTERES GENERAL",1,"GESTIONADO"]
[null,5925882025,"AREA DE ATENCION A LA CIUDADANIA","E-MAIL","DERECHO DE PETICION DE INTERES GENERAL",1,"GESTIONADO"]
[null,5927772025,"SUBDIRECCION DE GESTION INMOBILIARIA Y DEL ESPACIO PUBLICO","E-MAIL","DERECHO DE PETICION DE INTERES PARTICULAR",1,"PENDIENTE"]
[null,5930062025,"AREA DE ATENCION A LA CIUDADANIA","E-MAIL","DERECHO DE PETICION DE INTERES PARTICULAR",1,"PENDIENTE"]
[null,5939922025,"AREA DE ATENCION A LA CIUDADANIA","E-MAIL","QUEJA",1,"GESTIONADO"]
[null,5940152025,"AREA DE ATENCION A LA CIUDADANIA","E-MAIL","DERECHO DE PETICION DE INTERES GENERAL",1,"GESTIONADO"]
[null,5944532025,"AREA DE ATENCION A LA CIUDADANIA","E-MAIL","QUEJA",1,"GESTIONADO"]
[null,5945392025,"AREA DE ATENCION A LA CIUDADANIA","E-MAIL","QUEJA",1,"GESTIONADO"]
[null,5946222025,"AREA DE ATENCION A LA CIUDADANIA","E-MAIL","QUEJA",1,"GESTIONADO"]
[null,5946932025,"SUBDIRECCION DE GESTION INMOBILIARIA Y DEL ESPACIO PUBLICO","E-MAIL","DERECHO DE PETICION DE INTERES PARTICULAR",1,"PENDIENTE"]
[null,5947572025,"AREA DE ATENCION A LA CIUDADANIA","E-MAIL","QUEJA",1,"GESTIONADO"]
[null,5952382025,"AREA DE ATENCION A LA CIUDADANIA","E-MAIL","DERECHO DE PETICION DE INTERES GENERAL",1,"PENDIENTE"]
[null,5331832025,"SUBDIRECCION DE GESTION INMOBILIARIA Y DEL ESPACIO PUBLICO","WEB","SOLICITUD DE COPIA",10,"GESTIONADO"]
[null,5225342025,"AREA DE ATENCION A LA CIUDADANIA","WEB","DERECHO DE PETICION DE INTERES PARTICULAR",1,"GESTIONADO"]
[null,5226012025,"AREA DE ATENCION A LA CIUDADANIA","E-MAIL","DERECHO DE PETICION DE INTERES GENERAL",1,"GESTIONADO"]
[null,5229202025,"SUBDIRECCION DE GESTION INMOBILIARIA Y DEL ESPACIO PUBLICO","E-MAIL","DERECHO DE PETICION DE INTERES PARTICULAR",14,"GESTIONADO"]
[null,5230492025,"AREA DE ATENCION A LA CIUDADANIA","WEB","DERECHO DE PETICION DE INTERES GENERAL",1,"GESTIONADO"]
[null,5230632025,"AREA DE ATENCION A LA CIUDADANIA","WEB","DERECHO DE PETICION DE INTERES GENERAL",1,"GESTIONADO"]
[null,5230902025,"AREA DE ATENCION A LA CIUDADANIA","WEB","DERECHO DE PETICION DE INTERES GENERAL",1,"GESTIONADO"]
[null,5232342025,"AREA DE ATENCION A LA CIUDADANIA","WEB","DERECHO DE PETICION DE INTERES GENERAL",1,"GESTIONADO"]
[null,5235432025,"AREA DE ATENCION A LA CIUDADANIA","WEB","DERECHO DE PETICION DE INTERES GENERAL",1,"GESTIONADO"]
[null,5235742025,"AREA DE ATENCION A LA CIUDADANIA","WEB","DERECHO DE PETICION DE INTERES GENERAL",1,"GESTIONADO"]
[null,5237732025,"AREA DE ATENCION A LA CIUDADANIA","WEB","DERECHO DE PETICION DE INTERES PARTICULAR",1,"GESTIONADO"]
[null,5238322025,"SUBDIRECCION DE GESTION INMOBILIARIA Y DEL ESPACIO PUBLICO","E-MAIL","DERECHO DE PETICION DE INTERES GENERAL",14,"GESTIONADO"]
[null,5239822025,"AREA DE ATENCION A LA CIUDADANIA","WEB","DERECHO DE PETICION DE INTERES GENERAL",1,"GESTIONADO"]
[null,5257982025,"AREA DE ATENCION A LA CIUDADANIA","WEB","DERECHO DE PETICION DE INTERES GENERAL",1,"GESTIONADO"]
[null,5264662025,"AREA DE ATENCION A LA CIUDADANIA","WEB","DERECHO DE PETICION DE INTERES GENERAL",1,"GESTIONADO"]
[null,5267552025,"AREA DE ATENCION A LA CIUDADANIA","WEB","DERECHO DE PETICION DE INTERES GENERAL",1,"GESTIONADO"]
[null,5268312025,"AREA DE ATENCION A LA CIUDADANIA","WEB","DERECHO DE PETICION DE INTERES GENERAL",1,"GESTIONADO"]
[null,5272782025,"AREA DE ATENCION A LA CIUDADANIA","E-MAIL","DERECHO DE PETICION DE INTERES GENERAL",1,"GESTIONADO"]
[null,5274162025,"AREA DE ATENCION A LA CIUDADANIA","E-MAIL","DERECHO DE PETICION DE INTERES GENERAL",1,"GESTIONADO"]
[null,5274492025,"AREA DE ATENCION A LA CIUDADANIA","WEB","DERECHO DE PETICION DE INTERES GENERAL",1,"GESTIONADO"]
[null,5275292025,"AREA DE ATENCION A LA CIUDADANIA","WEB","DERECHO DE PETICION DE INTERES GENERAL",1,"GESTIONADO"]
[null,5276072025,"AREA DE ATENCION A LA CIUDADANIA","WEB","DERECHO DE PETICION DE INTERES GENERAL",1,"GESTIONADO"]
[null,5277412025,"AREA DE ATENCION A LA CIUDADANIA","WEB","DERECHO DE PETICION DE INTERES GENERAL",1,"GESTIONADO"]
[null,5279362025,"AREA DE ATENCION A LA CIUDADANIA","WEB","DERECHO DE PETICION DE INTERES PARTICULAR",1,"GESTIONADO"]
[null,5279812025,"AREA DE ATENCION A LA CIUDADANIA","WEB","DERECHO DE PETICION DE INTERES PARTICULAR",1,"GESTIONADO"]
[null,5279872025,"AREA DE ATENCION A LA CIUDADANIA","WEB","DERECHO DE PETICION DE INTERES PARTICULAR",1,"GESTIONADO"]
[null,5279902025,"AREA DE ATENCION A LA CIUDADANIA","WEB","DERECHO DE PETICION DE INTERES PARTICULAR",1,"GESTIONADO"]
[null,5280212025,"AREA DE ATENCION A LA CIUDADANIA","WEB","DERECHO DE PETICION DE INTERES GENERAL",1,"GESTIONADO"]
[null,5280282025,"AREA DE ATENCION A LA CIUDADANIA","WEB","DERECHO DE PETICION DE INTERES GENERAL",1,"GESTIONADO"]
[null,5280792025,"AREA DE ATENCION A LA CIUDADANIA","WEB","DERECHO DE PETICION DE INTERES GENERAL",1,"GESTIONADO"]
[null,5281002025,"AREA DE ATENCION A LA CIUDADANIA","WEB","DERECHO DE PETICION DE INTERES GENERAL",1,"GESTIONADO"]
[null,5282542025,"AREA DE ATENCION A LA CIUDADANIA","WEB","DERECHO DE PETICION DE INTERES GENERAL",2,"GESTIONADO"]
[null,5284562025,"AREA DE ATENCION A LA CIUDADANIA","WEB","DERECHO DE PETICION DE INTERES PARTICULAR",1,"GESTIONADO"]
[null,5291962025,"AREA DE ATENCION A LA CIUDADANIA","WEB","DERECHO DE PETICION DE INTERES GENERAL",1,"GESTIONADO"]
[null,5292322025,"AREA DE ATENCION A LA CIUDADANIA","WEB","DERECHO DE PETICION DE INTERES GENERAL",1,"GESTIONADO"]
[null,5296112025,"AREA DE ATENCION A LA CIUDADANIA","WEB","DERECHO DE PETICION DE INTERES GENERAL",1,"GESTIONADO"]
[null,5296142025,"AREA DE ATENCION A LA CIUDADANIA","WEB","DERECHO DE PETICION DE INTERES PARTICULAR",1,"GESTIONADO"]
[null,5297562025,"AREA DE ATENCION A LA CIUDADANIA","WEB","DERECHO DE PETICION DE INTERES GENERAL",1,"GESTIONADO"]
[null,5298662025,"AREA DE ATENCION A LA CIUDADANIA","WEB","DERECHO DE PETICION DE INTERES GENERAL",1,"GESTIONADO"]
[null,5300372025,"AREA DE ATENCION A LA CIUDADANIA","E-MAIL","DERECHO DE PETICION DE INTERES GENERAL",1,"GESTIONADO"]
[null,5300802025,"AREA DE ATENCION A LA CIUDADANIA","WEB","DERECHO DE PETICION DE INTERES GENERAL",1,"GESTIONADO"]
[null,5301752025,"AREA DE ATENCION A LA CIUDADANIA","PRESENCIAL","DERECHO DE PETICION DE INTERES GENERAL",1,"GESTIONADO"]
[null,5306542025,"SUBDIRECCION DE GESTION INMOBILIARIA Y DEL ESPACIO PUBLICO","E-MAIL","DERECHO DE PETICION DE INTERES GENERAL",14,"GESTIONADO"]
[null,5307522025,"SUBDIRECCION DE GESTION INMOBILIARIA Y DEL ESPACIO PUBLICO","E-MAIL","DERECHO DE PETICION DE INTERES GENERAL",14,"GESTIONADO"]
[null,5311132025,"AREA DE ATENCION A LA CIUDADANIA","WEB","DERECHO DE PETICION DE INTERES PARTICULAR",1,"GESTIONADO"]
[null,5312822025,"AREA DE ATENCION A LA CIUDADANIA","WEB","DERECHO DE PETICION DE INTERES PARTICULAR",1,"GESTIONADO"]
[null,5315022025,"AREA DE ATENCION A LA CIUDADANIA","WEB","DERECHO DE PETICION DE INTERES GENERAL",1,"GESTIONADO"]
[null,5318402025,"AREA DE ATENCION A LA CIUDADANIA","WEB","DERECHO DE PETICION DE INTERES PARTICULAR",2,"GESTIONADO"]
[null,5322422025,"AREA DE ATENCION A LA CIUDADANIA","WEB","DERECHO DE PETICION DE INTERES GENERAL",1,"GESTIONADO"]
[null,5322722025,"AREA DE ATENCION A LA CIUDADANIA","WEB","DERECHO DE PETICION DE INTERES GENERAL",1,"GESTIONADO"]
[null,5323292025,"AREA DE ATENCION A LA CIUDADANIA","WEB","DERECHO DE PETICION DE INTERES GENERAL",1,"GESTIONADO"]
[null,5324152025,"AREA DE ATENCION A LA CIUDADANIA","WEB","DERECHO DE PETICION DE INTERES GENERAL",1,"GESTIONADO"]
[null,5324552025,"AREA DE ATENCION A LA CIUDADANIA","WEB","DERECHO DE PETICION DE INTERES GENERAL",1,"GESTIONADO"]
[null,5325132025,"AREA DE ATENCION A LA CIUDADANIA","WEB","DERECHO DE PETICION DE INTERES GENERAL",1,"GESTIONADO"]
[null,5325752025,"SUBDIRECCION DE GESTION INMOBILIARIA Y DEL ESPACIO PUBLICO","WEB","DERECHO DE PETICION DE INTERES PARTICULAR",13,"GESTIONADO"]
[null,5326292025,"AREA DE ATENCION A LA CIUDADANIA","WEB","DERECHO DE PETICION DE INTERES GENERAL",1,"GESTIONADO"]
[null,5326302025,"AREA DE ATENCION A LA CIUDADANIA","WEB","DERECHO DE PETICION DE INTERES GENERAL",1,"GESTIONADO"]
[null,5326312025,"AREA DE ATENCION A LA CIUDADANIA","WEB","DERECHO DE PETICION DE INTERES GENERAL",1,"GESTIONADO"]
[null,5326322025,"AREA DE ATENCION A LA CIUDADANIA","WEB","DERECHO DE PETICION DE INTERES PARTICULAR",1,"GESTIONADO"]
[null,5327562025,"AREA DE ATENCION A LA CIUDADANIA","WEB","DERECHO DE PETICION DE INTERES GENERAL",1,"GESTIONADO"]
[null,5329412025,"AREA DE ATENCION A LA CIUDADANIA","WEB","DERECHO DE PETICION DE INTERES GENERAL",1,"GESTIONADO"]
[null,5330812025,"AREA DE ATENCION A LA CIUDADANIA","WEB","DERECHO DE PETICION DE INTERES PARTICULAR",1,"GESTIONADO"]
[null,5331002025,"AREA DE ATENCION A LA CIUDADANIA","WEB","DERECHO DE PETICION DE INTERES PARTICULAR",1,"GESTIONADO"]
[null,5331082025,"AREA DE ATENCION A LA CIUDADANIA","WEB","DERECHO DE PETICION DE INTERES PARTICULAR",1,"GESTIONADO"]
[null,5331182025,"AREA DE ATENCION A LA CIUDADANIA","WEB","DERECHO DE PETICION DE INTERES GENERAL",1,"GESTIONADO"]
[null,5331502025,"AREA DE ATENCION A LA CIUDADANIA","WEB","DERECHO DE PETICION DE INTERES GENERAL",1,"GESTIONADO"]
[null,5332452025,"OFICINA DE CONTROL DISCIPLINARIO INTERNO","WEB","DERECHO DE PETICION DE INTERES GENERAL",1,"GESTIONADO"]
[null,5332732025,"AREA DE ATENCION A LA CIUDADANIA","WEB","DERECHO DE PETICION DE INTERES GENERAL",1,"GESTIONADO"]
[null,5333232025,"AREA DE ATENCION A LA CIUDADANIA","WEB","DERECHO DE PETICION DE INTERES GENERAL",1,"GESTIONADO"]
[null,5333252025,"AREA DE ATENCION A LA CIUDADANIA","WEB","DERECHO DE PETICION DE INTERES GENERAL",1,"GESTIONADO"]
[null,5335602025,"AREA DE ATENCION A LA CIUDADANIA","WEB","DERECHO DE PETICION DE INTERES GENERAL",1,"GESTIONADO"]
[null,5335622025,"AREA DE ATENCION A LA CIUDADANIA","E-MAIL","DERECHO DE PETICION DE INTERES PARTICULAR",1,"GESTIONADO"]
[null,5336022025,"AREA DE ATENCION A LA CIUDADANIA","E-MAIL","DERECHO DE PETICION DE INTERES GENERAL",1,"GESTIONADO"]
[null,5336432025,"AREA DE ATENCION A LA CIUDADANIA","E-MAIL","DERECHO DE PETICION DE INTERES GENERAL",1,"GESTIONADO"]
[null,5336612025,"AREA DE ATENCION A LA CIUDADANIA","E-MAIL","DERECHO DE PETICION DE INTERES GENERAL",1,"GESTIONADO"]
[null,5336862025,"AREA DE ATENCION A LA CIUDADANIA","E-MAIL","DERECHO DE PETICION DE INTERES GENERAL",1,"GESTIONADO"]
[null,5337312025,"AREA DE ATENCION A LA CIUDADANIA","E-MAIL","DERECHO DE PETICION DE INTERES GENERAL",1,"GESTIONADO"]
[null,5338412025,"SUBDIRECCION DE GESTION INMOBILIARIA Y DEL ESPACIO PUBLICO","E-MAIL","DERECHO DE PETICION DE INTERES GENERAL",14,"GESTIONADO"]
[null,5339812025,"AREA DE ATENCION A LA CIUDADANIA","WEB","DERECHO DE PETICION DE INTERES PARTICULAR",1,"GESTIONADO"]
[null,5340362025,"AREA DE ATENCION A LA CIUDADANIA","WEB","DERECHO DE PETICION DE INTERES GENERAL",1,"GESTIONADO"]
[null,5341122025,"AREA DE ATENCION A LA CIUDADANIA","WEB","DERECHO DE PETICION DE INTERES GENERAL",1,"GESTIONADO"]
[null,5342312025,"AREA DE ATENCION A LA CIUDADANIA","WEB","DERECHO DE PETICION DE INTERES GENERAL",1,"GESTIONADO"]
[null,5343932025,"AREA DE ATENCION A LA CIUDADANIA","WEB","QUEJA",1,"GESTIONADO"]
[null,5344172025,"AREA DE ATENCION A LA CIUDADANIA","WEB","DERECHO DE PETICION DE INTERES PARTICULAR",1,"GESTIONADO"]
[null,5344702025,"AREA DE ATENCION A LA CIUDADANIA","PRESENCIAL","DERECHO DE PETICION DE INTERES GENERAL",1,"GESTIONADO"]
[null,5347482025,"AREA DE ATENCION A LA CIUDADANIA","WEB","SUGERENCIA",1,"GESTIONADO"]
[null,5351582025,"AREA DE ATENCION A LA CIUDADANIA","E-MAIL","DERECHO DE PETICION DE INTERES GENERAL",1,"GESTIONADO"]
[null,5354332025,"AREA DE ATENCION A LA CIUDADANIA","WEB","DERECHO DE PETICION DE INTERES GENERAL",1,"GESTIONADO"]
[null,5354532025,"AREA DE ATENCION A LA CIUDADANIA","WEB","DERECHO DE PETICION DE INTERES GENERAL",1,"GESTIONADO"]
[null,5355132025,"AREA DE ATENCION A LA CIUDADANIA","WEB","DERECHO DE PETICION DE INTERES GENERAL",1,"GESTIONADO"]
[null,5357322025,"AREA DE ATENCION A LA CIUDADANIA","WEB","DERECHO DE PETICION DE INTERES GENERAL",1,"GESTIONADO"]
[null,5367382025,"AREA DE ATENCION A LA CIUDADANIA","WEB","DERECHO DE PETICION DE INTERES PARTICULAR",1,"GESTIONADO"]
[null,5369552025,"SUBDIRECCION DE GESTION INMOBILIARIA Y DEL ESPACIO PUBLICO","WEB","DERECHO DE PETICION DE INTERES PARTICULAR",13,"GESTIONADO"]
[null,5371002025,"AREA DE ATENCION A LA CIUDADANIA","WEB","DERECHO DE PETICION DE INTERES GENERAL",1,"GESTIONADO"]
[null,5374492025,"AREA DE ATENCION A LA CIUDADANIA","WEB","DERECHO DE PETICION DE INTERES GENERAL",1,"GESTIONADO"]
[null,5377492025,"AREA DE ATENCION A LA CIUDADANIA","WEB","DERECHO DE PETICION DE INTERES GENERAL",1,"GESTIONADO"]
[null,5377632025,"AREA DE ATENCION A LA CIUDADANIA","WEB","DERECHO DE PETICION DE INTERES GENERAL",1,"GESTIONADO"]
[null,5379032025,"AREA DE ATENCION A LA CIUDADANIA","WEB","DERECHO DE PETICION DE INTERES GENERAL",1,"GESTIONADO"]
[null,5380272025,"AREA DE ATENCION A LA CIUDADANIA","WEB","DERECHO DE PETICION DE INTERES PARTICULAR",1,"GESTIONADO"]
[null,5381222025,"AREA DE ATENCION A LA CIUDADANIA","E-MAIL","DERECHO DE PETICION DE INTERES GENERAL",1,"GESTIONADO"]
[null,5382032025,"AREA DE ATENCION A LA CIUDADANIA","WEB","DERECHO DE PETICION DE INTERES PARTICULAR",1,"GESTIONADO"]
[null,5382602025,"OFICINA DE CONTROL DISCIPLINARIO INTERNO","WEB","DERECHO DE PETICION DE INTERES GENERAL",1,"GESTIONADO"]
[null,5382682025,"AREA DE ATENCION A LA CIUDADANIA","WEB","DERECHO DE PETICION DE INTERES GENERAL",1,"GESTIONADO"]
[null,5383332025,"AREA DE ATENCION A LA CIUDADANIA","WEB","DERECHO DE PETICION DE INTERES GENERAL",1,"GESTIONADO"]
[null,5384172025,"AREA DE ATENCION A LA CIUDADANIA","WEB","DERECHO DE PETICION DE INTERES GENERAL",5,"GESTIONADO"]
[null,5384472025,"AREA DE ATENCION A LA CIUDADANIA","WEB","DERECHO DE PETICION DE INTERES PARTICULAR",1,"GESTIONADO"]
[null,5385002025,"OFICINA DE CONTROL DISCIPLINARIO INTERNO","WEB","DERECHO DE PETICION DE INTERES GENERAL",1,"GESTIONADO"]
[null,5385222025,"AREA DE ATENCION A LA CIUDADANIA","WEB","DERECHO DE PETICION DE INTERES GENERAL",1,"GESTIONADO"]
[null,5386002025,"AREA DE ATENCION A LA CIUDADANIA","WEB","DERECHO DE PETICION DE INTERES GENERAL",1,"GESTIONADO"]
[null,5386362025,"AREA DE ATENCION A LA CIUDADANIA","WEB","DERECHO DE PETICION DE INTERES GENERAL",1,"GESTIONADO"]
[null,5386482025,"AREA DE ATENCION A LA CIUDADANIA","WEB","DERECHO DE PETICION DE INTERES GENERAL",1,"GESTIONADO"]
[null,5400572025,"SUBDIRECCION DE GESTION INMOBILIARIA Y DEL ESPACIO PUBLICO","PRESENCIAL","DERECHO DE PETICION DE INTERES GENERAL",15,"GESTIONADO"]
[null,5402342025,"AREA DE ATENCION A LA CIUDADANIA","WEB","DERECHO DE PETICION DE INTERES GENERAL",1,"GESTIONADO"]
[null,5402462025,"SUBDIRECCION DE GESTION INMOBILIARIA Y DEL ESPACIO PUBLICO","E-MAIL","DERECHO DE PETICION DE INTERES GENERAL",15,"GESTIONADO"]
[null,5403942025,"AREA DE ATENCION A LA CIUDADANIA","E-MAIL","DERECHO DE PETICION DE INTERES GENERAL",1,"GESTIONADO"]
[null,5404202025,"AREA DE ATENCION A LA CIUDADANIA","WEB","DERECHO DE PETICION DE INTERES PARTICULAR",1,"GESTIONADO"]
[null,5405082025,"AREA DE ATENCION A LA CIUDADANIA","WEB","DERECHO DE PETICION DE INTERES GENERAL",1,"GESTIONADO"]
[null,5409322025,"AREA DE ATENCION A LA CIUDADANIA","WEB","DERECHO DE PETICION DE INTERES GENERAL",1,"GESTIONADO"]
[null,5411842025,"AREA DE ATENCION A LA CIUDADANIA","WEB","DERECHO DE PETICION DE INTERES GENERAL",1,"GESTIONADO"]
[null,5412172025,"SUBDIRECCION DE GESTION INMOBILIARIA Y DEL ESPACIO PUBLICO","E-MAIL","DERECHO DE PETICION DE INTERES GENERAL",15,"GESTIONADO"]
[null,5412392025,"AREA DE ATENCION A LA CIUDADANIA","E-MAIL","DERECHO DE PETICION DE INTERES GENERAL",1,"GESTIONADO"]
[null,5412432025,"AREA DE ATENCION A LA CIUDADANIA","WEB","DERECHO DE PETICION DE INTERES GENERAL",1,"GESTIONADO"]
[null,5414662025,"AREA DE ATENCION A LA CIUDADANIA","E-MAIL","DERECHO DE PETICION DE INTERES GENERAL",1,"GESTIONADO"]
[null,5415492025,"AREA DE ATENCION A LA CIUDADANIA","WEB","DERECHO DE PETICION DE INTERES GENERAL",1,"GESTIONADO"]
[null,5415902025,"AREA DE ATENCION A LA CIUDADANIA","WEB","DERECHO DE PETICION DE INTERES PARTICULAR",1,"GESTIONADO"]
[null,5416192025,"SUBDIRECCION DE GESTION INMOBILIARIA Y DEL ESPACIO PUBLICO","E-MAIL","DERECHO DE PETICION DE INTERES GENERAL",14,"GESTIONADO"]
[null,5416422025,"AREA DE ATENCION A LA CIUDADANIA","WEB","DERECHO DE PETICION DE INTERES PARTICULAR",1,"GESTIONADO"]
[null,5416912025,"AREA DE ATENCION A LA CIUDADANIA","WEB","DERECHO DE PETICION DE INTERES GENERAL",1,"GESTIONADO"]
[null,5417012025,"AREA DE ATENCION A LA CIUDADANIA","WEB","DERECHO DE PETICION DE INTERES GENERAL",1,"GESTIONADO"]
[null,5417032025,"AREA DE ATENCION A LA CIUDADANIA","WEB","DERECHO DE PETICION DE INTERES GENERAL",1,"GESTIONADO"]
[null,5417362025,"SUBDIRECCION DE GESTION INMOBILIARIA Y DEL ESPACIO PUBLICO","E-MAIL","DERECHO DE PETICION DE INTERES GENERAL",14,"GESTIONADO"]
[null,5418312025,"AREA DE ATENCION A LA CIUDADANIA","WEB","DERECHO DE PETICION DE INTERES GENERAL",1,"GESTIONADO"]
[null,5420212025,"SUBDIRECCION DE GESTION INMOBILIARIA Y DEL ESPACIO PUBLICO","WEB","DERECHO DE PETICION DE INTERES GENERAL",14,"GESTIONADO"]
[null,5420302025,"AREA DE ATENCION A LA CIUDADANIA","WEB","DERECHO DE PETICION DE INTERES GENERAL",2,"GESTIONADO"]
[null,5420732025,"AREA DE ATENCION A LA CIUDADANIA","WEB","DERECHO DE PETICION DE INTERES PARTICULAR",1,"GESTIONADO"]
[null,5420962025,"AREA DE ATENCION A LA CIUDADANIA","WEB","DERECHO DE PETICION DE INTERES GENERAL",1,"GESTIONADO"]
[null,5421082025,"AREA DE ATENCION A LA CIUDADANIA","WEB","DERECHO DE PETICION DE INTERES GENERAL",1,"GESTIONADO"]
[null,5421682025,"AREA DE ATENCION A LA CIUDADANIA","WEB","DERECHO DE PETICION DE INTERES GENERAL",1,"GESTIONADO"]
[null,5421892025,"AREA DE ATENCION A LA CIUDADANIA","WEB","DERECHO DE PETICION DE INTERES GENERAL",1,"GESTIONADO"]
[null,5423622025,"AREA DE ATENCION A LA CIUDADANIA","WEB","DERECHO DE PETICION DE INTERES PARTICULAR",1,"GESTIONADO"]
[null,5423842025,"AREA DE ATENCION A LA CIUDADANIA","WEB","DERECHO DE PETICION DE INTERES GENERAL",1,"GESTIONADO"]
[null,5424902025,"AREA DE ATENCION A LA CIUDADANIA","WEB","DERECHO DE PETICION DE INTERES GENERAL",1,"GESTIONADO"]
[null,5434852025,"AREA DE ATENCION A LA CIUDADANIA","WEB","DERECHO DE PETICION DE INTERES GENERAL",1,"GESTIONADO"]
[null,5436382025,"AREA DE ATENCION A LA CIUDADANIA","E-MAIL","DERECHO DE PETICION DE INTERES GENERAL",1,"GESTIONADO"]
[null,5436782025,"AREA DE ATENCION A LA CIUDADANIA","WEB","DERECHO DE PETICION DE INTERES GENERAL",1,"GESTIONADO"]
[null,5437812025,"AREA DE ATENCION A LA CIUDADANIA","WEB","DERECHO DE PETICION DE INTERES GENERAL",1,"GESTIONADO"]
[null,5438922025,"SUBDIRECCION DE GESTION INMOBILIARIA Y DEL ESPACIO PUBLICO","E-MAIL","DERECHO DE PETICION DE INTERES GENERAL",14,"GESTIONADO"]
[null,5441202025,"AREA DE ATENCION A LA CIUDADANIA","WEB","DERECHO DE PETICION DE INTERES GENERAL",1,"GESTIONADO"]
[null,5442192025,"AREA DE ATENCION A LA CIUDADANIA","WEB","SUGERENCIA",1,"GESTIONADO"]
[null,5444852025,"SUBDIRECCION DE GESTION INMOBILIARIA Y DEL ESPACIO PUBLICO","E-MAIL","DERECHO DE PETICION DE INTERES GENERAL",15,"GESTIONADO"]
[null,5446092025,"AREA DE ATENCION A LA CIUDADANIA","E-MAIL","DERECHO DE PETICION DE INTERES GENERAL",1,"GESTIONADO"]
[null,5448072025,"SUBDIRECCION DE GESTION INMOBILIARIA Y DEL ESPACIO PUBLICO","E-MAIL","DERECHO DE PETICION DE INTERES GENERAL",15,"GESTIONADO"]
[null,5448512025,"AREA DE ATENCION A LA CIUDADANIA","WEB","DERECHO DE PETICION DE INTERES GENERAL",1,"GESTIONADO"]
[null,5451432025,"AREA DE ATENCION A LA CIUDADANIA","WEB","DERECHO DE PETICION DE INTERES GENERAL",1,"GESTIONADO"]
[null,5452022025,"AREA DE ATENCION A LA CIUDADANIA","WEB","DERECHO DE PETICION DE INTERES GENERAL",1,"GESTIONADO"]
[null,5452302025,"AREA DE ATENCION A LA CIUDADANIA","WEB","DERECHO DE PETICION DE INTERES GENERAL",1,"GESTIONADO"]
[null,5453082025,"AREA DE ATENCION A LA CIUDADANIA","WEB","DERECHO DE PETICION DE INTERES GENERAL",1,"GESTIONADO"]
[null,5464052025,"AREA DE ATENCION A LA CIUDADANIA","WEB","DERECHO DE PETICION DE INTERES GENERAL",1,"GESTIONADO"]
[null,5464072025,"AREA DE ATENCION A LA CIUDADANIA","WEB","DERECHO DE PETICION DE INTERES PARTICULAR",1,"GESTIONADO"]
[null,5464722025,"AREA DE ATENCION A LA CIUDADANIA","WEB","DERECHO DE PETICION DE INTERES GENERAL",1,"GESTIONADO"]
[null,5465772025,"AREA DE ATENCION A LA CIUDADANIA","WEB","DERECHO DE PETICION DE INTERES PARTICULAR",1,"GESTIONADO"]
[null,5467712025,"AREA DE ATENCION A LA CIUDADANIA","WEB","DERECHO DE PETICION DE INTERES GENERAL",1,"GESTIONADO"]
[null,5468492025,"AREA DE ATENCION A LA CIUDADANIA","WEB","DERECHO DE PETICION DE INTERES GENERAL",1,"GESTIONADO"]
[null,5469562025,"AREA DE ATENCION A LA CIUDADANIA","WEB","DERECHO DE PETICION DE INTERES GENERAL",1,"GESTIONADO"]
[null,5470062025,"AREA DE ATENCION A LA CIUDADANIA","E-MAIL","DERECHO DE PETICION DE INTERES GENERAL",1,"GESTIONADO"]
[null,5471222025,"AREA DE ATENCION A LA CIUDADANIA","WEB","DERECHO DE PETICION DE INTERES GENERAL",1,"GESTIONADO"]
[null,5472892025,"AREA DE ATENCION A LA CIUDADANIA","E-MAIL","DERECHO DE PETICION DE INTERES GENERAL",1,"GESTIONADO"]
[null,5473162025,"AREA DE ATENCION A LA CIUDADANIA","WEB","DERECHO DE PETICION DE INTERES GENERAL",1,"GESTIONADO"]
[null,5473482025,"AREA DE ATENCION A LA CIUDADANIA","WEB","DERECHO DE PETICION DE INTERES GENERAL",1,"GESTIONADO"]
[null,5474292025,"SUBDIRECCION DE GESTION INMOBILIARIA Y DEL ESPACIO PUBLICO","E-MAIL","DERECHO DE PETICION DE INTERES GENERAL",14,"GESTIONADO"]
[null,5474602025,"AREA DE ATENCION A LA CIUDADANIA","E-MAIL","DERECHO DE PETICION DE INTERES GENERAL",1,"GESTIONADO"]
[null,5475772025,"SUBDIRECCION DE GESTION INMOBILIARIA Y DEL ESPACIO PUBLICO","E-MAIL","DERECHO DE PETICION DE INTERES GENERAL",14,"GESTIONADO"]
[null,5476212025,"AREA DE ATENCION A LA CIUDADANIA","WEB","DERECHO DE PETICION DE INTERES GENERAL",1,"GESTIONADO"]
[null,5476922025,"AREA DE ATENCION A LA CIUDADANIA","WEB","DERECHO DE PETICION DE INTERES GENERAL",1,"GESTIONADO"]
[null,5477282025,"AREA DE ATENCION A LA CIUDADANIA","WEB","DERECHO DE PETICION DE INTERES GENERAL",1,"GESTIONADO"]
[null,5477312025,"AREA DE ATENCION A LA CIUDADANIA","WEB","DERECHO DE PETICION DE INTERES PARTICULAR",1,"GESTIONADO"]
[null,5478082025,"AREA DE ATENCION A LA CIUDADANIA","E-MAIL","DERECHO DE PETICION DE INTERES GENERAL",1,"GESTIONADO"]
[null,5478672025,"AREA DE ATENCION A LA CIUDADANIA","WEB","SUGERENCIA",1,"GESTIONADO"]
[null,5478932025,"AREA DE ATENCION A LA CIUDADANIA","WEB","DERECHO DE PETICION DE INTERES GENERAL",1,"GESTIONADO"]
[null,5479422025,"AREA DE ATENCION A LA CIUDADANIA","WEB","DERECHO DE PETICION DE INTERES GENERAL",1,"GESTIONADO"]
[null,5480482025,"AREA DE ATENCION A LA CIUDADANIA","WEB","DERECHO DE PETICION DE INTERES GENERAL",1,"GESTIONADO"]
[null,5480832025,"AREA DE ATENCION A LA CIUDADANIA","WEB","DERECHO DE PETICION DE INTERES PARTICULAR",1,"GESTIONADO"]
[null,5481472025,"AREA DE ATENCION A LA CIUDADANIA","WEB","DERECHO DE PETICION DE INTERES GENERAL",1,"GESTIONADO"]
[null,5481502025,"AREA DE ATENCION A LA CIUDADANIA","WEB","DERECHO DE PETICION DE INTERES GENERAL",1,"GESTIONADO"]
[null,5482202025,"AREA DE ATENCION A LA CIUDADANIA","WEB","DERECHO DE PETICION DE INTERES GENERAL",1,"GESTIONADO"]
[null,5492382025,"AREA DE ATENCION A LA CIUDADANIA","WEB","DERECHO DE PETICION DE INTERES PARTICULAR",1,"GESTIONADO"]
[null,5492472025,"AREA DE ATENCION A LA CIUDADANIA","WEB","DERECHO DE PETICION DE INTERES PARTICULAR",1,"GESTIONADO"]
[null,5492892025,"AREA DE ATENCION A LA CIUDADANIA","WEB","DERECHO DE PETICION DE INTERES GENERAL",1,"GESTIONADO"]
[null,5493222025,"AREA DE ATENCION A LA CIUDADANIA","WEB","DERECHO DE PETICION DE INTERES PARTICULAR",1,"GESTIONADO"]
[null,5493242025,"AREA DE ATENCION A LA CIUDADANIA","WEB","DERECHO DE PETICION DE INTERES PARTICULAR",1,"GESTIONADO"]
[null,5493362025,"AREA DE ATENCION A LA CIUDADANIA","WEB","DERECHO DE PETICION DE INTERES GENERAL",1,"GESTIONADO"]
[null,5494812025,"AREA DE ATENCION A LA CIUDADANIA","WEB","DERECHO DE PETICION DE INTERES GENERAL",1,"GESTIONADO"]
[null,5494842025,"AREA DE ATENCION A LA CIUDADANIA","WEB","DERECHO DE PETICION DE INTERES PARTICULAR",1,"GESTIONADO"]
[null,5495292025,"AREA DE ATENCION A LA CIUDADANIA","WEB","DERECHO DE PETICION DE INTERES PARTICULAR",1,"GESTIONADO"]
[null,5496712025,"AREA DE ATENCION A LA CIUDADANIA","WEB","DERECHO DE PETICION DE INTERES GENERAL",1,"GESTIONADO"]
[null,5497352025,"AREA DE ATENCION A LA CIUDADANIA","WEB","DERECHO DE PETICION DE INTERES GENERAL",1,"GESTIONADO"]
[null,5497412025,"AREA DE ATENCION A LA CIUDADANIA","WEB","DERECHO DE PETICION DE INTERES PARTICULAR",1,"GESTIONADO"]
[null,5497602025,"AREA DE ATENCION A LA CIUDADANIA","WEB","DERECHO DE PETICION DE INTERES GENERAL",1,"GESTIONADO"]
[null,5497732025,"AREA DE ATENCION A LA CIUDADANIA","WEB","DERECHO DE PETICION DE INTERES GENERAL",1,"GESTIONADO"]
[null,5497752025,"AREA DE ATENCION A LA CIUDADANIA","WEB","DERECHO DE PETICION DE INTERES GENERAL",1,"GESTIONADO"]
[null,5497912025,"AREA DE ATENCION A LA CIUDADANIA","WEB","DERECHO DE PETICION DE INTERES GENERAL",1,"GESTIONADO"]
[null,5497922025,"AREA DE ATENCION A LA CIUDADANIA","WEB","DERECHO DE PETICION DE INTERES GENERAL",1,"GESTIONADO"]
[null,5498272025,"AREA DE ATENCION A LA CIUDADANIA","WEB","DERECHO DE PETICION DE INTERES GENERAL",1,"GESTIONADO"]
[null,5498292025,"AREA DE ATENCION A LA CIUDADANIA","WEB","DERECHO DE PETICION DE INTERES GENERAL",1,"GESTIONADO"]
[null,5498662025,"AREA DE ATENCION A LA CIUDADANIA","WEB","DERECHO DE PETICION DE INTERES PARTICULAR",1,"GESTIONADO"]
[null,5498732025,"AREA DE ATENCION A LA CIUDADANIA","WEB","DERECHO DE PETICION DE INTERES GENERAL",1,"GESTIONADO"]
[null,5499022025,"AREA DE ATENCION A LA CIUDADANIA","WEB","DERECHO DE PETICION DE INTERES GENERAL",1,"GESTIONADO"]
[null,5499242025,"AREA DE ATENCION A LA CIUDADANIA","WEB","DERECHO DE PETICION DE INTERES PARTICULAR",1,"GESTIONADO"]
[null,5548972025,"SUBDIRECCION DE GESTION INMOBILIARIA Y DEL ESPACIO PUBLICO","E-MAIL","DERECHO DE PETICION DE INTERES GENERAL",14,"GESTIONADO"]
[null,5467632025,"AREA DE ATENCION A LA CIUDADANIA","WEB","DERECHO DE PETICION DE INTERES GENERAL",1,"GESTIONADO"]
[null,5500182025,"AREA DE ATENCION A LA CIUDADANIA","WEB","DERECHO DE PETICION DE INTERES GENERAL",1,"GESTIONADO"]
[null,5501442025,"AREA DE ATENCION A LA CIUDADANIA","WEB","DERECHO DE PETICION DE INTERES PARTICULAR",1,"GESTIONADO"]
[null,5502592025,"AREA DE ATENCION A LA CIUDADANIA","WEB","DERECHO DE PETICION DE INTERES GENERAL",2,"GESTIONADO"]
[null,5503992025,"AREA DE ATENCION A LA CIUDADANIA","WEB","DERECHO DE PETICION DE INTERES GENERAL",1,"GESTIONADO"]
[null,5506362025,"AREA DE ATENCION A LA CIUDADANIA","WEB","DERECHO DE PETICION DE INTERES GENERAL",1,"GESTIONADO"]
[null,5506682025,"AREA DE ATENCION A LA CIUDADANIA","WEB","DERECHO DE PETICION DE INTERES GENERAL",1,"GESTIONADO"]
[null,5507342025,"AREA DE ATENCION A LA CIUDADANIA","E-MAIL","DERECHO DE PETICION DE INTERES GENERAL",1,"GESTIONADO"]
[null,5509052025,"AREA DE ATENCION A LA CIUDADANIA","E-MAIL","DERECHO DE PETICION DE INTERES GENERAL",1,"GESTIONADO"]
[null,5509762025,"AREA DE ATENCION A LA CIUDADANIA","E-MAIL","DERECHO DE PETICION DE INTERES GENERAL",1,"GESTIONADO"]
[null,5511642025,"AREA DE ATENCION A LA CIUDADANIA","WEB","DERECHO DE PETICION DE INTERES PARTICULAR",1,"GESTIONADO"]
[null,5512132025,"AREA DE ATENCION A LA CIUDADANIA","E-MAIL","DERECHO DE PETICION DE INTERES GENERAL",1,"GESTIONADO"]
[null,5513152025,"AREA DE ATENCION A LA CIUDADANIA","WEB","DERECHO DE PETICION DE INTERES GENERAL",1,"GESTIONADO"]
[null,5515352025,"AREA DE ATENCION A LA CIUDADANIA","WEB","DERECHO DE PETICION DE INTERES GENERAL",1,"GESTIONADO"]
[null,5516782025,"SUBDIRECCION DE GESTION CORPORATIVA","E-MAIL","DERECHO DE PETICION DE INTERES GENERAL",13,"PENDIENTE"]
[null,5517582025,"AREA DE ATENCION A LA CIUDADANIA","WEB","DERECHO DE PETICION DE INTERES PARTICULAR",1,"GESTIONADO"]
[null,5521952025,"OFICINA DE CONTROL DISCIPLINARIO INTERNO","WEB","DERECHO DE PETICION DE INTERES GENERAL",2,"PENDIENTE"]
[null,5523602025,"AREA DE ATENCION A LA CIUDADANIA","WEB","DERECHO DE PETICION DE INTERES GENERAL",1,"GESTIONADO"]
[null,5525032025,"AREA DE ATENCION A LA CIUDADANIA","WEB","DERECHO DE PETICION DE INTERES GENERAL",1,"GESTIONADO"]
[null,5526332025,"AREA DE ATENCION A LA CIUDADANIA","WEB","DERECHO DE PETICION DE INTERES GENERAL",1,"GESTIONADO"]
[null,5527292025,"AREA DE ATENCION A LA CIUDADANIA","WEB","DERECHO DE PETICION DE INTERES GENERAL",1,"GESTIONADO"]
[null,5550132025,"SUBDIRECCION DE GESTION INMOBILIARIA Y DEL ESPACIO PUBLICO","E-MAIL","DERECHO DE PETICION DE INTERES GENERAL",13,"PENDIENTE"]
[null,5544292025,"AREA DE ATENCION A LA CIUDADANIA","E-MAIL","DERECHO DE PETICION DE INTERES GENERAL",1,"GESTIONADO"]
[null,5544662025,"AREA DE ATENCION A LA CIUDADANIA","WEB","DERECHO DE PETICION DE INTERES GENERAL",1,"GESTIONADO"]
[null,5544872025,"SUBDIRECCION DE GESTION INMOBILIARIA Y DEL ESPACIO PUBLICO","E-MAIL","DERECHO DE PETICION DE INTERES GENERAL",12,"PENDIENTE"]
[null,5546732025,"AREA DE ATENCION A LA CIUDADANIA","WEB","DERECHO DE PETICION DE INTERES GENERAL",1,"GESTIONADO"]
[null,5548142025,"AREA DE ATENCION A LA CIUDADANIA","WEB","DERECHO DE PETICION DE INTERES GENERAL",1,"GESTIONADO"]
[null,5549592025,"SUBDIRECCION DE GESTION INMOBILIARIA Y DEL ESPACIO PUBLICO","E-MAIL","DERECHO DE PETICION DE INTERES GENERAL",12,"PENDIENTE"]
[null,5550842025,"OFICINA DE CONTROL DISCIPLINARIO INTERNO","WEB","DERECHO DE PETICION DE INTERES GENERAL",1,"GESTIONADO"]
[null,5551432025,"AREA DE ATENCION A LA CIUDADANIA","WEB","DERECHO DE PETICION DE INTERES PARTICULAR",1,"GESTIONADO"]
[null,5555242025,"AREA DE ATENCION A LA CIUDADANIA","E-MAIL","DERECHO DE PETICION DE INTERES GENERAL",1,"GESTIONADO"]
[null,5555622025,"AREA DE ATENCION A LA CIUDADANIA","E-MAIL","DERECHO DE PETICION DE INTERES GENERAL",1,"GESTIONADO"]
[null,5556122025,"AREA DE ATENCION A LA CIUDADANIA","E-MAIL","DERECHO DE PETICION DE INTERES GENERAL",1,"GESTIONADO"]
[null,5556142025,"SUBDIRECCION DE GESTION INMOBILIARIA Y DEL ESPACIO PUBLICO","E-MAIL","DERECHO DE PETICION DE INTERES GENERAL",12,"PENDIENTE"]
[null,5556312025,"AREA DE ATENCION A LA CIUDADANIA","WEB","DERECHO DE PETICION DE INTERES GENERAL",1,"GESTIONADO"]
[null,5561732025,"AREA DE ATENCION A LA CIUDADANIA","WEB","DERECHO DE PETICION DE INTERES GENERAL",1,"GESTIONADO"]
[null,5562092025,"AREA DE ATENCION A LA CIUDADANIA","WEB","DERECHO DE PETICION DE INTERES PARTICULAR",1,"GESTIONADO"]
[null,5562532025,"SUBDIRECCION DE GESTION INMOBILIARIA Y DEL ESPACIO PUBLICO","WEB","DERECHO DE PETICION DE INTERES PARTICULAR",12,"PENDIENTE"]
[null,5563262025,"AREA DE ATENCION A LA CIUDADANIA","WEB","DERECHO DE PETICION DE INTERES GENERAL",1,"GESTIONADO"]
[null,5563412025,"AREA DE ATENCION A LA CIUDADANIA","WEB","DERECHO DE PETICION DE INTERES GENERAL",1,"GESTIONADO"]
[null,5564992025,"AREA DE ATENCION A LA CIUDADANIA","WEB","DERECHO DE PETICION DE INTERES PARTICULAR",1,"GESTIONADO"]
[null,5565342025,"AREA DE ATENCION A LA CIUDADANIA","WEB","DERECHO DE PETICION DE INTERES GENERAL",1,"GESTIONADO"]
[null,5565592025,"AREA DE ATENCION A LA CIUDADANIA","WEB","DERECHO DE PETICION DE INTERES GENERAL",1,"GESTIONADO"]
[null,5565972025,"AREA DE ATENCION A LA CIUDADANIA","WEB","DERECHO DE PETICION DE INTERES GENERAL",1,"GESTIONADO"]
[null,5566402025,"OFICINA DE CONTROL DISCIPLINARIO INTERNO","WEB","DERECHO DE PETICION DE INTERES GENERAL",1,"GESTIONADO"]
[null,5566432025,"AREA DE ATENCION A LA CIUDADANIA","WEB","DERECHO DE PETICION DE INTERES GENERAL",1,"GESTIONADO"]
[null,5568032025,"AREA DE ATENCION A LA CIUDADANIA","WEB","DERECHO DE PETICION DE INTERES GENERAL",1,"GESTIONADO"]
[null,5571072025,"AREA DE ATENCION A LA CIUDADANIA","WEB","DERECHO DE PETICION DE INTERES GENERAL",1,"GESTIONADO"]
[null,5583122025,"AREA DE ATENCION A LA CIUDADANIA","WEB","DERECHO DE PETICION DE INTERES GENERAL",1,"GESTIONADO"]
[null,5583192025,"AREA DE ATENCION A LA CIUDADANIA","WEB","DERECHO DE PETICION DE INTERES GENERAL",1,"GESTIONADO"]
[null,5584462025,"SUBDIRECCION DE GESTION INMOBILIARIA Y DEL ESPACIO PUBLICO","E-MAIL","DERECHO DE PETICION DE INTERES GENERAL",11,"PENDIENTE"]
[null,5586962025,"OFICINA DE CONTROL DISCIPLINARIO INTERNO","WEB","DERECHO DE PETICION DE INTERES GENERAL",1,"GESTIONADO"]
[null,5587152025,"AREA DE ATENCION A LA CIUDADANIA","E-MAIL","DERECHO DE PETICION DE INTERES GENERAL",1,"GESTIONADO"]
[null,5587822025,"AREA DE ATENCION A LA CIUDADANIA","E-MAIL","DERECHO DE PETICION DE INTERES GENERAL",1,"GESTIONADO"]
[null,5590812025,"AREA DE ATENCION A LA CIUDADANIA","E-MAIL","DERECHO DE PETICION DE INTERES GENERAL",1,"GESTIONADO"]
[null,5591052025,"AREA DE ATENCION A LA CIUDADANIA","WEB","DERECHO DE PETICION DE INTERES GENERAL",1,"GESTIONADO"]
[null,5592592025,"AREA DE ATENCION A LA CIUDADANIA","WEB","DERECHO DE PETICION DE INTERES PARTICULAR",1,"GESTIONADO"]
[null,5593032025,"AREA DE ATENCION A LA CIUDADANIA","WEB","DERECHO DE PETICION DE INTERES PARTICULAR",1,"GESTIONADO"]
[null,5593402025,"AREA DE ATENCION A LA CIUDADANIA","WEB","DERECHO DE PETICION DE INTERES GENERAL",1,"GESTIONADO"]
[null,5593432025,"SUBDIRECCION DE GESTION INMOBILIARIA Y DEL ESPACIO PUBLICO","E-MAIL","DERECHO DE PETICION DE INTERES GENERAL",11,"PENDIENTE"]
[null,5593532025,"AREA DE ATENCION A LA CIUDADANIA","WEB","DERECHO DE PETICION DE INTERES GENERAL",1,"GESTIONADO"]
[null,5593562025,"AREA DE ATENCION A LA CIUDADANIA","E-MAIL","DERECHO DE PETICION DE INTERES GENERAL",1,"GESTIONADO"]
[null,5594062025,"AREA DE ATENCION A LA CIUDADANIA","E-MAIL","DERECHO DE PETICION DE INTERES GENERAL",1,"GESTIONADO"]
[null,5594322025,"AREA DE ATENCION A LA CIUDADANIA","WEB","DERECHO DE PETICION DE INTERES GENERAL",1,"GESTIONADO"]
[null,5596612025,"AREA DE ATENCION A LA CIUDADANIA","WEB","DERECHO DE PETICION DE INTERES GENERAL",1,"GESTIONADO"]
[null,5597242025,"AREA DE ATENCION A LA CIUDADANIA","WEB","DERECHO DE PETICION DE INTERES PARTICULAR",1,"GESTIONADO"]
[null,5600382025,"AREA DE ATENCION A LA CIUDADANIA","WEB","DERECHO DE PETICION DE INTERES GENERAL",1,"GESTIONADO"]
[null,5602062025,"AREA DE ATENCION A LA CIUDADANIA","WEB","DERECHO DE PETICION DE INTERES GENERAL",1,"GESTIONADO"]
[null,5602212025,"AREA DE ATENCION A LA CIUDADANIA","WEB","DERECHO DE PETICION DE INTERES PARTICULAR",1,"GESTIONADO"]
[null,5603252025,"AREA DE ATENCION A LA CIUDADANIA","WEB","DERECHO DE PETICION DE INTERES PARTICULAR",1,"GESTIONADO"]
[null,5606812025,"AREA DE ATENCION A LA CIUDADANIA","WEB","DERECHO DE PETICION DE INTERES PARTICULAR",1,"GESTIONADO"]
[null,5606872025,"AREA DE ATENCION A LA CIUDADANIA","WEB","DERECHO DE PETICION DE INTERES PARTICULAR",1,"GESTIONADO"]
[null,5608022025,"AREA DE ATENCION A LA CIUDADANIA","WEB","DERECHO DE PETICION DE INTERES GENERAL",1,"GESTIONADO"]
[null,5665602025,"SUBDIRECCION DE GESTION INMOBILIARIA Y DEL ESPACIO PUBLICO","PRESENCIAL","DERECHO DE PETICION DE INTERES GENERAL",11,"PENDIENTE"]
[null,5766262025,"OFICINA JURIDICA","WEB","SOLICITUD DE COPIA",6,"PENDIENTE"]
[null,5618722025,"AREA DE ATENCION A LA CIUDADANIA","WEB","DERECHO DE PETICION DE INTERES GENERAL",1,"GESTIONADO"]
[null,5619162025,"AREA DE ATENCION A LA CIUDADANIA","WEB","DERECHO DE PETICION DE INTERES GENERAL",1,"GESTIONADO"]
[null,5620762025,"SUBDIRECCION DE GESTION INMOBILIARIA Y DEL ESPACIO PUBLICO","WEB","DERECHO DE PETICION DE INTERES GENERAL",10,"PENDIENTE"]
[null,5621052025,"AREA DE ATENCION A LA CIUDADANIA","WEB","DERECHO DE PETICION DE INTERES GENERAL",1,"GESTIONADO"]
[null,5621122025,"AREA DE ATENCION A LA CIUDADANIA","WEB","DERECHO DE PETICION DE INTERES GENERAL",1,"GESTIONADO"]
[null,5626772025,"AREA DE ATENCION A LA CIUDADANIA","WEB","DERECHO DE PETICION DE INTERES GENERAL",1,"GESTIONADO"]
[null,5627512025,"AREA DE ATENCION A LA CIUDADANIA","WEB","DERECHO DE PETICION DE INTERES PARTICULAR",1,"GESTIONADO"]
[null,5627702025,"AREA DE ATENCION A LA CIUDADANIA","WEB","DERECHO DE PETICION DE INTERES PARTICULAR",1,"GESTIONADO"]
[null,5629832025,"AREA DE ATENCION A LA CIUDADANIA","E-MAIL","DERECHO DE PETICION DE INTERES GENERAL",1,"GESTIONADO"]
[null,5629862025,"AREA DE ATENCION A LA CIUDADANIA","E-MAIL","DERECHO DE PETICION DE INTERES GENERAL",1,"GESTIONADO"]
[null,5636392025,"AREA DE ATENCION A LA CIUDADANIA","WEB","DERECHO DE PETICION DE INTERES PARTICULAR",1,"GESTIONADO"]
[null,5637272025,"OFICINA DE CONTROL DISCIPLINARIO INTERNO","WEB","DERECHO DE PETICION DE INTERES GENERAL",1,"GESTIONADO"]
[null,5637482025,"AREA DE ATENCION A LA CIUDADANIA","WEB","DERECHO DE PETICION DE INTERES GENERAL",1,"GESTIONADO"]
[null,5637802025,"AREA DE ATENCION A LA CIUDADANIA","WEB","DERECHO DE PETICION DE INTERES GENERAL",1,"GESTIONADO"]
[null,5637902025,"AREA DE ATENCION A LA CIUDADANIA","WEB","DERECHO DE PETICION DE INTERES PARTICULAR",1,"GESTIONADO"]
[null,5637962025,"AREA DE ATENCION A LA CIUDADANIA","WEB","DERECHO DE PETICION DE INTERES GENERAL",1,"GESTIONADO"]
[null,5639692025,"AREA DE ATENCION A LA CIUDADANIA","WEB","DERECHO DE PETICION DE INTERES PARTICULAR",1,"GESTIONADO"]
[null,5639822025,"AREA DE ATENCION A LA CIUDADANIA","WEB","DERECHO DE PETICION DE INTERES GENERAL",1,"GESTIONADO"]
[null,5648802025,"AREA DE ATENCION A LA CIUDADANIA","WEB","DERECHO DE PETICION DE INTERES PARTICULAR",1,"GESTIONADO"]
[null,5648902025,"AREA DE ATENCION A LA CIUDADANIA","WEB","DERECHO DE PETICION DE INTERES GENERAL",1,"GESTIONADO"]
[null,5649712025,"OFICINA DE CONTROL DISCIPLINARIO INTERNO","WEB","DERECHO DE PETICION DE INTERES GENERAL",1,"GESTIONADO"]
[null,5650522025,"AREA DE ATENCION A LA CIUDADANIA","WEB","DERECHO DE PETICION DE INTERES PARTICULAR",1,"GESTIONADO"]
[null,5651772025,"AREA DE ATENCION A LA CIUDADANIA","WEB","DERECHO DE PETICION DE INTERES GENERAL",1,"GESTIONADO"]
[null,5651862025,"AREA DE ATENCION A LA CIUDADANIA","WEB","DERECHO DE PETICION DE INTERES GENERAL",1,"GESTIONADO"]
[null,5654822025,"AREA DE ATENCION A LA CIUDADANIA","WEB","DERECHO DE PETICION DE INTERES GENERAL",1,"GESTIONADO"]
[null,5657222025,"AREA DE ATENCION A LA CIUDADANIA","WEB","DERECHO DE PETICION DE INTERES GENERAL",1,"GESTIONADO"]
[null,5657992025,"AREA DE ATENCION A LA CIUDADANIA","WEB","DERECHO DE PETICION DE INTERES GENERAL",1,"GESTIONADO"]
[null,5660762025,"AREA DE ATENCION A LA CIUDADANIA","E-MAIL","DERECHO DE PETICION DE INTERES GENERAL",1,"GESTIONADO"]
[null,5661742025,"AREA DE ATENCION A LA CIUDADANIA","ESCRITO","DERECHO DE PETICION DE INTERES GENERAL",1,"GESTIONADO"]
[null,5662512025,"AREA DE ATENCION A LA CIUDADANIA","E-MAIL","DERECHO DE PETICION DE INTERES GENERAL",1,"GESTIONADO"]
[null,5662822025,"AREA DE ATENCION A LA CIUDADANIA","WEB","DERECHO DE PETICION DE INTERES GENERAL",1,"GESTIONADO"]
[null,5662882025,"OFICINA DE CONTROL DISCIPLINARIO INTERNO","WEB","DERECHO DE PETICION DE INTERES GENERAL",1,"GESTIONADO"]
[null,5663432025,"AREA DE ATENCION A LA CIUDADANIA","E-MAIL","DERECHO DE PETICION DE INTERES GENERAL",1,"GESTIONADO"]
[null,5664122025,"AREA DE ATENCION A LA CIUDADANIA","WEB","DERECHO DE PETICION DE INTERES GENERAL",1,"GESTIONADO"]
[null,5664412025,"AREA DE ATENCION A LA CIUDADANIA","E-MAIL","DERECHO DE PETICION DE INTERES GENERAL",1,"GESTIONADO"]
[null,5665112025,"AREA DE ATENCION A LA CIUDADANIA","E-MAIL","DERECHO DE PETICION DE INTERES GENERAL",1,"GESTIONADO"]
[null,5668642025,"SUBDIRECCION DE GESTION INMOBILIARIA Y DEL ESPACIO PUBLICO","E-MAIL","DERECHO DE PETICION DE INTERES GENERAL",9,"PENDIENTE"]
[null,5669212025,"AREA DE ATENCION A LA CIUDADANIA","E-MAIL","DERECHO DE PETICION DE INTERES GENERAL",1,"GESTIONADO"]
[null,5674992025,"AREA DE ATENCION A LA CIUDADANIA","WEB","DERECHO DE PETICION DE INTERES GENERAL",1,"GESTIONADO"]
[null,5678672025,"SUBDIRECCION DE GESTION INMOBILIARIA Y DEL ESPACIO PUBLICO","WEB","RECLAMO",9,"PENDIENTE"]
[null,5679102025,"AREA DE ATENCION A LA CIUDADANIA","WEB","DERECHO DE PETICION DE INTERES PARTICULAR",1,"GESTIONADO"]
[null,5679152025,"AREA DE ATENCION A LA CIUDADANIA","WEB","DERECHO DE PETICION DE INTERES GENERAL",1,"GESTIONADO"]
[null,5680472025,"AREA DE ATENCION A LA CIUDADANIA","WEB","DERECHO DE PETICION DE INTERES GENERAL",4,"GESTIONADO"]
[null,5697042025,"AREA DE ATENCION A LA CIUDADANIA","E-MAIL","DERECHO DE PETICION DE INTERES GENERAL",1,"GESTIONADO"]
[null,5697262025,"AREA DE ATENCION A LA CIUDADANIA","E-MAIL","DERECHO DE PETICION DE INTERES GENERAL",1,"GESTIONADO"]
[null,5697532025,"AREA DE ATENCION A LA CIUDADANIA","E-MAIL","DERECHO DE PETICION DE INTERES GENERAL",1,"GESTIONADO"]
[null,5696162025,"SUBDIRECCION DE GESTION INMOBILIARIA Y DEL ESPACIO PUBLICO","E-MAIL","DERECHO DE PETICION DE INTERES GENERAL",8,"PENDIENTE"]
[null,5696332025,"AREA DE ATENCION A LA CIUDADANIA","WEB","RECLAMO",1,"GESTIONADO"]
[null,5697132025,"AREA DE ATENCION A LA CIUDADANIA","E-MAIL","DERECHO DE PETICION DE INTERES GENERAL",1,"GESTIONADO"]
[null,5698772025,"AREA DE ATENCION A LA CIUDADANIA","WEB","DERECHO DE PETICION DE INTERES PARTICULAR",1,"GESTIONADO"]
[null,5699612025,"AREA DE ATENCION A LA CIUDADANIA","WEB","DERECHO DE PETICION DE INTERES GENERAL",1,"GESTIONADO"]
[null,5704862025,"SUBDIRECCION DE GESTION INMOBILIARIA Y DEL ESPACIO PUBLICO","E-MAIL","DERECHO DE PETICION DE INTERES GENERAL",8,"PENDIENTE"]
[null,5707842025,"AREA DE ATENCION A LA CIUDADANIA","WEB","DERECHO DE PETICION DE INTERES GENERAL",1,"GESTIONADO"]
[null,5709412025,"AREA DE ATENCION A LA CIUDADANIA","WEB","DERECHO DE PETICION DE INTERES GENERAL",1,"GESTIONADO"]
[null,5711862025,"AREA DE ATENCION A LA CIUDADANIA","WEB","DERECHO DE PETICION DE INTERES PARTICULAR",1,"GESTIONADO"]
[null,5711952025,"AREA DE ATENCION A LA CIUDADANIA","WEB","DERECHO DE PETICION DE INTERES GENERAL",1,"GESTIONADO"]
[null,5713172025,"AREA DE ATENCION A LA CIUDADANIA","WEB","DERECHO DE PETICION DE INTERES GENERAL",1,"GESTIONADO"]
[null,5714072025,"AREA DE ATENCION A LA CIUDADANIA","WEB","DERECHO DE PETICION DE INTERES GENERAL",1,"GESTIONADO"]
[null,5715182025,"OFICINA DE CONTROL DISCIPLINARIO INTERNO","WEB","DERECHO DE PETICION DE INTERES PARTICULAR",1,"GESTIONADO"]
[null,5718772025,"AREA DE ATENCION A LA CIUDADANIA","WEB","DERECHO DE PETICION DE INTERES GENERAL",1,"GESTIONADO"]
[null,5726502025,"SUBDIRECCION DE GESTION INMOBILIARIA Y DEL ESPACIO PUBLICO","E-MAIL","DERECHO DE PETICION DE INTERES GENERAL",7,"PENDIENTE"]
[null,5726682025,"AREA DE ATENCION A LA CIUDADANIA","E-MAIL","DERECHO DE PETICION DE INTERES GENERAL",1,"GESTIONADO"]
[null,5730952025,"AREA DE ATENCION A LA CIUDADANIA","WEB","DERECHO DE PETICION DE INTERES GENERAL",1,"GESTIONADO"]
[null,5732392025,"AREA DE ATENCION A LA CIUDADANIA","WEB","SUGERENCIA",1,"GESTIONADO"]
[null,5732992025,"AREA DE ATENCION A LA CIUDADANIA","E-MAIL","DERECHO DE PETICION DE INTERES GENERAL",1,"GESTIONADO"]
[null,5733462025,"AREA DE ATENCION A LA CIUDADANIA","WEB","DERECHO DE PETICION DE INTERES GENERAL",1,"GESTIONADO"]
[null,5733562025,"AREA DE ATENCION A LA CIUDADANIA","WEB","SUGERENCIA",1,"GESTIONADO"]
[null,5735512025,"AREA DE ATENCION A LA CIUDADANIA","WEB","DERECHO DE PETICION DE INTERES GENERAL",1,"GESTIONADO"]
[null,5735542025,"AREA DE ATENCION A LA CIUDADANIA","WEB","DERECHO DE PETICION DE INTERES GENERAL",1,"GESTIONADO"]
[null,5736832025,"AREA DE ATENCION A LA CIUDADANIA","E-MAIL","DERECHO DE PETICION DE INTERES GENERAL",1,"GESTIONADO"]
[null,5739252025,"AREA DE ATENCION A LA CIUDADANIA","WEB","DERECHO DE PETICION DE INTERES GENERAL",1,"GESTIONADO"]
[null,5740682025,"AREA DE ATENCION A LA CIUDADANIA","E-MAIL","DERECHO DE PETICION DE INTERES PARTICULAR",1,"GESTIONADO"]
[null,5741842025,"AREA DE ATENCION A LA CIUDADANIA","WEB","DERECHO DE PETICION DE INTERES GENERAL",1,"GESTIONADO"]
[null,5742472025,"AREA DE ATENCION A LA CIUDADANIA","WEB","DERECHO DE PETICION DE INTERES PARTICULAR",1,"GESTIONADO"]
[null,5742552025,"AREA DE ATENCION A LA CIUDADANIA","WEB","DERECHO DE PETICION DE INTERES PARTICULAR",1,"GESTIONADO"]
[null,5742992025,"AREA DE ATENCION A LA CIUDADANIA","WEB","DERECHO DE PETICION DE INTERES GENERAL",1,"GESTIONADO"]
[null,5744292025,"AREA DE ATENCION A LA CIUDADANIA","WEB","DERECHO DE PETICION DE INTERES PARTICULAR",1,"GESTIONADO"]
[null,5744592025,"AREA DE ATENCION A LA CIUDADANIA","WEB","DERECHO DE PETICION DE INTERES PARTICULAR",1,"GESTIONADO"]
[null,5744902025,"AREA DE ATENCION A LA CIUDADANIA","WEB","DERECHO DE PETICION DE INTERES GENERAL",1,"GESTIONADO"]
[null,5744952025,"AREA DE ATENCION A LA CIUDADANIA","WEB","DERECHO DE PETICION DE INTERES GENERAL",1,"GESTIONADO"]
[null,5757602025,"AREA DE ATENCION A LA CIUDADANIA","WEB","DERECHO DE PETICION DE INTERES GENERAL",1,"GESTIONADO"]
[null,5757952025,"AREA DE ATENCION A LA CIUDADANIA","WEB","DERECHO DE PETICION DE INTERES GENERAL",1,"GESTIONADO"]
[null,5762852025,"AREA DE ATENCION A LA CIUDADANIA","WEB","DERECHO DE PETICION DE INTERES GENERAL",1,"GESTIONADO"]
[null,5764612025,"AREA DE ATENCION A LA CIUDADANIA","WEB","DERECHO DE PETICION DE INTERES PARTICULAR",1,"GESTIONADO"]
[null,5765502025,"AREA DE ATENCION A LA CIUDADANIA","WEB","DERECHO DE PETICION DE INTERES PARTICULAR",1,"GESTIONADO"]
[null,5765652025,"AREA DE ATENCION A LA CIUDADANIA","WEB","DERECHO DE PETICION DE INTERES GENERAL",1,"GESTIONADO"]
[null,5766932025,"AREA DE ATENCION A LA CIUDADANIA","WEB","DERECHO DE PETICION DE INTERES GENERAL",1,"GESTIONADO"]
[null,5767762025,"AREA DE ATENCION A LA CIUDADANIA","E-MAIL","DERECHO DE PETICION DE INTERES GENERAL",1,"GESTIONADO"]
[null,5770592025,"AREA DE ATENCION A LA CIUDADANIA","WEB","DERECHO DE PETICION DE INTERES GENERAL",1,"GESTIONADO"]
[null,5771452025,"AREA DE ATENCION A LA CIUDADANIA","E-MAIL","DERECHO DE PETICION DE INTERES GENERAL",1,"GESTIONADO"]
[null,5774362025,"AREA DE ATENCION A LA CIUDADANIA","WEB","DERECHO DE PETICION DE INTERES GENERAL",1,"GESTIONADO"]
[null,5774832025,"SUBDIRECCION DE GESTION INMOBILIARIA Y DEL ESPACIO PUBLICO","WEB","SUGERENCIA",6,"PENDIENTE"]
[null,5776222025,"AREA DE ATENCION A LA CIUDADANIA","WEB","DERECHO DE PETICION DE INTERES GENERAL",1,"GESTIONADO"]
[null,5778462025,"AREA DE ATENCION A LA CIUDADANIA","WEB","RECLAMO",1,"GESTIONADO"]
[null,5278242025,"SUBDIRECCION DE REGISTRO INMOBILIARIO","WEB","CONSULTA",11,"GESTIONADO"]
[null,5780542025,"AREA DE ATENCION A LA CIUDADANIA","WEB","DERECHO DE PETICION DE INTERES GENERAL",1,"GESTIONADO"]
[null,5787212025,"AREA DE ATENCION A LA CIUDADANIA","WEB","DERECHO DE PETICION DE INTERES PARTICULAR",1,"GESTIONADO"]
[null,5789102025,"SUBDIRECCION DE GESTION INMOBILIARIA Y DEL ESPACIO PUBLICO","E-MAIL","DERECHO DE PETICION DE INTERES GENERAL",5,"PENDIENTE"]
[null,5789532025,"AREA DE ATENCION A LA CIUDADANIA","WEB","DERECHO DE PETICION DE INTERES GENERAL",1,"GESTIONADO"]
[null,5789642025,"AREA DE ATENCION A LA CIUDADANIA","WEB","DERECHO DE PETICION DE INTERES GENERAL",1,"GESTIONADO"]
[null,5790232025,"AREA DE ATENCION A LA CIUDADANIA","WEB","DERECHO DE PETICION DE INTERES GENERAL",1,"GESTIONADO"]
[null,5790592025,"SUBDIRECCION DE GESTION INMOBILIARIA Y DEL ESPACIO PUBLICO","E-MAIL","DERECHO DE PETICION DE INTERES GENERAL",5,"PENDIENTE"]
[null,5790712025,"AREA DE ATENCION A LA CIUDADANIA","WEB","DERECHO DE PETICION DE INTERES GENERAL",1,"GESTIONADO"]
[null,5791492025,"AREA DE ATENCION A LA CIUDADANIA","WEB","DERECHO DE PETICION DE INTERES GENERAL",1,"GESTIONADO"]
[null,5791752025,"AREA DE ATENCION A LA CIUDADANIA","WEB","DERECHO DE PETICION DE INTERES GENERAL",1,"GESTIONADO"]
[null,5792562025,"SUBDIRECCION DE GESTION INMOBILIARIA Y DEL ESPACIO PUBLICO","E-MAIL","DERECHO DE PETICION DE INTERES GENERAL",5,"PENDIENTE"]
[null,5793602025,"AREA DE ATENCION A LA CIUDADANIA","WEB","DERECHO DE PETICION DE INTERES GENERAL",1,"GESTIONADO"]
[null,5794742025,"AREA DE ATENCION A LA CIUDADANIA","WEB","DERECHO DE PETICION DE INTERES GENERAL",1,"GESTIONADO"]
[null,5795172025,"AREA DE ATENCION A LA CIUDADANIA","WEB","DERECHO DE PETICION DE INTERES GENERAL",1,"GESTIONADO"]
[null,5795812025,"AREA DE ATENCION A LA CIUDADANIA","WEB","DERECHO DE PETICION DE INTERES GENERAL",1,"GESTIONADO"]
[null,5795912025,"AREA DE ATENCION A LA CIUDADANIA","WEB","DERECHO DE PETICION DE INTERES GENERAL",1,"GESTIONADO"]
[null,5800392025,"AREA DE ATENCION A LA CIUDADANIA","WEB","DERECHO DE PETICION DE INTERES GENERAL",1,"GESTIONADO"]
[null,5802992025,"AREA DE ATENCION A LA CIUDADANIA","WEB","DERECHO DE PETICION DE INTERES PARTICULAR",1,"GESTIONADO"]
[null,5803222025,"AREA DE ATENCION A LA CIUDADANIA","WEB","DERECHO DE PETICION DE INTERES GENERAL",1,"GESTIONADO"]
[null,5803342025,"AREA DE ATENCION A LA CIUDADANIA","WEB","DERECHO DE PETICION DE INTERES GENERAL",1,"GESTIONADO"]
[null,5805062025,"AREA DE ATENCION A LA CIUDADANIA","WEB","DERECHO DE PETICION DE INTERES GENERAL",1,"GESTIONADO"]
[null,5805162025,"AREA DE ATENCION A LA CIUDADANIA","WEB","DERECHO DE PETICION DE INTERES GENERAL",1,"GESTIONADO"]
[null,5811362025,"AREA DE ATENCION A LA CIUDADANIA","WEB","DERECHO DE PETICION DE INTERES GENERAL",1,"GESTIONADO"]
[null,5812002025,"AREA DE ATENCION A LA CIUDADANIA","WEB","DERECHO DE PETICION DE INTERES GENERAL",1,"GESTIONADO"]
[null,5812862025,"AREA DE ATENCION A LA CIUDADANIA","WEB","DERECHO DE PETICION DE INTERES GENERAL",1,"GESTIONADO"]
[null,5812962025,"AREA DE ATENCION A LA CIUDADANIA","WEB","DERECHO DE PETICION DE INTERES GENERAL",1,"GESTIONADO"]
[null,5813242025,"SUBDIRECCION DE GESTION INMOBILIARIA Y DEL ESPACIO PUBLICO","WEB","DERECHO DE PETICION DE INTERES GENERAL",5,"PENDIENTE"]
[null,5813542025,"AREA DE ATENCION A LA CIUDADANIA","WEB","DERECHO DE PETICION DE INTERES GENERAL",1,"GESTIONADO"]
[null,5814612025,"AREA DE ATENCION A LA CIUDADANIA","WEB","DERECHO DE PETICION DE INTERES GENERAL",1,"GESTIONADO"]
[null,5815242025,"AREA DE ATENCION A LA CIUDADANIA","WEB","DERECHO DE PETICION DE INTERES GENERAL",1,"GESTIONADO"]
[null,5817162025,"AREA DE ATENCION A LA CIUDADANIA","WEB","DERECHO DE PETICION DE INTERES PARTICULAR",1,"GESTIONADO"]
[null,5817252025,"AREA DE ATENCION A LA CIUDADANIA","WEB","DERECHO DE PETICION DE INTERES GENERAL",1,"GESTIONADO"]
[null,5819042025,"AREA DE ATENCION A LA CIUDADANIA","WEB","DERECHO DE PETICION DE INTERES GENERAL",1,"GESTIONADO"]
[null,5323762025,"AREA DE ATENCION A LA CIUDADANIA","WEB","CONSULTA",1,"GESTIONADO"]
[null,5822612025,"SUBDIRECCION DE GESTION INMOBILIARIA Y DEL ESPACIO PUBLICO","E-MAIL","DERECHO DE PETICION DE INTERES GENERAL",4,"PENDIENTE"]
[null,5823302025,"OFICINA DE CONTROL DISCIPLINARIO INTERNO","E-MAIL","DERECHO DE PETICION DE INTERES GENERAL",1,"PENDIENTE"]
[null,5823362025,"AREA DE ATENCION A LA CIUDADANIA","WEB","DERECHO DE PETICION DE INTERES GENERAL",1,"GESTIONADO"]
[null,5823432025,"AREA DE ATENCION A LA CIUDADANIA","WEB","DERECHO DE PETICION DE INTERES GENERAL",1,"GESTIONADO"]
[null,5824272025,"AREA DE ATENCION A LA CIUDADANIA","E-MAIL","DERECHO DE PETICION DE INTERES PARTICULAR",1,"GESTIONADO"]
[null,5824902025,"AREA DE ATENCION A LA CIUDADANIA","E-MAIL","DERECHO DE PETICION DE INTERES GENERAL",1,"GESTIONADO"]
[null,5831472025,"AREA DE ATENCION A LA CIUDADANIA","WEB","DERECHO DE PETICION DE INTERES GENERAL",1,"GESTIONADO"]
[null,5833722025,"AREA DE ATENCION A LA CIUDADANIA","WEB","DERECHO DE PETICION DE INTERES GENERAL",1,"GESTIONADO"]
[null,5833912025,"AREA DE ATENCION A LA CIUDADANIA","WEB","DERECHO DE PETICION DE INTERES GENERAL",1,"GESTIONADO"]
[null,5834292025,"SUBDIRECCION DE GESTION INMOBILIARIA Y DEL ESPACIO PUBLICO","E-MAIL","DERECHO DE PETICION DE INTERES PARTICULAR",4,"PENDIENTE"]
[null,5834842025,"AREA DE ATENCION A LA CIUDADANIA","WEB","DERECHO DE PETICION DE INTERES GENERAL",1,"GESTIONADO"]
[null,5835972025,"AREA DE ATENCION A LA CIUDADANIA","E-MAIL","DERECHO DE PETICION DE INTERES GENERAL",1,"GESTIONADO"]
[null,5836372025,"AREA DE ATENCION A LA CIUDADANIA","WEB","DERECHO DE PETICION DE INTERES GENERAL",2,"GESTIONADO"]
[null,5836712025,"AREA DE ATENCION A LA CIUDADANIA","WEB","DERECHO DE PETICION DE INTERES GENERAL",1,"GESTIONADO"]
[null,5837672025,"AREA DE ATENCION A LA CIUDADANIA","WEB","DERECHO DE PETICION DE INTERES GENERAL",2,"GESTIONADO"]
[null,5839142025,"SUBDIRECCION DE REGISTRO INMOBILIARIO","WEB","DERECHO DE PETICION DE INTERES PARTICULAR",4,"PENDIENTE"]
[null,5843082025,"AREA DE ATENCION A LA CIUDADANIA","WEB","DERECHO DE PETICION DE INTERES PARTICULAR",1,"GESTIONADO"]
[null,5843852025,"AREA DE ATENCION A LA CIUDADANIA","WEB","DERECHO DE PETICION DE INTERES GENERAL",1,"GESTIONADO"]
[null,5351072025,"SUBDIRECCION DE REGISTRO INMOBILIARIO","WEB","CONSULTA",6,"GESTIONADO"]
[null,5852552025,"AREA DE ATENCION A LA CIUDADANIA","WEB","DERECHO DE PETICION DE INTERES GENERAL",1,"GESTIONADO"]
[null,5852692025,"AREA DE ATENCION A LA CIUDADANIA","WEB","DERECHO DE PETICION DE INTERES GENERAL",1,"GESTIONADO"]
[null,5859742025,"AREA DE ATENCION A LA CIUDADANIA","WEB","DERECHO DE PETICION DE INTERES GENERAL",1,"GESTIONADO"]
[null,5859862025,"AREA DE ATENCION A LA CIUDADANIA","WEB","DERECHO DE PETICION DE INTERES PARTICULAR",1,"GESTIONADO"]
[null,5862272025,"AREA DE ATENCION A LA CIUDADANIA","WEB","DERECHO DE PETICION DE INTERES GENERAL",1,"GESTIONADO"]
[null,5862532025,"AREA DE ATENCION A LA CIUDADANIA","WEB","DERECHO DE PETICION DE INTERES GENERAL",1,"GESTIONADO"]
[null,5863312025,"AREA DE ATENCION A LA CIUDADANIA","WEB","DERECHO DE PETICION DE INTERES GENERAL",1,"GESTIONADO"]
[null,5863502025,"AREA DE ATENCION A LA CIUDADANIA","WEB","DERECHO DE PETICION DE INTERES PARTICULAR",1,"GESTIONADO"]
[null,5864852025,"OFICINA DE CONTROL DISCIPLINARIO INTERNO","WEB","DERECHO DE PETICION DE INTERES GENERAL",2,"PENDIENTE"]
[null,5865892025,"SUBDIRECCION DE GESTION INMOBILIARIA Y DEL ESPACIO PUBLICO","WEB","DERECHO DE PETICION DE INTERES PARTICULAR",3,"PENDIENTE"]
[null,5866112025,"AREA DE ATENCION A LA CIUDADANIA","WEB","SUGERENCIA",1,"GESTIONADO"]
[null,5866892025,"AREA DE ATENCION A LA CIUDADANIA","WEB","DERECHO DE PETICION DE INTERES GENERAL",1,"GESTIONADO"]
[null,5867372025,"AREA DE ATENCION A LA CIUDADANIA","WEB","DERECHO DE PETICION DE INTERES GENERAL",1,"GESTIONADO"]
[null,5870372025,"AREA DE ATENCION A LA CIUDADANIA","WEB","DERECHO DE PETICION DE INTERES GENERAL",1,"GESTIONADO"]
[null,5872932025,"AREA DE ATENCION A LA CIUDADANIA","WEB","DERECHO DE PETICION DE INTERES GENERAL",1,"GESTIONADO"]
[null,5874142025,"SUBDIRECCION DE GESTION INMOBILIARIA Y DEL ESPACIO PUBLICO","WEB","DERECHO DE PETICION DE INTERES PARTICULAR",3,"PENDIENTE"]
[null,5874492025,"AREA DE ATENCION A LA CIUDADANIA","WEB","DERECHO DE PETICION DE INTERES PARTICULAR",1,"GESTIONADO"]
[null,5874822025,"AREA DE ATENCION A LA CIUDADANIA","WEB","DERECHO DE PETICION DE INTERES PARTICULAR",1,"GESTIONADO"]
[null,5883582025,"AREA DE ATENCION A LA CIUDADANIA","WEB","DERECHO DE PETICION DE INTERES GENERAL",1,"GESTIONADO"]
[null,5884722025,"AREA DE ATENCION A LA CIUDADANIA","WEB","DERECHO DE PETICION DE INTERES GENERAL",1,"GESTIONADO"]
[null,5886942025,"AREA DE ATENCION A LA CIUDADANIA","WEB","DERECHO DE PETICION DE INTERES GENERAL",1,"GESTIONADO"]
[null,5886982025,"AREA DE ATENCION A LA CIUDADANIA","WEB","DERECHO DE PETICION DE INTERES PARTICULAR",1,"GESTIONADO"]
[null,5887092025,"AREA DE ATENCION A LA CIUDADANIA","WEB","DERECHO DE PETICION DE INTERES GENERAL",1,"GESTIONADO"]
[null,5887732025,"AREA DE ATENCION A LA CIUDADANIA","WEB","DERECHO DE PETICION DE INTERES GENERAL",1,"GESTIONADO"]
[null,5888282025,"SUBDIRECCION DE GESTION INMOBILIARIA Y DEL ESPACIO PUBLICO","E-MAIL","DERECHO DE PETICION DE INTERES GENERAL",2,"PENDIENTE"]
[null,5888762025,"AREA DE ATENCION A LA CIUDADANIA","E-MAIL","DERECHO DE PETICION DE INTERES GENERAL",1,"GESTIONADO"]
[null,5889092025,"AREA DE ATENCION A LA CIUDADANIA","E-MAIL","DERECHO DE PETICION DE INTERES GENERAL",1,"GESTIONADO"]
[null,5892622025,"AREA DE ATENCION A LA CIUDADANIA","WEB","DERECHO DE PETICION DE INTERES GENERAL",1,"GESTIONADO"]
[null,5893242025,"AREA DE ATENCION A LA CIUDADANIA","E-MAIL","DERECHO DE PETICION DE INTERES GENERAL",1,"GESTIONADO"]
[null,5895352025,"AREA DE ATENCION A LA CIUDADANIA","WEB","DERECHO DE PETICION DE INTERES GENERAL",1,"GESTIONADO"]
[null,5897762025,"AREA DE ATENCION A LA CIUDADANIA","WEB","DERECHO DE PETICION DE INTERES GENERAL",1,"GESTIONADO"]
[null,5900282025,"AREA DE ATENCION A LA CIUDADANIA","WEB","DERECHO DE PETICION DE INTERES GENERAL",1,"GESTIONADO"]
[null,5902032025,"AREA DE ATENCION A LA CIUDADANIA","WEB","DERECHO DE PETICION DE INTERES GENERAL",1,"GESTIONADO"]
[null,5912562025,"AREA DE ATENCION A LA CIUDADANIA","WEB","DERECHO DE PETICION DE INTERES GENERAL",1,"GESTIONADO"]
[null,5914222025,"AREA DE ATENCION A LA CIUDADANIA","WEB","DERECHO DE PETICION DE INTERES PARTICULAR",1,"GESTIONADO"]
[null,5914312025,"AREA DE ATENCION A LA CIUDADANIA","WEB","DERECHO DE PETICION DE INTERES GENERAL",1,"GESTIONADO"]
[null,5914702025,"AREA DE ATENCION A LA CIUDADANIA","WEB","DERECHO DE PETICION DE INTERES GENERAL",1,"GESTIONADO"]
[null,5916692025,"AREA DE ATENCION A LA CIUDADANIA","WEB","DERECHO DE PETICION DE INTERES GENERAL",1,"GESTIONADO"]
[null,5917372025,"AREA DE ATENCION A LA CIUDADANIA","WEB","DERECHO DE PETICION DE INTERES GENERAL",1,"GESTIONADO"]
[null,5918702025,"AREA DE ATENCION A LA CIUDADANIA","E-MAIL","DERECHO DE PETICION DE INTERES GENERAL",1,"PENDIENTE"]
[null,5923752025,"SUBDIRECCION DE GESTION INMOBILIARIA Y DEL ESPACIO PUBLICO","E-MAIL","DERECHO DE PETICION DE INTERES GENERAL",1,"PENDIENTE"]
[null,5924032025,"AREA DE ATENCION A LA CIUDADANIA","E-MAIL","DERECHO DE PETICION DE INTERES PARTICULAR",1,"GESTIONADO"]
[null,5924072025,"AREA DE ATENCION A LA CIUDADANIA","WEB","DERECHO DE PETICION DE INTERES GENERAL",1,"GESTIONADO"]
[null,5925592025,"AREA DE ATENCION A LA CIUDADANIA","WEB","DERECHO DE PETICION DE INTERES GENERAL",1,"PENDIENTE"]
[null,5926682025,"AREA DE ATENCION A LA CIUDADANIA","WEB","DERECHO DE PETICION DE INTERES GENERAL",1,"GESTIONADO"]
[null,5926922025,"AREA DE ATENCION A LA CIUDADANIA","WEB","DERECHO DE PETICION DE INTERES GENERAL",1,"GESTIONADO"]
[null,5928892025,"AREA DE ATENCION A LA CIUDADANIA","WEB","DERECHO DE PETICION DE INTERES GENERAL",1,"GESTIONADO"]
[null,5930522025,"AREA DE ATENCION A LA CIUDADANIA","WEB","DERECHO DE PETICION DE INTERES GENERAL",1,"GESTIONADO"]
[null,5932282025,"AREA DE ATENCION A LA CIUDADANIA","WEB","DERECHO DE PETICION DE INTERES GENERAL",1,"GESTIONADO"]
[null,5933012025,"AREA DE ATENCION A LA CIUDADANIA","WEB","DERECHO DE PETICION DE INTERES GENERAL",1,"GESTIONADO"]
[null,5933202025,"AREA DE ATENCION A LA CIUDADANIA","WEB","DERECHO DE PETICION DE INTERES GENERAL",1,"GESTIONADO"]
[null,5933762025,"AREA DE ATENCION A LA CIUDADANIA","WEB","DERECHO DE PETICION DE INTERES PARTICULAR",1,"GESTIONADO"]
[null,5940382025,"SUBDIRECCION DE GESTION INMOBILIARIA Y DEL ESPACIO PUBLICO","E-MAIL","DERECHO DE PETICION DE INTERES GENERAL",1,"PENDIENTE"]
[null,5940182025,"AREA DE ATENCION A LA CIUDADANIA","PRESENCIAL","DERECHO DE PETICION DE INTERES GENERAL",1,"GESTIONADO"]
[null,5945552025,"AREA DE ATENCION A LA CIUDADANIA","E-MAIL","DERECHO DE PETICION DE INTERES GENERAL",1,"PENDIENTE"]
[null,5946232025,"AREA DE ATENCION A LA CIUDADANIA","WEB","DERECHO DE PETICION DE INTERES GENERAL",1,"GESTIONADO"]
[null,5946702025,"AREA DE ATENCION A LA CIUDADANIA","WEB","DERECHO DE PETICION DE INTERES GENERAL",1,"GESTIONADO"]
[null,5946822025,"AREA DE ATENCION A LA CIUDADANIA","E-MAIL","DERECHO DE PETICION DE INTERES GENERAL",1,"PENDIENTE"]
[null,5948522025,"AREA DE ATENCION A LA CIUDADANIA","E-MAIL","DERECHO DE PETICION DE INTERES GENERAL",1,"GESTIONADO"]
[null,5953872025,"AREA DE ATENCION A LA CIUDADANIA","WEB","RECLAMO",1,"PENDIENTE"]
[null,5954522025,"AREA DE ATENCION A LA CIUDADANIA","WEB","QUEJA",1,"PENDIENTE"]
[null,5955012025,"AREA DE ATENCION A LA CIUDADANIA","WEB","SUGERENCIA",1,"PENDIENTE"]
[null,5957232025,"AREA DE ATENCION A LA CIUDADANIA","WEB","DERECHO DE PETICION DE INTERES GENERAL",1,"PENDIENTE"]
[null,5473292025,"SUBDIRECCION DE GESTION INMOBILIARIA Y DEL ESPACIO PUBLICO","WEB","CONSULTA",14,"PENDIENTE"]
[null,5476452025,"SUBDIRECCION DE GESTION INMOBILIARIA Y DEL ESPACIO PUBLICO","WEB","CONSULTA",14,"PENDIENTE"]
[null,5498972025,"AREA DE ATENCION A LA CIUDADANIA","WEB","CONSULTA",1,"GESTIONADO"]
[null,5628152025,"AREA DE ATENCION A LA CIUDADANIA","WEB","CONSULTA",1,"GESTIONADO"]
[null,5630742025,"AREA DE ATENCION A LA CIUDADANIA","WEB","CONSULTA",1,"GESTIONADO"]
[null,5678172025,"AREA DE ATENCION A LA CIUDADANIA","WEB","CONSULTA",1,"GESTIONADO"]
[null,5707252025,"SUBDIRECCION DE GESTION INMOBILIARIA Y DEL ESPACIO PUBLICO","WEB","CONSULTA",8,"PENDIENTE"]
[null,5712792025,"SUBDIRECCION DE GESTION INMOBILIARIA Y DEL ESPACIO PUBLICO","WEB","CONSULTA",8,"PENDIENTE"]
[null,5716982025,"AREA DE ATENCION A LA CIUDADANIA","WEB","CONSULTA",1,"GESTIONADO"]
[null,5743932025,"AREA DE ATENCION A LA CIUDADANIA","WEB","CONSULTA",1,"GESTIONADO"]
[null,5748222025,"AREA DE ATENCION A LA CIUDADANIA","WEB","CONSULTA",1,"GESTIONADO"]
[null,5764802025,"AREA DE ATENCION A LA CIUDADANIA","WEB","CONSULTA",1,"GESTIONADO"]
[null,5775912025,"SUBDIRECCION DE GESTION INMOBILIARIA Y DEL ESPACIO PUBLICO","WEB","CONSULTA",6,"PENDIENTE"]
[null,5923742025,"AREA DE ATENCION A LA CIUDADANIA","WEB","CONSULTA",1,"GESTIONADO"]
[null,5933242025,"SUBDIRECCION DE REGISTRO INMOBILIARIO","WEB","CONSULTA",1,"PENDIENTE"]

{"sheet":"Traslados","index":3,"n_rows":550,"n_cols":8,"rows_kept":550,"cut":false,"hidden":false,"merged":[[10,3,14,5],[8,1,9,1],[10,1,16,2]]}
[]
[]
[]
[]
[]
[]
[]
[]
[]
[]
[null,"REPORTE  GESTIÓN DE PETICIONES\n\nFecha:  2025- 10- 01    a   2025 - 10 - 31\nEstado de Petición:  Al Periodo"]
[]
[]
[]
[]
[]
[]
[]
[null,"Número petición\nNumero de registro en el Sistema","Dependencia:\nNombre asociado al usuario que tiene a cargo la petición ","Canal:\nNombre del canal parametrizado en el sistema por el cual fue registrada la petición","Tipología actualizada: \nTipo de documento utilizado por la entidad","Traslado a otras Entidades: \nPeticiones que por competencia son trasladadas a otras entidades.","Entidad Destino","Estado del Requerimiento\n \"Gestionado\" o \"Pendiente\" de respuesta definitiva por  parte de la Defensoría del Espacio Público o de las entidades competentes"]
[null,4577592025,"AREA DE ATENCION A LA CIUDADANIA","E-MAIL","DERECHO DE PETICION DE INTERES PARTICULAR","Solucionado por asignar - Trasladar","SECRETARIA DISTRITAL DE GOBIERNO","PENDIENTE"]
[null,4877752025,"AREA DE ATENCION A LA CIUDADANIA","WEB","DERECHO DE PETICION DE INTERES PARTICULAR","Solucionado por asignar - Trasladar","SECRETARIA DISTRITAL DE GOBIERNO","GESTIONADO"]
[null,4918142025,"AREA DE ATENCION A LA CIUDADANIA","E-MAIL","DERECHO DE PETICION DE INTERES PARTICULAR","Solucionado - Por traslado","SECRETARIA DISTRITAL DE INTEGRACION SOCIAL","GESTIONADO"]
[null,5073212025,"AREA DE ATENCION A LA CIUDADANIA","ESCRITO","DERECHO DE PETICION DE INTERES PARTICULAR","Solucionado - Por traslado","EMPRESA DE TRANSPORTE DEL TERCER MILENIO TRANSMILENIO S.A.","GESTIONADO"]
[null,5087252025,"AREA DE ATENCION A LA CIUDADANIA","ESCRITO","DERECHO DE PETICION DE INTERES GENERAL","Solucionado - Por traslado","INSTITUTO PARA LA ECONOMIA SOCIAL - IPES","GESTIONADO"]
[null,5125242025,"AREA DE ATENCION A LA CIUDADANIA","E-MAIL","DERECHO DE PETICION DE INTERES PARTICULAR","Solucionado - Por traslado","SECRETARIA DISTRITAL DEL HABITAT","GESTIONADO"]
[null,5177372025,"AREA DE ATENCION A LA CIUDADANIA","E-MAIL","DERECHO DE PETICION DE INTERES GENERAL","Solucionado - Por traslado","UNIDAD ADMINISTRATIVA ESPECIAL CUERPO OFICIAL BOMBEROS BOGOTA - UAECOB","GESTIONADO"]
[null,5202632025,"AREA DE ATENCION A LA CIUDADANIA","E-MAIL","DERECHO DE PETICION DE INTERES GENERAL","Solucionado - Por traslado","SECRETARIA DISTRITAL DE GOBIERNO","GESTIONADO"]
[null,5203762025,"AREA DE ATENCION A LA CIUDADANIA","WEB","DERECHO DE PETICION DE INTERES GENERAL","Solucionado - Por traslado","SECRETARIA DISTRITAL DE GOBIERNO","GESTIONADO"]
[null,5203842025,"AREA DE ATENCION A LA CIUDADANIA","WEB","DERECHO DE PETICION DE INTERES GENERAL","Solucionado - Por traslado","SECRETARIA DISTRITAL DE GOBIERNO","GESTIONADO"]
[null,5203902025,"AREA DE ATENCION A LA CIUDADANIA","WEB","DERECHO DE PETICION DE INTERES GENERAL","Solucionado - Por traslado","SECRETARIA DISTRITAL DE GOBIERNO","GESTIONADO"]
[null,5204032025,"AREA DE ATENCION A LA CIUDADANIA","WEB","DERECHO DE PETICION DE INTERES GENERAL","Solucionado - Por traslado","SECRETARIA DISTRITAL DE GOBIERNO","GESTIONADO"]
[null,5204082025,"AREA DE ATENCION A LA CIUDADANIA","WEB","DERECHO DE PETICION DE INTERES GENERAL","Solucionado - Por traslado","SECRETARIA DISTRITAL DE GOBIERNO","GESTIONADO"]
[null,5204162025,"AREA DE ATENCION A LA CIUDADANIA","WEB","DERECHO DE PETICION DE INTERES GENERAL","Solucionado - Por traslado","SECRETARIA DISTRITAL DE GOBIERNO","GESTIONADO"]
[null,5204362025,"AREA DE ATENCION A LA CIUDADANIA","WEB","DERECHO DE PETICION DE INTERES GENERAL","Solucionado - Por traslado","SECRETARIA DISTRITAL DE GOBIERNO","GESTIONADO"]
[null,5209002025,"AREA DE ATENCION A LA CIUDADANIA","WEB","DERECHO DE PETICION DE INTERES GENERAL","Solucionado - Por traslado","SECRETARIA DISTRITAL DE INTEGRACION SOCIAL","GESTIONADO"]
[null,5209032025,"AREA DE ATENCION A LA CIUDADANIA","WEB","DERECHO DE PETICION DE INTERES GENERAL","Solucionado - Por traslado","SECRETARIA DISTRITAL DE GOBIERNO","GESTIONADO"]
[null,5209222025,"AREA DE ATENCION A LA CIUDADANIA","WEB","DERECHO DE PETICION DE INTERES GENERAL","Solucionado - Por traslado","SECRETARIA DISTRITAL DE GOBIERNO","GESTIONADO"]
[null,5209492025,"AREA DE ATENCION A LA CIUDADANIA","WEB","DERECHO DE PETICION DE INTERES GENERAL","Solucionado - Por traslado","SECRETARIA DISTRITAL DE GOBIERNO","GESTIONADO"]
[null,5210652025,"AREA DE ATENCION A LA CIUDADANIA","WEB","DERECHO DE PETICION DE INTERES GENERAL","Solucionado - Por traslado","SECRETARIA DISTRITAL DE GOBIERNO","GESTIONADO"]
[null,5211292025,"AREA DE ATENCION A LA CIUDADANIA","WEB","DERECHO DE PETICION DE INTERES GENERAL","Solucionado - Por traslado","SECRETARIA DISTRITAL DE GOBIERNO","GESTIONADO"]
[null,5211332025,"AREA DE ATENCION A LA CIUDADANIA","WEB","DERECHO DE PETICION DE INTERES GENERAL","Solucionado - Por traslado","SECRETARIA DISTRITAL DE GOBIERNO","GESTIONADO"]
[null,5214132025,"AREA DE ATENCION A LA CIUDADANIA","WEB","DERECHO DE PETICION DE INTERES GENERAL","Solucionado - Por traslado","SECRETARIA DISTRITAL DE GOBIERNO","GESTIONADO"]
[null,5225342025,"AREA DE ATENCION A LA CIUDADANIA","WEB","DERECHO DE PETICION DE INTERES PARTICULAR","Solucionado - Por traslado","SECRETARIA DISTRITAL DE HACIENDA","GESTIONADO"]
[null,5226012025,"AREA DE ATENCION A LA CIUDADANIA","E-MAIL","DERECHO DE PETICION DE INTERES GENERAL","Solucionado - Por traslado","SECRETARIA DISTRITAL DE GOBIERNO","GESTIONADO"]
[null,5229202025,"AREA DE ATENCION A LA CIUDADANIA","E-MAIL","DERECHO DE PETICION DE INTERES PARTICULAR","Solucionado por asignar - Trasladar","INSTITUTO DE DESARROLLO URBANO - IDU","GESTIONADO"]
[null,5230492025,"AREA DE ATENCION A LA CIUDADANIA","WEB","DERECHO DE PETICION DE INTERES GENERAL","Solucionado - Por traslado","SECRETARIA DISTRITAL DE GOBIERNO","GESTIONADO"]
[null,5230632025,"AREA DE ATENCION A LA CIUDADANIA","WEB","DERECHO DE PETICION DE INTERES GENERAL","Solucionado - Por traslado","SECRETARIA DISTRITAL DE GOBIERNO","GESTIONADO"]
[null,5230902025,"AREA DE ATENCION A LA CIUDADANIA","WEB","DERECHO DE PETICION DE INTERES GENERAL","Solucionado - Por traslado","SECRETARIA DISTRITAL DE GOBIERNO","GESTIONADO"]
[null,5232342025,"AREA DE ATENCION A LA CIUDADANIA","WEB","DERECHO DE PETICION DE INTERES GENERAL","Solucionado - Por traslado","SECRETARIA DISTRITAL DE GOBIERNO","GESTIONADO"]
[null,5235432025,"AREA DE ATENCION A LA CIUDADANIA","WEB","DERECHO DE PETICION DE INTERES GENERAL","Solucionado - Por traslado","SECRETARIA DISTRITAL DE GOBIERNO","GESTIONADO"]
[null,5235742025,"AREA DE ATENCION A LA CIUDADANIA","WEB","DERECHO DE PETICION DE INTERES GENERAL","Solucionado - Por traslado","INSTITUTO DE DESARROLLO URBANO - IDU","GESTIONADO"]
[null,5237732025,"AREA DE ATENCION A LA CIUDADANIA","WEB","DERECHO DE PETICION DE INTERES PARTICULAR","Solucionado - Por traslado","SECRETARIA DISTRITAL DE GOBIERNO","GESTIONADO"]
[null,5238322025,"AREA DE ATENCION A LA CIUDADANIA","E-MAIL","DERECHO DE PETICION DE INTERES GENERAL","Solucionado por asignar - Trasladar","SECRETARIA DISTRITAL DE GOBIERNO","GESTIONADO"]
[null,5239822025,"AREA DE ATENCION A LA CIUDADANIA","WEB","DERECHO DE PETICION DE INTERES GENERAL","Solucionado - Por traslado","SECRETARIA DISTRITAL DE GOBIERNO","GESTIONADO"]
[null,5240042025,"AREA DE ATENCION A LA CIUDADANIA","E-MAIL","SUGERENCIA","Solucionado - Por traslado","INSTITUTO DE DESARROLLO URBANO - IDU","GESTIONADO"]
[null,5257982025,"AREA DE ATENCION A LA CIUDADANIA","WEB","DERECHO DE PETICION DE INTERES GENERAL","Solucionado - Por traslado","SECRETARIA DISTRITAL DE GOBIERNO","GESTIONADO"]
[null,5263892025,"AREA DE ATENCION A LA CIUDADANIA","REDES SOCIALES","DERECHO DE PETICION DE INTERES GENERAL","Solucionado - Por traslado","SECRETARIA DISTRITAL DE GOBIERNO","GESTIONADO"]
[null,5264662025,"AREA DE ATENCION A LA CIUDADANIA","WEB","DERECHO DE PETICION DE INTERES GENERAL","Solucionado - Por traslado","SECRETARIA DISTRITAL DE AMBIENTE","GESTIONADO"]
[null,5267552025,"AREA DE ATENCION A LA CIUDADANIA","WEB","DERECHO DE PETICION DE INTERES GENERAL","Solucionado - Por traslado","SECRETARIA DISTRITAL DE GOBIERNO","GESTIONADO"]
[null,5268312025,"AREA DE ATENCION A LA CIUDADANIA","WEB","DERECHO DE PETICION DE INTERES GENERAL","Solucionado - Por traslado","SECRETARIA DISTRITAL DE INTEGRACION SOCIAL","GESTIONADO"]
[null,5270282025,"AREA DE ATENCION A LA CIUDADANIA","WEB","QUEJA","Solucionado - Por traslado","SECRETARIA DISTRITAL DE GOBIERNO","GESTIONADO"]
[null,5272782025,"AREA DE ATENCION A LA CIUDADANIA","E-MAIL","DERECHO DE PETICION DE INTERES GENERAL","Solucionado - Por traslado","SECRETARIA DISTRITAL DE GOBIERNO","GESTIONADO"]
[null,5274162025,"AREA DE ATENCION A LA CIUDADANIA","E-MAIL","DERECHO DE PETICION DE INTERES GENERAL","Solucionado - Por traslado","SECRETARIA DISTRITAL DE GOBIERNO","GESTIONADO"]
[null,5274492025,"AREA DE ATENCION A LA CIUDADANIA","WEB","DERECHO DE PETICION DE INTERES GENERAL","Solucionado - Por traslado","SECRETARIA DISTRITAL DE GOBIERNO","GESTIONADO"]
[null,5275292025,"AREA DE ATENCION A LA CIUDADANIA","WEB","DERECHO DE PETICION DE INTERES GENERAL","Solucionado - Por traslado","SECRETARIA DISTRITAL DE GOBIERNO","GESTIONADO"]
[null,5276072025,"AREA DE ATENCION A LA CIUDADANIA","WEB","DERECHO DE PETICION DE INTERES GENERAL","Solucionado - Por traslado","SECRETARIA DISTRITAL DE GOBIERNO","GESTIONADO"]
[null,5277412025,"AREA DE ATENCION A LA CIUDADANIA","WEB","DERECHO DE PETICION DE INTERES GENERAL","Solucionado por asignar - Trasladar","SECRETARIA DISTRITAL DE GOBIERNO","GESTIONADO"]
[null,5279362025,"AREA DE ATENCION A LA CIUDADANIA","WEB","DERECHO DE PETICION DE INTERES PARTICULAR","Solucionado - Por traslado","EMPRESA DE TRANSPORTE DEL TERCER MILENIO TRANSMILENIO S.A.","GESTIONADO"]
[null,5280282025,"AREA DE ATENCION A LA CIUDADANIA","WEB","DERECHO DE PETICION DE INTERES GENERAL","Solucionado - Por traslado","SECRETARIA DISTRITAL DE GOBIERNO","GESTIONADO"]
[null,5280792025,"AREA DE ATENCION A LA CIUDADANIA","WEB","DERECHO DE PETICION DE INTERES GENERAL","Solucionado - Por traslado","SECRETARIA DISTRITAL DE GOBIERNO","GESTIONADO"]
[null,5281002025,"AREA DE ATENCION A LA CIUDADANIA","WEB","DERECHO DE PETICION DE INTERES GENERAL","Solucionado - Por traslado","SECRETARIA DISTRITAL DE GOBIERNO","GESTIONADO"]
[null,5282542025,"AREA DE ATENCION A LA CIUDADANIA","WEB","DERECHO DE PETICION DE INTERES GENERAL","Solucionado - Por traslado","SECRETARIA DISTRITAL DE INTEGRACION SOCIAL","GESTIONADO"]
[null,5283102025,"AREA DE ATENCION A LA CIUDADANIA","BUZON","DERECHO DE PETICION DE INTERES PARTICULAR","Solucionado - Por traslado","SECRETARIA DISTRITAL DE GOBIERNO","GESTIONADO"]
[null,5284562025,"AREA DE ATENCION A LA CIUDADANIA","WEB","DERECHO DE PETICION DE INTERES PARTICULAR","Solucionado - Por traslado","SECRETARIA DISTRITAL DE GOBIERNO","GESTIONADO"]
[null,5291962025,"AREA DE ATENCION A LA CIUDADANIA","WEB","DERECHO DE PETICION DE INTERES GENERAL","Solucionado - Por traslado","SECRETARIA DISTRITAL DE GOBIERNO","GESTIONADO"]
[null,5292322025,"AREA DE ATENCION A LA CIUDADANIA","WEB","DERECHO DE PETICION DE INTERES GENERAL","Solucionado - Por traslado","EMPRESA DE TRANSPORTE DEL TERCER MILENIO TRANSMILENIO S.A.","GESTIONADO"]
[null,5296112025,"AREA DE ATENCION A LA CIUDADANIA","WEB","DERECHO DE PETICION DE INTERES GENERAL","Solucionado - Por traslado","SECRETARIA DISTRITAL DE GOBIERNO","GESTIONADO"]
[null,5296142025,"AREA DE ATENCION A LA CIUDADANIA","WEB","DERECHO DE PETICION DE INTERES PARTICULAR","Solucionado - Por traslado","SECRETARIA DISTRITAL DE GOBIERNO","GESTIONADO"]
[null,5297562025,"AREA DE ATENCION A LA CIUDADANIA","WEB","DERECHO DE PETICION DE INTERES GENERAL","Solucionado - Por traslado","SECRETARIA DISTRITAL DE GOBIERNO","GESTIONADO"]
[null,5298662025,"AREA DE ATENCION A LA CIUDADANIA","WEB","DERECHO DE PETICION DE INTERES GENERAL","Solucionado - Por traslado","SECRETARIA DISTRITAL DE GOBIERNO","GESTIONADO"]
[null,5300372025,"AREA DE ATENCION A LA CIUDADANIA","E-MAIL","DERECHO DE PETICION DE INTERES GENERAL","Solucionado - Por traslado","SECRETARIA DISTRITAL DE GOBIERNO","GESTIONADO"]
[null,5300802025,"AREA DE ATENCION A LA CIUDADANIA","WEB","DERECHO DE PETICION DE INTERES GENERAL","Solucionado - Por traslado","SECRETARIA DISTRITAL DE GOBIERNO","GESTIONADO"]
[null,5301752025,"AREA DE ATENCION A LA CIUDADANIA","PRESENCIAL","DERECHO DE PETICION DE INTERES GENERAL","Solucionado - Por traslado","SECRETARIA DISTRITAL DE GOBIERNO","GESTIONADO"]
[null,5306542025,"AREA DE ATENCION A LA CIUDADANIA","E-MAIL","DERECHO DE PETICION DE INTERES GENERAL","Solucionado por asignar - Trasladar","SECRETARIA DISTRITAL DE GOBIERNO","GESTIONADO"]
[null,5307522025,"AREA DE ATENCION A LA CIUDADANIA","E-MAIL","DERECHO DE PETICION DE INTERES GENERAL","Solucionado por asignar - Trasladar","SECRETARIA DISTRITAL DE GOBIERNO","GESTIONADO"]
[null,5311132025,"AREA DE ATENCION A LA CIUDADANIA","WEB","DERECHO DE PETICION DE INTERES PARTICULAR","Solucionado - Por traslado","SECRETARIA DISTRITAL DE GOBIERNO","GESTIONADO"]
[null,5312142025,"AREA DE ATENCION A LA CIUDADANIA","WEB","RECLAMO","Solucionado - Por traslado","SECRETARIA DISTRITAL DE GOBIERNO","GESTIONADO"]
[null,5315022025,"AREA DE ATENCION A LA CIUDADANIA","WEB","DERECHO DE PETICION DE INTERES GENERAL","Solucionado - Por traslado","SECRETARIA DISTRITAL DE GOBIERNO","GESTIONADO"]
[null,5316432025,"AREA DE ATENCION A LA CIUDADANIA","TELEFONO","DERECHO DE PETICION DE INTERES GENERAL","Solucionado - Por traslado","SECRETARIA DISTRITAL DE MOVILIDAD","GESTIONADO"]
[null,5318402025,"AREA DE ATENCION A LA CIUDADANIA","WEB","DERECHO DE PETICION DE INTERES PARTICULAR","Solucionado - Por traslado","ENTIDAD NACIONAL","GESTIONADO"]
[null,5322422025,"AREA DE ATENCION A LA CIUDADANIA","WEB","DERECHO DE PETICION DE INTERES GENERAL","Solucionado - Por traslado","SECRETARIA DISTRITAL DE GOBIERNO","GESTIONADO"]
[null,5322722025,"AREA DE ATENCION A LA CIUDADANIA","WEB","DERECHO DE PETICION DE INTERES GENERAL","Solucionado - Por traslado","SECRETARIA DISTRITAL DE GOBIERNO","GESTIONADO"]
[null,5323292025,"AREA DE ATENCION A LA CIUDADANIA","WEB","DERECHO DE PETICION DE INTERES GENERAL","Solucionado - Por traslado","SECRETARIA DISTRITAL DE GOBIERNO","GESTIONADO"]
[null,5323762025,"AREA DE ATENCION A LA CIUDADANIA","WEB","CONSULTA","Solucionado - Por traslado","SECRETARIA DISTRITAL DE AMBIENTE","GESTIONADO"]
[null,5324152025,"AREA DE ATENCION A LA CIUDADANIA","WEB","DERECHO DE PETICION DE INTERES GENERAL","Solucionado - Por traslado","SECRETARIA DISTRITAL DE GOBIERNO","GESTIONADO"]
[null,5324552025,"AREA DE ATENCION A LA CIUDADANIA","WEB","DERECHO DE PETICION DE INTERES GENERAL","Solucionado - Por traslado","SECRETARIA DISTRITAL DE GOBIERNO","GESTIONADO"]
[null,5325132025,"AREA DE ATENCION A LA CIUDADANIA","WEB","DERECHO DE PETICION DE INTERES GENERAL","Solucionado - Por traslado","SUBRED INTEGRADA DE SERVICIOS DE SALUD NORTE E.S.E.","GESTIONADO"]
[null,5325752025,"AREA DE ATENCION A LA CIUDADANIA","WEB","DERECHO DE PETICION DE INTERES PARTICULAR","Solucionado por asignar - Trasladar","TERMINAL DE TRANSPORTES S.A.","GESTIONADO"]
[null,5326292025,"AREA DE ATENCION A LA CIUDADANIA","WEB","DERECHO DE PETICION DE INTERES GENERAL","Solucionado - Por traslado","SECRETARIA DISTRITAL DE AMBIENTE","GESTIONADO"]
[null,5326302025,"AREA DE ATENCION A LA CIUDADANIA","WEB","DERECHO DE PETICION DE INTERES GENERAL","Solucionado - Por traslado","SECRETARIA DISTRITAL DE GOBIERNO","GESTIONADO"]
[null,5326312025,"AREA DE ATENCION A LA CIUDADANIA","WEB","DERECHO DE PETICION DE INTERES GENERAL","Solucionado - Por traslado","SECRETARIA DISTRITAL DE AMBIENTE","GESTIONADO"]
[null,5326322025,"AREA DE ATENCION A LA CIUDADANIA","WEB","DERECHO DE PETICION DE INTERES PARTICULAR","Solucionado - Por traslado","SECRETARIA DISTRITAL DE AMBIENTE","GESTIONADO"]
[null,5327562025,"AREA DE ATENCION A LA CIUDADANIA","WEB","DERECHO DE PETICION DE INTERES GENERAL","Solucionado - Por traslado","SECRETARIA DISTRITAL DE GOBIERNO","GESTIONADO"]
[null,5329352025,"AREA DE ATENCION A LA CIUDADANIA","WEB","RECLAMO","Solucionado - Por traslado","SECRETARIA DISTRITAL DE GOBIERNO","GESTIONADO"]
[null,5329412025,"AREA DE ATENCION A LA CIUDADANIA","WEB","DERECHO DE PETICION DE INTERES GENERAL","Solucionado - Por traslado","SECRETARIA DISTRITAL DE AMBIENTE","GESTIONADO"]
[null,5330622025,"AREA DE ATENCION A LA CIUDADANIA","WEB","DERECHO DE PETICION DE INTERES GENERAL","Solucionado - Por traslado","INSTITUTO PARA LA ECONOMIA SOCIAL - IPES","GESTIONADO"]
[null,5330812025,"AREA DE ATENCION A LA CIUDADANIA","WEB","DERECHO DE PETICION DE INTERES PARTICULAR","Solucionado - Por traslado","SECRETARIA DISTRITAL DE GOBIERNO","GESTIONADO"]
[null,5331002025,"AREA DE ATENCION A LA CIUDADANIA","WEB","DERECHO DE PETICION DE INTERES PARTICULAR","Solucionado - Por traslado","SECRETARIA DISTRITAL DE GOBIERNO","GESTIONADO"]
[null,5331082025,"AREA DE ATENCION A LA CIUDADANIA","WEB","DERECHO DE PETICION DE INTERES PARTICULAR","Solucionado - Por traslado","SECRETARIA DISTRITAL DE GOBIERNO","GESTIONADO"]
[null,5331182025,"AREA DE ATENCION A LA CIUDADANIA","WEB","DERECHO DE PETICION DE INTERES GENERAL","Solucionado - Por traslado","SECRETARIA DISTRITAL DE GOBIERNO","GESTIONADO"]
[null,5331502025,"AREA DE ATENCION A LA CIUDADANIA","WEB","DERECHO DE PETICION DE INTERES GENERAL","Solucionado - Por traslado","SECRETARIA DISTRITAL DE GOBIERNO","GESTIONADO"]
[null,5332452025,"AREA DE ATENCION A LA CIUDADANIA","WEB","DERECHO DE PETICION DE INTERES GENERAL","Solucionado - Por traslado","SECRETARIA DISTRITAL DE GOBIERNO","GESTIONADO"]
[null,5332732025,"AREA DE ATENCION A LA CIUDADANIA","WEB","DERECHO DE PETICION DE INTERES GENERAL","Solucionado - Por traslado","SECRETARIA DISTRITAL DE AMBIENTE","GESTIONADO"]
[null,5333232025,"AREA DE ATENCION A LA CIUDADANIA","WEB","DERECHO DE PETICION DE INTERES GENERAL","Solucionado - Por traslado","EMPRESA DE ACUEDUCTO Y ALCANTARILLADO DE BOGOTA EAAB - ESP","GESTIONADO"]
[null,5333252025,"AREA DE ATENCION A LA CIUDADANIA","WEB","DERECHO DE PETICION DE INTERES GENERAL","Solucionado - Por traslado","SECRETARIA DISTRITAL DE AMBIENTE","GESTIONADO"]
[null,5335602025,"AREA DE ATENCION A LA CIUDADANIA","WEB","DERECHO DE PETICION DE INTERES GENERAL","Solucionado por asignar - Trasladar","SECRETARIA DISTRITAL DE GOBIERNO","GESTIONADO"]
[null,5335622025,"AREA DE ATENCION A LA CIUDADANIA","E-MAIL","DERECHO DE PETICION DE INTERES PARTICULAR","Solucionado - Por traslado","SECRETARIA DISTRITAL DE GOBIERNO","GESTIONADO"]
[null,5336022025,"AREA DE ATENCION A LA CIUDADANIA","E-MAIL","DERECHO DE PETICION DE INTERES GENERAL","Solucionado - Por traslado","SECRETARIA DISTRITAL DE GOBIERNO","GESTIONADO"]
[null,5336432025,"AREA DE ATENCION A LA CIUDADANIA","E-MAIL","DERECHO DE PETICION DE INTERES GENERAL","Solucionado - Por traslado","SECRETARIA DISTRITAL DE GOBIERNO","GESTIONADO"]
[null,5336612025,"AREA DE ATENCION A LA CIUDADANIA","E-MAIL","DERECHO DE PETICION DE INTERES GENERAL","Solucionado - Por traslado","SECRETARIA DISTRITAL DE GOBIERNO","GESTIONADO"]
[null,5336862025,"AREA DE ATENCION A LA CIUDADANIA","E-MAIL","DERECHO DE PETICION DE INTERES GENERAL","Solucionado - Por traslado","SECRETARIA DISTRITAL DE GOBIERNO","GESTIONADO"]
[null,5337312025,"AREA DE ATENCION A LA CIUDADANIA","E-MAIL","DERECHO DE PETICION DE INTERES GENERAL","Solucionado - Por traslado","SECRETARIA DISTRITAL DE GOBIERNO","GESTIONADO"]
[null,5338412025,"AREA DE ATENCION A LA CIUDADANIA","E-MAIL","DERECHO DE PETICION DE INTERES GENERAL","Solucionado por asignar - Trasladar","SECRETARIA DISTRITAL DE GOBIERNO","GESTIONADO"]
[null,5340362025,"AREA DE ATENCION A LA CIUDADANIA","WEB","DERECHO DE PETICION DE INTERES GENERAL","Solucionado - Por traslado","SECRETARIA DISTRITAL DE GOBIERNO","GESTIONADO"]
[null,5341122025,"AREA DE ATENCION A LA CIUDADANIA","WEB","DERECHO DE PETICION DE INTERES GENERAL","Solucionado - Por traslado","SECRETARIA DISTRITAL DE INTEGRACION SOCIAL","GESTIONADO"]
[null,5342312025,"AREA DE ATENCION A LA CIUDADANIA","WEB","DERECHO DE PETICION DE INTERES GENERAL","Solucionado - Por traslado","SECRETARIA DISTRITAL DE GOBIERNO","GESTIONADO"]
[null,5343582025,"AREA DE ATENCION A LA CIUDADANIA","E-MAIL","DERECHO DE PETICION DE INTERES GENERAL","Solucionado - Por traslado","SECRETARIA DISTRITAL DE GOBIERNO","GESTIONADO"]
[null,5344172025,"AREA DE ATENCION A LA CIUDADANIA","WEB","DERECHO DE PETICION DE INTERES PARTICULAR","Solucionado - Por traslado","SECRETARIA DISTRITAL DE GOBIERNO","GESTIONADO"]
[null,5344702025,"AREA DE ATENCION A LA CIUDADANIA","PRESENCIAL","DERECHO DE PETICION DE INTERES GENERAL","Solucionado - Por traslado","SECRETARIA DISTRITAL DE GOBIERNO","GESTIONADO"]
[null,5347482025,"AREA DE ATENCION A LA CIUDADANIA","WEB","SUGERENCIA","Solucionado - Por traslado","SECRETARIA DISTRITAL DE GOBIERNO","GESTIONADO"]
[null,5351072025,"SUBDIRECCION DE REGISTRO INMOBILIARIO","WEB","CONSULTA","Solucionado por asignar - Trasladar","INSTITUTO DE DESARROLLO URBANO - IDU","GESTIONADO"]
[null,5351582025,"AREA DE ATENCION A LA CIUDADANIA","E-MAIL","DERECHO DE PETICION DE INTERES GENERAL","Solucionado - Por traslado","SECRETARIA DISTRITAL DE GOBIERNO","GESTIONADO"]
[null,5354332025,"AREA DE ATENCION A LA CIUDADANIA","WEB","DERECHO DE PETICION DE INTERES GENERAL","Solucionado - Por traslado","SECRETARIA DISTRITAL DE GOBIERNO","GESTIONADO"]
[null,5354532025,"AREA DE ATENCION A LA CIUDADANIA","WEB","DERECHO DE PETICION DE INTERES GENERAL","Solucionado - Por traslado","SECRETARIA DISTRITAL DE MOVILIDAD","GESTIONADO"]
[null,5354602025,"AREA DE ATENCION A LA CIUDADANIA","WEB","QUEJA","Solucionado - Por traslado","SECRETARIA DISTRITAL DE GOBIERNO","GESTIONADO"]
[null,5355132025,"AREA DE ATENCION A LA CIUDADANIA","WEB","DERECHO DE PETICION DE INTERES GENERAL","Solucionado - Por traslado","SECRETARIA DISTRITAL DE GOBIERNO","GESTIONADO"]
[null,5357322025,"AREA DE ATENCION A LA CIUDADANIA","WEB","DERECHO DE PETICION DE INTERES GENERAL","Solucionado - Por traslado","SECRETARIA DISTRITAL DE GOBIERNO","GESTIONADO"]
[null,5367382025,"AREA DE ATENCION A LA CIUDADANIA","WEB","DERECHO DE PETICION DE INTERES PARTICULAR","Solucionado - Por traslado","SECRETARIA DISTRITAL DE GOBIERNO","GESTIONADO"]
[null,5369552025,"AREA DE ATENCION A LA CIUDADANIA","WEB","DERECHO DE PETICION DE INTERES PARTICULAR","Solucionado por asignar - Trasladar","TERMINAL DE TRANSPORTES S.A.","GESTIONADO"]
[null,5371002025,"AREA DE ATENCION A LA CIUDADANIA","WEB","DERECHO DE PETICION DE INTERES GENERAL","Solucionado - Por traslado","SECRETARIA DISTRITAL DE GOBIERNO","GESTIONADO"]
[null,5372612025,"AREA DE ATENCION A LA CIUDADANIA","WEB","DERECHO DE PETICION DE INTERES GENERAL","Solucionado - Por traslado","SECRETARIA DISTRITAL DE GOBIERNO","GESTIONADO"]
[null,5374492025,"AREA DE ATENCION A LA CIUDADANIA","WEB","DERECHO DE PETICION DE INTERES GENERAL","Solucionado - Por traslado","SECRETARIA DISTRITAL DE GOBIERNO","GESTIONADO"]
[null,5377492025,"AREA DE ATENCION A LA CIUDADANIA","WEB","DERECHO DE PETICION DE INTERES GENERAL","Solucionado - Por traslado","SECRETARIA DISTRITAL DE GOBIERNO","GESTIONADO"]
[null,5377532025,"AREA DE ATENCION A LA CIUDADANIA","WEB","DERECHO DE PETICION DE INTERES GENERAL","Solucionado - Por traslado","INSTITUTO DISTRITAL DE PROTECCION Y BIENESTAR ANIMAL - IDPYBA","GESTIONADO"]
[null,5377632025,"AREA DE ATENCION A LA CIUDADANIA","WEB","DERECHO DE PETICION DE INTERES GENERAL","Solucionado - Por traslado","SECRETARIA DISTRITAL DE INTEGRACION SOCIAL","GESTIONADO"]
[null,5377682025,"AREA DE ATENCION A LA CIUDADANIA","WEB","QUEJA","Solucionado - Por traslado","INSTITUTO DISTRITAL DE PROTECCION Y BIENESTAR ANIMAL - IDPYBA","GESTIONADO"]
[null,5379032025,"AREA DE ATENCION A LA CIUDADANIA","WEB","DERECHO DE PETICION DE INTERES GENERAL","Solucionado - Por traslado","SECRETARIA DISTRITAL DE GOBIERNO","GESTIONADO"]
[null,5380272025,"AREA DE ATENCION A LA CIUDADANIA","WEB","DERECHO DE PETICION DE INTERES PARTICULAR","Solucionado - Por traslado","SECRETARIA DISTRITAL DE SEGURIDAD  CONVIVENCIA Y JUSTICIA","GESTIONADO"]
[null,5381222025,"AREA DE ATENCION A LA CIUDADANIA","E-MAIL","DERECHO DE PETICION DE INTERES GENERAL","Solucionado - Por traslado","SECRETARIA DISTRITAL DE GOBIERNO","GESTIONADO"]
[null,5382032025,"AREA DE ATENCION A LA CIUDADANIA","WEB","DERECHO DE PETICION DE INTERES PARTICULAR","Solucionado - Por traslado","SECRETARIA DISTRITAL DE GOBIERNO","GESTIONADO"]
[null,5382602025,"AREA DE ATENCION A LA CIUDADANIA","WEB","DERECHO DE PETICION DE INTERES GENERAL","Solucionado por asignar - Trasladar","SECRETARIA DISTRITAL DE GOBIERNO","GESTIONADO"]
[null,5382682025,"AREA DE ATENCION A LA CIUDADANIA","WEB","DERECHO DE PETICION DE INTERES GENERAL","Solucionado - Por traslado","SECRETARIA DISTRITAL DE GOBIERNO","GESTIONADO"]
[null,5383332025,"AREA DE ATENCION A LA CIUDADANIA","WEB","DERECHO DE PETICION DE INTERES GENERAL","Solucionado - Por traslado","SECRETARIA DISTRITAL DE GOBIERNO","GESTIONADO"]
[null,5384172025,"AREA DE ATENCION A LA CIUDADANIA","WEB","DERECHO DE PETICION DE INTERES GENERAL","Solucionado - Por traslado","ENTIDAD NACIONAL","GESTIONADO"]
[null,5384472025,"AREA DE ATENCION A LA CIUDADANIA","WEB","DERECHO DE PETICION DE INTERES PARTICULAR","Solucionado - Por traslado","INSTITUTO DE DESARROLLO URBANO - IDU","GESTIONADO"]
[null,5385002025,"AREA DE ATENCION A LA CIUDADANIA","WEB","DERECHO DE PETICION DE INTERES GENERAL","Solucionado - Por traslado","SECRETARIA DISTRITAL DE MOVILIDAD","GESTIONADO"]
[null,5385222025,"AREA DE ATENCION A LA CIUDADANIA","WEB","DERECHO DE PETICION DE INTERES GENERAL","Solucionado - Por traslado","SECRETARIA DISTRITAL DE GOBIERNO","GESTIONADO"]
[null,5386002025,"AREA DE ATENCION A LA CIUDADANIA","WEB","DERECHO DE PETICION DE INTERES GENERAL","Solucionado - Por traslado","SECRETARIA DISTRITAL DE GOBIERNO","GESTIONADO"]
[null,5386362025,"AREA DE ATENCION A LA CIUDADANIA","WEB","DERECHO DE PETICION DE INTERES GENERAL","Solucionado - Por traslado","SECRETARIA DISTRITAL DE GOBIERNO","GESTIONADO"]
[null,5386482025,"AREA DE ATENCION A LA CIUDADANIA","WEB","DERECHO DE PETICION DE INTERES GENERAL","Solucionado - Por traslado","SECRETARIA DISTRITAL DE GOBIERNO","GESTIONADO"]
[null,5400572025,"AREA DE ATENCION A LA CIUDADANIA","PRESENCIAL","DERECHO DE PETICION DE INTERES GENERAL","Solucionado por asignar - Trasladar","SECRETARIA DISTRITAL DE GOBIERNO","GESTIONADO"]
[null,5402342025,"AREA DE ATENCION A LA CIUDADANIA","WEB","DERECHO DE PETICION DE INTERES GENERAL","Solucionado - Por traslado","SECRETARIA DISTRITAL DE INTEGRACION SOCIAL","GESTIONADO"]
[null,5402462025,"AREA DE ATENCION A LA CIUDADANIA","E-MAIL","DERECHO DE PETICION DE INTERES GENERAL","Solucionado por asignar - Trasladar","SECRETARIA DISTRITAL DE GOBIERNO","GESTIONADO"]
[null,5403942025,"AREA DE ATENCION A LA CIUDADANIA","E-MAIL","DERECHO DE PETICION DE INTERES GENERAL","Solucionado - Por traslado","SECRETARIA DISTRITAL DE GOBIERNO","GESTIONADO"]
[null,5405082025,"AREA DE ATENCION A LA CIUDADANIA","WEB","DERECHO DE PETICION DE INTERES GENERAL","Solucionado - Por traslado","SECRETARIA DISTRITAL DE GOBIERNO","GESTIONADO"]
[null,5409322025,"AREA DE ATENCION A LA CIUDADANIA","WEB","DERECHO DE PETICION DE INTERES GENERAL","Solucionado - Por traslado","SECRETARIA DISTRITAL DE GOBIERNO","GESTIONADO"]
[null,5411842025,"AREA DE ATENCION A LA CIUDADANIA","WEB","DERECHO DE PETICION DE INTERES GENERAL","Solucionado - Por traslado","SECRETARIA DISTRITAL DE GOBIERNO","GESTIONADO"]
[null,5412172025,"AREA DE ATENCION A LA CIUDADANIA","E-MAIL","DERECHO DE PETICION DE INTERES GENERAL","Solucionado por asignar - Trasladar","SECRETARIA DISTRITAL DE GOBIERNO","GESTIONADO"]
[null,5412392025,"AREA DE ATENCION A LA CIUDADANIA","E-MAIL","DERECHO DE PETICION DE INTERES GENERAL","Solucionado - Por traslado","SECRETARIA DISTRITAL DE GOBIERNO","GESTIONADO"]
[null,5412432025,"AREA DE ATENCION A LA CIUDADANIA","WEB","DERECHO DE PETICION DE INTERES GENERAL","Solucionado - Por traslado","SECRETARIA DISTRITAL DE GOBIERNO","GESTIONADO"]
[null,5414662025,"AREA DE ATENCION A LA CIUDADANIA","E-MAIL","DERECHO DE PETICION DE INTERES GENERAL","Solucionado - Por traslado","SECRETARIA DISTRITAL DE GOBIERNO","GESTIONADO"]
[null,5414682025,"AREA DE ATENCION A LA CIUDADANIA","E-MAIL","DERECHO DE PETICION DE INTERES GENERAL","Solucionado por asignar - Trasladar","INSTITUTO PARA LA ECONOMIA SOCIAL - IPES","GESTIONADO"]
[null,5415492025,"AREA DE ATENCION A LA CIUDADANIA","WEB","DERECHO DE PETICION DE INTERES GENERAL","Solucionado - Por traslado","SECRETARIA DISTRITAL DE GOBIERNO","GESTIONADO"]
[null,5415902025,"AREA DE ATENCION A LA CIUDADANIA","WEB","DERECHO DE PETICION DE INTERES PARTICULAR","Solucionado - Por traslado","SECRETARIA DISTRITAL DE AMBIENTE","GESTIONADO"]
[null,5416192025,"AREA DE ATENCION A LA CIUDADANIA","E-MAIL","DERECHO DE PETICION DE INTERES GENERAL","Solucionado por asignar - Trasladar","SECRETARIA DISTRITAL DE GOBIERNO","GESTIONADO"]
[null,5416912025,"AREA DE ATENCION A LA CIUDADANIA","WEB","DERECHO DE PETICION DE INTERES GENERAL","Solucionado - Por traslado","SECRETARIA DISTRITAL DE MOVILIDAD","GESTIONADO"]
[null,5417012025,"AREA DE ATENCION A LA CIUDADANIA","WEB","DERECHO DE PETICION DE INTERES GENERAL","Solucionado - Por traslado","SECRETARIA DISTRITAL DE AMBIENTE","GESTIONADO"]
[null,5417032025,"AREA DE ATENCION A LA CIUDADANIA","WEB","DERECHO DE PETICION DE INTERES GENERAL","Solucionado - Por traslado","SECRETARIA DISTRITAL DE AMBIENTE","GESTIONADO"]
[null,5417362025,"AREA DE ATENCION A LA CIUDADANIA","E-MAIL","DERECHO DE PETICION DE INTERES GENERAL","Solucionado por asignar - Trasladar","SECRETARIA DISTRITAL DE GOBIERNO","GESTIONADO"]
[null,5418312025,"AREA DE ATENCION A LA CIUDADANIA","WEB","DERECHO DE PETICION DE INTERES GENERAL","Solucionado - Por traslado","SECRETARIA DISTRITAL DE GOBIERNO","GESTIONADO"]
[null,5420212025,"AREA DE ATENCION A LA CIUDADANIA","WEB","DERECHO DE PETICION DE INTERES GENERAL","Solucionado por asignar - Trasladar","SECRETARIA DISTRITAL DE GOBIERNO","GESTIONADO"]
[null,5420302025,"AREA DE ATENCION A LA CIUDADANIA","WEB","DERECHO DE PETICION DE INTERES GENERAL","Solucionado - Por traslado","SECRETARIA DISTRITAL DE GOBIERNO","GESTIONADO"]
[null,5420732025,"AREA DE ATENCION A LA CIUDADANIA","WEB","DERECHO DE PETICION DE INTERES PARTICULAR","Solucionado - Por traslado","SECRETARIA DISTRITAL DE GOBIERNO","GESTIONADO"]
[null,5420962025,"AREA DE ATENCION A LA CIUDADANIA","WEB","DERECHO DE PETICION DE INTERES GENERAL","Solucionado - Por traslado","SECRETARIA DISTRITAL DE MOVILIDAD","GESTIONADO"]
[null,5421682025,"AREA DE ATENCION A LA CIUDADANIA","WEB","DERECHO DE PETICION DE INTERES GENERAL","Solucionado - Por traslado","SECRETARIA DISTRITAL DE MOVILIDAD","GESTIONADO"]
[null,5421892025,"AREA DE ATENCION A LA CIUDADANIA","WEB","DERECHO DE PETICION DE INTERES GENERAL","Solucionado - Por traslado","INSTITUTO DE DESARROLLO URBANO - IDU","GESTIONADO"]
[null,5423622025,"AREA DE ATENCION A LA CIUDADANIA","WEB","DERECHO DE PETICION DE INTERES PARTICULAR","Solucionado - Por traslado","SECRETARIA DISTRITAL DE GOBIERNO","GESTIONADO"]
[null,5423842025,"AREA DE ATENCION A LA CIUDADANIA","WEB","DERECHO DE PETICION DE INTERES GENERAL","Solucionado - Por traslado","SECRETARIA DISTRITAL DE GOBIERNO","GESTIONADO"]
[null,5424902025,"AREA DE ATENCION A LA CIUDADANIA","WEB","DERECHO DE PETICION DE INTERES GENERAL","Solucionado - Por traslado","SECRETARIA DISTRITAL DE GOBIERNO","GESTIONADO"]
[null,5434852025,"AREA DE ATENCION A LA CIUDADANIA","WEB","DERECHO DE PETICION DE INTERES GENERAL","Solucionado - Por traslado","SECRETARIA DISTRITAL DE GOBIERNO","GESTIONADO"]
[null,5436382025,"AREA DE ATENCION A LA CIUDADANIA","E-MAIL","DERECHO DE PETICION DE INTERES GENERAL","Solucionado - Por traslado","SECRETARIA DISTRITAL DE GOBIERNO","GESTIONADO"]
[null,5436782025,"AREA DE ATENCION A LA CIUDADANIA","WEB","DERECHO DE PETICION DE INTERES GENERAL","Solucionado - Por traslado","SECRETARIA DISTRITAL DE GOBIERNO","GESTIONADO"]
[null,5437812025,"AREA DE ATENCION A LA CIUDADANIA","WEB","DERECHO DE PETICION DE INTERES GENERAL","Solucionado - Por traslado","SECRETARIA DISTRITAL DE GOBIERNO","GESTIONADO"]
[null,5438922025,"AREA DE ATENCION A LA CIUDADANIA","E-MAIL","DERECHO DE PETICION DE INTERES GENERAL","Solucionado por asignar - Trasladar","SECRETARIA DISTRITAL DE GOBIERNO","GESTIONADO"]
[null,5441202025,"AREA DE ATENCION A LA CIUDADANIA","WEB","DERECHO DE PETICION DE INTERES GENERAL","Solucionado - Por traslado","SECRETARIA DISTRITAL DE GOBIERNO","GESTIONADO"]
[null,5442192025,"AREA DE ATENCION A LA CIUDADANIA","WEB","SUGERENCIA","Solucionado - Por traslado","SECRETARIA DISTRITAL DE GOBIERNO","GESTIONADO"]
[null,5444852025,"AREA DE ATENCION A LA CIUDADANIA","E-MAIL","DERECHO DE PETICION DE INTERES GENERAL","Solucionado por asignar - Trasladar","SECRETARIA DISTRITAL DE GOBIERNO","GESTIONADO"]
[null,5446092025,"AREA DE ATENCION A LA CIUDADANIA","E-MAIL","DERECHO DE PETICION DE INTERES GENERAL","Solucionado - Por traslado","SECRETARIA DISTRITAL DE GOBIERNO","GESTIONADO"]
[null,5448072025,"AREA DE ATENCION A LA CIUDADANIA","E-MAIL","DERECHO DE PETICION DE INTERES GENERAL","Solucionado por asignar - Trasladar","SECRETARIA DISTRITAL DE GOBIERNO","GESTIONADO"]
[null,5448352025,"AREA DE ATENCION A LA CIUDADANIA","E-MAIL","DERECHO DE PETICION DE INTERES PARTICULAR","Solucionado - Por traslado","SECRETARIA DISTRITAL DE MOVILIDAD","GESTIONADO"]
[null,5448512025,"AREA DE ATENCION A LA CIUDADANIA","WEB","DERECHO DE PETICION DE INTERES GENERAL","Solucionado - Por traslado","SECRETARIA DISTRITAL DE GOBIERNO","GESTIONADO"]
[null,5450732025,"AREA DE ATENCION A LA CIUDADANIA","WEB","QUEJA","Solucionado - Por traslado","SECRETARIA DISTRITAL DE GOBIERNO","GESTIONADO"]
[null,5451432025,"AREA DE ATENCION A LA CIUDADANIA","WEB","DERECHO DE PETICION DE INTERES GENERAL","Solucionado - Por traslado","SECRETARIA DISTRITAL DE AMBIENTE","GESTIONADO"]
[null,5452022025,"AREA DE ATENCION A LA CIUDADANIA","WEB","DERECHO DE PETICION DE INTERES GENERAL","Solucionado - Por traslado","SECRETARIA DISTRITAL DE GOBIERNO","GESTIONADO"]
[null,5452302025,"AREA DE ATENCION A LA CIUDADANIA","WEB","DERECHO DE PETICION DE INTERES GENERAL","Solucionado - Por traslado","SECRETARIA DISTRITAL DE AMBIENTE","GESTIONADO"]
[null,5453082025,"AREA DE ATENCION A LA CIUDADANIA","WEB","DERECHO DE PETICION DE INTERES GENERAL","Solucionado - Por traslado","SECRETARIA DISTRITAL DE MOVILIDAD","GESTIONADO"]
[null,5464052025,"AREA DE ATENCION A LA CIUDADANIA","WEB","DERECHO DE PETICION DE INTERES GENERAL","Solucionado - Por traslado","SECRETARIA DISTRITAL DE AMBIENTE","GESTIONADO"]
[null,5464072025,"AREA DE ATENCION A LA CIUDADANIA","WEB","DERECHO DE PETICION DE INTERES PARTICULAR","Solucionado - Por traslado","SECRETARIA DISTRITAL DE AMBIENTE","GESTIONADO"]
[null,5464742025,"AREA DE ATENCION A LA CIUDADANIA","WEB","DERECHO DE PETICION DE INTERES PARTICULAR","Solucionado - Por traslado","SECRETARIA DISTRITAL DE GOBIERNO","GESTIONADO"]
[null,5465772025,"AREA DE ATENCION A LA CIUDADANIA","WEB","DERECHO DE PETICION DE INTERES PARTICULAR","Solucionado - Por traslado","EMPRESA METRO DE BOGOTA S.A.","GESTIONADO"]
[null,5466602025,"AREA DE ATENCION A LA CIUDADANIA","E-MAIL","DERECHO DE PETICION DE INTERES GENERAL","Solucionado - Por traslado","INSTITUTO PARA LA ECONOMIA SOCIAL - IPES","GESTIONADO"]
[null,5467632025,"AREA DE ATENCION A LA CIUDADANIA","WEB","DERECHO DE PETICION DE INTERES GENERAL","Solucionado - Por traslado","SECRETARIA DISTRITAL DE GOBIERNO","GESTIONADO"]
[null,5467712025,"AREA DE ATENCION A LA CIUDADANIA","WEB","DERECHO DE PETICION DE INTERES GENERAL","Solucionado - Por traslado","SECRETARIA DISTRITAL DE GOBIERNO","GESTIONADO"]
[null,5468492025,"AREA DE ATENCION A LA CIUDADANIA","WEB","DERECHO DE PETICION DE INTERES GENERAL","Solucionado - Por traslado","SECRETARIA DISTRITAL DE GOBIERNO","GESTIONADO"]
[null,5469562025,"AREA DE ATENCION A LA CIUDADANIA","WEB","DERECHO DE PETICION DE INTERES GENERAL","Solucionado - Por traslado","SECRETARIA DISTRITAL DE GOBIERNO","GESTIONADO"]
[null,5470062025,"AREA DE ATENCION A LA CIUDADANIA","E-MAIL","DERECHO DE PETICION DE INTERES GENERAL","Solucionado - Por traslado","SECRETARIA DISTRITAL DE GOBIERNO","GESTIONADO"]
[null,5471222025,"AREA DE ATENCION A LA CIUDADANIA","WEB","DERECHO DE PETICION DE INTERES GENERAL","Solucionado - Por traslado","SECRETARIA DISTRITAL DE GOBIERNO","GESTIONADO"]
[null,5472892025,"AREA DE ATENCION A LA CIUDADANIA","E-MAIL","DERECHO DE PETICION DE INTERES GENERAL","Solucionado - Por traslado","SECRETARIA DISTRITAL DE GOBIERNO","GESTIONADO"]
[null,5473162025,"AREA DE ATENCION A LA CIUDADANIA","WEB","DERECHO DE PETICION DE INTERES GENERAL","Solucionado - Por traslado","SECRETARIA DISTRITAL DE GOBIERNO","GESTIONADO"]
[null,5473482025,"AREA DE ATENCION A LA CIUDADANIA","WEB","DERECHO DE PETICION DE INTERES GENERAL","Solucionado - Por traslado","SECRETARIA DISTRITAL DE GOBIERNO","GESTIONADO"]
[null,5474292025,"AREA DE ATENCION A LA CIUDADANIA","E-MAIL","DERECHO DE PETICION DE INTERES GENERAL","Solucionado por asignar - Trasladar","SECRETARIA DISTRITAL DE GOBIERNO","GESTIONADO"]
[null,5474602025,"AREA DE ATENCION A LA CIUDADANIA","E-MAIL","DERECHO DE PETICION DE INTERES GENERAL","Solucionado - Por traslado","SECRETARIA DISTRITAL DE GOBIERNO","GESTIONADO"]
[null,5475772025,"AREA DE ATENCION A LA CIUDADANIA","E-MAIL","DERECHO DE PETICION DE INTERES GENERAL","Solucionado por asignar - Trasladar","SECRETARIA DISTRITAL DE GOBIERNO","GESTIONADO"]
[null,5475962025,"AREA DE ATENCION A LA CIUDADANIA","E-MAIL","DERECHO DE PETICION DE INTERES GENERAL","Solucionado - Por traslado","UNIDAD ADMINISTRATIVA ESPECIAL DE SERVICIOS PUBLICOS -UAESP","GESTIONADO"]
[null,5476212025,"AREA DE ATENCION A LA CIUDADANIA","WEB","DERECHO DE PETICION DE INTERES GENERAL","Solucionado - Por traslado","SECRETARIA DISTRITAL DE MOVILIDAD","GESTIONADO"]
[null,5476922025,"AREA DE ATENCION A LA CIUDADANIA","WEB","DERECHO DE PETICION DE INTERES GENERAL","Solucionado - Por traslado","SECRETARIA DISTRITAL DE GOBIERNO","GESTIONADO"]
[null,5477282025,"AREA DE ATENCION A LA CIUDADANIA","WEB","DERECHO DE PETICION DE INTERES GENERAL","Solucionado - Por traslado","SECRETARIA DISTRITAL DE AMBIENTE","GESTIONADO"]
[null,5477312025,"AREA DE ATENCION A LA CIUDADANIA","WEB","DERECHO DE PETICION DE INTERES PARTICULAR","Solucionado - Por traslado","SECRETARIA DISTRITAL DE AMBIENTE","GESTIONADO"]
[null,5478082025,"AREA DE ATENCION A LA CIUDADANIA","E-MAIL","DERECHO DE PETICION DE INTERES GENERAL","Solucionado - Por traslado","SECRETARIA DISTRITAL DE GOBIERNO","GESTIONADO"]
[null,5478932025,"AREA DE ATENCION A LA CIUDADANIA","WEB","DERECHO DE PETICION DE INTERES GENERAL","Solucionado - Por traslado","SECRETARIA DISTRITAL DE GOBIERNO","GESTIONADO"]
[null,5479422025,"AREA DE ATENCION A LA CIUDADANIA","WEB","DERECHO DE PETICION DE INTERES GENERAL","Solucionado - Por traslado","SECRETARIA DISTRITAL DE GOBIERNO","GESTIONADO"]
[null,5480832025,"AREA DE ATENCION A LA CIUDADANIA","WEB","DERECHO DE PETICION DE INTERES PARTICULAR","Solucionado - Por traslado","SECRETARIA DISTRITAL DE GOBIERNO","GESTIONADO"]
[null,5481472025,"AREA DE ATENCION A LA CIUDADANIA","WEB","DERECHO DE PETICION DE INTERES GENERAL","Solucionado - Por traslado","SECRETARIA DISTRITAL DE GOBIERNO","GESTIONADO"]
[null,5481502025,"AREA DE ATENCION A LA CIUDADANIA","WEB","DERECHO DE PETICION DE INTERES GENERAL","Solucionado - Por traslado","SECRETARIA DISTRITAL DE GOBIERNO","GESTIONADO"]
[null,5481632025,"AREA DE ATENCION A LA CIUDADANIA","E-MAIL","DERECHO DE PETICION DE INTERES PARTICULAR","Solucionado - Por traslado","INSTITUTO PARA LA ECONOMIA SOCIAL - IPES","GESTIONADO"]
[null,5482202025,"AREA DE ATENCION A LA CIUDADANIA","WEB","DERECHO DE PETICION DE INTERES GENERAL","Solucionado - Por traslado","SECRETARIA DISTRITAL DE GOBIERNO","GESTIONADO"]
[null,5492382025,"AREA DE ATENCION A LA CIUDADANIA","WEB","DERECHO DE PETICION DE INTERES PARTICULAR","Solucionado - Por traslado","SECRETARIA DISTRITAL DE MOVILIDAD","GESTIONADO"]
[null,5492472025,"AREA DE ATENCION A LA CIUDADANIA","WEB","DERECHO DE PETICION DE INTERES PARTICULAR","Solucionado - Por traslado","SECRETARIA DISTRITAL DE GOBIERNO","GESTIONADO"]
[null,5492892025,"AREA DE ATENCION A LA CIUDADANIA","WEB","DERECHO DE PETICION DE INTERES GENERAL","Solucionado - Por traslado","SECRETARIA DISTRITAL DE GOBIERNO","GESTIONADO"]
[null,5493242025,"AREA DE ATENCION A LA CIUDADANIA","WEB","DERECHO DE PETICION DE INTERES PARTICULAR","Solucionado - Por traslado","SECRETARIA DISTRITAL DE GOBIERNO","GESTIONADO"]
[null,5493362025,"AREA DE ATENCION A LA CIUDADANIA","WEB","DERECHO DE PETICION DE INTERES GENERAL","Solucionado - Por traslado","SECRETARIA DISTRITAL DE GOBIERNO","GESTIONADO"]
[null,5494812025,"AREA DE ATENCION A LA CIUDADANIA","WEB","DERECHO DE PETICION DE INTERES GENERAL","Solucionado - Por traslado","SECRETARIA DISTRITAL DE GOBIERNO","GESTIONADO"]
[null,5494842025,"AREA DE ATENCION A LA CIUDADANIA","WEB","DERECHO DE PETICION DE INTERES PARTICULAR","Solucionado - Por traslado","SECRETARIA DISTRITAL DE MOVILIDAD","GESTIONADO"]
[null,5495292025,"AREA DE ATENCION A LA CIUDADANIA","WEB","DERECHO DE PETICION DE INTERES PARTICULAR","Solucionado - Por traslado","SECRETARIA DISTRITAL DE GOBIERNO","GESTIONADO"]
[null,5496712025,"AREA DE ATENCION A LA CIUDADANIA","WEB","DERECHO DE PETICION DE INTERES GENERAL","Solucionado - Por traslado","SECRETARIA DISTRITAL DE GOBIERNO","GESTIONADO"]
[null,5497352025,"AREA DE ATENCION A LA CIUDADANIA","WEB","DERECHO DE PETICION DE INTERES GENERAL","Solucionado - Por traslado","SECRETARIA DISTRITAL DE GOBIERNO","GESTIONADO"]
[null,5497412025,"AREA DE ATENCION A LA CIUDADANIA","WEB","DERECHO DE PETICION DE INTERES PARTICULAR","Solucionado - Por traslado","ENEL COLOMBIA S.A. ESP","GESTIONADO"]
[null,5497602025,"AREA DE ATENCION A LA CIUDADANIA","WEB","DERECHO DE PETICION DE INTERES GENERAL","Solucionado - Por traslado","SECRETARIA DISTRITAL DE AMBIENTE","GESTIONADO"]
[null,5497732025,"AREA DE ATENCION A LA CIUDADANIA","WEB","DERECHO DE PETICION DE INTERES GENERAL","Solucionado - Por traslado","INSTITUTO DE DESARROLLO URBANO - IDU","GESTIONADO"]
[null,5497752025,"AREA DE ATENCION A LA CIUDADANIA","WEB","DERECHO DE PETICION DE INTERES GENERAL","Solucionado - Por traslado","SECRETARIA DISTRITAL DE GOBIERNO","GESTIONADO"]
[null,5497822025,"AREA DE ATENCION A LA CIUDADANIA","WEB","QUEJA","Solucionado - Por traslado","SECRETARIA DISTRITAL DE PLANEACION","GESTIONADO"]
[null,5497912025,"AREA DE ATENCION A LA CIUDADANIA","WEB","DERECHO DE PETICION DE INTERES GENERAL","Solucionado - Por traslado","SECRETARIA DISTRITAL DE GOBIERNO","GESTIONADO"]
[null,5497922025,"AREA DE ATENCION A LA CIUDADANIA","WEB","DERECHO DE PETICION DE INTERES GENERAL","Solucionado - Por traslado","SECRETARIA DISTRITAL DE GOBIERNO","GESTIONADO"]
[null,5498272025,"AREA DE ATENCION A LA CIUDADANIA","WEB","DERECHO DE PETICION DE INTERES GENERAL","Solucionado - Por traslado","SECRETARIA DISTRITAL DE GOBIERNO","GESTIONADO"]
[null,5498292025,"AREA DE ATENCION A LA CIUDADANIA","WEB","DERECHO DE PETICION DE INTERES GENERAL","Solucionado - Por traslado","SECRETARIA DISTRITAL DE GOBIERNO","GESTIONADO"]
[null,5498662025,"AREA DE ATENCION A LA CIUDADANIA","WEB","DERECHO DE PETICION DE INTERES PARTICULAR","Solucionado - Por traslado","SECRETARIA DISTRITAL DE GOBIERNO","GESTIONADO"]
[null,5498732025,"AREA DE ATENCION A LA CIUDADANIA","WEB","DERECHO DE PETICION DE INTERES GENERAL","Solucionado - Por traslado","SECRETARIA DISTRITAL DE GOBIERNO","GESTIONADO"]
[null,5498972025,"AREA DE ATENCION A LA CIUDADANIA","WEB","CONSULTA","Solucionado - Por traslado","INSTITUTO DE DESARROLLO URBANO - IDU","GESTIONADO"]
[null,5499022025,"AREA DE ATENCION A LA CIUDADANIA","WEB","DERECHO DE PETICION DE INTERES GENERAL","Solucionado - Por traslado","SECRETARIA DISTRITAL DE GOBIERNO","GESTIONADO"]
[null,5499242025,"AREA DE ATENCION A LA CIUDADANIA","WEB","DERECHO DE PETICION DE INTERES PARTICULAR","Solucionado - Por traslado","SECRETARIA DISTRITAL DE MOVILIDAD","GESTIONADO"]
[null,5499332025,"AREA DE ATENCION A LA CIUDADANIA","WEB","DERECHO DE PETICION DE INTERES GENERAL","Solucionado - Por traslado","EMPRESA DE RENOVACION Y DESARROLLO URBANO DE BOGOTA - RENOBO","GESTIONADO"]
[null,5500182025,"AREA DE ATENCION A LA CIUDADANIA","WEB","DERECHO DE PETICION DE INTERES GENERAL","Solucionado - Por traslado","SECRETARIA DISTRITAL DE GOBIERNO","GESTIONADO"]
[null,5501532025,"AREA DE ATENCION A LA CIUDADANIA","E-MAIL","DERECHO DE PETICION DE INTERES GENERAL","Solucionado - Por traslado","EMPRESA DE ACUEDUCTO Y ALCANTARILLADO DE BOGOTA EAAB - ESP","GESTIONADO"]
[null,5502592025,"AREA DE ATENCION A LA CIUDADANIA","WEB","DERECHO DE PETICION DE INTERES GENERAL","Solucionado - Por traslado","SECRETARIA DISTRITAL DE INTEGRACION SOCIAL","GESTIONADO"]
[null,5503992025,"AREA DE ATENCION A LA CIUDADANIA","WEB","DERECHO DE PETICION DE INTERES GENERAL","Solucionado - Por traslado","SECRETARIA DISTRITAL DE GOBIERNO","GESTIONADO"]
[null,5506362025,"AREA DE ATENCION A LA CIUDADANIA","WEB","DERECHO DE PETICION DE INTERES GENERAL","Solucionado - Por traslado","SECRETARIA DISTRITAL DE GOBIERNO","GESTIONADO"]
[null,5506682025,"AREA DE ATENCION A LA CIUDADANIA","WEB","DERECHO DE PETICION DE INTERES GENERAL","Solucionado - Por traslado","SECRETARIA DISTRITAL DE GOBIERNO","GESTIONADO"]
[null,5507342025,"AREA DE ATENCION A LA CIUDADANIA","E-MAIL","DERECHO DE PETICION DE INTERES GENERAL","Solucionado - Por traslado","SECRETARIA DISTRITAL DE GOBIERNO","GESTIONADO"]
[null,5509052025,"AREA DE ATENCION A LA CIUDADANIA","E-MAIL","DERECHO DE PETICION DE INTERES GENERAL","Solucionado - Por traslado","SECRETARIA DISTRITAL DE GOBIERNO","GESTIONADO"]
[null,5509762025,"AREA DE ATENCION A LA CIUDADANIA","E-MAIL","DERECHO DE PETICION DE INTERES GENERAL","Solucionado - Por traslado","SECRETARIA DISTRITAL DE GOBIERNO","GESTIONADO"]
[null,5511192025,"AREA DE ATENCION A LA CIUDADANIA","WEB","DERECHO DE PETICION DE INTERES PARTICULAR","Solucionado - Por traslado","INSTITUTO PARA LA ECONOMIA SOCIAL - IPES","GESTIONADO"]
[null,5512132025,"AREA DE ATENCION A LA CIUDADANIA","E-MAIL","DERECHO DE PETICION DE INTERES GENERAL","Solucionado - Por traslado","SECRETARIA DISTRITAL DE GOBIERNO","GESTIONADO"]
[null,5513152025,"AREA DE ATENCION A LA CIUDADANIA","WEB","DERECHO DE PETICION DE INTERES GENERAL","Solucionado - Por traslado","SECRETARIA DISTRITAL DE GOBIERNO","GESTIONADO"]
[null,5515352025,"AREA DE ATENCION A LA CIUDADANIA","WEB","DERECHO DE PETICION DE INTERES GENERAL","Solucionado - Por traslado","SECRETARIA DISTRITAL DE GOBIERNO","GESTIONADO"]
[null,5516782025,"AREA DE ATENCION A LA CIUDADANIA","E-MAIL","DERECHO DE PETICION DE INTERES GENERAL","Solucionado por asignar - Trasladar","SECRETARIA DISTRITAL DE GOBIERNO","PENDIENTE"]
[null,5517582025,"AREA DE ATENCION A LA CIUDADANIA","WEB","DERECHO DE PETICION DE INTERES PARTICULAR","Solucionado - Por traslado","SECRETARIA DISTRITAL DE GOBIERNO","GESTIONADO"]
[null,5521952025,"AREA DE ATENCION A LA CIUDADANIA","WEB","DERECHO DE PETICION DE INTERES GENERAL","Solucionado por asignar - Trasladar","SECRETARIA DISTRITAL DE GOBIERNO","PENDIENTE"]
[null,5523602025,"AREA DE ATENCION A LA CIUDADANIA","WEB","DERECHO DE PETICION DE INTERES GENERAL","Solucionado - Por traslado","SECRETARIA DISTRITAL DE MOVILIDAD","GESTIONADO"]
[null,5525022025,"AREA DE ATENCION A LA CIUDADANIA","E-MAIL","DERECHO DE PETICION DE INTERES GENERAL","Solucionado - Por traslado","INSTITUTO PARA LA ECONOMIA SOCIAL - IPES","GESTIONADO"]
[null,5525032025,"AREA DE ATENCION A LA CIUDADANIA","WEB","DERECHO DE PETICION DE INTERES GENERAL","Solucionado - Por traslado","SECRETARIA DISTRITAL DE GOBIERNO","GESTIONADO"]
[null,5526332025,"AREA DE ATENCION A LA CIUDADANIA","WEB","DERECHO DE PETICION DE INTERES GENERAL","Solucionado - Por traslado","SECRETARIA DISTRITAL DE GOBIERNO","GESTIONADO"]
[null,5527292025,"AREA DE ATENCION A LA CIUDADANIA","WEB","DERECHO DE PETICION DE INTERES GENERAL","Solucionado - Por traslado","SECRETARIA DISTRITAL DE GOBIERNO","GESTIONADO"]
[null,5544292025,"AREA DE ATENCION A LA CIUDADANIA","E-MAIL","DERECHO DE PETICION DE INTERES GENERAL","Solucionado - Por traslado","SECRETARIA DISTRITAL DE GOBIERNO","GESTIONADO"]
[null,5544662025,"AREA DE ATENCION A LA CIUDADANIA","WEB","DERECHO DE PETICION DE INTERES GENERAL","Solucionado - Por traslado","SECRETARIA DISTRITAL DE MOVILIDAD","GESTIONADO"]
[null,5544872025,"AREA DE ATENCION A LA CIUDADANIA","E-MAIL","DERECHO DE PETICION DE INTERES GENERAL","Solucionado por asignar - Trasladar","SECRETARIA DISTRITAL DE GOBIERNO","PENDIENTE"]
[null,5546732025,"AREA DE ATENCION A LA CIUDADANIA","WEB","DERECHO DE PETICION DE INTERES GENERAL","Solucionado - Por traslado","SECRETARIA DISTRITAL DE INTEGRACION SOCIAL","GESTIONADO"]
[null,5546942025,"AREA DE ATENCION A LA CIUDADANIA","WEB","DERECHO DE PETICION DE INTERES GENERAL","Solucionado - Por traslado","SECRETARIA DISTRITAL DE GOBIERNO","GESTIONADO"]
[null,5548142025,"AREA DE ATENCION A LA CIUDADANIA","WEB","DERECHO DE PETICION DE INTERES GENERAL","Solucionado - Por traslado","SECRETARIA DISTRITAL DE GOBIERNO","GESTIONADO"]
[null,5548972025,"AREA DE ATENCION A LA CIUDADANIA","E-MAIL","DERECHO DE PETICION DE INTERES GENERAL","Solucionado por asignar - Trasladar","INSTITUTO DE DESARROLLO URBANO - IDU","GESTIONADO"]
[null,5549592025,"AREA DE ATENCION A LA CIUDADANIA","E-MAIL","DERECHO DE PETICION DE INTERES GENERAL","Solucionado por asignar - Trasladar","SECRETARIA DISTRITAL DE GOBIERNO","PENDIENTE"]
[null,5550132025,"AREA DE ATENCION A LA CIUDADANIA","E-MAIL","DERECHO DE PETICION DE INTERES GENERAL","Solucionado por asignar - Trasladar","SECRETARIA DISTRITAL DE GOBIERNO","PENDIENTE"]
[null,5550842025,"AREA DE ATENCION A LA CIUDADANIA","WEB","DERECHO DE PETICION DE INTERES GENERAL","Solucionado - Por traslado","SECRETARIA DISTRITAL DE GOBIERNO","GESTIONADO"]
[null,5551432025,"AREA DE ATENCION A LA CIUDADANIA","WEB","DERECHO DE PETICION DE INTERES PARTICULAR","Solucionado - Por traslado","SECRETARIA DISTRITAL DE GOBIERNO","GESTIONADO"]
[null,5555242025,"AREA DE ATENCION A LA CIUDADANIA","E-MAIL","DERECHO DE PETICION DE INTERES GENERAL","Solucionado - Por traslado","SECRETARIA DISTRITAL DE GOBIERNO","GESTIONADO"]
[null,5555622025,"AREA DE ATENCION A LA CIUDADANIA","E-MAIL","DERECHO DE PETICION DE INTERES GENERAL","Solucionado - Por traslado","SECRETARIA DISTRITAL DE GOBIERNO","GESTIONADO"]
[null,5556122025,"AREA DE ATENCION A LA CIUDADANIA","E-MAIL","DERECHO DE PETICION DE INTERES GENERAL","Solucionado - Por traslado","SECRETARIA DISTRITAL DE GOBIERNO","GESTIONADO"]
[null,5556142025,"AREA DE ATENCION A LA CIUDADANIA","E-MAIL","DERECHO DE PETICION DE INTERES GENERAL","Solucionado por asignar - Trasladar","SECRETARIA DISTRITAL DE GOBIERNO","PENDIENTE"]
[null,5556312025,"AREA DE ATENCION A LA CIUDADANIA","WEB","DERECHO DE PETICION DE INTERES GENERAL","Solucionado - Por traslado","INSTITUTO DISTRITAL DE RECREACION Y DEPORTE - IDRD","GESTIONADO"]
[null,5561732025,"AREA DE ATENCION A LA CIUDADANIA","WEB","DERECHO DE PETICION DE INTERES GENERAL","Solucionado - Por traslado","SECRETARIA DISTRITAL DE GOBIERNO","GESTIONADO"]
[null,5562092025,"AREA DE ATENCION A LA CIUDADANIA","WEB","DERECHO DE PETICION DE INTERES PARTICULAR","Solucionado - Por traslado","SECRETARIA DISTRITAL DE GOBIERNO","GESTIONADO"]
[null,5562532025,"AREA DE ATENCION A LA CIUDADANIA","WEB","DERECHO DE PETICION DE INTERES PARTICULAR","Solucionado por asignar - Trasladar","SECRETARIA DISTRITAL DE GOBIERNO","PENDIENTE"]
[null,5563262025,"AREA DE ATENCION A LA CIUDADANIA","WEB","DERECHO DE PETICION DE INTERES GENERAL","Solucionado - Por traslado","SECRETARIA DISTRITAL DE GOBIERNO","GESTIONADO"]
[null,5563412025,"AREA DE ATENCION A LA CIUDADANIA","WEB","DERECHO DE PETICION DE INTERES GENERAL","Solucionado - Por traslado","SECRETARIA DISTRITAL DE GOBIERNO","GESTIONADO"]
[null,5564992025,"AREA DE ATENCION A LA CIUDADANIA","WEB","DERECHO DE PETICION DE INTERES PARTICULAR","Solucionado - Por traslado","SECRETARIA DISTRITAL DE GOBIERNO","GESTIONADO"]
[null,5565342025,"AREA DE ATENCION A LA CIUDADANIA","WEB","DERECHO DE PETICION DE INTERES GENERAL","Solucionado - Por traslado","SECRETARIA DISTRITAL DE GOBIERNO","GESTIONADO"]
[null,5565592025,"AREA DE ATENCION A LA CIUDADANIA","WEB","DERECHO DE PETICION DE INTERES GENERAL","Solucionado - Por traslado","SECRETARIA DISTRITAL DE GOBIERNO","GESTIONADO"]
[null,5565972025,"AREA DE ATENCION A LA CIUDADANIA","WEB","DERECHO DE PETICION DE INTERES GENERAL","Solucionado - Por traslado","SECRETARIA DISTRITAL DE GOBIERNO","GESTIONADO"]
[null,5566072025,"AREA DE ATENCION A LA CIUDADANIA","WEB","DERECHO DE PETICION DE INTERES PARTICULAR","Solucionado - Por traslado","SECRETARIA DISTRITAL DE GOBIERNO","GESTIONADO"]
[null,5566402025,"AREA DE ATENCION A LA CIUDADANIA","WEB","DERECHO DE PETICION DE INTERES GENERAL","Solucionado - Por traslado","SECRETARIA DISTRITAL DE GOBIERNO","GESTIONADO"]
[null,5566432025,"AREA DE ATENCION A LA CIUDADANIA","WEB","DERECHO DE PETICION DE INTERES GENERAL","Solucionado - Por traslado","SECRETARIA DISTRITAL DE GOBIERNO","GESTIONADO"]
[null,5568032025,"AREA DE ATENCION A LA CIUDADANIA","WEB","DERECHO DE PETICION DE INTERES GENERAL","Solucionado - Por traslado","SECRETARIA DISTRITAL DE GOBIERNO","GESTIONADO"]
[null,5571072025,"AREA DE ATENCION A LA CIUDADANIA","WEB","DERECHO DE PETICION DE INTERES GENERAL","Solucionado - Por traslado","SECRETARIA DISTRITAL DE GOBIERNO","GESTIONADO"]
[null,5583122025,"AREA DE ATENCION A LA CIUDADANIA","WEB","DERECHO DE PETICION DE INTERES GENERAL","Solucionado - Por traslado","SECRETARIA DISTRITAL DE GOBIERNO","GESTIONADO"]
[null,5583192025,"AREA DE ATENCION A LA CIUDADANIA","WEB","DERECHO DE PETICION DE INTERES GENERAL","Solucionado - Por traslado","SECRETARIA DISTRITAL DE GOBIERNO","GESTIONADO"]
[null,5584462025,"AREA DE ATENCION A LA CIUDADANIA","E-MAIL","DERECHO DE PETICION DE INTERES GENERAL","Solucionado por asignar - Trasladar","SECRETARIA DISTRITAL DE GOBIERNO","PENDIENTE"]
[null,5586962025,"AREA DE ATENCION A LA CIUDADANIA","WEB","DERECHO DE PETICION DE INTERES GENERAL","Solucionado - Por traslado","SECRETARIA DISTRITAL DE GOBIERNO","GESTIONADO"]
[null,5587152025,"AREA DE ATENCION A LA CIUDADANIA","E-MAIL","DERECHO DE PETICION DE INTERES GENERAL","Solucionado - Por traslado","SECRETARIA DISTRITAL DE GOBIERNO","GESTIONADO"]
[null,5587822025,"AREA DE ATENCION A LA CIUDADANIA","E-MAIL","DERECHO DE PETICION DE INTERES GENERAL","Solucionado - Por traslado","SECRETARIA DISTRITAL DE GOBIERNO","GESTIONADO"]
[null,5590812025,"AREA DE ATENCION A LA CIUDADANIA","E-MAIL","DERECHO DE PETICION DE INTERES GENERAL","Solucionado - Por traslado","SECRETARIA DISTRITAL DE GOBIERNO","GESTIONADO"]
[null,5591052025,"AREA DE ATENCION A LA CIUDADANIA","WEB","DERECHO DE PETICION DE INTERES GENERAL","Solucionado - Por traslado","SECRETARIA DISTRITAL DE GOBIERNO","GESTIONADO"]
[null,5592592025,"AREA DE ATENCION A LA CIUDADANIA","WEB","DERECHO DE PETICION DE INTERES PARTICULAR","Solucionado - Por traslado","SECRETARIA DISTRITAL DE GOBIERNO","GESTIONADO"]
[null,5593402025,"AREA DE ATENCION A LA CIUDADANIA","WEB","DERECHO DE PETICION DE INTERES GENERAL","Solucionado - Por traslado","SECRETARIA DISTRITAL DE MOVILIDAD","GESTIONADO"]
[null,5593432025,"AREA DE ATENCION A LA CIUDADANIA","E-MAIL","DERECHO DE PETICION DE INTERES GENERAL","Solucionado por asignar - Trasladar","SECRETARIA DISTRITAL DE GOBIERNO","PENDIENTE"]
[null,5593532025,"AREA DE ATENCION A LA CIUDADANIA","WEB","DERECHO DE PETICION DE INTERES GENERAL","Solucionado - Por traslado","SECRETARIA DISTRITAL DE GOBIERNO","GESTIONADO"]
[null,5593562025,"AREA DE ATENCION A LA CIUDADANIA","E-MAIL","DERECHO DE PETICION DE INTERES GENERAL","Solucionado - Por traslado","SECRETARIA DISTRITAL DE GOBIERNO","GESTIONADO"]
[null,5594062025,"AREA DE ATENCION A LA CIUDADANIA","E-MAIL","DERECHO DE PETICION DE INTERES GENERAL","Solucionado - Por traslado","SECRETARIA DISTRITAL DE GOBIERNO","GESTIONADO"]
[null,5594322025,"AREA DE ATENCION A LA CIUDADANIA","WEB","DERECHO DE PETICION DE INTERES GENERAL","Solucionado - Por traslado","SECRETARIA DISTRITAL DE GOBIERNO","GESTIONADO"]
[null,5596612025,"AREA DE ATENCION A LA CIUDADANIA","WEB","DERECHO DE PETICION DE INTERES GENERAL","Solucionado - Por traslado","SECRETARIA DISTRITAL DE GOBIERNO","GESTIONADO"]
[null,5597242025,"AREA DE ATENCION A LA CIUDADANIA","WEB","DERECHO DE PETICION DE INTERES PARTICULAR","Solucionado - Por traslado","SECRETARIA DISTRITAL DE GOBIERNO","GESTIONADO"]
[null,5600382025,"AREA DE ATENCION A LA CIUDADANIA","WEB","DERECHO DE PETICION DE INTERES GENERAL","Solucionado - Por traslado","SECRETARIA DISTRITAL DE GOBIERNO","GESTIONADO"]
[null,5602062025,"AREA DE ATENCION A LA CIUDADANIA","WEB","DERECHO DE PETICION DE INTERES GENERAL","Solucionado - Por traslado","SECRETARIA DISTRITAL DE GOBIERNO","GESTIONADO"]
[null,5603252025,"AREA DE ATENCION A LA CIUDADANIA","WEB","DERECHO DE PETICION DE INTERES PARTICULAR","Solucionado - Por traslado","JARDIN BOTANICO DE BOGOTA JOSE CELESTINO MUTIS - JBB","GESTIONADO"]
[null,5606812025,"AREA DE ATENCION A LA CIUDADANIA","WEB","DERECHO DE PETICION DE INTERES PARTICULAR","Solucionado - Por traslado","SECRETARIA DISTRITAL DE MOVILIDAD","GESTIONADO"]
[null,5606872025,"AREA DE ATENCION A LA CIUDADANIA","WEB","DERECHO DE PETICION DE INTERES PARTICULAR","Solucionado - Por traslado","SECRETARIA DISTRITAL DE GOBIERNO","GESTIONADO"]
[null,5608022025,"AREA DE ATENCION A LA CIUDADANIA","WEB","DERECHO DE PETICION DE INTERES GENERAL","Solucionado - Por traslado","SECRETARIA DISTRITAL DE GOBIERNO","GESTIONADO"]
[null,5618722025,"AREA DE ATENCION A LA CIUDADANIA","WEB","DERECHO DE PETICION DE INTERES GENERAL","Solucionado - Por traslado","SECRETARIA DISTRITAL DE GOBIERNO","GESTIONADO"]
[null,5619162025,"AREA DE ATENCION A LA CIUDADANIA","WEB","DERECHO DE PETICION DE INTERES GENERAL","Solucionado - Por traslado","SECRETARIA DISTRITAL DE GOBIERNO","GESTIONADO"]
[null,5620762025,"AREA DE ATENCION A LA CIUDADANIA","WEB","DERECHO DE PETICION DE INTERES GENERAL","Solucionado por asignar - Trasladar","SECRETARIA DISTRITAL DE GOBIERNO","PENDIENTE"]
[null,5621052025,"AREA DE ATENCION A LA CIUDADANIA","WEB","DERECHO DE PETICION DE INTERES GENERAL","Solucionado - Por traslado","EMPRESA DE ACUEDUCTO Y ALCANTARILLADO DE BOGOTA EAAB - ESP","GESTIONADO"]
[null,5621122025,"AREA DE ATENCION A LA CIUDADANIA","WEB","DERECHO DE PETICION DE INTERES GENERAL","Solucionado - Por traslado","EMPRESA DE ACUEDUCTO Y ALCANTARILLADO DE BOGOTA EAAB - ESP","GESTIONADO"]
[null,5626772025,"AREA DE ATENCION A LA CIUDADANIA","WEB","DERECHO DE PETICION DE INTERES GENERAL","Solucionado - Por traslado","SECRETARIA DISTRITAL DE GOBIERNO","GESTIONADO"]
[null,5627512025,"AREA DE ATENCION A LA CIUDADANIA","WEB","DERECHO DE PETICION DE INTERES PARTICULAR","Solucionado - Por traslado","SECRETARIA DISTRITAL DE GOBIERNO","GESTIONADO"]
[null,5628152025,"AREA DE ATENCION A LA CIUDADANIA","WEB","CONSULTA","Solucionado - Por traslado","SECRETARIA DISTRITAL DE GOBIERNO","GESTIONADO"]
[null,5629832025,"AREA DE ATENCION A LA CIUDADANIA","E-MAIL","DERECHO DE PETICION DE INTERES GENERAL","Solucionado - Por traslado","SECRETARIA DISTRITAL DE GOBIERNO","GESTIONADO"]
[null,5629862025,"AREA DE ATENCION A LA CIUDADANIA","E-MAIL","DERECHO DE PETICION DE INTERES GENERAL","Solucionado - Por traslado","SECRETARIA DISTRITAL DE GOBIERNO","GESTIONADO"]
[null,5636392025,"AREA DE ATENCION A LA CIUDADANIA","WEB","DERECHO DE PETICION DE INTERES PARTICULAR","Solucionado - Por traslado","EMPRESA DE ACUEDUCTO Y ALCANTARILLADO DE BOGOTA EAAB - ESP","GESTIONADO"]
[null,5637272025,"AREA DE ATENCION A LA CIUDADANIA","WEB","DERECHO DE PETICION DE INTERES GENERAL","Solucionado por asignar - Trasladar","SECRETARIA DISTRITAL DE GOBIERNO","GESTIONADO"]
[null,5637482025,"AREA DE ATENCION A LA CIUDADANIA","WEB","DERECHO DE PETICION DE INTERES GENERAL","Solucionado - Por traslado","SECRETARIA DISTRITAL DE GOBIERNO","GESTIONADO"]
[null,5637802025,"AREA DE ATENCION A LA CIUDADANIA","WEB","DERECHO DE PETICION DE INTERES GENERAL","Solucionado - Por traslado","INSTITUTO DE DESARROLLO URBANO - IDU","GESTIONADO"]
[null,5637902025,"AREA DE ATENCION A LA CIUDADANIA","WEB","DERECHO DE PETICION DE INTERES PARTICULAR","Solucionado - Por traslado","ENEL COLOMBIA S.A. ESP","GESTIONADO"]
[null,5637962025,"AREA DE ATENCION A LA CIUDADANIA","WEB","DERECHO DE PETICION DE INTERES GENERAL","Solucionado - Por traslado","SECRETARIA DISTRITAL DE GOBIERNO","GESTIONADO"]
[null,5639692025,"AREA DE ATENCION A LA CIUDADANIA","WEB","DERECHO DE PETICION DE INTERES PARTICULAR","Solucionado - Por traslado","SECRETARIA DISTRITAL DE MOVILIDAD","GESTIONADO"]
[null,5639822025,"AREA DE ATENCION A LA CIUDADANIA","WEB","DERECHO DE PETICION DE INTERES GENERAL","Solucionado - Por traslado","SECRETARIA DISTRITAL DE GOBIERNO","GESTIONADO"]
[null,5648902025,"AREA DE ATENCION A LA CIUDADANIA","WEB","DERECHO DE PETICION DE INTERES GENERAL","Solucionado - Por traslado","INSTITUTO PARA LA ECONOMIA SOCIAL - IPES","GESTIONADO"]
[null,5649712025,"AREA DE ATENCION A LA CIUDADANIA","WEB","DERECHO DE PETICION DE INTERES GENERAL","Solucionado - Por traslado","SECRETARIA DISTRITAL DE GOBIERNO","GESTIONADO"]
[null,5650522025,"AREA DE ATENCION A LA CIUDADANIA","WEB","DERECHO DE PETICION DE INTERES PARTICULAR","Solucionado - Por traslado","SECRETARIA DISTRITAL DE MOVILIDAD","GESTIONADO"]
[null,5651772025,"AREA DE ATENCION A LA CIUDADANIA","WEB","DERECHO DE PETICION DE INTERES GENERAL","Solucionado - Por traslado","UNIDAD ADMINISTRATIVA ESPECIAL DE SERVICIOS PUBLICOS -UAESP","GESTIONADO"]
[null,5651862025,"AREA DE ATENCION A LA CIUDADANIA","WEB","DERECHO DE PETICION DE INTERES GENERAL","Solucionado - Por traslado","SECRETARIA DISTRITAL DE GOBIERNO","GESTIONADO"]
[null,5654812025,"AREA DE ATENCION A LA CIUDADANIA","TELEFONO","DERECHO DE PETICION DE INTERES PARTICULAR","Solucionado - Por traslado","SECRETARIA DISTRITAL DE GOBIERNO","GESTIONADO"]
[null,5654822025,"AREA DE ATENCION A LA CIUDADANIA","WEB","DERECHO DE PETICION DE INTERES GENERAL","Solucionado - Por traslado","INSTITUTO PARA LA ECONOMIA SOCIAL - IPES","GESTIONADO"]
[null,5657222025,"AREA DE ATENCION A LA CIUDADANIA","WEB","DERECHO DE PETICION DE INTERES GENERAL","Solucionado - Por traslado","SECRETARIA DISTRITAL DE MOVILIDAD","GESTIONADO"]
[null,5657992025,"AREA DE ATENCION A LA CIUDADANIA","WEB","DERECHO DE PETICION DE INTERES GENERAL","Solucionado - Por traslado","INSTITUTO DE DESARROLLO URBANO - IDU","GESTIONADO"]
[null,5660762025,"AREA DE ATENCION A LA CIUDADANIA","E-MAIL","DERECHO DE PETICION DE INTERES GENERAL","Solucionado - Por traslado","SECRETARIA DISTRITAL DE SEGURIDAD  CONVIVENCIA Y JUSTICIA","GESTIONADO"]
[null,5661742025,"AREA DE ATENCION A LA CIUDADANIA","ESCRITO","DERECHO DE PETICION DE INTERES GENERAL","Solucionado - Por traslado","SECRETARIA DISTRITAL DE MOVILIDAD","GESTIONADO"]
[null,5662512025,"AREA DE ATENCION A LA CIUDADANIA","E-MAIL","DERECHO DE PETICION DE INTERES GENERAL","Solucionado - Por traslado","SUBRED INTEGRADA DE SERVICIOS DE SALUD NORTE E.S.E.","GESTIONADO"]
[null,5662822025,"AREA DE ATENCION A LA CIUDADANIA","WEB","DERECHO DE PETICION DE INTERES GENERAL","Solucionado - Por traslado","SECRETARIA DISTRITAL DE MOVILIDAD","GESTIONADO"]
[null,5662882025,"AREA DE ATENCION A LA CIUDADANIA","WEB","DERECHO DE PETICION DE INTERES GENERAL","Solucionado - Por traslado","SECRETARIA DISTRITAL DE MOVILIDAD","GESTIONADO"]
[null,5663432025,"AREA DE ATENCION A LA CIUDADANIA","E-MAIL","DERECHO DE PETICION DE INTERES GENERAL","Solucionado - Por traslado","UNIDAD ADMINISTRATIVA ESPECIAL DE SERVICIOS PUBLICOS -UAESP","GESTIONADO"]
[null,5664122025,"AREA DE ATENCION A LA CIUDADANIA","WEB","DERECHO DE PETICION DE INTERES GENERAL","Solucionado - Por traslado","ENEL COLOMBIA S.A. ESP","GESTIONADO"]
[null,5664412025,"AREA DE ATENCION A LA CIUDADANIA","E-MAIL","DERECHO DE PETICION DE INTERES GENERAL","Solucionado - Por traslado","JARDIN BOTANICO DE BOGOTA JOSE CELESTINO MUTIS - JBB","GESTIONADO"]
[null,5665112025,"AREA DE ATENCION A LA CIUDADANIA","E-MAIL","DERECHO DE PETICION DE INTERES GENERAL","Solucionado - Por traslado","ENTIDAD NACIONAL","GESTIONADO"]
[null,5665602025,"AREA DE ATENCION A LA CIUDADANIA","PRESENCIAL","DERECHO DE PETICION DE INTERES GENERAL","Solucionado por asignar - Trasladar","SECRETARIA DISTRITAL DE GOBIERNO","PENDIENTE"]
[null,5668642025,"AREA DE ATENCION A LA CIUDADANIA","E-MAIL","DERECHO DE PETICION DE INTERES GENERAL","Solucionado por asignar - Trasladar","INSTITUTO DE DESARROLLO URBANO - IDU","PENDIENTE"]
[null,5669212025,"AREA DE ATENCION A LA CIUDADANIA","E-MAIL","DERECHO DE PETICION DE INTERES GENERAL","Solucionado - Por traslado","ENTIDAD NACIONAL","GESTIONADO"]
[null,5671722025,"AREA DE ATENCION A LA CIUDADANIA","WEB","RECLAMO","Solucionado - Por traslado","INSTITUTO PARA LA ECONOMIA SOCIAL - IPES","GESTIONADO"]
[null,5674992025,"AREA DE ATENCION A LA CIUDADANIA","WEB","DERECHO DE PETICION DE INTERES GENERAL","Solucionado - Por traslado","SECRETARIA DISTRITAL DE GOBIERNO","GESTIONADO"]
[null,5679102025,"AREA DE ATENCION A LA CIUDADANIA","WEB","DERECHO DE PETICION DE INTERES PARTICULAR","Solucionado - Por traslado","SECRETARIA DISTRITAL DE MOVILIDAD","GESTIONADO"]
[null,5679152025,"AREA DE ATENCION A LA CIUDADANIA","WEB","DERECHO DE PETICION DE INTERES GENERAL","Solucionado - Por traslado","SECRETARIA DISTRITAL DE MOVILIDAD","GESTIONADO"]
[null,5680472025,"AREA DE ATENCION A LA CIUDADANIA","WEB","DERECHO DE PETICION DE INTERES GENERAL","Solucionado - Por traslado","ENTIDAD NACIONAL","GESTIONADO"]
[null,5696162025,"AREA DE ATENCION A LA CIUDADANIA","E-MAIL","DERECHO DE PETICION DE INTERES GENERAL","Solucionado por asignar - Trasladar","SUBRED INTEGRADA DE SERVICIOS DE SALUD NORTE E.S.E.","PENDIENTE"]
[null,5696332025,"AREA DE ATENCION A LA CIUDADANIA","WEB","RECLAMO","Solucionado por asignar - Trasladar","SECRETARIA DISTRITAL DE GOBIERNO","GESTIONADO"]
[null,5697042025,"AREA DE ATENCION A LA CIUDADANIA","E-MAIL","DERECHO DE PETICION DE INTERES GENERAL","Solucionado - Por traslado","SECRETARIA DISTRITAL DE AMBIENTE","GESTIONADO"]
[null,5697132025,"AREA DE ATENCION A LA CIUDADANIA","E-MAIL","DERECHO DE PETICION DE INTERES GENERAL","Solucionado - Por traslado","SECRETARIA DISTRITAL DE MOVILIDAD","GESTIONADO"]
[null,5697262025,"AREA DE ATENCION A LA CIUDADANIA","E-MAIL","DERECHO DE PETICION DE INTERES GENERAL","Solucionado - Por traslado","SECRETARIA DISTRITAL DE AMBIENTE","GESTIONADO"]
[null,5697532025,"AREA DE ATENCION A LA CIUDADANIA","E-MAIL","DERECHO DE PETICION DE INTERES GENERAL","Solucionado - Por traslado","SECRETARIA DISTRITAL DE SEGURIDAD  CONVIVENCIA Y JUSTICIA","GESTIONADO"]
[null,5698772025,"AREA DE ATENCION A LA CIUDADANIA","WEB","DERECHO DE PETICION DE INTERES PARTICULAR","Solucionado - Por traslado","SECRETARIA DISTRITAL DE GOBIERNO","GESTIONADO"]
[null,5699612025,"AREA DE ATENCION A LA CIUDADANIA","WEB","DERECHO DE PETICION DE INTERES GENERAL","Solucionado - Por traslado","SECRETARIA DISTRITAL DE GOBIERNO","GESTIONADO"]
[null,5704412025,"AREA DE ATENCION A LA CIUDADANIA","WEB","DERECHO DE PETICION DE INTERES PARTICULAR","Solucionado - Por traslado","SECRETARIA DISTRITAL DE SEGURIDAD  CONVIVENCIA Y JUSTICIA","GESTIONADO"]
[null,5704862025,"AREA DE ATENCION A LA CIUDADANIA","E-MAIL","DERECHO DE PETICION DE INTERES GENERAL","Solucionado por asignar - Trasladar","SECRETARIA DISTRITAL DE MOVILIDAD","PENDIENTE"]
[null,5707252025,"AREA DE ATENCION A LA CIUDADANIA","WEB","CONSULTA","Solucionado por asignar - Trasladar","VEEDURIA DISTRITAL","PENDIENTE"]
[null,5707842025,"AREA DE ATENCION A LA CIUDADANIA","WEB","DERECHO DE PETICION DE INTERES GENERAL","Solucionado - Por traslado","SECRETARIA DISTRITAL DE GOBIERNO","GESTIONADO"]
[null,5709412025,"AREA DE ATENCION A LA CIUDADANIA","WEB","DERECHO DE PETICION DE INTERES GENERAL","Solucionado - Por traslado","SECRETARIA DISTRITAL DE GOBIERNO","GESTIONADO"]
[null,5711862025,"AREA DE ATENCION A LA CIUDADANIA","WEB","DERECHO DE PETICION DE INTERES PARTICULAR","Solucionado - Por traslado","SECRETARIA DISTRITAL DE GOBIERNO","GESTIONADO"]
[null,5711952025,"AREA DE ATENCION A LA CIUDADANIA","WEB","DERECHO DE PETICION DE INTERES GENERAL","Solucionado - Por traslado","SECRETARIA DISTRITAL DE GOBIERNO","GESTIONADO"]
[null,5713172025,"AREA DE ATENCION A LA CIUDADANIA","WEB","DERECHO DE PETICION DE INTERES GENERAL","Solucionado - Por traslado","SECRETARIA DISTRITAL DE GOBIERNO","GESTIONADO"]
[null,5714072025,"AREA DE ATENCION A LA CIUDADANIA","WEB","DERECHO DE PETICION DE INTERES GENERAL","Solucionado - Por traslado","INSTITUTO DE DESARROLLO URBANO - IDU","GESTIONADO"]
[null,5714182025,"AREA DE ATENCION A LA CIUDADANIA","WEB","DERECHO DE PETICION DE INTERES GENERAL","Solucionado - Por traslado","INSTITUTO PARA LA ECONOMIA SOCIAL - IPES","GESTIONADO"]
[null,5715182025,"AREA DE ATENCION A LA CIUDADANIA","WEB","DERECHO DE PETICION DE INTERES PARTICULAR","Solucionado - Por traslado","SECRETARIA DISTRITAL DE GOBIERNO","GESTIONADO"]
[null,5718772025,"AREA DE ATENCION A LA CIUDADANIA","WEB","DERECHO DE PETICION DE INTERES GENERAL","Solucionado - Por traslado","SECRETARIA DISTRITAL DE MOVILIDAD","GESTIONADO"]
[null,5726502025,"AREA DE ATENCION A LA CIUDADANIA","E-MAIL","DERECHO DE PETICION DE INTERES GENERAL","Solucionado por asignar - Trasladar","SECRETARIA DISTRITAL DE INTEGRACION SOCIAL","PENDIENTE"]
[null,5726682025,"AREA DE ATENCION A LA CIUDADANIA","E-MAIL","DERECHO DE PETICION DE INTERES GENERAL","Solucionado - Por traslado","SECRETARIA DISTRITAL DE MOVILIDAD","GESTIONADO"]
[null,5730952025,"AREA DE ATENCION A LA CIUDADANIA","WEB","DERECHO DE PETICION DE INTERES GENERAL","Solucionado - Por traslado","INSTITUTO DE DESARROLLO URBANO - IDU","GESTIONADO"]
[null,5732992025,"AREA DE ATENCION A LA CIUDADANIA","E-MAIL","DERECHO DE PETICION DE INTERES GENERAL","Solucionado - Por traslado","ENTIDAD NACIONAL","GESTIONADO"]
[null,5733462025,"AREA DE ATENCION A LA CIUDADANIA","WEB","DERECHO DE PETICION DE INTERES GENERAL","Solucionado - Por traslado","SECRETARIA DISTRITAL DE GOBIERNO","GESTIONADO"]
[null,5733562025,"AREA DE ATENCION A LA CIUDADANIA","WEB","SUGERENCIA","Solucionado - Por traslado","SECRETARIA DISTRITAL DE GOBIERNO","GESTIONADO"]
[null,5735512025,"AREA DE ATENCION A LA CIUDADANIA","WEB","DERECHO DE PETICION DE INTERES GENERAL","Solucionado - Por traslado","UNIDAD ADMINISTRATIVA ESPECIAL DE SERVICIOS PUBLICOS -UAESP","GESTIONADO"]
[null,5735542025,"AREA DE ATENCION A LA CIUDADANIA","WEB","DERECHO DE PETICION DE INTERES GENERAL","Solucionado - Por traslado","SECRETARIA DISTRITAL DE GOBIERNO","GESTIONADO"]
[null,5736832025,"AREA DE ATENCION A LA CIUDADANIA","E-MAIL","DERECHO DE PETICION DE INTERES GENERAL","Solucionado - Por traslado","SECRETARIA DISTRITAL DE MOVILIDAD","GESTIONADO"]
[null,5739252025,"AREA DE ATENCION A LA CIUDADANIA","WEB","DERECHO DE PETICION DE INTERES GENERAL","Solucionado - Por traslado","SECRETARIA DISTRITAL DE GOBIERNO","GESTIONADO"]
[null,5740422025,"AREA DE ATENCION A LA CIUDADANIA","E-MAIL","QUEJA","Solucionado - Por traslado","INSTITUTO PARA LA ECONOMIA SOCIAL - IPES","GESTIONADO"]
[null,5740682025,"AREA DE ATENCION A LA CIUDADANIA","E-MAIL","DERECHO DE PETICION DE INTERES PARTICULAR","Solucionado - Por traslado","SECRETARIA DISTRITAL DE GOBIERNO","GESTIONADO"]
[null,5741842025,"AREA DE ATENCION A LA CIUDADANIA","WEB","DERECHO DE PETICION DE INTERES GENERAL","Solucionado - Por traslado","EMPRESA DE TELECOMUNICACIONES DE BOGOTA S.A. - ETB - ESP","GESTIONADO"]
[null,5742472025,"AREA DE ATENCION A LA CIUDADANIA","WEB","DERECHO DE PETICION DE INTERES PARTICULAR","Solucionado - Por traslado","SECRETARIA DISTRITAL DE GOBIERNO","GESTIONADO"]
[null,5742992025,"AREA DE ATENCION A LA CIUDADANIA","WEB","DERECHO DE PETICION DE INTERES GENERAL","Solucionado - Por traslado","SECRETARIA DISTRITAL DE GOBIERNO","GESTIONADO"]
[null,5744292025,"AREA DE ATENCION A LA CIUDADANIA","WEB","DERECHO DE PETICION DE INTERES PARTICULAR","Solucionado - Por traslado","SECRETARIA DISTRITAL DE GOBIERNO","GESTIONADO"]
[null,5744592025,"AREA DE ATENCION A LA CIUDADANIA","WEB","DERECHO DE PETICION DE INTERES PARTICULAR","Solucionado - Por traslado","ENTIDAD NACIONAL","GESTIONADO"]
[null,5744902025,"AREA DE ATENCION A LA CIUDADANIA","WEB","DERECHO DE PETICION DE INTERES GENERAL","Solucionado - Por traslado","SECRETARIA DISTRITAL DE GOBIERNO","GESTIONADO"]
[null,5744952025,"AREA DE ATENCION A LA CIUDADANIA","WEB","DERECHO DE PETICION DE INTERES GENERAL","Solucionado - Por traslado","SECRETARIA DISTRITAL DE GOBIERNO","GESTIONADO"]
[null,5745052025,"AREA DE ATENCION A LA CIUDADANIA","E-MAIL","DERECHO DE PETICION DE INTERES PARTICULAR","Solucionado - Por traslado","SECRETARIA DISTRITAL DE INTEGRACION SOCIAL","GESTIONADO"]
[null,5748222025,"AREA DE ATENCION A LA CIUDADANIA","WEB","CONSULTA","Solucionado por asignar - Trasladar","SECRETARIA DISTRITAL DE PLANEACION","GESTIONADO"]
[null,5757602025,"AREA DE ATENCION A LA CIUDADANIA","WEB","DERECHO DE PETICION DE INTERES GENERAL","Solucionado - Por traslado","INSTITUTO PARA LA ECONOMIA SOCIAL - IPES","GESTIONADO"]
[null,5757952025,"AREA DE ATENCION A LA CIUDADANIA","WEB","DERECHO DE PETICION DE INTERES GENERAL","Solucionado - Por traslado","SECRETARIA DISTRITAL DE GOBIERNO","GESTIONADO"]
[null,5762852025,"AREA DE ATENCION A LA CIUDADANIA","WEB","DERECHO DE PETICION DE INTERES GENERAL","Solucionado - Por traslado","SECRETARIA DISTRITAL DE GOBIERNO","GESTIONADO"]
[null,5765502025,"AREA DE ATENCION A LA CIUDADANIA","WEB","DERECHO DE PETICION DE INTERES PARTICULAR","Solucionado - Por traslado","INSTITUTO DE DESARROLLO URBANO - IDU","GESTIONADO"]
[null,5765652025,"AREA DE ATENCION A LA CIUDADANIA","WEB","DERECHO DE PETICION DE INTERES GENERAL","Solucionado - Por traslado","INSTITUTO DISTRITAL DE RECREACION Y DEPORTE - IDRD","GESTIONADO"]
[null,5766932025,"AREA DE ATENCION A LA CIUDADANIA","WEB","DERECHO DE PETICION DE INTERES GENERAL","Solucionado - Por traslado","UNIDAD ADMINISTRATIVA ESPECIAL CUERPO OFICIAL BOMBEROS BOGOTA - UAECOB","GESTIONADO"]
[null,5767762025,"AREA DE ATENCION A LA CIUDADANIA","E-MAIL","DERECHO DE PETICION DE INTERES GENERAL","Solucionado - Por traslado","SECRETARIA DISTRITAL DE INTEGRACION SOCIAL","GESTIONADO"]
[null,5769032025,"AREA DE ATENCION A LA CIUDADANIA","WEB","CONSULTA","Solucionado por asignar - Trasladar","SECRETARIA DISTRITAL DE MOVILIDAD","PENDIENTE"]
[null,5770592025,"AREA DE ATENCION A LA CIUDADANIA","WEB","DERECHO DE PETICION DE INTERES GENERAL","Solucionado - Por traslado","SECRETARIA DISTRITAL DE GOBIERNO","GESTIONADO"]
[null,5771032025,"AREA DE ATENCION A LA CIUDADANIA","E-MAIL","DERECHO DE PETICION DE INTERES PARTICULAR","Solucionado - Por traslado","INSTITUTO DE DESARROLLO URBANO - IDU","GESTIONADO"]
[null,5771452025,"AREA DE ATENCION A LA CIUDADANIA","E-MAIL","DERECHO DE PETICION DE INTERES GENERAL","Solucionado - Por traslado","SECRETARIA DISTRITAL DE GOBIERNO","GESTIONADO"]
[null,5774362025,"AREA DE ATENCION A LA CIUDADANIA","WEB","DERECHO DE PETICION DE INTERES GENERAL","Solucionado - Por traslado","INSTITUTO DISTRITAL DE RECREACION Y DEPORTE - IDRD","GESTIONADO"]
[null,5774832025,"AREA DE ATENCION A LA CIUDADANIA","WEB","SUGERENCIA","Solucionado por asignar - Trasladar","SECRETARIA DISTRITAL DE GOBIERNO","PENDIENTE"]
[null,5775912025,"AREA DE ATENCION A LA CIUDADANIA","WEB","CONSULTA","Solucionado por asignar - Trasladar","SECRETARIA DISTRITAL DE PLANEACION","PENDIENTE"]
[null,5776222025,"AREA DE ATENCION A LA CIUDADANIA","WEB","DERECHO DE PETICION DE INTERES GENERAL","Solucionado - Por traslado","SECRETARIA DISTRITAL DE GOBIERNO","GESTIONADO"]
[null,5780542025,"AREA DE ATENCION A LA CIUDADANIA","WEB","DERECHO DE PETICION DE INTERES GENERAL","Solucionado - Por traslado","INSTITUTO DE DESARROLLO URBANO - IDU","GESTIONADO"]
[null,5786572025,"AREA DE ATENCION A LA CIUDADANIA","WEB","DERECHO DE PETICION DE INTERES GENERAL","Solucionado - Por traslado","INSTITUTO PARA LA ECONOMIA SOCIAL - IPES","GESTIONADO"]
[null,5787212025,"AREA DE ATENCION A LA CIUDADANIA","WEB","DERECHO DE PETICION DE INTERES PARTICULAR","Solucionado - Por traslado","SECRETARIA DISTRITAL DE INTEGRACION SOCIAL","GESTIONADO"]
[null,5789102025,"AREA DE ATENCION A LA CIUDADANIA","E-MAIL","DERECHO DE PETICION DE INTERES GENERAL","Solucionado por asignar - Trasladar","SECRETARIA DISTRITAL DE GOBIERNO","PENDIENTE"]
[null,5789532025,"AREA DE ATENCION A LA CIUDADANIA","WEB","DERECHO DE PETICION DE INTERES GENERAL","Solucionado - Por traslado","SUBRED INTEGRADA DE SERVICIOS DE SALUD NORTE E.S.E.","GESTIONADO"]
[null,5789642025,"AREA DE ATENCION A LA CIUDADANIA","WEB","DERECHO DE PETICION DE INTERES GENERAL","Solucionado - Por traslado","SECRETARIA DISTRITAL DE MOVILIDAD","GESTIONADO"]
[null,5790232025,"AREA DE ATENCION A LA CIUDADANIA","WEB","DERECHO DE PETICION DE INTERES GENERAL","Solucionado - Por traslado","SECRETARIA DISTRITAL DE GOBIERNO","GESTIONADO"]
[null,5790592025,"AREA DE ATENCION A LA CIUDADANIA","E-MAIL","DERECHO DE PETICION DE INTERES GENERAL","Solucionado por asignar - Trasladar","INSTITUTO DE DESARROLLO URBANO - IDU","PENDIENTE"]
[null,5790712025,"AREA DE ATENCION A LA CIUDADANIA","WEB","DERECHO DE PETICION DE INTERES GENERAL","Solucionado - Por traslado","INSTITUTO PARA LA ECONOMIA SOCIAL - IPES","GESTIONADO"]
[null,5791492025,"AREA DE ATENCION A LA CIUDADANIA","WEB","DERECHO DE PETICION DE INTERES GENERAL","Solucionado - Por traslado","SECRETARIA DISTRITAL DE GOBIERNO","GESTIONADO"]
[null,5791752025,"AREA DE ATENCION A LA CIUDADANIA","WEB","DERECHO DE PETICION DE INTERES GENERAL","Solucionado - Por traslado","SECRETARIA DISTRITAL DE GOBIERNO","GESTIONADO"]
[null,5792562025,"AREA DE ATENCION A LA CIUDADANIA","E-MAIL","DERECHO DE PETICION DE INTERES GENERAL","Solucionado por asignar - Trasladar","SECRETARIA DISTRITAL DE SEGURIDAD  CONVIVENCIA Y JUSTICIA","PENDIENTE"]
[null,5793222025,"AREA DE ATENCION A LA CIUDADANIA","WEB","RECLAMO","Solucionado - Por traslado","UNIDAD ADMINISTRATIVA ESPECIAL DE CATASTRO DISTRITAL - UAECD","GESTIONADO"]
[null,5793602025,"AREA DE ATENCION A LA CIUDADANIA","WEB","DERECHO DE PETICION DE INTERES GENERAL","Solucionado - Por traslado","SECRETARIA DISTRITAL DE MOVILIDAD","GESTIONADO"]
[null,5794742025,"AREA DE ATENCION A LA CIUDADANIA","WEB","DERECHO DE PETICION DE INTERES GENERAL","Solucionado - Por traslado","SECRETARIA DISTRITAL DE GOBIERNO","GESTIONADO"]
[null,5795172025,"AREA DE ATENCION A LA CIUDADANIA","WEB","DERECHO DE PETICION DE INTERES GENERAL","Solucionado - Por traslado","SECRETARIA DISTRITAL DE GOBIERNO","GESTIONADO"]
[null,5795812025,"AREA DE ATENCION A LA CIUDADANIA","WEB","DERECHO DE PETICION DE INTERES GENERAL","Solucionado - Por traslado","SECRETARIA DISTRITAL DE GOBIERNO","GESTIONADO"]
[null,5795912025,"AREA DE ATENCION A LA CIUDADANIA","WEB","DERECHO DE PETICION DE INTERES GENERAL","Solucionado - Por traslado","SECRETARIA DISTRITAL DE GOBIERNO","GESTIONADO"]
[null,5800392025,"AREA DE ATENCION A LA CIUDADANIA","WEB","DERECHO DE PETICION DE INTERES GENERAL","Solucionado - Por traslado","SECRETARIA DISTRITAL DE GOBIERNO","GESTIONADO"]
[null,5802992025,"AREA DE ATENCION A LA CIUDADANIA","WEB","DERECHO DE PETICION DE INTERES PARTICULAR","Solucionado - Por traslado","SECRETARIA DISTRITAL DE GOBIERNO","GESTIONADO"]
[null,5803222025,"AREA DE ATENCION A LA CIUDADANIA","WEB","DERECHO DE PETICION DE INTERES GENERAL","Solucionado - Por traslado","SECRETARIA DISTRITAL DE GOBIERNO","GESTIONADO"]
[null,5803342025,"AREA DE ATENCION A LA CIUDADANIA","WEB","DERECHO DE PETICION DE INTERES GENERAL","Solucionado - Por traslado","SECRETARIA DISTRITAL DE GOBIERNO","GESTIONADO"]
[null,5805062025,"AREA DE ATENCION A LA CIUDADANIA","WEB","DERECHO DE PETICION DE INTERES GENERAL","Solucionado - Por traslado","SECRETARIA DISTRITAL DE GOBIERNO","GESTIONADO"]
[null,5805162025,"AREA DE ATENCION A LA CIUDADANIA","WEB","DERECHO DE PETICION DE INTERES GENERAL","Solucionado - Por traslado","INSTITUTO PARA LA ECONOMIA SOCIAL - IPES","GESTIONADO"]
[null,5811362025,"AREA DE ATENCION A LA CIUDADANIA","WEB","DERECHO DE PETICION DE INTERES GENERAL","Solucionado - Por traslado","SECRETARIA DISTRITAL DE GOBIERNO","GESTIONADO"]
[null,5812002025,"AREA DE ATENCION A LA CIUDADANIA","WEB","DERECHO DE PETICION DE INTERES GENERAL","Solucionado - Por traslado","SECRETARIA DISTRITAL DE MOVILIDAD","GESTIONADO"]
[null,5812862025,"AREA DE ATENCION A LA CIUDADANIA","WEB","DERECHO DE PETICION DE INTERES GENERAL","Solucionado - Por traslado","SECRETARIA DISTRITAL DE INTEGRACION SOCIAL","GESTIONADO"]
[null,5812962025,"AREA DE ATENCION A LA CIUDADANIA","WEB","DERECHO DE PETICION DE INTERES GENERAL","Solucionado - Por traslado","SECRETARIA DISTRITAL DE GOBIERNO","GESTIONADO"]
[null,5813242025,"AREA DE ATENCION A LA CIUDADANIA","WEB","DERECHO DE PETICION DE INTERES GENERAL","Solucionado por asignar - Trasladar","SECRETARIA DISTRITAL DE GOBIERNO","PENDIENTE"]
[null,5813542025,"AREA DE ATENCION A LA CIUDADANIA","WEB","DERECHO DE PETICION DE INTERES GENERAL","Solucionado - Por traslado","SECRETARIA DISTRITAL DE GOBIERNO","GESTIONADO"]
[null,5814612025,"AREA DE ATENCION A LA CIUDADANIA","WEB","DERECHO DE PETICION DE INTERES GENERAL","Solucionado - Por traslado","SECRETARIA DISTRITAL DE GOBIERNO","GESTIONADO"]
[null,5815242025,"AREA DE ATENCION A LA CIUDADANIA","WEB","DERECHO DE PETICION DE INTERES GENERAL","Solucionado - Por traslado","SECRETARIA DISTRITAL DE GOBIERNO","GESTIONADO"]
[null,5817162025,"AREA DE ATENCION A LA CIUDADANIA","WEB","DERECHO DE PETICION DE INTERES PARTICULAR","Solucionado - Por traslado","SECRETARIA DISTRITAL DE MOVILIDAD","GESTIONADO"]
[null,5817252025,"AREA DE ATENCION A LA CIUDADANIA","WEB","DERECHO DE PETICION DE INTERES GENERAL","Solucionado - Por traslado","SECRETARIA DISTRITAL DE GOBIERNO","GESTIONADO"]
[null,5819042025,"AREA DE ATENCION A LA CIUDADANIA","WEB","DERECHO DE PETICION DE INTERES GENERAL","Solucionado - Por traslado","SECRETARIA DISTRITAL DE GOBIERNO","GESTIONADO"]
[null,5820052025,"AREA DE ATENCION A LA CIUDADANIA","WEB","DERECHO DE PETICION DE INTERES PARTICULAR","Solucionado - Por traslado","SECRETARIA DISTRITAL DE INTEGRACION SOCIAL","GESTIONADO"]
[null,5820212025,"AREA DE ATENCION A LA CIUDADANIA","WEB","DERECHO DE PETICION DE INTERES GENERAL","Solucionado - Por traslado","INSTITUTO PARA LA ECONOMIA SOCIAL - IPES","GESTIONADO"]
[null,5822612025,"AREA DE ATENCION A LA CIUDADANIA","E-MAIL","DERECHO DE PETICION DE INTERES GENERAL","Solucionado por asignar - Trasladar","INSTITUTO DE DESARROLLO URBANO - IDU","PENDIENTE"]
[null,5823302025,"AREA DE ATENCION A LA CIUDADANIA","E-MAIL","DERECHO DE PETICION DE INTERES GENERAL","Solucionado por asignar - Trasladar","INSTITUTO DISTRITAL DE LAS ARTES - IDARTES","PENDIENTE"]
[null,5823362025,"AREA DE ATENCION A LA CIUDADANIA","WEB","DERECHO DE PETICION DE INTERES GENERAL","Solucionado - Por traslado","SECRETARIA DISTRITAL DE MOVILIDAD","GESTIONADO"]
[null,5823432025,"AREA DE ATENCION A LA CIUDADANIA","WEB","DERECHO DE PETICION DE INTERES GENERAL","Solucionado - Por traslado","SECRETARIA DISTRITAL DE GOBIERNO","GESTIONADO"]
[null,5824272025,"AREA DE ATENCION A LA CIUDADANIA","E-MAIL","DERECHO DE PETICION DE INTERES PARTICULAR","Solucionado - Por traslado","SECRETARIA DISTRITAL DE GOBIERNO","GESTIONADO"]
[null,5824902025,"AREA DE ATENCION A LA CIUDADANIA","E-MAIL","DERECHO DE PETICION DE INTERES GENERAL","Solucionado - Por traslado","ENTIDAD NACIONAL","GESTIONADO"]
[null,5831472025,"AREA DE ATENCION A LA CIUDADANIA","WEB","DERECHO DE PETICION DE INTERES GENERAL","Solucionado - Por traslado","SECRETARIA DISTRITAL DE GOBIERNO","GESTIONADO"]
[null,5833722025,"AREA DE ATENCION A LA CIUDADANIA","WEB","DERECHO DE PETICION DE INTERES GENERAL","Solucionado - Por traslado","UNIDAD ADMINISTRATIVA ESPECIAL DE SERVICIOS PUBLICOS -UAESP","GESTIONADO"]
[null,5833912025,"AREA DE ATENCION A LA CIUDADANIA","WEB","DERECHO DE PETICION DE INTERES GENERAL","Solucionado - Por traslado","SECRETARIA DISTRITAL DE MOVILIDAD","GESTIONADO"]
[null,5834292025,"AREA DE ATENCION A LA CIUDADANIA","E-MAIL","DERECHO DE PETICION DE INTERES PARTICULAR","Solucionado por asignar - Trasladar","SECRETARIA DISTRITAL DE GOBIERNO","PENDIENTE"]
[null,5834842025,"AREA DE ATENCION A LA CIUDADANIA","WEB","DERECHO DE PETICION DE INTERES GENERAL","Solucionado - Por traslado","SECRETARIA DISTRITAL DE MOVILIDAD","GESTIONADO"]
[null,5835972025,"AREA DE ATENCION A LA CIUDADANIA","E-MAIL","DERECHO DE PETICION DE INTERES GENERAL","Solucionado - Por traslado","ENTIDAD NACIONAL","GESTIONADO"]
[null,5836372025,"AREA DE ATENCION A LA CIUDADANIA","WEB","DERECHO DE PETICION DE INTERES GENERAL","Solucionado - Por traslado","ENTIDAD NACIONAL","GESTIONADO"]
[null,5836712025,"AREA DE ATENCION A LA CIUDADANIA","WEB","DERECHO DE PETICION DE INTERES GENERAL","Solucionado - Por traslado","SECRETARIA DISTRITAL DE GOBIERNO","GESTIONADO"]
[null,5837672025,"AREA DE ATENCION A LA CIUDADANIA","WEB","DERECHO DE PETICION DE INTERES GENERAL","Solucionado - Por traslado","ENTIDAD NACIONAL","GESTIONADO"]
[null,5839142025,"AREA DE ATENCION A LA CIUDADANIA","WEB","DERECHO DE PETICION DE INTERES PARTICULAR","Solucionado por asignar - Trasladar","SECRETARIA DISTRITAL DE PLANEACION","PENDIENTE"]
[null,5840342025,"AREA DE ATENCION A LA CIUDADANIA","PRESENCIAL","DERECHO DE PETICION DE INTERES PARTICULAR","Solucionado - Por traslado","SECRETARIA DISTRITAL DE GOBIERNO","GESTIONADO"]
[null,5843082025,"AREA DE ATENCION A LA CIUDADANIA","WEB","DERECHO DE PETICION DE INTERES PARTICULAR","Solucionado por asignar - Trasladar","UNIDAD ADMINISTRATIVA ESPECIAL DE CATASTRO DISTRITAL - UAECD","GESTIONADO"]
[null,5843852025,"AREA DE ATENCION A LA CIUDADANIA","WEB","DERECHO DE PETICION DE INTERES GENERAL","Solucionado - Por traslado","SECRETARIA DISTRITAL DE GOBIERNO","GESTIONADO"]
[null,5852552025,"AREA DE ATENCION A LA CIUDADANIA","WEB","DERECHO DE PETICION DE INTERES GENERAL","Solucionado - Por traslado","INSTITUTO PARA LA ECONOMIA SOCIAL - IPES","GESTIONADO"]
[null,5852692025,"AREA DE ATENCION A LA CIUDADANIA","WEB","DERECHO DE PETICION DE INTERES GENERAL","Solucionado - Por traslado","INSTITUTO PARA LA ECONOMIA SOCIAL - IPES","GESTIONADO"]
[null,5859742025,"AREA DE ATENCION A LA CIUDADANIA","WEB","DERECHO DE PETICION DE INTERES GENERAL","Solucionado - Por traslado","SECRETARIA DISTRITAL DE SEGURIDAD  CONVIVENCIA Y JUSTICIA","GESTIONADO"]
[null,5862272025,"AREA DE ATENCION A LA CIUDADANIA","WEB","DERECHO DE PETICION DE INTERES GENERAL","Solucionado - Por traslado","UNIDAD ADMINISTRATIVA ESPECIAL DE SERVICIOS PUBLICOS -UAESP","GESTIONADO"]
[null,5862532025,"AREA DE ATENCION A LA CIUDADANIA","WEB","DERECHO DE PETICION DE INTERES GENERAL","Solucionado - Por traslado","INSTITUTO DE DESARROLLO URBANO - IDU","GESTIONADO"]
[null,5863312025,"AREA DE ATENCION A LA CIUDADANIA","WEB","DERECHO DE PETICION DE INTERES GENERAL","Solucionado - Por traslado","SECRETARIA DISTRITAL DE GOBIERNO","GESTIONADO"]
[null,5863502025,"AREA DE ATENCION A LA CIUDADANIA","WEB","DERECHO DE PETICION DE INTERES PARTICULAR","Solucionado - Por traslado","SECRETARIA DISTRITAL DE GOBIERNO","GESTIONADO"]
[null,5864852025,"AREA DE ATENCION A LA CIUDADANIA","WEB","DERECHO DE PETICION DE INTERES GENERAL","Solucionado por asignar - Trasladar","SECRETARIA DISTRITAL DE GOBIERNO","PENDIENTE"]
[null,5865892025,"AREA DE ATENCION A LA CIUDADANIA","WEB","DERECHO DE PETICION DE INTERES PARTICULAR","Solucionado por asignar - Trasladar","SECRETARIA DISTRITAL DE GOBIERNO","PENDIENTE"]
[null,5866892025,"AREA DE ATENCION A LA CIUDADANIA","WEB","DERECHO DE PETICION DE INTERES GENERAL","Solucionado - Por traslado","SECRETARIA DISTRITAL DE GOBIERNO","GESTIONADO"]
[null,5867372025,"AREA DE ATENCION A LA CIUDADANIA","WEB","DERECHO DE PETICION DE INTERES GENERAL","Solucionado - Por traslado","SECRETARIA DISTRITAL DE GOBIERNO","GESTIONADO"]
[null,5870372025,"AREA DE ATENCION A LA CIUDADANIA","WEB","DERECHO DE PETICION DE INTERES GENERAL","Solucionado - Por traslado","INSTITUTO DISTRITAL DE GESTION DE RIESGOS Y CAMBIO CLIMATICO - IDIGER","GESTIONADO"]
[null,5872932025,"AREA DE ATENCION A LA CIUDADANIA","WEB","DERECHO DE PETICION DE INTERES GENERAL","Solucionado - Por traslado","SECRETARIA DISTRITAL DE GOBIERNO","GESTIONADO"]
[null,5874142025,"AREA DE ATENCION A LA CIUDADANIA","WEB","DERECHO DE PETICION DE INTERES PARTICULAR","Solucionado por asignar - Trasladar","SECRETARIA DISTRITAL DE MOVILIDAD","PENDIENTE"]
[null,5874492025,"AREA DE ATENCION A LA CIUDADANIA","WEB","DERECHO DE PETICION DE INTERES PARTICULAR","Solucionado - Por traslado","SECRETARIA DISTRITAL DE MOVILIDAD","GESTIONADO"]
[null,5874822025,"AREA DE ATENCION A LA CIUDADANIA","WEB","DERECHO DE PETICION DE INTERES PARTICULAR","Solucionado - Por traslado","SECRETARIA DISTRITAL DE MOVILIDAD","GESTIONADO"]
[null,5883582025,"AREA DE ATENCION A LA CIUDADANIA","WEB","DERECHO DE PETICION DE INTERES GENERAL","Solucionado - Por traslado","SECRETARIA DISTRITAL DE MOVILIDAD","GESTIONADO"]
[null,5884722025,"AREA DE ATENCION A LA CIUDADANIA","WEB","DERECHO DE PETICION DE INTERES GENERAL","Solucionado - Por traslado","SECRETARIA DISTRITAL DE MOVILIDAD","GESTIONADO"]
[null,5886942025,"AREA DE ATENCION A LA CIUDADANIA","WEB","DERECHO DE PETICION DE INTERES GENERAL","Solucionado - Por traslado","SECRETARIA DISTRITAL DE GOBIERNO","GESTIONADO"]
[null,5886982025,"AREA DE ATENCION A LA CIUDADANIA","WEB","DERECHO DE PETICION DE INTERES PARTICULAR","Solucionado - Por traslado","SECRETARIA DISTRITAL DE GOBIERNO","GESTIONADO"]
[null,5887732025,"AREA DE ATENCION A LA CIUDADANIA","WEB","DERECHO DE PETICION DE INTERES GENERAL","Solucionado - Por traslado","UNIDAD ADMINISTRATIVA ESPECIAL DE SERVICIOS PUBLICOS -UAESP","GESTIONADO"]
[null,5888282025,"AREA DE ATENCION A LA CIUDADANIA","E-MAIL","DERECHO DE PETICION DE INTERES GENERAL","Solucionado por asignar - Trasladar","SECRETARIA DISTRITAL DE MOVILIDAD","PENDIENTE"]
[null,5888762025,"AREA DE ATENCION A LA CIUDADANIA","E-MAIL","DERECHO DE PETICION DE INTERES GENERAL","Solucionado - Por traslado","INSTITUTO DE DESARROLLO URBANO - IDU","GESTIONADO"]
[null,5889092025,"AREA DE ATENCION A LA CIUDADANIA","E-MAIL","DERECHO DE PETICION DE INTERES GENERAL","Solucionado - Por traslado","INSTITUTO DISTRITAL DE GESTION DE RIESGOS Y CAMBIO CLIMATICO - IDIGER","GESTIONADO"]
[null,5892622025,"AREA DE ATENCION A LA CIUDADANIA","WEB","DERECHO DE PETICION DE INTERES GENERAL","Solucionado - Por traslado","SECRETARIA DISTRITAL DE GOBIERNO","GESTIONADO"]
[null,5893242025,"AREA DE ATENCION A LA CIUDADANIA","E-MAIL","DERECHO DE PETICION DE INTERES GENERAL","Solucionado - Por traslado","INSTITUTO DISTRITAL DE RECREACION Y DEPORTE - IDRD","GESTIONADO"]
[null,5895252025,"AREA DE ATENCION A LA CIUDADANIA","WEB","DERECHO DE PETICION DE INTERES GENERAL","Solucionado - Por traslado","SECRETARIA DISTRITAL DE GOBIERNO","GESTIONADO"]
[null,5895352025,"AREA DE ATENCION A LA CIUDADANIA","WEB","DERECHO DE PETICION DE INTERES GENERAL","Solucionado - Por traslado","SECRETARIA DISTRITAL DE GOBIERNO","GESTIONADO"]
[null,5897762025,"AREA DE ATENCION A LA CIUDADANIA","WEB","DERECHO DE PETICION DE INTERES GENERAL","Solucionado - Por traslado","SECRETARIA DISTRITAL DE GOBIERNO","GESTIONADO"]
[null,5900282025,"AREA DE ATENCION A LA CIUDADANIA","WEB","DERECHO DE PETICION DE INTERES GENERAL","Solucionado - Por traslado","SECRETARIA DISTRITAL DE MOVILIDAD","GESTIONADO"]
[null,5901032025,"AREA DE ATENCION A LA CIUDADANIA","WEB","DERECHO DE PETICION DE INTERES GENERAL","Solucionado - Por traslado","SECRETARIA DISTRITAL DE GOBIERNO","GESTIONADO"]
[null,5901102025,"AREA DE ATENCION A LA CIUDADANIA","TELEFONO","DERECHO DE PETICION DE INTERES GENERAL","Solucionado - Por traslado","INSTITUTO DISTRITAL DE PROTECCION Y BIENESTAR ANIMAL - IDPYBA","GESTIONADO"]
[null,5902032025,"AREA DE ATENCION A LA CIUDADANIA","WEB","DERECHO DE PETICION DE INTERES GENERAL","Solucionado - Por traslado","SECRETARIA DISTRITAL DE MOVILIDAD","GESTIONADO"]
[null,5912562025,"AREA DE ATENCION A LA CIUDADANIA","WEB","DERECHO DE PETICION DE INTERES GENERAL","Solucionado - Por traslado","ENTIDAD NACIONAL","GESTIONADO"]
[null,5914222025,"AREA DE ATENCION A LA CIUDADANIA","WEB","DERECHO DE PETICION DE INTERES PARTICULAR","Solucionado - Por traslado","INSTITUTO DE DESARROLLO URBANO - IDU","GESTIONADO"]
[null,5914312025,"AREA DE ATENCION A LA CIUDADANIA","WEB","DERECHO DE PETICION DE INTERES GENERAL","Solucionado - Por traslado","SECRETARIA DISTRITAL DE GOBIERNO","GESTIONADO"]
[null,5914702025,"AREA DE ATENCION A LA CIUDADANIA","WEB","DERECHO DE PETICION DE INTERES GENERAL","Solucionado - Por traslado","UNIDAD ADMINISTRATIVA ESPECIAL DE SERVICIOS PUBLICOS -UAESP","GESTIONADO"]
[null,5916692025,"AREA DE ATENCION A LA CIUDADANIA","WEB","DERECHO DE PETICION DE INTERES GENERAL","Solucionado - Por traslado","SECRETARIA DISTRITAL DE MOVILIDAD","GESTIONADO"]
[null,5917372025,"AREA DE ATENCION A LA CIUDADANIA","WEB","DERECHO DE PETICION DE INTERES GENERAL","Solucionado - Por traslado","JARDIN BOTANICO DE BOGOTA JOSE CELESTINO MUTIS - JBB","GESTIONADO"]
[null,5923742025,"AREA DE ATENCION A LA CIUDADANIA","WEB","CONSULTA","Solucionado - Por traslado","INSTITUTO DE DESARROLLO URBANO - IDU","GESTIONADO"]
[null,5923752025,"AREA DE ATENCION A LA CIUDADANIA","E-MAIL","DERECHO DE PETICION DE INTERES GENERAL","Solucionado por asignar - Trasladar","SECRETARIA DISTRITAL DE AMBIENTE","PENDIENTE"]
[null,5924032025,"AREA DE ATENCION A LA CIUDADANIA","E-MAIL","DERECHO DE PETICION DE INTERES PARTICULAR","Solucionado - Por traslado","INSTITUTO DE DESARROLLO URBANO - IDU","GESTIONADO"]
[null,5924072025,"AREA DE ATENCION A LA CIUDADANIA","WEB","DERECHO DE PETICION DE INTERES GENERAL","Solucionado - Por traslado","SECRETARIA DISTRITAL DE MOVILIDAD","GESTIONADO"]
[null,5926682025,"AREA DE ATENCION A LA CIUDADANIA","WEB","DERECHO DE PETICION DE INTERES GENERAL","Solucionado - Por traslado","SECRETARIA DISTRITAL DE MOVILIDAD","GESTIONADO"]
[null,5926922025,"AREA DE ATENCION A LA CIUDADANIA","WEB","DERECHO DE PETICION DE INTERES GENERAL","Solucionado - Por traslado","SECRETARIA DISTRITAL DE GOBIERNO","GESTIONADO"]
[null,5928892025,"AREA DE ATENCION A LA CIUDADANIA","WEB","DERECHO DE PETICION DE INTERES GENERAL","Solucionado - Por traslado","SECRETARIA DISTRITAL DE MOVILIDAD","GESTIONADO"]
[null,5930522025,"AREA DE ATENCION A LA CIUDADANIA","WEB","DERECHO DE PETICION DE INTERES GENERAL","Solucionado - Por traslado","SECRETARIA DISTRITAL DE GOBIERNO","GESTIONADO"]
[null,5932282025,"AREA DE ATENCION A LA CIUDADANIA","WEB","DERECHO DE PETICION DE INTERES GENERAL","Solucionado - Por traslado","SUBRED INTEGRADA DE SERVICIOS DE SALUD SUR OCCIDENTE E.S.E.","GESTIONADO"]
[null,5933012025,"AREA DE ATENCION A LA CIUDADANIA","WEB","DERECHO DE PETICION DE INTERES GENERAL","Solucionado - Por traslado","SECRETARIA DISTRITAL DE GOBIERNO","GESTIONADO"]
[null,5933202025,"AREA DE ATENCION A LA CIUDADANIA","WEB","DERECHO DE PETICION DE INTERES GENERAL","Solucionado por asignar - Trasladar","PERSONERIA DE BOGOTA D.C.","GESTIONADO"]
[null,5933242025,"AREA DE ATENCION A LA CIUDADANIA","WEB","CONSULTA","Solucionado por asignar - Trasladar","INSTITUTO DE DESARROLLO URBANO - IDU","PENDIENTE"]
[null,5933762025,"AREA DE ATENCION A LA CIUDADANIA","WEB","DERECHO DE PETICION DE INTERES PARTICULAR","Solucionado - Por traslado","INSTITUTO DE DESARROLLO URBANO - IDU","GESTIONADO"]
[null,5940182025,"AREA DE ATENCION A LA CIUDADANIA","PRESENCIAL","DERECHO DE PETICION DE INTERES GENERAL","Solucionado - Por traslado","SECRETARIA DISTRITAL DE MOVILIDAD","GESTIONADO"]
[null,5940382025,"AREA DE ATENCION A LA CIUDADANIA","E-MAIL","DERECHO DE PETICION DE INTERES GENERAL","Solucionado por asignar - Trasladar","EMPRESA DE ACUEDUCTO Y ALCANTARILLADO DE BOGOTA EAAB - ESP","PENDIENTE"]
[null,5946232025,"AREA DE ATENCION A LA CIUDADANIA","WEB","DERECHO DE PETICION DE INTERES GENERAL","Solucionado - Por traslado","SECRETARIA DISTRITAL DE GOBIERNO","GESTIONADO"]
[null,5946702025,"AREA DE ATENCION A LA CIUDADANIA","WEB","DERECHO DE PETICION DE INTERES GENERAL","Solucionado - Por traslado","SUBRED INTEGRADA DE SERVICIOS DE SALUD NORTE E.S.E.","GESTIONADO"]
[null,5946932025,"AREA DE ATENCION A LA CIUDADANIA","E-MAIL","DERECHO DE PETICION DE INTERES PARTICULAR","Solucionado por asignar - Trasladar","INSTITUTO PARA LA ECONOMIA SOCIAL - IPES","PENDIENTE"]
[null,5947572025,"AREA DE ATENCION A LA CIUDADANIA","E-MAIL","QUEJA","Solucionado - Por traslado","INSTITUTO DE DESARROLLO URBANO - IDU","GESTIONADO"]
[null,5948522025,"AREA DE ATENCION A LA CIUDADANIA","E-MAIL","DERECHO DE PETICION DE INTERES GENERAL","Solucionado - Por traslado","SECRETARIA DISTRITAL DE INTEGRACION SOCIAL","GESTIONADO"]

{"sheet":"Peticiones asignadas a la entid","index":4,"n_rows":119,"n_cols":7,"rows_kept":119,"cut":false,"hidden":false,"merged":[[9,1,15,2],[13,3,15,4]]}
[]
[]
[]
[]
[]
[]
[]
[]
[]
[null,"REPORTE  GESTIÓN DE PETICIONES\n\nFecha:  2025- 10- 01    a   2025 - 10 - 31\nEstado de Petición:  Al Periodo"]
[]
[]
[]
[]
[]
[]
[]
[]
[]
[null,"Número petición\nNumero de registro en el Sistema","Dependencia:\nNombre asociado al usuario que tiene a cargo la petición ","Canal:\nNombre del canal parametrizado en el sistema por el cual fue registrada la petición","Tipología actualizada: \nTipo de documento utilizado por la entidad","Días gestión\nDías calendario transcurridos desde la fecha de inicio de términos hasta el último día del mes","Estado del Requerimiento\n \"Gestionado\" o \"Pendiente\" de respuesta definitiva por  parte de la Defensoría del Espacio Público o de las entidades competentes"]
[null,4577592025,"SUBDIRECCION DE GESTION INMOBILIARIA Y DEL ESPACIO PUBLICO","E-MAIL","DERECHO DE PETICION DE INTERES PARTICULAR",12,"PENDIENTE"]
[null,4877752025,"SUBDIRECCION DE GESTION INMOBILIARIA Y DEL ESPACIO PUBLICO","WEB","DERECHO DE PETICION DE INTERES PARTICULAR",14,"GESTIONADO"]
[null,5170292025,"SUBDIRECCION DE GESTION INMOBILIARIA Y DEL ESPACIO PUBLICO","ESCRITO","DERECHO DE PETICION DE INTERES PARTICULAR",14,"GESTIONADO"]
[null,5209162025,"SUBDIRECCION DE GESTION INMOBILIARIA Y DEL ESPACIO PUBLICO","WEB","CONSULTA",22,"PENDIENTE"]
[null,5229202025,"SUBDIRECCION DE GESTION INMOBILIARIA Y DEL ESPACIO PUBLICO","E-MAIL","DERECHO DE PETICION DE INTERES PARTICULAR",14,"GESTIONADO"]
[null,5238322025,"SUBDIRECCION DE GESTION INMOBILIARIA Y DEL ESPACIO PUBLICO","E-MAIL","DERECHO DE PETICION DE INTERES GENERAL",14,"GESTIONADO"]
[null,5272512025,"SUBDIRECCION DE GESTION INMOBILIARIA Y DEL ESPACIO PUBLICO","TELEFONO","DERECHO DE PETICION DE INTERES GENERAL",15,"GESTIONADO"]
[null,5278242025,"SUBDIRECCION DE REGISTRO INMOBILIARIO","WEB","CONSULTA",11,"GESTIONADO"]
[null,5306542025,"SUBDIRECCION DE GESTION INMOBILIARIA Y DEL ESPACIO PUBLICO","E-MAIL","DERECHO DE PETICION DE INTERES GENERAL",14,"GESTIONADO"]
[null,5307522025,"SUBDIRECCION DE GESTION INMOBILIARIA Y DEL ESPACIO PUBLICO","E-MAIL","DERECHO DE PETICION DE INTERES GENERAL",14,"GESTIONADO"]
[null,5325752025,"SUBDIRECCION DE GESTION INMOBILIARIA Y DEL ESPACIO PUBLICO","WEB","DERECHO DE PETICION DE INTERES PARTICULAR",13,"GESTIONADO"]
[null,5331832025,"SUBDIRECCION DE GESTION INMOBILIARIA Y DEL ESPACIO PUBLICO","WEB","SOLICITUD DE COPIA",10,"GESTIONADO"]
[null,5332452025,"OFICINA DE CONTROL DISCIPLINARIO INTERNO","WEB","DERECHO DE PETICION DE INTERES GENERAL",1,"GESTIONADO"]
[null,5338412025,"SUBDIRECCION DE GESTION INMOBILIARIA Y DEL ESPACIO PUBLICO","E-MAIL","DERECHO DE PETICION DE INTERES GENERAL",14,"GESTIONADO"]
[null,5351072025,"SUBDIRECCION DE REGISTRO INMOBILIARIO","WEB","CONSULTA",6,"GESTIONADO"]
[null,5354752025,"SUBDIRECCION DE GESTION INMOBILIARIA Y DEL ESPACIO PUBLICO","E-MAIL","DERECHO DE PETICION DE INTERES PARTICULAR",14,"GESTIONADO"]
[null,5369552025,"SUBDIRECCION DE GESTION INMOBILIARIA Y DEL ESPACIO PUBLICO","WEB","DERECHO DE PETICION DE INTERES PARTICULAR",13,"GESTIONADO"]
[null,5382602025,"OFICINA DE CONTROL DISCIPLINARIO INTERNO","WEB","DERECHO DE PETICION DE INTERES GENERAL",1,"GESTIONADO"]
[null,5385002025,"OFICINA DE CONTROL DISCIPLINARIO INTERNO","WEB","DERECHO DE PETICION DE INTERES GENERAL",1,"GESTIONADO"]
[null,5400572025,"SUBDIRECCION DE GESTION INMOBILIARIA Y DEL ESPACIO PUBLICO","PRESENCIAL","DERECHO DE PETICION DE INTERES GENERAL",15,"GESTIONADO"]
[null,5402462025,"SUBDIRECCION DE GESTION INMOBILIARIA Y DEL ESPACIO PUBLICO","E-MAIL","DERECHO DE PETICION DE INTERES GENERAL",15,"GESTIONADO"]
[null,5412172025,"SUBDIRECCION DE GESTION INMOBILIARIA Y DEL ESPACIO PUBLICO","E-MAIL","DERECHO DE PETICION DE INTERES GENERAL",15,"GESTIONADO"]
[null,5416192025,"SUBDIRECCION DE GESTION INMOBILIARIA Y DEL ESPACIO PUBLICO","E-MAIL","DERECHO DE PETICION DE INTERES GENERAL",14,"GESTIONADO"]
[null,5417362025,"SUBDIRECCION DE GESTION INMOBILIARIA Y DEL ESPACIO PUBLICO","E-MAIL","DERECHO DE PETICION DE INTERES GENERAL",14,"GESTIONADO"]
[null,5420212025,"SUBDIRECCION DE GESTION INMOBILIARIA Y DEL ESPACIO PUBLICO","WEB","DERECHO DE PETICION DE INTERES GENERAL",14,"GESTIONADO"]
[null,5438922025,"SUBDIRECCION DE GESTION INMOBILIARIA Y DEL ESPACIO PUBLICO","E-MAIL","DERECHO DE PETICION DE INTERES GENERAL",14,"GESTIONADO"]
[null,5444852025,"SUBDIRECCION DE GESTION INMOBILIARIA Y DEL ESPACIO PUBLICO","E-MAIL","DERECHO DE PETICION DE INTERES GENERAL",15,"GESTIONADO"]
[null,5448072025,"SUBDIRECCION DE GESTION INMOBILIARIA Y DEL ESPACIO PUBLICO","E-MAIL","DERECHO DE PETICION DE INTERES GENERAL",15,"GESTIONADO"]
[null,5450442025,"SUBDIRECCION DE REGISTRO INMOBILIARIO","E-MAIL","DERECHO DE PETICION DE INTERES PARTICULAR",6,"GESTIONADO"]
[null,5473292025,"SUBDIRECCION DE GESTION INMOBILIARIA Y DEL ESPACIO PUBLICO","WEB","CONSULTA",14,"PENDIENTE"]
[null,5474292025,"SUBDIRECCION DE GESTION INMOBILIARIA Y DEL ESPACIO PUBLICO","E-MAIL","DERECHO DE PETICION DE INTERES GENERAL",14,"GESTIONADO"]
[null,5475772025,"SUBDIRECCION DE GESTION INMOBILIARIA Y DEL ESPACIO PUBLICO","E-MAIL","DERECHO DE PETICION DE INTERES GENERAL",14,"GESTIONADO"]
[null,5476452025,"SUBDIRECCION DE GESTION INMOBILIARIA Y DEL ESPACIO PUBLICO","WEB","CONSULTA",14,"PENDIENTE"]
[null,5516782025,"SUBDIRECCION DE GESTION CORPORATIVA","E-MAIL","DERECHO DE PETICION DE INTERES GENERAL",13,"PENDIENTE"]
[null,5521572025,"SUBDIRECCION DE GESTION INMOBILIARIA Y DEL ESPACIO PUBLICO","WEB","DERECHO DE PETICION DE INTERES GENERAL",11,"PENDIENTE"]
[null,5521952025,"OFICINA DE CONTROL DISCIPLINARIO INTERNO","WEB","DERECHO DE PETICION DE INTERES GENERAL",2,"PENDIENTE"]
[null,5544872025,"SUBDIRECCION DE GESTION INMOBILIARIA Y DEL ESPACIO PUBLICO","E-MAIL","DERECHO DE PETICION DE INTERES GENERAL",12,"PENDIENTE"]
[null,5548972025,"SUBDIRECCION DE GESTION INMOBILIARIA Y DEL ESPACIO PUBLICO","E-MAIL","DERECHO DE PETICION DE INTERES GENERAL",14,"GESTIONADO"]
[null,5549592025,"SUBDIRECCION DE GESTION INMOBILIARIA Y DEL ESPACIO PUBLICO","E-MAIL","DERECHO DE PETICION DE INTERES GENERAL",12,"PENDIENTE"]
[null,5550132025,"SUBDIRECCION DE GESTION INMOBILIARIA Y DEL ESPACIO PUBLICO","E-MAIL","DERECHO DE PETICION DE INTERES GENERAL",13,"PENDIENTE"]
[null,5550842025,"OFICINA DE CONTROL DISCIPLINARIO INTERNO","WEB","DERECHO DE PETICION DE INTERES GENERAL",1,"GESTIONADO"]
[null,5556142025,"SUBDIRECCION DE GESTION INMOBILIARIA Y DEL ESPACIO PUBLICO","E-MAIL","DERECHO DE PETICION DE INTERES GENERAL",12,"PENDIENTE"]
[null,5562532025,"SUBDIRECCION DE GESTION INMOBILIARIA Y DEL ESPACIO PUBLICO","WEB","DERECHO DE PETICION DE INTERES PARTICULAR",12,"PENDIENTE"]
[null,5566402025,"OFICINA DE CONTROL DISCIPLINARIO INTERNO","WEB","DERECHO DE PETICION DE INTERES GENERAL",1,"GESTIONADO"]
[null,5584462025,"SUBDIRECCION DE GESTION INMOBILIARIA Y DEL ESPACIO PUBLICO","E-MAIL","DERECHO DE PETICION DE INTERES GENERAL",11,"PENDIENTE"]
[null,5586962025,"OFICINA DE CONTROL DISCIPLINARIO INTERNO","WEB","DERECHO DE PETICION DE INTERES GENERAL",1,"GESTIONADO"]
[null,5593432025,"SUBDIRECCION DE GESTION INMOBILIARIA Y DEL ESPACIO PUBLICO","E-MAIL","DERECHO DE PETICION DE INTERES GENERAL",11,"PENDIENTE"]
[null,5601192025,"SUBDIRECCION DE GESTION INMOBILIARIA Y DEL ESPACIO PUBLICO","E-MAIL","DERECHO DE PETICION DE INTERES GENERAL",3,"PENDIENTE"]
[null,5620762025,"SUBDIRECCION DE GESTION INMOBILIARIA Y DEL ESPACIO PUBLICO","WEB","DERECHO DE PETICION DE INTERES GENERAL",10,"PENDIENTE"]
[null,5620782025,"SUBDIRECCION DE GESTION INMOBILIARIA Y DEL ESPACIO PUBLICO","WEB","DERECHO DE PETICION DE INTERES GENERAL",10,"PENDIENTE"]
[null,5630642025,"OFICINA JURIDICA","E-MAIL","DERECHO DE PETICION DE INTERES PARTICULAR",4,"GESTIONADO"]
[null,5634322025,"SUBDIRECCION DE GESTION INMOBILIARIA Y DEL ESPACIO PUBLICO","ESCRITO","DERECHO DE PETICION DE INTERES PARTICULAR",10,"PENDIENTE"]
[null,5636482025,"SUBDIRECCION DE GESTION INMOBILIARIA Y DEL ESPACIO PUBLICO","E-MAIL","DERECHO DE PETICION DE INTERES PARTICULAR",10,"PENDIENTE"]
[null,5637272025,"OFICINA DE CONTROL DISCIPLINARIO INTERNO","WEB","DERECHO DE PETICION DE INTERES GENERAL",1,"GESTIONADO"]
[null,5649712025,"OFICINA DE CONTROL DISCIPLINARIO INTERNO","WEB","DERECHO DE PETICION DE INTERES GENERAL",1,"GESTIONADO"]
[null,5660822025,"SUBDIRECCION DE GESTION INMOBILIARIA Y DEL ESPACIO PUBLICO","E-MAIL","CONSULTA",9,"PENDIENTE"]
[null,5662882025,"OFICINA DE CONTROL DISCIPLINARIO INTERNO","WEB","DERECHO DE PETICION DE INTERES GENERAL",1,"GESTIONADO"]
[null,5665602025,"SUBDIRECCION DE GESTION INMOBILIARIA Y DEL ESPACIO PUBLICO","PRESENCIAL","DERECHO DE PETICION DE INTERES GENERAL",11,"PENDIENTE"]
[null,5665762025,"OFICINA JURIDICA","E-MAIL","CONSULTA",8,"PENDIENTE"]
[null,5668642025,"SUBDIRECCION DE GESTION INMOBILIARIA Y DEL ESPACIO PUBLICO","E-MAIL","DERECHO DE PETICION DE INTERES GENERAL",9,"PENDIENTE"]
[null,5669712025,"OFICINA JURIDICA","ESCRITO","CONSULTA",8,"PENDIENTE"]
[null,5678672025,"SUBDIRECCION DE GESTION INMOBILIARIA Y DEL ESPACIO PUBLICO","WEB","RECLAMO",9,"PENDIENTE"]
[null,5692232025,"SUBDIRECCION DE GESTION INMOBILIARIA Y DEL ESPACIO PUBLICO","E-MAIL","DERECHO DE PETICION DE INTERES PARTICULAR",8,"PENDIENTE"]
[null,5694602025,"SUBDIRECCION DE GESTION INMOBILIARIA Y DEL ESPACIO PUBLICO","E-MAIL","DERECHO DE PETICION DE INTERES GENERAL",7,"PENDIENTE"]
[null,5696162025,"SUBDIRECCION DE GESTION INMOBILIARIA Y DEL ESPACIO PUBLICO","E-MAIL","DERECHO DE PETICION DE INTERES GENERAL",8,"PENDIENTE"]
[null,5704862025,"SUBDIRECCION DE GESTION INMOBILIARIA Y DEL ESPACIO PUBLICO","E-MAIL","DERECHO DE PETICION DE INTERES GENERAL",8,"PENDIENTE"]
[null,5707252025,"SUBDIRECCION DE GESTION INMOBILIARIA Y DEL ESPACIO PUBLICO","WEB","CONSULTA",8,"PENDIENTE"]
[null,5712792025,"SUBDIRECCION DE GESTION INMOBILIARIA Y DEL ESPACIO PUBLICO","WEB","CONSULTA",8,"PENDIENTE"]
[null,5715182025,"OFICINA DE CONTROL DISCIPLINARIO INTERNO","WEB","DERECHO DE PETICION DE INTERES PARTICULAR",1,"GESTIONADO"]
[null,5726502025,"SUBDIRECCION DE GESTION INMOBILIARIA Y DEL ESPACIO PUBLICO","E-MAIL","DERECHO DE PETICION DE INTERES GENERAL",7,"PENDIENTE"]
[null,5734842025,"OFICINA JURIDICA","E-MAIL","CONSULTA",7,"PENDIENTE"]
[null,5735082025,"OFICINA JURIDICA","E-MAIL","CONSULTA",7,"PENDIENTE"]
[null,5738532025,"OFICINA JURIDICA","E-MAIL","CONSULTA",7,"PENDIENTE"]
[null,5766262025,"OFICINA JURIDICA","WEB","SOLICITUD DE COPIA",6,"PENDIENTE"]
[null,5769032025,"SUBDIRECCION DE GESTION INMOBILIARIA Y DEL ESPACIO PUBLICO","WEB","CONSULTA",4,"PENDIENTE"]
[null,5774832025,"SUBDIRECCION DE GESTION INMOBILIARIA Y DEL ESPACIO PUBLICO","WEB","SUGERENCIA",6,"PENDIENTE"]
[null,5775912025,"SUBDIRECCION DE GESTION INMOBILIARIA Y DEL ESPACIO PUBLICO","WEB","CONSULTA",6,"PENDIENTE"]
[null,5789102025,"SUBDIRECCION DE GESTION INMOBILIARIA Y DEL ESPACIO PUBLICO","E-MAIL","DERECHO DE PETICION DE INTERES GENERAL",5,"PENDIENTE"]
[null,5790592025,"SUBDIRECCION DE GESTION INMOBILIARIA Y DEL ESPACIO PUBLICO","E-MAIL","DERECHO DE PETICION DE INTERES GENERAL",5,"PENDIENTE"]
[null,5792562025,"SUBDIRECCION DE GESTION INMOBILIARIA Y DEL ESPACIO PUBLICO","E-MAIL","DERECHO DE PETICION DE INTERES GENERAL",5,"PENDIENTE"]
[null,5794832025,"OFICINA DE CONTROL DISCIPLINARIO INTERNO","BUZON","DERECHO DE PETICION DE INTERES PARTICULAR",5,"PENDIENTE"]
[null,5801432025,"OFICINA JURIDICA","WEB","SOLICITUD DE ACCESO A LA INFORMACION",4,"PENDIENTE"]
[null,5813242025,"SUBDIRECCION DE GESTION INMOBILIARIA Y DEL ESPACIO PUBLICO","WEB","DERECHO DE PETICION DE INTERES GENERAL",5,"PENDIENTE"]
[null,5822612025,"SUBDIRECCION DE GESTION INMOBILIARIA Y DEL ESPACIO PUBLICO","E-MAIL","DERECHO DE PETICION DE INTERES GENERAL",4,"PENDIENTE"]
[null,5823302025,"OFICINA DE CONTROL DISCIPLINARIO INTERNO","E-MAIL","DERECHO DE PETICION DE INTERES GENERAL",1,"PENDIENTE"]
[null,5834292025,"SUBDIRECCION DE GESTION INMOBILIARIA Y DEL ESPACIO PUBLICO","E-MAIL","DERECHO DE PETICION DE INTERES PARTICULAR",4,"PENDIENTE"]
[null,5839142025,"SUBDIRECCION DE REGISTRO INMOBILIARIO","WEB","DERECHO DE PETICION DE INTERES PARTICULAR",4,"PENDIENTE"]
[null,5864852025,"OFICINA DE CONTROL DISCIPLINARIO INTERNO","WEB","DERECHO DE PETICION DE INTERES GENERAL",2,"PENDIENTE"]
[null,5865892025,"SUBDIRECCION DE GESTION INMOBILIARIA Y DEL ESPACIO PUBLICO","WEB","DERECHO DE PETICION DE INTERES PARTICULAR",3,"PENDIENTE"]
[null,5871462025,"SUBDIRECCION DE GESTION INMOBILIARIA Y DEL ESPACIO PUBLICO","WEB","DERECHO DE PETICION DE INTERES PARTICULAR",2,"PENDIENTE"]
[null,5874142025,"SUBDIRECCION DE GESTION INMOBILIARIA Y DEL ESPACIO PUBLICO","WEB","DERECHO DE PETICION DE INTERES PARTICULAR",3,"PENDIENTE"]
[null,5888282025,"SUBDIRECCION DE GESTION INMOBILIARIA Y DEL ESPACIO PUBLICO","E-MAIL","DERECHO DE PETICION DE INTERES GENERAL",2,"PENDIENTE"]
[null,5893692025,"SUBDIRECCION DE REGISTRO INMOBILIARIO","E-MAIL","CONSULTA",1,"PENDIENTE"]
[null,5913682025,"OFICINA JURIDICA","E-MAIL","CONSULTA",1,"PENDIENTE"]
[null,5923752025,"SUBDIRECCION DE GESTION INMOBILIARIA Y DEL ESPACIO PUBLICO","E-MAIL","DERECHO DE PETICION DE INTERES GENERAL",1,"PENDIENTE"]
[null,5927772025,"SUBDIRECCION DE GESTION INMOBILIARIA Y DEL ESPACIO PUBLICO","E-MAIL","DERECHO DE PETICION DE INTERES PARTICULAR",1,"PENDIENTE"]
[null,5933242025,"SUBDIRECCION DE REGISTRO INMOBILIARIO","WEB","CONSULTA",1,"PENDIENTE"]
[null,5940382025,"SUBDIRECCION DE GESTION INMOBILIARIA Y DEL ESPACIO PUBLICO","E-MAIL","DERECHO DE PETICION DE INTERES GENERAL",1,"PENDIENTE"]
[null,5946932025,"SUBDIRECCION DE GESTION INMOBILIARIA Y DEL ESPACIO PUBLICO","E-MAIL","DERECHO DE PETICION DE INTERES PARTICULAR",1,"PENDIENTE"]

{"sheet":"Peticiones ciudadanas por tema","index":5,"n_rows":38,"n_cols":6,"rows_kept":38,"cut":false,"hidden":false,"merged":[[37,1,38,7],[8,2,9,5],[10,2,10,5],[11,1,12,5],[14,1,18,1],[13,5,20,7],[19,1,22,1],[23,1,25,1],[26,1,33,1],[34,1,36,1]]}
[]
[]
[]
[]
[]
[]
[]
[]
[]
[]
[]
[]
[]
[null,"Dependencia","Tema de la petición","cantidad",null,"En el cuadro se presenta el TOP 5 por dependencia, de los temas mas frecuentes asociados a los trámites y servicios en las PQRS presentadas por la ciudadanía, durante el periodo en estudio y asignadas a la entidad, registrados en el formato 127- FORAC-19 establecido en el Sistema de Gestión Institucional."]
[null,"AREA DE ATENCION A LA CIUDADANIA","Competencia otras entidades",618]
[null,null,"Certificación de la propiedad inmobiliaria",22]
[null,null,"Asesoría en temas de espacio público",22]
[null,null,"Peticiones entre entidades",14]
[null,null,"Sin información de fondo",13]
[null,"OFICINA DE CONTROL DISCIPLINARIO INTERNO","Competencia otras entidades",11]
[null,null,"Desempeño de la entidad",3]
[null,null,"Asuntos disciplinarios",1]
[null,null,"Asesoría en temas de espacio público",1]
[null,"SUBDIRECCION DE REGISTRO INMOBILIARIO","Desempeño de la entidad",4]
[null,null,"Copia de acta",1]
[null,null,"Solicitud de copia",1]
[null,"SUBDIRECCION DE GESTION INMOBILIARIA Y DEL ESPACIO PUBLICO","Asesoría en temas de espacio público",25]
[null,null,"Desempeño de la entidad",25]
[null,null,"Competencia otras entidades",13]
[null,null,"Mantenimiento mobiliario urbano (paraderos y bancas)",1]
[null,null,"Copia de acta",1]
[null,null,"Certificación de la propiedad inmobiliaria",1]
[null,null,"Instalación de mobiliario urbano",1]
[null,null,"Bogotá a Cielo Abierto BACA 2.0 - Viabilidad Decreto 070 / 2022 ",1]
[null,"OFICINA JURIDICA","Desempeño de la entidad",6]
[null,null,"Solicitud de copia",1]
[null,null,"Asuntos Jurídicos",1]
[null,"Nota: De conformidad con el Decreto Distrital 478 del 25 de octubre de 2022 “Por medio del cual modifica la planta de empleos del Departamento Administrativo de la Defensoría del Espacio Público”, se hace necesario modificó  y creó algunos nombres de las dependencias, el trámite se encuentra en proceso de ajuste dentro del Sistema Bogotá Te Escucha:\n• Despacho se denominó Dirección\n• Subdirección Administrativa y Financiera y de Control Disciplinario se denonimó Oficina de Control Disciplinario Interno \n• Oficina de Sistemas se denominó Oficina de Tecnologías de la Información y las Comunicaciones \n• Subdirección de Administración Inmobiliaria y de Espacio Publico se denominó Subdirección de Gestión Inmobiliaria y del Espacio Publico\n• Subdirección Administrativa y Financiera se denominó Subdirección de Gestión Corporativa \n• Se creó Oficina Asesora de Comunicaciones "]

{"sheet":"Recomendaciones a la ciudadanía","index":6,"n_rows":13,"n_cols":11,"rows_kept":13,"cut":false,"hidden":false,"merged":[[10,1,23,9],[12,10,12,13],[25,3,25,14],[27,3,27,13]]}
[]
[]
[]
[]
[]
[]
[]
[]
[]
[]
[null,"Se recomienda a la ciudadanía y a otras entidades del distrito, para el registro y/o asignación de peticiones, Quejas, Reclamos o Sugerencias-PQRS tener en cuenta la competencia en materia de recuperación de espacio público y el alcance de  las competencias del DADEP.\n\nLo anterior para evitar los traslados entre entidades y así mejorar la oportunidad de las respuestas de conformidad con los  términos de Ley."]
[]
[null,null,null,null,null,null,null,null,null,null,"Preguntas frecuentes"]

{"sheet":"para pqr","index":7,"n_rows":2252,"n_cols":7,"rows_kept":2252,"cut":false,"hidden":true,"merged":[[2208,0,2212,0],[2182,0,2186,0],[2187,0,2190,0],[2191,0,2195,0],[2196,0,2200,0],[2201,0,2205,0],[2206,0,2207,0]]}
["REGISTRADAS Y RECIBIDAS"]
["Número petición\nNumero de registro en el Sistema","Dependencia:\nNombre asociado al usuario que tiene a cargo la petición ","Canal:\nNombre del canal parametrizado en el sistema por el cual fue registrada la petición","Tipología actualizada: \nTipo de documento utilizado por la entidad","Días gestión\nDías calendario transcurridos desde la fecha de inicio de términos hasta el último día del mes","Estado del Requerimiento\n \"Gestionado\" o \"Pendiente\" de respuesta definitiva por  parte de la Defensoría del Espacio Público o de las entidades competentes"]
["Número petición","Dependencia","Canal","Tipo petición","Días gestión","Tipo reporte"]
[2024192021,"AREA DE ATENCION A LA CIUDADANIA","WEB","DERECHO DE PETICION DE INTERES GENERAL",86,"GESTIONADOS"]
[2842242021,"SUBDIRECCION DE REGISTRO INMOBILIARIO","ESCRITO","DERECHO DE PETICION DE INTERES PARTICULAR",23,"GESTIONADOS"]
[2861072021,"SUBDIRECCION DE ADMINISTRACION INMOBILIARIA Y DE ESPACIO PUBLICO","WEB","DERECHO DE PETICION DE INTERES GENERAL",26,"GESTIONADOS"]
[2950712021,"SUBDIRECCION DE REGISTRO INMOBILIARIO","WEB","DERECHO DE PETICION DE INTERES GENERAL",24,"GESTIONADOS"]
[2991912021,"SUBDIRECCION DE REGISTRO INMOBILIARIO","WEB","CONSULTA",34,"GESTIONADOS"]
[2993652021,"AREA DE ATENCION A LA CIUDADANIA","WEB","DERECHO DE PETICION DE INTERES PARTICULAR",1,"GESTIONADOS"]
[2998152021,"AREA DE ATENCION A LA CIUDADANIA","ESCRITO","DERECHO DE PETICION DE INTERES PARTICULAR",29,"GESTIONADOS"]
[2998262021,"SUBDIRECCION DE ADMINISTRACION INMOBILIARIA Y DE ESPACIO PUBLICO","ESCRITO","DERECHO DE PETICION DE INTERES PARTICULAR",29,"GESTIONADOS"]
[2999072021,"SUBDIRECCION DE REGISTRO INMOBILIARIO","ESCRITO","DERECHO DE PETICION DE INTERES PARTICULAR",29,"GESTIONADOS"]
[3015422021,"AREA DE ATENCION A LA CIUDADANIA","ESCRITO","SOLICITUD DE COPIA",29,"GESTIONADOS"]
[3015422021,"SUBDIRECCION DE ADMINISTRACION INMOBILIARIA Y DE ESPACIO PUBLICO","ESCRITO","SOLICITUD DE COPIA",29,"GESTIONADOS"]
[3015422021,"SUBDIRECCION DE REGISTRO INMOBILIARIO","ESCRITO","SOLICITUD DE COPIA",30,"GESTIONADOS"]
[3033252021,"AREA DE ATENCION A LA CIUDADANIA","E-MAIL","DERECHO DE PETICION DE INTERES GENERAL",1,"GESTIONADOS"]
[3057872021,"SUBDIRECCION DE ADMINISTRACION INMOBILIARIA Y DE ESPACIO PUBLICO","WEB","DERECHO DE PETICION DE INTERES GENERAL",27,"GESTIONADOS"]
[3058842021,"SUBDIRECCION DE ADMINISTRACION INMOBILIARIA Y DE ESPACIO PUBLICO","ESCRITO","DERECHO DE PETICION DE INTERES PARTICULAR",27,"GESTIONADOS"]
[3066402021,"SUBDIRECCION DE ADMINISTRACION INMOBILIARIA Y DE ESPACIO PUBLICO","ESCRITO","DERECHO DE PETICION DE INTERES PARTICULAR",27,"GESTIONADOS"]
[3066402021,"SUBDIRECCION DE REGISTRO INMOBILIARIO","ESCRITO","DERECHO DE PETICION DE INTERES PARTICULAR",29,"GESTIONADOS"]
[3067332021,"SUBDIRECCION DE ADMINISTRACION INMOBILIARIA Y DE ESPACIO PUBLICO","ESCRITO","DERECHO DE PETICION DE INTERES PARTICULAR",27,"GESTIONADOS"]
[3067362021,"SUBDIRECCION DE ADMINISTRACION INMOBILIARIA Y DE ESPACIO PUBLICO","ESCRITO","DERECHO DE PETICION DE INTERES PARTICULAR",27,"GESTIONADOS"]
[3067402021,"SUBDIRECCION DE ADMINISTRACION INMOBILIARIA Y DE ESPACIO PUBLICO","ESCRITO","DERECHO DE PETICION DE INTERES PARTICULAR",27,"GESTIONADOS"]
[3067802021,"SUBDIRECCION DE ADMINISTRACION INMOBILIARIA Y DE ESPACIO PUBLICO","ESCRITO","DERECHO DE PETICION DE INTERES PARTICULAR",27,"GESTIONADOS"]
[3071582021,"SUBDIRECCION DE REGISTRO INMOBILIARIO","ESCRITO","DERECHO DE PETICION DE INTERES PARTICULAR",30,"GESTIONADOS"]
[3071972021,"SUBDIRECCION DE ADMINISTRACION INMOBILIARIA Y DE ESPACIO PUBLICO","ESCRITO","DERECHO DE PETICION DE INTERES PARTICULAR",26,"GESTIONADOS"]
[3072662021,"SUBDIRECCION DE ADMINISTRACION INMOBILIARIA Y DE ESPACIO PUBLICO","ESCRITO","DERECHO DE PETICION DE INTERES PARTICULAR",26,"GESTIONADOS"]
[3074242021,"SUBDIRECCION DE ADMINISTRACION INMOBILIARIA Y DE ESPACIO PUBLICO","ESCRITO","DERECHO DE PETICION DE INTERES PARTICULAR",28,"GESTIONADOS"]
[3074292021,"SUBDIRECCION DE ADMINISTRACION INMOBILIARIA Y DE ESPACIO PUBLICO","WEB","DERECHO DE PETICION DE INTERES PARTICULAR",26,"GESTIONADOS"]
[3074602021,"SUBDIRECCION DE ADMINISTRACION INMOBILIARIA Y DE ESPACIO PUBLICO","WEB","DERECHO DE PETICION DE INTERES PARTICULAR",25,"GESTIONADOS"]
[3075822021,"SUBDIRECCION DE ADMINISTRACION INMOBILIARIA Y DE ESPACIO PUBLICO","WEB","CONSULTA",29,"GESTIONADOS"]
[3085172021,"SUBDIRECCION DE ADMINISTRACION INMOBILIARIA Y DE ESPACIO PUBLICO","WEB","CONSULTA",29,"GESTIONADOS"]
[3086572021,"AREA DE ATENCION A LA CIUDADANIA","WEB","DERECHO DE PETICION DE INTERES PARTICULAR",28,"GESTIONADOS"]
[3086572021,"SUBDIRECCION ADMINISTRATIVA  FINANCIERA Y DE CONTROL DISCIPLINARIO","WEB","DERECHO DE PETICION DE INTERES PARTICULAR",28,"GESTIONADOS"]
[3086572021,"SUBDIRECCION DE ADMINISTRACION INMOBILIARIA Y DE ESPACIO PUBLICO","WEB","DERECHO DE PETICION DE INTERES PARTICULAR",26,"GESTIONADOS"]
[3086962021,"SUBDIRECCION DE ADMINISTRACION INMOBILIARIA Y DE ESPACIO PUBLICO","WEB","DERECHO DE PETICION DE INTERES GENERAL",26,"GESTIONADOS"]
[3089232021,"SUBDIRECCION DE ADMINISTRACION INMOBILIARIA Y DE ESPACIO PUBLICO","WEB","DERECHO DE PETICION DE INTERES GENERAL",27,"PENDIENTE"]
[3089252021,"SUBDIRECCION DE ADMINISTRACION INMOBILIARIA Y DE ESPACIO PUBLICO","WEB","DERECHO DE PETICION DE INTERES GENERAL",27,"GESTIONADOS"]
[3090522021,"SUBDIRECCION DE ADMINISTRACION INMOBILIARIA Y DE ESPACIO PUBLICO","WEB","QUEJA",26,"GESTIONADOS"]
[3090862021,"SUBDIRECCION DE ADMINISTRACION INMOBILIARIA Y DE ESPACIO PUBLICO","WEB","DERECHO DE PETICION DE INTERES GENERAL",26,"GESTIONADOS"]
[3091092021,"SUBDIRECCION DE ADMINISTRACION INMOBILIARIA Y DE ESPACIO PUBLICO","WEB","DERECHO DE PETICION DE INTERES GENERAL",26,"GESTIONADOS"]
[3096512021,"SUBDIRECCION DE ADMINISTRACION INMOBILIARIA Y DE ESPACIO PUBLICO","ESCRITO","DERECHO DE PETICION DE INTERES PARTICULAR",25,"GESTIONADOS"]
[3096512021,"SUBDIRECCION DE REGISTRO INMOBILIARIO","ESCRITO","DERECHO DE PETICION DE INTERES PARTICULAR",28,"GESTIONADOS"]
[3097292021,"SUBDIRECCION DE ADMINISTRACION INMOBILIARIA Y DE ESPACIO PUBLICO","ESCRITO","DERECHO DE PETICION DE INTERES PARTICULAR",25,"GESTIONADOS"]
[3097332021,"SUBDIRECCION DE ADMINISTRACION INMOBILIARIA Y DE ESPACIO PUBLICO","ESCRITO","DERECHO DE PETICION DE INTERES PARTICULAR",26,"GESTIONADOS"]
[3097432021,"AREA DE ATENCION A LA CIUDADANIA","ESCRITO","DERECHO DE PETICION DE INTERES PARTICULAR",35,"GESTIONADOS"]
[3097432021,"SUBDIRECCION DE ADMINISTRACION INMOBILIARIA Y DE ESPACIO PUBLICO","ESCRITO","DERECHO DE PETICION DE INTERES PARTICULAR",29,"GESTIONADOS"]
[3097522021,"SUBDIRECCION DE ADMINISTRACION INMOBILIARIA Y DE ESPACIO PUBLICO","WEB","DERECHO DE PETICION DE INTERES PARTICULAR",26,"GESTIONADOS"]
[3097762021,"SUBDIRECCION DE REGISTRO INMOBILIARIO","ESCRITO","DERECHO DE PETICION DE INTERES PARTICULAR",27,"GESTIONADOS"]
[3098382021,"SUBDIRECCION DE ADMINISTRACION INMOBILIARIA Y DE ESPACIO PUBLICO","WEB","DERECHO DE PETICION DE INTERES GENERAL",24,"GESTIONADOS"]
[3099322021,"SUBDIRECCION DE REGISTRO INMOBILIARIO","ESCRITO","DERECHO DE PETICION DE INTERES PARTICULAR",26,"GESTIONADOS"]
[3100742021,"SUBDIRECCION DE ADMINISTRACION INMOBILIARIA Y DE ESPACIO PUBLICO","WEB","DERECHO DE PETICION DE INTERES GENERAL",24,"GESTIONADOS"]
[3102452021,"SUBDIRECCION DE REGISTRO INMOBILIARIO","ESCRITO","DERECHO DE PETICION DE INTERES PARTICULAR",28,"GESTIONADOS"]
[3109932021,"SUBDIRECCION DE ADMINISTRACION INMOBILIARIA Y DE ESPACIO PUBLICO","TELEFONO","DERECHO DE PETICION DE INTERES GENERAL",25,"GESTIONADOS"]
[3110772021,"SUBDIRECCION DE REGISTRO INMOBILIARIO","WEB","DERECHO DE PETICION DE INTERES GENERAL",27,"GESTIONADOS"]
[3115712021,"SUBDIRECCION DE ADMINISTRACION INMOBILIARIA Y DE ESPACIO PUBLICO","WEB","DERECHO DE PETICION DE INTERES GENERAL",25,"GESTIONADOS"]
[3117872021,"SUBDIRECCION DE ADMINISTRACION INMOBILIARIA Y DE ESPACIO PUBLICO","ESCRITO","DERECHO DE PETICION DE INTERES PARTICULAR",28,"GESTIONADOS"]
[3118262021,"SUBDIRECCION DE ADMINISTRACION INMOBILIARIA Y DE ESPACIO PUBLICO","WEB","DERECHO DE PETICION DE INTERES GENERAL",25,"GESTIONADOS"]
[3118442021,"SUBDIRECCION DE ADMINISTRACION INMOBILIARIA Y DE ESPACIO PUBLICO","ESCRITO","DERECHO DE PETICION DE INTERES PARTICULAR",25,"GESTIONADOS"]
[3119852021,"SUBDIRECCION DE ADMINISTRACION INMOBILIARIA Y DE ESPACIO PUBLICO","WEB","RECLAMO",25,"GESTIONADOS"]
[3122132021,"SUBDIRECCION DE ADMINISTRACION INMOBILIARIA Y DE ESPACIO PUBLICO","WEB","DERECHO DE PETICION DE INTERES GENERAL",25,"GESTIONADOS"]
[3125862021,"SUBDIRECCION DE REGISTRO INMOBILIARIO","ESCRITO","DERECHO DE PETICION DE INTERES PARTICULAR",22,"GESTIONADOS"]
[3125872021,"SUBDIRECCION DE ADMINISTRACION INMOBILIARIA Y DE ESPACIO PUBLICO","ESCRITO","DERECHO DE PETICION DE INTERES PARTICULAR",25,"GESTIONADOS"]
[3125892021,"SUBDIRECCION DE ADMINISTRACION INMOBILIARIA Y DE ESPACIO PUBLICO","ESCRITO","DERECHO DE PETICION DE INTERES GENERAL",25,"GESTIONADOS"]
[3125932021,"SUBDIRECCION DE REGISTRO INMOBILIARIO","ESCRITO","DERECHO DE PETICION DE INTERES PARTICULAR",25,"GESTIONADOS"]
[3126022021,"SUBDIRECCION DE REGISTRO INMOBILIARIO","ESCRITO","DERECHO DE PETICION DE INTERES PARTICULAR",26,"GESTIONADOS"]
[3126202021,"SUBDIRECCION DE ADMINISTRACION INMOBILIARIA Y DE ESPACIO PUBLICO","ESCRITO","DERECHO DE PETICION DE INTERES PARTICULAR",25,"GESTIONADOS"]
[3126302021,"AREA DE ATENCION A LA CIUDADANIA","ESCRITO","DERECHO DE PETICION DE INTERES PARTICULAR",41,"GESTIONADOS"]
[3126302021,"SUBDIRECCION DE ADMINISTRACION INMOBILIARIA Y DE ESPACIO PUBLICO","ESCRITO","DERECHO DE PETICION DE INTERES PARTICULAR",25,"GESTIONADOS"]
[3126852021,"AREA DE ATENCION A LA CIUDADANIA","ESCRITO","DERECHO DE PETICION DE INTERES GENERAL",25,"GESTIONADOS"]
[3126852021,"SUBDIRECCION DE ADMINISTRACION INMOBILIARIA Y DE ESPACIO PUBLICO","ESCRITO","DERECHO DE PETICION DE INTERES GENERAL",25,"GESTIONADOS"]
[3128382021,"SUBDIRECCION DE ADMINISTRACION INMOBILIARIA Y DE ESPACIO PUBLICO","WEB","DERECHO DE PETICION DE INTERES GENERAL",25,"GESTIONADOS"]
[3129282021,"SUBDIRECCION DE ADMINISTRACION INMOBILIARIA Y DE ESPACIO PUBLICO","ESCRITO","DERECHO DE PETICION DE INTERES PARTICULAR",25,"GESTIONADOS"]
[3129862021,"SUBDIRECCION DE ADMINISTRACION INMOBILIARIA Y DE ESPACIO PUBLICO","ESCRITO","DERECHO DE PETICION DE INTERES PARTICULAR",25,"GESTIONADOS"]
[3129992021,"SUBDIRECCION DE ADMINISTRACION INMOBILIARIA Y DE ESPACIO PUBLICO","WEB","QUEJA",25,"GESTIONADOS"]
[3130412021,"SUBDIRECCION DE ADMINISTRACION INMOBILIARIA Y DE ESPACIO PUBLICO","ESCRITO","DERECHO DE PETICION DE INTERES PARTICULAR",25,"GESTIONADOS"]
[3130602021,"SUBDIRECCION DE ADMINISTRACION INMOBILIARIA Y DE ESPACIO PUBLICO","E-MAIL","DERECHO DE PETICION DE INTERES PARTICULAR",25,"GESTIONADOS"]
[3131602021,"SUBDIRECCION DE ADMINISTRACION INMOBILIARIA Y DE ESPACIO PUBLICO","ESCRITO","DERECHO DE PETICION DE INTERES PARTICULAR",25,"GESTIONADOS"]
[3132302021,"SUBDIRECCION DE ADMINISTRACION INMOBILIARIA Y DE ESPACIO PUBLICO","ESCRITO","DERECHO DE PETICION DE INTERES PARTICULAR",25,"GESTIONADOS"]
[3132602021,"SUBDIRECCION DE ADMINISTRACION INMOBILIARIA Y DE ESPACIO PUBLICO","E-MAIL","DERECHO DE PETICION DE INTERES GENERAL",25,"GESTIONADOS"]
[3133822021,"SUBDIRECCION DE ADMINISTRACION INMOBILIARIA Y DE ESPACIO PUBLICO","WEB","DERECHO DE PETICION DE INTERES PARTICULAR",25,"GESTIONADOS"]
[3149112021,"SUBDIRECCION DE ADMINISTRACION INMOBILIARIA Y DE ESPACIO PUBLICO","TELEFONO","DERECHO DE PETICION DE INTERES PARTICULAR",25,"GESTIONADOS"]
[3149492021,"SUBDIRECCION DE ADMINISTRACION INMOBILIARIA Y DE ESPACIO PUBLICO","WEB","QUEJA",26,"GESTIONADOS"]
[3150272021,"SUBDIRECCION DE ADMINISTRACION INMOBILIARIA Y DE ESPACIO PUBLICO","WEB","DERECHO DE PETICION DE INTERES GENERAL",26,"GESTIONADOS"]
[3150282021,"AREA DE ATENCION A LA CIUDADANIA","WEB","DERECHO DE PETICION DE INTERES GENERAL",28,"GESTIONADOS"]
[3150282021,"SUBDIRECCION DE ADMINISTRACION INMOBILIARIA Y DE ESPACIO PUBLICO","WEB","DERECHO DE PETICION DE INTERES GENERAL",28,"GESTIONADOS"]
[3152802021,"SUBDIRECCION DE ADMINISTRACION INMOBILIARIA Y DE ESPACIO PUBLICO","WEB","DERECHO DE PETICION DE INTERES GENERAL",26,"GESTIONADOS"]
[3156922021,"AREA DE ATENCION A LA CIUDADANIA","WEB","QUEJA",23,"GESTIONADOS"]
[3157052021,"AREA DE ATENCION A LA CIUDADANIA","WEB","DERECHO DE PETICION DE INTERES PARTICULAR",1,"GESTIONADOS"]
[3157052021,"SUBDIRECCION DE ADMINISTRACION INMOBILIARIA Y DE ESPACIO PUBLICO","WEB","DERECHO DE PETICION DE INTERES PARTICULAR",11,"PENDIENTE"]
[3157092021,"SUBDIRECCION DE ADMINISTRACION INMOBILIARIA Y DE ESPACIO PUBLICO","ESCRITO","DERECHO DE PETICION DE INTERES PARTICULAR",25,"GESTIONADOS"]
[3157102021,"SUBDIRECCION DE ADMINISTRACION INMOBILIARIA Y DE ESPACIO PUBLICO","ESCRITO","DERECHO DE PETICION DE INTERES PARTICULAR",25,"GESTIONADOS"]
[3157112021,"SUBDIRECCION DE ADMINISTRACION INMOBILIARIA Y DE ESPACIO PUBLICO","ESCRITO","DERECHO DE PETICION DE INTERES PARTICULAR",25,"GESTIONADOS"]
[3157122021,"SUBDIRECCION DE REGISTRO INMOBILIARIO","ESCRITO","DERECHO DE PETICION DE INTERES PARTICULAR",25,"GESTIONADOS"]
[3157132021,"SUBDIRECCION DE ADMINISTRACION INMOBILIARIA Y DE ESPACIO PUBLICO","ESCRITO","DERECHO DE PETICION DE INTERES PARTICULAR",23,"GESTIONADOS"]
[3157152021,"SUBDIRECCION DE ADMINISTRACION INMOBILIARIA Y DE ESPACIO PUBLICO","ESCRITO","DERECHO DE PETICION DE INTERES PARTICULAR",25,"GESTIONADOS"]
[3157182021,"SUBDIRECCION DE ADMINISTRACION INMOBILIARIA Y DE ESPACIO PUBLICO","ESCRITO","DERECHO DE PETICION DE INTERES PARTICULAR",25,"GESTIONADOS"]
[3160972021,"SUBDIRECCION DE ADMINISTRACION INMOBILIARIA Y DE ESPACIO PUBLICO","WEB","QUEJA",25,"GESTIONADOS"]
[3162702021,"SUBDIRECCION DE ADMINISTRACION INMOBILIARIA Y DE ESPACIO PUBLICO","WEB","DERECHO DE PETICION DE INTERES GENERAL",25,"GESTIONADOS"]
[3163562021,"SUBDIRECCION DE ADMINISTRACION INMOBILIARIA Y DE ESPACIO PUBLICO","WEB","QUEJA",25,"GESTIONADOS"]
[3167002021,"SUBDIRECCION DE ADMINISTRACION INMOBILIARIA Y DE ESPACIO PUBLICO","E-MAIL","DERECHO DE PETICION DE INTERES PARTICULAR",28,"GESTIONADOS"]
[3167252021,"SUBDIRECCION DE ADMINISTRACION INMOBILIARIA Y DE ESPACIO PUBLICO","ESCRITO","DERECHO DE PETICION DE INTERES PARTICULAR",24,"GESTIONADOS"]
[3171232021,"SUBDIRECCION DE ADMINISTRACION INMOBILIARIA Y DE ESPACIO PUBLICO","WEB","QUEJA",25,"GESTIONADOS"]
[3171392021,"SUBDIRECCION DE ADMINISTRACION INMOBILIARIA Y DE ESPACIO PUBLICO","WEB","DERECHO DE PETICION DE INTERES GENERAL",25,"GESTIONADOS"]
[3175732021,"SUBDIRECCION DE ADMINISTRACION INMOBILIARIA Y DE ESPACIO PUBLICO","TELEFONO","DERECHO DE PETICION DE INTERES GENERAL",25,"GESTIONADOS"]
[3176722021,"AREA DE ATENCION A LA CIUDADANIA","WEB","SOLICITUD DE ACCESO A LA INFORMACION",13,"GESTIONADOS"]
[3178682021,"SUBDIRECCION DE ADMINISTRACION INMOBILIARIA Y DE ESPACIO PUBLICO","WEB","DERECHO DE PETICION DE INTERES GENERAL",27,"GESTIONADOS"]
[3179292021,"SUBDIRECCION DE ADMINISTRACION INMOBILIARIA Y DE ESPACIO PUBLICO","WEB","QUEJA",27,"GESTIONADOS"]
[3179942021,"SUBDIRECCION DE ADMINISTRACION INMOBILIARIA Y DE ESPACIO PUBLICO","WEB","DERECHO DE PETICION DE INTERES PARTICULAR",27,"GESTIONADOS"]
[3182672021,"SUBDIRECCION DE ADMINISTRACION INMOBILIARIA Y DE ESPACIO PUBLICO","WEB","DERECHO DE PETICION DE INTERES GENERAL",27,"GESTIONADOS"]
[3184432021,"SUBDIRECCION DE ADMINISTRACION INMOBILIARIA Y DE ESPACIO PUBLICO","WEB","DERECHO DE PETICION DE INTERES GENERAL",27,"GESTIONADOS"]
[3185162021,"SUBDIRECCION DE ADMINISTRACION INMOBILIARIA Y DE ESPACIO PUBLICO","ESCRITO","DERECHO DE PETICION DE INTERES GENERAL",23,"GESTIONADOS"]
[3186402021,"SUBDIRECCION DE ADMINISTRACION INMOBILIARIA Y DE ESPACIO PUBLICO","WEB","QUEJA",24,"GESTIONADOS"]
[3186522021,"SUBDIRECCION DE ADMINISTRACION INMOBILIARIA Y DE ESPACIO PUBLICO","ESCRITO","DERECHO DE PETICION DE INTERES PARTICULAR",27,"GESTIONADOS"]
[3186842021,"AREA DE ATENCION A LA CIUDADANIA","WEB","RECLAMO",22,"GESTIONADOS"]
[3187682021,"SUBDIRECCION DE ADMINISTRACION INMOBILIARIA Y DE ESPACIO PUBLICO","ESCRITO","DERECHO DE PETICION DE INTERES PARTICULAR",28,"GESTIONADOS"]
[3187822021,"AREA DE ATENCION A LA CIUDADANIA","ESCRITO","DERECHO DE PETICION DE INTERES PARTICULAR",25,"GESTIONADOS"]
[3187822021,"SUBDIRECCION DE ADMINISTRACION INMOBILIARIA Y DE ESPACIO PUBLICO","ESCRITO","DERECHO DE PETICION DE INTERES PARTICULAR",25,"GESTIONADOS"]
[3187852021,"SUBDIRECCION DE ADMINISTRACION INMOBILIARIA Y DE ESPACIO PUBLICO","ESCRITO","DERECHO DE PETICION DE INTERES PARTICULAR",24,"GESTIONADOS"]
[3187912021,"SUBDIRECCION DE ADMINISTRACION INMOBILIARIA Y DE ESPACIO PUBLICO","ESCRITO","DERECHO DE PETICION DE INTERES PARTICULAR",23,"GESTIONADOS"]
[3188312021,"SUBDIRECCION DE ADMINISTRACION INMOBILIARIA Y DE ESPACIO PUBLICO","ESCRITO","DERECHO DE PETICION DE INTERES GENERAL",23,"GESTIONADOS"]
[3190482021,"SUBDIRECCION DE REGISTRO INMOBILIARIO","WEB","DERECHO DE PETICION DE INTERES PARTICULAR",26,"GESTIONADOS"]
[3191152021,"SUBDIRECCION DE ADMINISTRACION INMOBILIARIA Y DE ESPACIO PUBLICO","ESCRITO","DERECHO DE PETICION DE INTERES GENERAL",27,"GESTIONADOS"]
[3191382021,"SUBDIRECCION DE ADMINISTRACION INMOBILIARIA Y DE ESPACIO PUBLICO","ESCRITO","DERECHO DE PETICION DE INTERES GENERAL",23,"GESTIONADOS"]
[3191582021,"SUBDIRECCION DE ADMINISTRACION INMOBILIARIA Y DE ESPACIO PUBLICO","ESCRITO","DERECHO DE PETICION DE INTERES PARTICULAR",24,"GESTIONADOS"]
[3192772021,"AREA DE ATENCION A LA CIUDADANIA","E-MAIL","DERECHO DE PETICION DE INTERES PARTICULAR",1,"GESTIONADOS"]
[3194262021,"SUBDIRECCION DE ADMINISTRACION INMOBILIARIA Y DE ESPACIO PUBLICO","E-MAIL","DERECHO DE PETICION DE INTERES PARTICULAR",24,"GESTIONADOS"]
[3194302021,"SUBDIRECCION DE ADMINISTRACION INMOBILIARIA Y DE ESPACIO PUBLICO","E-MAIL","DERECHO DE PETICION DE INTERES PARTICULAR",24,"GESTIONADOS"]
[3200452021,"SUBDIRECCION DE ADMINISTRACION INMOBILIARIA Y DE ESPACIO PUBLICO","ESCRITO","DERECHO DE PETICION DE INTERES PARTICULAR",26,"GESTIONADOS"]
[3200582021,"SUBDIRECCION DE ADMINISTRACION INMOBILIARIA Y DE ESPACIO PUBLICO","ESCRITO","DERECHO DE PETICION DE INTERES PARTICULAR",26,"GESTIONADOS"]
[3200702021,"SUBDIRECCION DE ADMINISTRACION INMOBILIARIA Y DE ESPACIO PUBLICO","ESCRITO","DERECHO DE PETICION DE INTERES PARTICULAR",26,"GESTIONADOS"]
[3200852021,"SUBDIRECCION DE ADMINISTRACION INMOBILIARIA Y DE ESPACIO PUBLICO","ESCRITO","CONSULTA",32,"GESTIONADOS"]
[3202812021,"SUBDIRECCION DE ADMINISTRACION INMOBILIARIA Y DE ESPACIO PUBLICO","TELEFONO","DERECHO DE PETICION DE INTERES GENERAL",23,"GESTIONADOS"]
[3204982021,"SUBDIRECCION DE ADMINISTRACION INMOBILIARIA Y DE ESPACIO PUBLICO","ESCRITO","DERECHO DE PETICION DE INTERES PARTICULAR",30,"GESTIONADOS"]
[3205082021,"SUBDIRECCION DE ADMINISTRACION INMOBILIARIA Y DE ESPACIO PUBLICO","ESCRITO","DERECHO DE PETICION DE INTERES PARTICULAR",26,"GESTIONADOS"]
[3205952021,"SUBDIRECCION DE ADMINISTRACION INMOBILIARIA Y DE ESPACIO PUBLICO","WEB","DERECHO DE PETICION DE INTERES PARTICULAR",26,"GESTIONADOS"]
[3207102021,"SUBDIRECCION DE REGISTRO INMOBILIARIO","WEB","DERECHO DE PETICION DE INTERES GENERAL",25,"GESTIONADOS"]
[3208472021,"SUBDIRECCION DE ADMINISTRACION INMOBILIARIA Y DE ESPACIO PUBLICO","E-MAIL","DERECHO DE PETICION DE INTERES GENERAL",26,"GESTIONADOS"]
[3210172021,"SUBDIRECCION DE ADMINISTRACION INMOBILIARIA Y DE ESPACIO PUBLICO","WEB","DERECHO DE PETICION DE INTERES GENERAL",26,"GESTIONADOS"]
[3217932021,"AREA DE ATENCION A LA CIUDADANIA","WEB","DERECHO DE PETICION DE INTERES PARTICULAR",20,"GESTIONADOS"]
[3218112021,"SUBDIRECCION DE REGISTRO INMOBILIARIO","ESCRITO","DERECHO DE PETICION DE INTERES GENERAL",8,"GESTIONADOS"]
[3218592021,"SUBDIRECCION DE ADMINISTRACION INMOBILIARIA Y DE ESPACIO PUBLICO","ESCRITO","DERECHO DE PETICION DE INTERES PARTICULAR",26,"GESTIONADOS"]
[3218772021,"SUBDIRECCION DE ADMINISTRACION INMOBILIARIA Y DE ESPACIO PUBLICO","ESCRITO","DERECHO DE PETICION DE INTERES PARTICULAR",26,"GESTIONADOS"]
[3218912021,"SUBDIRECCION DE ADMINISTRACION INMOBILIARIA Y DE ESPACIO PUBLICO","ESCRITO","DERECHO DE PETICION DE INTERES PARTICULAR",29,"GESTIONADOS"]
[3220072021,"SUBDIRECCION DE ADMINISTRACION INMOBILIARIA Y DE ESPACIO PUBLICO","WEB","DERECHO DE PETICION DE INTERES PARTICULAR",26,"GESTIONADOS"]
[3222362021,"SUBDIRECCION DE ADMINISTRACION INMOBILIARIA Y DE ESPACIO PUBLICO","WEB","DERECHO DE PETICION DE INTERES PARTICULAR",26,"GESTIONADOS"]
[3222362021,"SUBDIRECCION DE REGISTRO INMOBILIARIO","WEB","DERECHO DE PETICION DE INTERES PARTICULAR",27,"GESTIONADOS"]
[3222432021,"SUBDIRECCION DE REGISTRO INMOBILIARIO","WEB","DERECHO DE PETICION DE INTERES PARTICULAR",21,"GESTIONADOS"]
[3222622021,"SUBDIRECCION DE ADMINISTRACION INMOBILIARIA Y DE ESPACIO PUBLICO","ESCRITO","DERECHO DE PETICION DE INTERES PARTICULAR",26,"GESTIONADOS"]
[3222812021,"SUBDIRECCION DE ADMINISTRACION INMOBILIARIA Y DE ESPACIO PUBLICO","E-MAIL","DERECHO DE PETICION DE INTERES PARTICULAR",26,"GESTIONADOS"]
[3223612021,"SUBDIRECCION DE ADMINISTRACION INMOBILIARIA Y DE ESPACIO PUBLICO","ESCRITO","DERECHO DE PETICION DE INTERES PARTICULAR",26,"GESTIONADOS"]
[3224062021,"SUBDIRECCION DE ADMINISTRACION INMOBILIARIA Y DE ESPACIO PUBLICO","ESCRITO","DERECHO DE PETICION DE INTERES PARTICULAR",26,"GESTIONADOS"]
[3224132021,"AREA DE ATENCION A LA CIUDADANIA","WEB","CONSULTA",20,"GESTIONADOS"]
[3224952021,"SUBDIRECCION DE ADMINISTRACION INMOBILIARIA Y DE ESPACIO PUBLICO","WEB","DERECHO DE PETICION DE INTERES PARTICULAR",26,"GESTIONADOS"]
[3225682021,"SUBDIRECCION DE REGISTRO INMOBILIARIO","ESCRITO","DERECHO DE PETICION DE INTERES PARTICULAR",29,"GESTIONADOS"]
[3228272021,"DESPACHO","WEB","FELICITACION",18,"GESTIONADOS"]
[3229712021,"SUBDIRECCION DE ADMINISTRACION INMOBILIARIA Y DE ESPACIO PUBLICO","WEB","DERECHO DE PETICION DE INTERES PARTICULAR",27,"GESTIONADOS"]
[3230872021,"SUBDIRECCION DE REGISTRO INMOBILIARIO","ESCRITO","DERECHO DE PETICION DE INTERES PARTICULAR",16,"GESTIONADOS"]
[3230892021,"SUBDIRECCION DE ADMINISTRACION INMOBILIARIA Y DE ESPACIO PUBLICO","ESCRITO","DERECHO DE PETICION DE INTERES PARTICULAR",27,"GESTIONADOS"]
[3231132021,"SUBDIRECCION DE ADMINISTRACION INMOBILIARIA Y DE ESPACIO PUBLICO","ESCRITO","DERECHO DE PETICION DE INTERES GENERAL",27,"GESTIONADOS"]
[3231642021,"SUBDIRECCION DE ADMINISTRACION INMOBILIARIA Y DE ESPACIO PUBLICO","ESCRITO","DERECHO DE PETICION DE INTERES PARTICULAR",27,"GESTIONADOS"]
[3234622021,"SUBDIRECCION DE ADMINISTRACION INMOBILIARIA Y DE ESPACIO PUBLICO","TELEFONO","DERECHO DE PETICION DE INTERES GENERAL",27,"GESTIONADOS"]
[3243162021,"SUBDIRECCION DE ADMINISTRACION INMOBILIARIA Y DE ESPACIO PUBLICO","WEB","DERECHO DE PETICION DE INTERES PARTICULAR",27,"GESTIONADOS"]
[3245782021,"SUBDIRECCION DE REGISTRO INMOBILIARIO","WEB","DERECHO DE PETICION DE INTERES PARTICULAR",22,"GESTIONADOS"]
[3247182021,"AREA DE ATENCION A LA CIUDADANIA","E-MAIL","DERECHO DE PETICION DE INTERES PARTICULAR",17,"PENDIENTE"]
[3249962021,"SUBDIRECCION DE REGISTRO INMOBILIARIO","ESCRITO","DERECHO DE PETICION DE INTERES PARTICULAR",24,"GESTIONADOS"]
[3250002021,"SUBDIRECCION DE REGISTRO INMOBILIARIO","ESCRITO","DERECHO DE PETICION DE INTERES PARTICULAR",22,"GESTIONADOS"]
[3250092021,"SUBDIRECCION DE ADMINISTRACION INMOBILIARIA Y DE ESPACIO PUBLICO","ESCRITO","DERECHO DE PETICION DE INTERES PARTICULAR",27,"GESTIONADOS"]
[3250162021,"SUBDIRECCION DE ADMINISTRACION INMOBILIARIA Y DE ESPACIO PUBLICO","WEB","DERECHO DE PETICION DE INTERES GENERAL",27,"GESTIONADOS"]
[3250182021,"SUBDIRECCION DE ADMINISTRACION INMOBILIARIA Y DE ESPACIO PUBLICO","ESCRITO","DERECHO DE PETICION DE INTERES PARTICULAR",27,"GESTIONADOS"]
[3251122021,"SUBDIRECCION DE ADMINISTRACION INMOBILIARIA Y DE ESPACIO PUBLICO","ESCRITO","DERECHO DE PETICION DE INTERES PARTICULAR",27,"GESTIONADOS"]
[3251132021,"AREA DE ATENCION A LA CIUDADANIA","WEB","DERECHO DE PETICION DE INTERES GENERAL",22,"GESTIONADOS"]
[3251722021,"SUBDIRECCION DE ADMINISTRACION INMOBILIARIA Y DE ESPACIO PUBLICO","E-MAIL","DERECHO DE PETICION DE INTERES PARTICULAR",27,"GESTIONADOS"]
[3252042021,"SUBDIRECCION DE REGISTRO INMOBILIARIO","ESCRITO","DERECHO DE PETICION DE INTERES PARTICULAR",16,"GESTIONADOS"]
[3252632021,"SUBDIRECCION DE REGISTRO INMOBILIARIO","ESCRITO","DERECHO DE PETICION DE INTERES PARTICULAR",25,"GESTIONADOS"]
[3252852021,"SUBDIRECCION DE ADMINISTRACION INMOBILIARIA Y DE ESPACIO PUBLICO","ESCRITO","DERECHO DE PETICION DE INTERES PARTICULAR",27,"GESTIONADOS"]
[3253582021,"SUBDIRECCION DE ADMINISTRACION INMOBILIARIA Y DE ESPACIO PUBLICO","ESCRITO","DERECHO DE PETICION DE INTERES PARTICULAR",27,"GESTIONADOS"]
[3253822021,"SUBDIRECCION DE REGISTRO INMOBILIARIO","ESCRITO","DERECHO DE PETICION DE INTERES PARTICULAR",16,"GESTIONADOS"]
[3258612021,"SUBDIRECCION DE ADMINISTRACION INMOBILIARIA Y DE ESPACIO PUBLICO","WEB","DERECHO DE PETICION DE INTERES PARTICULAR",27,"GESTIONADOS"]
[3260632021,"SUBDIRECCION DE ADMINISTRACION INMOBILIARIA Y DE ESPACIO PUBLICO","WEB","DERECHO DE PETICION DE INTERES GENERAL",27,"GESTIONADOS"]
[3261342021,"SUBDIRECCION DE ADMINISTRACION INMOBILIARIA Y DE ESPACIO PUBLICO","WEB","DERECHO DE PETICION DE INTERES PARTICULAR",27,"GESTIONADOS"]
[3263632021,"SUBDIRECCION DE ADMINISTRACION INMOBILIARIA Y DE ESPACIO PUBLICO","WEB","QUEJA",27,"GESTIONADOS"]
[3264652021,"SUBDIRECCION DE ADMINISTRACION INMOBILIARIA Y DE ESPACIO PUBLICO","WEB","DERECHO DE PETICION DE INTERES PARTICULAR",27,"GESTIONADOS"]
[3264892021,"AREA DE ATENCION A LA CIUDADANIA","WEB","DERECHO DE PETICION DE INTERES PARTICULAR",29,"GESTIONADOS"]
[3264892021,"SUBDIRECCION DE ADMINISTRACION INMOBILIARIA Y DE ESPACIO PUBLICO","WEB","DERECHO DE PETICION DE INTERES PARTICULAR",27,"GESTIONADOS"]
[3272782021,"SUBDIRECCION DE ADMINISTRACION INMOBILIARIA Y DE ESPACIO PUBLICO","ESCRITO","DERECHO DE PETICION DE INTERES PARTICULAR",27,"GESTIONADOS"]
[3272982021,"SUBDIRECCION DE REGISTRO INMOBILIARIO","ESCRITO","DERECHO DE PETICION DE INTERES PARTICULAR",16,"GESTIONADOS"]
[3273412021,"SUBDIRECCION DE ADMINISTRACION INMOBILIARIA Y DE ESPACIO PUBLICO","ESCRITO","DERECHO DE PETICION DE INTERES PARTICULAR",27,"GESTIONADOS"]
[3274212021,"SUBDIRECCION DE REGISTRO INMOBILIARIO","ESCRITO","DERECHO DE PETICION DE INTERES PARTICULAR",16,"GESTIONADOS"]
[3274432021,"AREA DE ATENCION A LA CIUDADANIA","E-MAIL","DERECHO DE PETICION DE INTERES GENERAL",1,"GESTIONADOS"]
[3274432021,"OFICINA ASESORA JURIDICA","E-MAIL","DERECHO DE PETICION DE INTERES GENERAL",1,"GESTIONADOS"]
[3274432021,"SUBDIRECCION DE ADMINISTRACION INMOBILIARIA Y DE ESPACIO PUBLICO","E-MAIL","DERECHO DE PETICION DE INTERES GENERAL",18,"PENDIENTE"]
[3276682021,"SUBDIRECCION DE REGISTRO INMOBILIARIO","E-MAIL","RECLAMO",22,"GESTIONADOS"]
[3276802021,"AREA DE ATENCION A LA CIUDADANIA","E-MAIL","DERECHO DE PETICION DE INTERES PARTICULAR",1,"GESTIONADOS"]
[3276802021,"SUBDIRECCION DE REGISTRO INMOBILIARIO","E-MAIL","DERECHO DE PETICION DE INTERES PARTICULAR",18,"PENDIENTE"]
[3277272021,"SUBDIRECCION DE ADMINISTRACION INMOBILIARIA Y DE ESPACIO PUBLICO","WEB","DERECHO DE PETICION DE INTERES GENERAL",27,"GESTIONADOS"]
[3281132021,"AREA DE ATENCION A LA CIUDADANIA","ESCRITO","DERECHO DE PETICION DE INTERES PARTICULAR",28,"GESTIONADOS"]
[3281132021,"SUBDIRECCION DE REGISTRO INMOBILIARIO","ESCRITO","DERECHO DE PETICION DE INTERES PARTICULAR",28,"GESTIONADOS"]
[3281712021,"SUBDIRECCION DE ADMINISTRACION INMOBILIARIA Y DE ESPACIO PUBLICO","ESCRITO","DERECHO DE PETICION DE INTERES PARTICULAR",27,"GESTIONADOS"]
[3281762021,"SUBDIRECCION DE REGISTRO INMOBILIARIO","ESCRITO","DERECHO DE PETICION DE INTERES PARTICULAR",23,"GESTIONADOS"]
[3282232021,"SUBDIRECCION DE ADMINISTRACION INMOBILIARIA Y DE ESPACIO PUBLICO","ESCRITO","DERECHO DE PETICION DE INTERES GENERAL",27,"GESTIONADOS"]
[3283322021,"SUBDIRECCION DE ADMINISTRACION INMOBILIARIA Y DE ESPACIO PUBLICO","WEB","DERECHO DE PETICION DE INTERES PARTICULAR",27,"GESTIONADOS"]
[3287602021,"SUBDIRECCION DE ADMINISTRACION INMOBILIARIA Y DE ESPACIO PUBLICO","ESCRITO","DERECHO DE PETICION DE INTERES GENERAL",29,"GESTIONADOS"]
[3287692021,"SUBDIRECCION DE REGISTRO INMOBILIARIO","ESCRITO","DERECHO DE PETICION DE INTERES PARTICULAR",21,"GESTIONADOS"]
[3287812021,"AREA DE ATENCION A LA CIUDADANIA","ESCRITO","DERECHO DE PETICION DE INTERES PARTICULAR",28,"GESTIONADOS"]
[3287812021,"SUBDIRECCION DE ADMINISTRACION INMOBILIARIA Y DE ESPACIO PUBLICO","ESCRITO","DERECHO DE PETICION DE INTERES PARTICULAR",27,"GESTIONADOS"]
[3287982021,"AREA DE ATENCION A LA CIUDADANIA","ESCRITO","DERECHO DE PETICION DE INTERES PARTICULAR",29,"GESTIONADOS"]
[3287982021,"SUBDIRECCION DE ADMINISTRACION INMOBILIARIA Y DE ESPACIO PUBLICO","ESCRITO","DERECHO DE PETICION DE INTERES PARTICULAR",27,"GESTIONADOS"]
[3287982021,"SUBDIRECCION DE REGISTRO INMOBILIARIO","ESCRITO","DERECHO DE PETICION DE INTERES PARTICULAR",29,"GESTIONADOS"]
[3288412021,"SUBDIRECCION DE ADMINISTRACION INMOBILIARIA Y DE ESPACIO PUBLICO","ESCRITO","DERECHO DE PETICION DE INTERES PARTICULAR",27,"GESTIONADOS"]
[3288592021,"SUBDIRECCION DE ADMINISTRACION INMOBILIARIA Y DE ESPACIO PUBLICO","ESCRITO","DERECHO DE PETICION DE INTERES PARTICULAR",27,"GESTIONADOS"]
[3288732021,"SUBDIRECCION DE ADMINISTRACION INMOBILIARIA Y DE ESPACIO PUBLICO","TELEFONO","DERECHO DE PETICION DE INTERES GENERAL",27,"GESTIONADOS"]
[3288962021,"SUBDIRECCION DE ADMINISTRACION INMOBILIARIA Y DE ESPACIO PUBLICO","ESCRITO","DERECHO DE PETICION DE INTERES PARTICULAR",29,"GESTIONADOS"]
[3289352021,"SUBDIRECCION DE ADMINISTRACION INMOBILIARIA Y DE ESPACIO PUBLICO","ESCRITO","DERECHO DE PETICION DE INTERES PARTICULAR",27,"GESTIONADOS"]
[3289562021,"SUBDIRECCION DE ADMINISTRACION INMOBILIARIA Y DE ESPACIO PUBLICO","ESCRITO","DERECHO DE PETICION DE INTERES PARTICULAR",27,"GESTIONADOS"]
[3290232021,"SUBDIRECCION DE ADMINISTRACION INMOBILIARIA Y DE ESPACIO PUBLICO","ESCRITO","DERECHO DE PETICION DE INTERES PARTICULAR",27,"GESTIONADOS"]
[3290672021,"SUBDIRECCION DE ADMINISTRACION INMOBILIARIA Y DE ESPACIO PUBLICO","ESCRITO","DERECHO DE PETICION DE INTERES PARTICULAR",27,"GESTIONADOS"]
[3290942021,"SUBDIRECCION DE ADMINISTRACION INMOBILIARIA Y DE ESPACIO PUBLICO","ESCRITO","DERECHO DE PETICION DE INTERES PARTICULAR",28,"GESTIONADOS"]
[3290942021,"SUBDIRECCION DE REGISTRO INMOBILIARIO","ESCRITO","DERECHO DE PETICION DE INTERES PARTICULAR",18,"GESTIONADOS"]
[3292992021,"AREA DE ATENCION A LA CIUDADANIA","ESCRITO","DERECHO DE PETICION DE INTERES PARTICULAR",32,"GESTIONADOS"]
[3292992021,"SUBDIRECCION DE ADMINISTRACION INMOBILIARIA Y DE ESPACIO PUBLICO","ESCRITO","DERECHO DE PETICION DE INTERES PARTICULAR",27,"GESTIONADOS"]
[3293052021,"SUBDIRECCION DE REGISTRO INMOBILIARIO","ESCRITO","DERECHO DE PETICION DE INTERES PARTICULAR",21,"GESTIONADOS"]
[3305332021,"SUBDIRECCION DE REGISTRO INMOBILIARIO","ESCRITO","DERECHO DE PETICION DE INTERES PARTICULAR",20,"GESTIONADOS"]
[3305352021,"SUBDIRECCION DE REGISTRO INMOBILIARIO","ESCRITO","DERECHO DE PETICION DE INTERES PARTICULAR",26,"GESTIONADOS"]
[3305402021,"SUBDIRECCION DE REGISTRO INMOBILIARIO","ESCRITO","DERECHO DE PETICION DE INTERES PARTICULAR",28,"GESTIONADOS"]
[3305642021,"SUBDIRECCION DE REGISTRO INMOBILIARIO","ESCRITO","DERECHO DE PETICION DE INTERES PARTICULAR",20,"GESTIONADOS"]
[3305732021,"AREA DE ATENCION A LA CIUDADANIA","ESCRITO","DERECHO DE PETICION DE INTERES PARTICULAR",30,"GESTIONADOS"]
[3305732021,"SUBDIRECCION DE ADMINISTRACION INMOBILIARIA Y DE ESPACIO PUBLICO","ESCRITO","DERECHO DE PETICION DE INTERES PARTICULAR",29,"GESTIONADOS"]
[3305762021,"SUBDIRECCION DE REGISTRO INMOBILIARIO","ESCRITO","DERECHO DE PETICION DE INTERES PARTICULAR",20,"GESTIONADOS"]
[3307752021,"AREA DE ATENCION A LA CIUDADANIA","ESCRITO","DERECHO DE PETICION DE INTERES PARTICULAR",30,"GESTIONADOS"]
[3307752021,"SUBDIRECCION DE ADMINISTRACION INMOBILIARIA Y DE ESPACIO PUBLICO","ESCRITO","DERECHO DE PETICION DE INTERES PARTICULAR",29,"GESTIONADOS"]
[3307892021,"SUBDIRECCION DE ADMINISTRACION INMOBILIARIA Y DE ESPACIO PUBLICO","ESCRITO","DERECHO DE PETICION DE INTERES PARTICULAR",29,"GESTIONADOS"]
[3308012021,"SUBDIRECCION DE REGISTRO INMOBILIARIO","ESCRITO","DERECHO DE PETICION DE INTERES PARTICULAR",29,"GESTIONADOS"]
[3308322021,"OFICINA ASESORA JURIDICA","WEB","DERECHO DE PETICION DE INTERES PARTICULAR",9,"GESTIONADOS"]
[3308502021,"SUBDIRECCION DE REGISTRO INMOBILIARIO","ESCRITO","DERECHO DE PETICION DE INTERES PARTICULAR",26,"GESTIONADOS"]
[3308772021,"SUBDIRECCION DE ADMINISTRACION INMOBILIARIA Y DE ESPACIO PUBLICO","ESCRITO","DERECHO DE PETICION DE INTERES PARTICULAR",29,"GESTIONADOS"]
[3308982021,"SUBDIRECCION DE ADMINISTRACION INMOBILIARIA Y DE ESPACIO PUBLICO","WEB","DERECHO DE PETICION DE INTERES PARTICULAR",29,"GESTIONADOS"]
[3309282021,"SUBDIRECCION DE ADMINISTRACION INMOBILIARIA Y DE ESPACIO PUBLICO","E-MAIL","DERECHO DE PETICION DE INTERES PARTICULAR",29,"GESTIONADOS"]
[3309312021,"SUBDIRECCION DE ADMINISTRACION INMOBILIARIA Y DE ESPACIO PUBLICO","WEB","DERECHO DE PETICION DE INTERES PARTICULAR",28,"GESTIONADOS"]
[3309432021,"SUBDIRECCION DE ADMINISTRACION INMOBILIARIA Y DE ESPACIO PUBLICO","ESCRITO","DERECHO DE PETICION DE INTERES PARTICULAR",29,"GESTIONADOS"]
[3309862021,"SUBDIRECCION DE ADMINISTRACION INMOBILIARIA Y DE ESPACIO PUBLICO","WEB","DERECHO DE PETICION DE INTERES PARTICULAR",28,"GESTIONADOS"]
[3310012021,"SUBDIRECCION DE ADMINISTRACION INMOBILIARIA Y DE ESPACIO PUBLICO","WEB","DERECHO DE PETICION DE INTERES PARTICULAR",29,"GESTIONADOS"]
[3310062021,"SUBDIRECCION DE ADMINISTRACION INMOBILIARIA Y DE ESPACIO PUBLICO","WEB","DERECHO DE PETICION DE INTERES PARTICULAR",28,"GESTIONADOS"]
[3311152021,"SUBDIRECCION DE ADMINISTRACION INMOBILIARIA Y DE ESPACIO PUBLICO","E-MAIL","DERECHO DE PETICION DE INTERES PARTICULAR",29,"GESTIONADOS"]
[3311292021,"SUBDIRECCION DE ADMINISTRACION INMOBILIARIA Y DE ESPACIO PUBLICO","E-MAIL","DERECHO DE PETICION DE INTERES PARTICULAR",29,"GESTIONADOS"]
[3311522021,"SUBDIRECCION DE REGISTRO INMOBILIARIO","E-MAIL","DERECHO DE PETICION DE INTERES PARTICULAR",26,"GESTIONADOS"]
[3311742021,"SUBDIRECCION DE ADMINISTRACION INMOBILIARIA Y DE ESPACIO PUBLICO","E-MAIL","DERECHO DE PETICION DE INTERES PARTICULAR",29,"GESTIONADOS"]
[3311892021,"SUBDIRECCION DE ADMINISTRACION INMOBILIARIA Y DE ESPACIO PUBLICO","E-MAIL","DERECHO DE PETICION DE INTERES PARTICULAR",29,"GESTIONADOS"]
[3312132021,"SUBDIRECCION DE ADMINISTRACION INMOBILIARIA Y DE ESPACIO PUBLICO","E-MAIL","DERECHO DE PETICION DE INTERES PARTICULAR",29,"GESTIONADOS"]
[3312292021,"AREA DE ATENCION A LA CIUDADANIA","E-MAIL","DERECHO DE PETICION DE INTERES PARTICULAR",30,"GESTIONADOS"]
[3312292021,"SUBDIRECCION DE ADMINISTRACION INMOBILIARIA Y DE ESPACIO PUBLICO","E-MAIL","DERECHO DE PETICION DE INTERES PARTICULAR",29,"GESTIONADOS"]
[3312382021,"SUBDIRECCION DE ADMINISTRACION INMOBILIARIA Y DE ESPACIO PUBLICO","WEB","QUEJA",28,"GESTIONADOS"]
[3312462021,"SUBDIRECCION DE ADMINISTRACION INMOBILIARIA Y DE ESPACIO PUBLICO","E-MAIL","DERECHO DE PETICION DE INTERES PARTICULAR",29,"GESTIONADOS"]
[3312542021,"SUBDIRECCION DE REGISTRO INMOBILIARIO","WEB","DERECHO DE PETICION DE INTERES GENERAL",20,"GESTIONADOS"]
[3312602021,"SUBDIRECCION DE REGISTRO INMOBILIARIO","ESCRITO","DERECHO DE PETICION DE INTERES PARTICULAR",27,"GESTIONADOS"]
[3313422021,"SUBDIRECCION DE ADMINISTRACION INMOBILIARIA Y DE ESPACIO PUBLICO","WEB","CONSULTA",29,"GESTIONADOS"]
[3313452021,"SUBDIRECCION DE ADMINISTRACION INMOBILIARIA Y DE ESPACIO PUBLICO","ESCRITO","DERECHO DE PETICION DE INTERES PARTICULAR",29,"GESTIONADOS"]
[3313642021,"SUBDIRECCION DE ADMINISTRACION INMOBILIARIA Y DE ESPACIO PUBLICO","ESCRITO","DERECHO DE PETICION DE INTERES PARTICULAR",29,"GESTIONADOS"]
[3313702021,"SUBDIRECCION DE REGISTRO INMOBILIARIO","WEB","DERECHO DE PETICION DE INTERES GENERAL",26,"GESTIONADOS"]
[3313802021,"SUBDIRECCION DE ADMINISTRACION INMOBILIARIA Y DE ESPACIO PUBLICO","ESCRITO","DERECHO DE PETICION DE INTERES PARTICULAR",29,"GESTIONADOS"]
[3317272021,"SUBDIRECCION DE REGISTRO INMOBILIARIO","WEB","DERECHO DE PETICION DE INTERES GENERAL",26,"GESTIONADOS"]
[3318982021,"AREA DE ATENCION A LA CIUDADANIA","ESCRITO","DERECHO DE PETICION DE INTERES PARTICULAR",30,"GESTIONADOS"]
[3318982021,"SUBDIRECCION DE ADMINISTRACION INMOBILIARIA Y DE ESPACIO PUBLICO","ESCRITO","DERECHO DE PETICION DE INTERES PARTICULAR",29,"GESTIONADOS"]
[3319022021,"SUBDIRECCION DE ADMINISTRACION INMOBILIARIA Y DE ESPACIO PUBLICO","ESCRITO","DERECHO DE PETICION DE INTERES PARTICULAR",29,"GESTIONADOS"]
[3319022021,"SUBDIRECCION DE REGISTRO INMOBILIARIO","ESCRITO","DERECHO DE PETICION DE INTERES PARTICULAR",29,"GESTIONADOS"]
[3322502021,"SUBDIRECCION DE ADMINISTRACION INMOBILIARIA Y DE ESPACIO PUBLICO","TELEFONO","DERECHO DE PETICION DE INTERES GENERAL",28,"GESTIONADOS"]
[3325852021,"SUBDIRECCION DE REGISTRO INMOBILIARIO","ESCRITO","DERECHO DE PETICION DE INTERES PARTICULAR",27,"GESTIONADOS"]
[3326052021,"SUBDIRECCION DE REGISTRO INMOBILIARIO","E-MAIL","DERECHO DE PETICION DE INTERES PARTICULAR",19,"GESTIONADOS"]
[3326292021,"OFICINA ASESORA JURIDICA","ESCRITO","DERECHO DE PETICION DE INTERES PARTICULAR",12,"GESTIONADOS"]
[3326802021,"SUBDIRECCION DE REGISTRO INMOBILIARIO","E-MAIL","DERECHO DE PETICION DE INTERES PARTICULAR",24,"GESTIONADOS"]
[3326832021,"SUBDIRECCION DE ADMINISTRACION INMOBILIARIA Y DE ESPACIO PUBLICO","ESCRITO","DERECHO DE PETICION DE INTERES PARTICULAR",28,"GESTIONADOS"]
[3328022021,"AREA DE ATENCION A LA CIUDADANIA","WEB","DERECHO DE PETICION DE INTERES GENERAL",14,"GESTIONADOS"]
[3328122021,"SUBDIRECCION DE ADMINISTRACION INMOBILIARIA Y DE ESPACIO PUBLICO","WEB","DERECHO DE PETICION DE INTERES GENERAL",28,"GESTIONADOS"]
[3328302021,"AREA DE ATENCION A LA CIUDADANIA","WEB","DERECHO DE PETICION DE INTERES PARTICULAR",1,"GESTIONADOS"]
[3329172021,"DESPACHO","ESCRITO","DERECHO DE PETICION DE INTERES PARTICULAR",12,"GESTIONADOS"]
[3329502021,"SUBDIRECCION DE ADMINISTRACION INMOBILIARIA Y DE ESPACIO PUBLICO","ESCRITO","DERECHO DE PETICION DE INTERES PARTICULAR",28,"GESTIONADOS"]
[3338142021,"SUBDIRECCION DE ADMINISTRACION INMOBILIARIA Y DE ESPACIO PUBLICO","WEB","DERECHO DE PETICION DE INTERES PARTICULAR",28,"GESTIONADOS"]
[3338972021,"SUBDIRECCION DE ADMINISTRACION INMOBILIARIA Y DE ESPACIO PUBLICO","ESCRITO","DERECHO DE PETICION DE INTERES PARTICULAR",28,"GESTIONADOS"]
[3339052021,"SUBDIRECCION DE REGISTRO INMOBILIARIO","ESCRITO","DERECHO DE PETICION DE INTERES PARTICULAR",25,"GESTIONADOS"]
[3339152021,"SUBDIRECCION DE ADMINISTRACION INMOBILIARIA Y DE ESPACIO PUBLICO","ESCRITO","DERECHO DE PETICION DE INTERES PARTICULAR",29,"GESTIONADOS"]
[3339572021,"SUBDIRECCION DE ADMINISTRACION INMOBILIARIA Y DE ESPACIO PUBLICO","WEB","DERECHO DE PETICION DE INTERES GENERAL",22,"GESTIONADOS"]
[3342412021,"SUBDIRECCION DE ADMINISTRACION INMOBILIARIA Y DE ESPACIO PUBLICO","ESCRITO","DERECHO DE PETICION DE INTERES PARTICULAR",28,"GESTIONADOS"]
[3344672021,"SUBDIRECCION DE ADMINISTRACION INMOBILIARIA Y DE ESPACIO PUBLICO","ESCRITO","DERECHO DE PETICION DE INTERES PARTICULAR",28,"GESTIONADOS"]
[3345452021,"SUBDIRECCION DE ADMINISTRACION INMOBILIARIA Y DE ESPACIO PUBLICO","ESCRITO","DERECHO DE PETICION DE INTERES PARTICULAR",28,"GESTIONADOS"]
[3345592021,"SUBDIRECCION DE ADMINISTRACION INMOBILIARIA Y DE ESPACIO PUBLICO","ESCRITO","DERECHO DE PETICION DE INTERES PARTICULAR",28,"GESTIONADOS"]
[3345652021,"SUBDIRECCION DE ADMINISTRACION INMOBILIARIA Y DE ESPACIO PUBLICO","ESCRITO","DERECHO DE PETICION DE INTERES PARTICULAR",28,"GESTIONADOS"]
[3345892021,"SUBDIRECCION DE ADMINISTRACION INMOBILIARIA Y DE ESPACIO PUBLICO","WEB","DERECHO DE PETICION DE INTERES PARTICULAR",28,"GESTIONADOS"]
[3348592021,"AREA DE ATENCION A LA CIUDADANIA","ESCRITO","DERECHO DE PETICION DE INTERES PARTICULAR",28,"GESTIONADOS"]
[3348592021,"SUBDIRECCION DE ADMINISTRACION INMOBILIARIA Y DE ESPACIO PUBLICO","ESCRITO","DERECHO DE PETICION DE INTERES PARTICULAR",28,"GESTIONADOS"]
[3348832021,"AREA DE ATENCION A LA CIUDADANIA","ESCRITO","DERECHO DE PETICION DE INTERES PARTICULAR",29,"GESTIONADOS"]
[3348832021,"SUBDIRECCION DE ADMINISTRACION INMOBILIARIA Y DE ESPACIO PUBLICO","ESCRITO","DERECHO DE PETICION DE INTERES PARTICULAR",28,"GESTIONADOS"]
[3349012021,"SUBDIRECCION DE ADMINISTRACION INMOBILIARIA Y DE ESPACIO PUBLICO","ESCRITO","DERECHO DE PETICION DE INTERES PARTICULAR",28,"GESTIONADOS"]
[3349172021,"AREA DE ATENCION A LA CIUDADANIA","ESCRITO","DERECHO DE PETICION DE INTERES GENERAL",29,"GESTIONADOS"]
[3349172021,"SUBDIRECCION DE ADMINISTRACION INMOBILIARIA Y DE ESPACIO PUBLICO","ESCRITO","DERECHO DE PETICION DE INTERES GENERAL",28,"GESTIONADOS"]
[3349312021,"SUBDIRECCION DE ADMINISTRACION INMOBILIARIA Y DE ESPACIO PUBLICO","ESCRITO","DERECHO DE PETICION DE INTERES PARTICULAR",28,"GESTIONADOS"]
[3351312021,"SUBDIRECCION DE ADMINISTRACION INMOBILIARIA Y DE ESPACIO PUBLICO","WEB","DERECHO DE PETICION DE INTERES GENERAL",28,"GESTIONADOS"]
[3354892021,"SUBDIRECCION DE ADMINISTRACION INMOBILIARIA Y DE ESPACIO PUBLICO","TELEFONO","DERECHO DE PETICION DE INTERES GENERAL",28,"GESTIONADOS"]
[3356972021,"SUBDIRECCION DE ADMINISTRACION INMOBILIARIA Y DE ESPACIO PUBLICO","WEB","DERECHO DE PETICION DE INTERES GENERAL",28,"GESTIONADOS"]
[3358332021,"AREA DE ATENCION A LA CIUDADANIA","WEB","DERECHO DE PETICION DE INTERES GENERAL",15,"GESTIONADOS"]
[3358352021,"AREA DE ATENCION A LA CIUDADANIA","WEB","DERECHO DE PETICION DE INTERES GENERAL",23,"GESTIONADOS"]
[3358412021,"SUBDIRECCION DE ADMINISTRACION INMOBILIARIA Y DE ESPACIO PUBLICO","WEB","DERECHO DE PETICION DE INTERES GENERAL",28,"GESTIONADOS"]
[3359432021,"SUBDIRECCION DE ADMINISTRACION INMOBILIARIA Y DE ESPACIO PUBLICO","TELEFONO","DERECHO DE PETICION DE INTERES PARTICULAR",28,"GESTIONADOS"]
[3361772021,"SUBDIRECCION DE ADMINISTRACION INMOBILIARIA Y DE ESPACIO PUBLICO","ESCRITO","DERECHO DE PETICION DE INTERES PARTICULAR",28,"GESTIONADOS"]
[3361962021,"SUBDIRECCION DE ADMINISTRACION INMOBILIARIA Y DE ESPACIO PUBLICO","ESCRITO","DERECHO DE PETICION DE INTERES PARTICULAR",28,"GESTIONADOS"]
[3362022021,"SUBDIRECCION DE ADMINISTRACION INMOBILIARIA Y DE ESPACIO PUBLICO","ESCRITO","DERECHO DE PETICION DE INTERES PARTICULAR",28,"GESTIONADOS"]
[3362122021,"SUBDIRECCION DE ADMINISTRACION INMOBILIARIA Y DE ESPACIO PUBLICO","ESCRITO","DERECHO DE PETICION DE INTERES GENERAL",28,"PENDIENTE"]
[3362142021,"SUBDIRECCION DE REGISTRO INMOBILIARIO","ESCRITO","DERECHO DE PETICION DE INTERES PARTICULAR",17,"GESTIONADOS"]
[3362342021,"AREA DE ATENCION A LA CIUDADANIA","ESCRITO","DERECHO DE PETICION DE INTERES PARTICULAR",15,"GESTIONADOS"]
[3367672021,"SUBDIRECCION DE REGISTRO INMOBILIARIO","ESCRITO","DERECHO DE PETICION DE INTERES PARTICULAR",23,"GESTIONADOS"]
[3367832021,"OFICINA ASESORA JURIDICA","ESCRITO","DERECHO DE PETICION DE INTERES PARTICULAR",16,"GESTIONADOS"]
[3367832021,"SUBDIRECCION DE ADMINISTRACION INMOBILIARIA Y DE ESPACIO PUBLICO","ESCRITO","DERECHO DE PETICION DE INTERES PARTICULAR",14,"GESTIONADOS"]
[3368012021,"SUBDIRECCION DE ADMINISTRACION INMOBILIARIA Y DE ESPACIO PUBLICO","ESCRITO","DERECHO DE PETICION DE INTERES PARTICULAR",28,"GESTIONADOS"]
[3368282021,"SUBDIRECCION DE ADMINISTRACION INMOBILIARIA Y DE ESPACIO PUBLICO","ESCRITO","DERECHO DE PETICION DE INTERES PARTICULAR",28,"GESTIONADOS"]
[3368562021,"SUBDIRECCION DE ADMINISTRACION INMOBILIARIA Y DE ESPACIO PUBLICO","ESCRITO","DERECHO DE PETICION DE INTERES PARTICULAR",28,"GESTIONADOS"]
[3368922021,"SUBDIRECCION DE ADMINISTRACION INMOBILIARIA Y DE ESPACIO PUBLICO","ESCRITO","DERECHO DE PETICION DE INTERES PARTICULAR",28,"GESTIONADOS"]
[3369242021,"SUBDIRECCION DE ADMINISTRACION INMOBILIARIA Y DE ESPACIO PUBLICO","E-MAIL","DERECHO DE PETICION DE INTERES PARTICULAR",28,"GESTIONADOS"]
[3370492021,"SUBDIRECCION DE REGISTRO INMOBILIARIO","ESCRITO","DERECHO DE PETICION DE INTERES PARTICULAR",26,"GESTIONADOS"]
[3371042021,"SUBDIRECCION DE ADMINISTRACION INMOBILIARIA Y DE ESPACIO PUBLICO","ESCRITO","DERECHO DE PETICION DE INTERES PARTICULAR",28,"GESTIONADOS"]
[3371172021,"SUBDIRECCION DE REGISTRO INMOBILIARIO","ESCRITO","DERECHO DE PETICION DE INTERES PARTICULAR",25,"GESTIONADOS"]
[3371552021,"SUBDIRECCION DE ADMINISTRACION INMOBILIARIA Y DE ESPACIO PUBLICO","ESCRITO","DERECHO DE PETICION DE INTERES PARTICULAR",28,"GESTIONADOS"]
[3372262021,"SUBDIRECCION DE ADMINISTRACION INMOBILIARIA Y DE ESPACIO PUBLICO","ESCRITO","DERECHO DE PETICION DE INTERES PARTICULAR",28,"GESTIONADOS"]
[3374862021,"SUBDIRECCION DE ADMINISTRACION INMOBILIARIA Y DE ESPACIO PUBLICO","ESCRITO","DERECHO DE PETICION DE INTERES PARTICULAR",28,"GESTIONADOS"]
[3374872021,"SUBDIRECCION DE REGISTRO INMOBILIARIO","ESCRITO","DERECHO DE PETICION DE INTERES PARTICULAR",23,"GESTIONADOS"]
[3374912021,"SUBDIRECCION DE ADMINISTRACION INMOBILIARIA Y DE ESPACIO PUBLICO","ESCRITO","DERECHO DE PETICION DE INTERES PARTICULAR",28,"GESTIONADOS"]
[3375112021,"SUBDIRECCION DE ADMINISTRACION INMOBILIARIA Y DE ESPACIO PUBLICO","ESCRITO","DERECHO DE PETICION DE INTERES PARTICULAR",28,"GESTIONADOS"]
[3375222021,"SUBDIRECCION DE REGISTRO INMOBILIARIO","ESCRITO","DERECHO DE PETICION DE INTERES PARTICULAR",28,"GESTIONADOS"]
[3376532021,"AREA DE ATENCION A LA CIUDADANIA","WEB","QUEJA",21,"GESTIONADOS"]
[3376592021,"AREA DE ATENCION A LA CIUDADANIA","WEB","DERECHO DE PETICION DE INTERES PARTICULAR",21,"GESTIONADOS"]
[3376792021,"SUBDIRECCION DE ADMINISTRACION INMOBILIARIA Y DE ESPACIO PUBLICO","WEB","DERECHO DE PETICION DE INTERES PARTICULAR",28,"GESTIONADOS"]
[3376862021,"SUBDIRECCION DE ADMINISTRACION INMOBILIARIA Y DE ESPACIO PUBLICO","WEB","DERECHO DE PETICION DE INTERES GENERAL",28,"GESTIONADOS"]
[3378062021,"SUBDIRECCION DE ADMINISTRACION INMOBILIARIA Y DE ESPACIO PUBLICO","WEB","DERECHO DE PETICION DE INTERES GENERAL",28,"GESTIONADOS"]
[3379722021,"SUBDIRECCION DE REGISTRO INMOBILIARIO","WEB","DERECHO DE PETICION DE INTERES GENERAL",15,"GESTIONADOS"]
[3382022021,"SUBDIRECCION DE ADMINISTRACION INMOBILIARIA Y DE ESPACIO PUBLICO","ESCRITO","DERECHO DE PETICION DE INTERES PARTICULAR",27,"PENDIENTE"]
[3382082021,"SUBDIRECCION DE ADMINISTRACION INMOBILIARIA Y DE ESPACIO PUBLICO","ESCRITO","DERECHO DE PETICION DE INTERES PARTICULAR",27,"PENDIENTE"]
[3382082021,"SUBDIRECCION DE REGISTRO INMOBILIARIO","ESCRITO","DERECHO DE PETICION DE INTERES PARTICULAR",22,"GESTIONADOS"]
[3384192021,"SUBDIRECCION DE ADMINISTRACION INMOBILIARIA Y DE ESPACIO PUBLICO","ESCRITO","DERECHO DE PETICION DE INTERES PARTICULAR",27,"PENDIENTE"]
[3385392021,"SUBDIRECCION DE ADMINISTRACION INMOBILIARIA Y DE ESPACIO PUBLICO","ESCRITO","DERECHO DE PETICION DE INTERES PARTICULAR",27,"PENDIENTE"]
[3385612021,"SUBDIRECCION DE ADMINISTRACION INMOBILIARIA Y DE ESPACIO PUBLICO","ESCRITO","DERECHO DE PETICION DE INTERES PARTICULAR",27,"PENDIENTE"]
[3385832021,"SUBDIRECCION DE REGISTRO INMOBILIARIO","ESCRITO","DERECHO DE PETICION DE INTERES PARTICULAR",22,"GESTIONADOS"]
[3386572021,"SUBDIRECCION DE ADMINISTRACION INMOBILIARIA Y DE ESPACIO PUBLICO","WEB","DERECHO DE PETICION DE INTERES PARTICULAR",27,"PENDIENTE"]
[3387142021,"SUBDIRECCION DE ADMINISTRACION INMOBILIARIA Y DE ESPACIO PUBLICO","WEB","DERECHO DE PETICION DE INTERES GENERAL",27,"PENDIENTE"]
[3387572021,"AREA DE ATENCION A LA CIUDADANIA","WEB","DERECHO DE PETICION DE INTERES PARTICULAR",20,"GESTIONADOS"]
[3396832021,"SUBDIRECCION DE ADMINISTRACION INMOBILIARIA Y DE ESPACIO PUBLICO","WEB","DERECHO DE PETICION DE INTERES PARTICULAR",27,"PENDIENTE"]
[3397672021,"SUBDIRECCION DE ADMINISTRACION INMOBILIARIA Y DE ESPACIO PUBLICO","WEB","DERECHO DE PETICION DE INTERES GENERAL",27,"PENDIENTE"]
[3399382021,"SUBDIRECCION DE ADMINISTRACION INMOBILIARIA Y DE ESPACIO PUBLICO","WEB","DERECHO DE PETICION DE INTERES PARTICULAR",26,"PENDIENTE"]
[3399732021,"SUBDIRECCION DE ADMINISTRACION INMOBILIARIA Y DE ESPACIO PUBLICO","ESCRITO","DERECHO DE PETICION DE INTERES GENERAL",26,"PENDIENTE"]
[3399872021,"SUBDIRECCION DE REGISTRO INMOBILIARIO","ESCRITO","DERECHO DE PETICION DE INTERES PARTICULAR",18,"GESTIONADOS"]
[3399932021,"SUBDIRECCION DE ADMINISTRACION INMOBILIARIA Y DE ESPACIO PUBLICO","ESCRITO","DERECHO DE PETICION DE INTERES PARTICULAR",26,"PENDIENTE"]
[3400022021,"SUBDIRECCION DE ADMINISTRACION INMOBILIARIA Y DE ESPACIO PUBLICO","ESCRITO","DERECHO DE PETICION DE INTERES GENERAL",26,"PENDIENTE"]
[3400082021,"SUBDIRECCION DE ADMINISTRACION INMOBILIARIA Y DE ESPACIO PUBLICO","ESCRITO","DERECHO DE PETICION DE INTERES PARTICULAR",26,"PENDIENTE"]
[3405442021,"SUBDIRECCION DE ADMINISTRACION INMOBILIARIA Y DE ESPACIO PUBLICO","WEB","DERECHO DE PETICION DE INTERES PARTICULAR",26,"PENDIENTE"]
[3407242021,"DESPACHO","ESCRITO","DERECHO DE PETICION DE INTERES PARTICULAR",13,"GESTIONADOS"]
[3407512021,"SUBDIRECCION DE REGISTRO INMOBILIARIO","ESCRITO","DERECHO DE PETICION DE INTERES PARTICULAR",18,"GESTIONADOS"]
[3408362021,"SUBDIRECCION DE REGISTRO INMOBILIARIO","ESCRITO","DERECHO DE PETICION DE INTERES PARTICULAR",26,"PENDIENTE"]
[3409632021,"SUBDIRECCION DE ADMINISTRACION INMOBILIARIA Y DE ESPACIO PUBLICO","WEB","DERECHO DE PETICION DE INTERES PARTICULAR",26,"PENDIENTE"]
[3410042021,"SUBDIRECCION DE ADMINISTRACION INMOBILIARIA Y DE ESPACIO PUBLICO","ESCRITO","DERECHO DE PETICION DE INTERES PARTICULAR",26,"PENDIENTE"]
[3410252021,"SUBDIRECCION DE ADMINISTRACION INMOBILIARIA Y DE ESPACIO PUBLICO","ESCRITO","DERECHO DE PETICION DE INTERES PARTICULAR",26,"PENDIENTE"]
[3414602021,"SUBDIRECCION DE REGISTRO INMOBILIARIO","WEB","DERECHO DE PETICION DE INTERES PARTICULAR",26,"PENDIENTE"]
[3414872021,"SUBDIRECCION DE REGISTRO INMOBILIARIO","WEB","DERECHO DE PETICION DE INTERES PARTICULAR",24,"PENDIENTE"]
[3414962021,"SUBDIRECCION DE ADMINISTRACION INMOBILIARIA Y DE ESPACIO PUBLICO","WEB","DERECHO DE PETICION DE INTERES GENERAL",26,"PENDIENTE"]
[3415032021,"SUBDIRECCION DE REGISTRO INMOBILIARIO","E-MAIL","DERECHO DE PETICION DE INTERES GENERAL",26,"GESTIONADOS"]
[3415062021,"SUBDIRECCION DE ADMINISTRACION INMOBILIARIA Y DE ESPACIO PUBLICO","ESCRITO","DERECHO DE PETICION DE INTERES PARTICULAR",26,"PENDIENTE"]
[3415802021,"SUBDIRECCION DE ADMINISTRACION INMOBILIARIA Y DE ESPACIO PUBLICO","WEB","DERECHO DE PETICION DE INTERES GENERAL",26,"PENDIENTE"]
[3415802021,"SUBDIRECCION DE REGISTRO INMOBILIARIO","WEB","DERECHO DE PETICION DE INTERES GENERAL",18,"GESTIONADOS"]
[3416912021,"SUBDIRECCION DE ADMINISTRACION INMOBILIARIA Y DE ESPACIO PUBLICO","WEB","DERECHO DE PETICION DE INTERES PARTICULAR",25,"PENDIENTE"]
[3417382021,"SUBDIRECCION DE ADMINISTRACION INMOBILIARIA Y DE ESPACIO PUBLICO","WEB","DERECHO DE PETICION DE INTERES PARTICULAR",26,"PENDIENTE"]
[3418602021,"SUBDIRECCION DE REGISTRO INMOBILIARIO","ESCRITO","DERECHO DE PETICION DE INTERES PARTICULAR",25,"PENDIENTE"]
[3418712021,"SUBDIRECCION DE ADMINISTRACION INMOBILIARIA Y DE ESPACIO PUBLICO","ESCRITO","DERECHO DE PETICION DE INTERES PARTICULAR",25,"PENDIENTE"]
[3418862021,"SUBDIRECCION DE ADMINISTRACION INMOBILIARIA Y DE ESPACIO PUBLICO","ESCRITO","DERECHO DE PETICION DE INTERES GENERAL",25,"PENDIENTE"]
[3425362021,"DESPACHO","ESCRITO","DERECHO DE PETICION DE INTERES PARTICULAR",25,"PENDIENTE"]
[3425612021,"SUBDIRECCION DE ADMINISTRACION INMOBILIARIA Y DE ESPACIO PUBLICO","ESCRITO","DERECHO DE PETICION DE INTERES PARTICULAR",25,"PENDIENTE"]
[3425802021,"SUBDIRECCION DE ADMINISTRACION INMOBILIARIA Y DE ESPACIO PUBLICO","ESCRITO","DERECHO DE PETICION DE INTERES PARTICULAR",25,"PENDIENTE"]
[3425882021,"SUBDIRECCION DE ADMINISTRACION INMOBILIARIA Y DE ESPACIO PUBLICO","ESCRITO","DERECHO DE PETICION DE INTERES PARTICULAR",25,"PENDIENTE"]
[3425922021,"SUBDIRECCION DE ADMINISTRACION INMOBILIARIA Y DE ESPACIO PUBLICO","TELEFONO","DERECHO DE PETICION DE INTERES PARTICULAR",25,"PENDIENTE"]
[3426302021,"SUBDIRECCION DE ADMINISTRACION INMOBILIARIA Y DE ESPACIO PUBLICO","ESCRITO","DERECHO DE PETICION DE INTERES PARTICULAR",25,"PENDIENTE"]
[3431452021,"SUBDIRECCION DE ADMINISTRACION INMOBILIARIA Y DE ESPACIO PUBLICO","E-MAIL","DERECHO DE PETICION DE INTERES GENERAL",25,"PENDIENTE"]
[3435642021,"SUBDIRECCION DE ADMINISTRACION INMOBILIARIA Y DE ESPACIO PUBLICO","WEB","DERECHO DE PETICION DE INTERES GENERAL",25,"PENDIENTE"]
[3439692021,"SUBDIRECCION DE ADMINISTRACION INMOBILIARIA Y DE ESPACIO PUBLICO","WEB","DERECHO DE PETICION DE INTERES GENERAL",23,"PENDIENTE"]
[3444202021,"SUBDIRECCION DE ADMINISTRACION INMOBILIARIA Y DE ESPACIO PUBLICO","WEB","QUEJA",25,"PENDIENTE"]
[3446552021,"SUBDIRECCION DE REGISTRO INMOBILIARIO","WEB","QUEJA",22,"GESTIONADOS"]
[3447442021,"SUBDIRECCION DE ADMINISTRACION INMOBILIARIA Y DE ESPACIO PUBLICO","ESCRITO","DERECHO DE PETICION DE INTERES PARTICULAR",24,"PENDIENTE"]
[3447852021,"SUBDIRECCION DE REGISTRO INMOBILIARIO","WEB","DERECHO DE PETICION DE INTERES PARTICULAR",19,"GESTIONADOS"]
[3449912021,"SUBDIRECCION DE ADMINISTRACION INMOBILIARIA Y DE ESPACIO PUBLICO","ESCRITO","DERECHO DE PETICION DE INTERES PARTICULAR",24,"PENDIENTE"]
[3450142021,"SUBDIRECCION DE ADMINISTRACION INMOBILIARIA Y DE ESPACIO PUBLICO","ESCRITO","DERECHO DE PETICION DE INTERES PARTICULAR",24,"PENDIENTE"]
[3450482021,"SUBDIRECCION DE ADMINISTRACION INMOBILIARIA Y DE ESPACIO PUBLICO","ESCRITO","DERECHO DE PETICION DE INTERES PARTICULAR",24,"PENDIENTE"]
[3450682021,"SUBDIRECCION DE ADMINISTRACION INMOBILIARIA Y DE ESPACIO PUBLICO","ESCRITO","DERECHO DE PETICION DE INTERES PARTICULAR",24,"PENDIENTE"]
[3450812021,"AREA DE ATENCION A LA CIUDADANIA","WEB","QUEJA",15,"GESTIONADOS"]
[3451282021,"SUBDIRECCION DE REGISTRO INMOBILIARIO","ESCRITO","DERECHO DE PETICION DE INTERES PARTICULAR",16,"GESTIONADOS"]
[3451602021,"SUBDIRECCION DE ADMINISTRACION INMOBILIARIA Y DE ESPACIO PUBLICO","ESCRITO","DERECHO DE PETICION DE INTERES PARTICULAR",24,"PENDIENTE"]
[3453922021,"SUBDIRECCION DE REGISTRO INMOBILIARIO","WEB","DERECHO DE PETICION DE INTERES PARTICULAR",21,"GESTIONADOS"]
[3458032021,"SUBDIRECCION DE ADMINISTRACION INMOBILIARIA Y DE ESPACIO PUBLICO","WEB","DERECHO DE PETICION DE INTERES PARTICULAR",24,"PENDIENTE"]
[3458122021,"SUBDIRECCION DE REGISTRO INMOBILIARIO","WEB","DERECHO DE PETICION DE INTERES PARTICULAR",24,"PENDIENTE"]
[3458522021,"SUBDIRECCION DE ADMINISTRACION INMOBILIARIA Y DE ESPACIO PUBLICO","WEB","CONSULTA",21,"PENDIENTE"]
[3458812021,"AREA DE ATENCION A LA CIUDADANIA","WEB","DERECHO DE PETICION DE INTERES PARTICULAR",22,"GESTIONADOS"]
[3460972021,"SUBDIRECCION DE ADMINISTRACION INMOBILIARIA Y DE ESPACIO PUBLICO","WEB","DERECHO DE PETICION DE INTERES PARTICULAR",24,"PENDIENTE"]
[3461902021,"SUBDIRECCION DE ADMINISTRACION INMOBILIARIA Y DE ESPACIO PUBLICO","ESCRITO","DERECHO DE PETICION DE INTERES PARTICULAR",23,"PENDIENTE"]
[3462032021,"SUBDIRECCION DE ADMINISTRACION INMOBILIARIA Y DE ESPACIO PUBLICO","ESCRITO","DERECHO DE PETICION DE INTERES PARTICULAR",23,"PENDIENTE"]
[3462312021,"SUBDIRECCION DE ADMINISTRACION INMOBILIARIA Y DE ESPACIO PUBLICO","ESCRITO","DERECHO DE PETICION DE INTERES PARTICULAR",23,"PENDIENTE"]
[3463242021,"SUBDIRECCION DE ADMINISTRACION INMOBILIARIA Y DE ESPACIO PUBLICO","ESCRITO","DERECHO DE PETICION DE INTERES PARTICULAR",23,"PENDIENTE"]
[3463842021,"SUBDIRECCION DE ADMINISTRACION INMOBILIARIA Y DE ESPACIO PUBLICO","ESCRITO","DERECHO DE PETICION DE INTERES PARTICULAR",23,"PENDIENTE"]
[3463962021,"SUBDIRECCION DE REGISTRO INMOBILIARIO","ESCRITO","DERECHO DE PETICION DE INTERES GENERAL",18,"GESTIONADOS"]
[3464092021,"SUBDIRECCION DE ADMINISTRACION INMOBILIARIA Y DE ESPACIO PUBLICO","ESCRITO","DERECHO DE PETICION DE INTERES PARTICULAR",23,"PENDIENTE"]
[3464472021,"SUBDIRECCION DE ADMINISTRACION INMOBILIARIA Y DE ESPACIO PUBLICO","ESCRITO","DERECHO DE PETICION DE INTERES PARTICULAR",23,"PENDIENTE"]
[3464662021,"SUBDIRECCION DE ADMINISTRACION INMOBILIARIA Y DE ESPACIO PUBLICO","ESCRITO","DERECHO DE PETICION DE INTERES PARTICULAR",23,"PENDIENTE"]
[3464852021,"SUBDIRECCION DE ADMINISTRACION INMOBILIARIA Y DE ESPACIO PUBLICO","ESCRITO","DERECHO DE PETICION DE INTERES GENERAL",23,"PENDIENTE"]
[3464982021,"SUBDIRECCION DE REGISTRO INMOBILIARIO","ESCRITO","DERECHO DE PETICION DE INTERES PARTICULAR",20,"GESTIONADOS"]
[3465002021,"SUBDIRECCION DE ADMINISTRACION INMOBILIARIA Y DE ESPACIO PUBLICO","ESCRITO","DERECHO DE PETICION DE INTERES PARTICULAR",23,"PENDIENTE"]
[3465032021,"SUBDIRECCION DE REGISTRO INMOBILIARIO","ESCRITO","DERECHO DE PETICION DE INTERES PARTICULAR",18,"GESTIONADOS"]
[3465082021,"SUBDIRECCION DE ADMINISTRACION INMOBILIARIA Y DE ESPACIO PUBLICO","ESCRITO","DERECHO DE PETICION DE INTERES PARTICULAR",23,"PENDIENTE"]
[3467512021,"SUBDIRECCION DE ADMINISTRACION INMOBILIARIA Y DE ESPACIO PUBLICO","ESCRITO","DERECHO DE PETICION DE INTERES PARTICULAR",23,"PENDIENTE"]
[3467652021,"SUBDIRECCION DE ADMINISTRACION INMOBILIARIA Y DE ESPACIO PUBLICO","ESCRITO","DERECHO DE PETICION DE INTERES PARTICULAR",23,"PENDIENTE"]
[3467872021,"SUBDIRECCION DE ADMINISTRACION INMOBILIARIA Y DE ESPACIO PUBLICO","WEB","DERECHO DE PETICION DE INTERES PARTICULAR",23,"PENDIENTE"]
[3468112021,"SUBDIRECCION DE ADMINISTRACION INMOBILIARIA Y DE ESPACIO PUBLICO","ESCRITO","DERECHO DE PETICION DE INTERES PARTICULAR",23,"PENDIENTE"]
[3468522021,"SUBDIRECCION DE ADMINISTRACION INMOBILIARIA Y DE ESPACIO PUBLICO","ESCRITO","DERECHO DE PETICION DE INTERES PARTICULAR",23,"PENDIENTE"]
[3468582021,"SUBDIRECCION DE ADMINISTRACION INMOBILIARIA Y DE ESPACIO PUBLICO","WEB","CONSULTA",23,"PENDIENTE"]
[3468882021,"SUBDIRECCION DE ADMINISTRACION INMOBILIARIA Y DE ESPACIO PUBLICO","ESCRITO","DERECHO DE PETICION DE INTERES PARTICULAR",23,"PENDIENTE"]
[3469242021,"SUBDIRECCION DE ADMINISTRACION INMOBILIARIA Y DE ESPACIO PUBLICO","ESCRITO","DERECHO DE PETICION DE INTERES PARTICULAR",23,"PENDIENTE"]
[3469542021,"SUBDIRECCION DE ADMINISTRACION INMOBILIARIA Y DE ESPACIO PUBLICO","ESCRITO","DERECHO DE PETICION DE INTERES PARTICULAR",23,"PENDIENTE"]
[3470502021,"SUBDIRECCION DE ADMINISTRACION INMOBILIARIA Y DE ESPACIO PUBLICO","WEB","DERECHO DE PETICION DE INTERES PARTICULAR",23,"PENDIENTE"]
[3472892021,"SUBDIRECCION DE REGISTRO INMOBILIARIO","ESCRITO","DERECHO DE PETICION DE INTERES PARTICULAR",23,"PENDIENTE"]
[3472932021,"SUBDIRECCION DE ADMINISTRACION INMOBILIARIA Y DE ESPACIO PUBLICO","ESCRITO","DERECHO DE PETICION DE INTERES PARTICULAR",23,"PENDIENTE"]
[3473832021,"SUBDIRECCION DE ADMINISTRACION INMOBILIARIA Y DE ESPACIO PUBLICO","WEB","DERECHO DE PETICION DE INTERES PARTICULAR",23,"PENDIENTE"]
[3479192021,"SUBDIRECCION DE ADMINISTRACION INMOBILIARIA Y DE ESPACIO PUBLICO","ESCRITO","DERECHO DE PETICION DE INTERES PARTICULAR",23,"PENDIENTE"]
[3480872021,"AREA DE ATENCION A LA CIUDADANIA","ESCRITO","DERECHO DE PETICION DE INTERES PARTICULAR",6,"PENDIENTE"]
[3480932021,"SUBDIRECCION DE ADMINISTRACION INMOBILIARIA Y DE ESPACIO PUBLICO","WEB","DERECHO DE PETICION DE INTERES GENERAL",22,"PENDIENTE"]
[3483672021,"AREA DE ATENCION A LA CIUDADANIA","E-MAIL","DERECHO DE PETICION DE INTERES GENERAL",1,"GESTIONADOS"]
[3483672021,"SUBDIRECCION DE ADMINISTRACION INMOBILIARIA Y DE ESPACIO PUBLICO","E-MAIL","DERECHO DE PETICION DE INTERES GENERAL",10,"PENDIENTE"]
[3484872021,"SUBDIRECCION DE ADMINISTRACION INMOBILIARIA Y DE ESPACIO PUBLICO","WEB","DERECHO DE PETICION DE INTERES GENERAL",22,"PENDIENTE"]
[3484982021,"SUBDIRECCION DE ADMINISTRACION INMOBILIARIA Y DE ESPACIO PUBLICO","WEB","DERECHO DE PETICION DE INTERES GENERAL",22,"PENDIENTE"]
[3485242021,"SUBDIRECCION DE ADMINISTRACION INMOBILIARIA Y DE ESPACIO PUBLICO","WEB","DERECHO DE PETICION DE INTERES GENERAL",22,"PENDIENTE"]
[3485302021,"SUBDIRECCION DE ADMINISTRACION INMOBILIARIA Y DE ESPACIO PUBLICO","WEB","DERECHO DE PETICION DE INTERES GENERAL",22,"PENDIENTE"]
[3487682021,"SUBDIRECCION DE ADMINISTRACION INMOBILIARIA Y DE ESPACIO PUBLICO","ESCRITO","DERECHO DE PETICION DE INTERES PARTICULAR",22,"PENDIENTE"]
[3496192021,"SUBDIRECCION DE ADMINISTRACION INMOBILIARIA Y DE ESPACIO PUBLICO","WEB","DERECHO DE PETICION DE INTERES PARTICULAR",22,"PENDIENTE"]
[3497322021,"SUBDIRECCION DE ADMINISTRACION INMOBILIARIA Y DE ESPACIO PUBLICO","ESCRITO","DERECHO DE PETICION DE INTERES PARTICULAR",22,"PENDIENTE"]
[3497372021,"SUBDIRECCION DE REGISTRO INMOBILIARIO","ESCRITO","DERECHO DE PETICION DE INTERES PARTICULAR",18,"GESTIONADOS"]
[3497392021,"SUBDIRECCION DE REGISTRO INMOBILIARIO","ESCRITO","DERECHO DE PETICION DE INTERES PARTICULAR",22,"GESTIONADOS"]
[3499682021,"SUBDIRECCION DE REGISTRO INMOBILIARIO","ESCRITO","DERECHO DE PETICION DE INTERES PARTICULAR",19,"GESTIONADOS"]
[3500822021,"SUBDIRECCION DE ADMINISTRACION INMOBILIARIA Y DE ESPACIO PUBLICO","ESCRITO","DERECHO DE PETICION DE INTERES PARTICULAR",21,"PENDIENTE"]
[3501332021,"DESPACHO","ESCRITO","DERECHO DE PETICION DE INTERES PARTICULAR",3,"GESTIONADOS"]
[3501332021,"SUBDIRECCION DE REGISTRO INMOBILIARIO","ESCRITO","DERECHO DE PETICION DE INTERES PARTICULAR",17,"GESTIONADOS"]
[3501752021,"SUBDIRECCION DE ADMINISTRACION INMOBILIARIA Y DE ESPACIO PUBLICO","ESCRITO","DERECHO DE PETICION DE INTERES GENERAL",21,"PENDIENTE"]
[3501982021,"SUBDIRECCION DE ADMINISTRACION INMOBILIARIA Y DE ESPACIO PUBLICO","ESCRITO","DERECHO DE PETICION DE INTERES PARTICULAR",21,"PENDIENTE"]
[3502112021,"SUBDIRECCION DE REGISTRO INMOBILIARIO","ESCRITO","DERECHO DE PETICION DE INTERES GENERAL",16,"GESTIONADOS"]
[3502162021,"SUBDIRECCION DE ADMINISTRACION INMOBILIARIA Y DE ESPACIO PUBLICO","ESCRITO","DERECHO DE PETICION DE INTERES PARTICULAR",21,"PENDIENTE"]
[3502172021,"SUBDIRECCION DE ADMINISTRACION INMOBILIARIA Y DE ESPACIO PUBLICO","ESCRITO","DERECHO DE PETICION DE INTERES PARTICULAR",21,"PENDIENTE"]
[3502202021,"SUBDIRECCION DE ADMINISTRACION INMOBILIARIA Y DE ESPACIO PUBLICO","ESCRITO","DERECHO DE PETICION DE INTERES PARTICULAR",21,"PENDIENTE"]
[3504172021,"AREA DE ATENCION A LA CIUDADANIA","WEB","DERECHO DE PETICION DE INTERES PARTICULAR",1,"GESTIONADOS"]
[3504512021,"AREA DE ATENCION A LA CIUDADANIA","WEB","DERECHO DE PETICION DE INTERES PARTICULAR",1,"GESTIONADOS"]
[3505672021,"AREA DE ATENCION A LA CIUDADANIA","WEB","QUEJA",20,"GESTIONADOS"]
[3506422021,"AREA DE ATENCION A LA CIUDADANIA","WEB","QUEJA",20,"GESTIONADOS"]
[3508412021,"SUBDIRECCION DE ADMINISTRACION INMOBILIARIA Y DE ESPACIO PUBLICO","TELEFONO","DERECHO DE PETICION DE INTERES GENERAL",21,"PENDIENTE"]
[3509442021,"SUBDIRECCION DE ADMINISTRACION INMOBILIARIA Y DE ESPACIO PUBLICO","WEB","DERECHO DE PETICION DE INTERES PARTICULAR",21,"PENDIENTE"]
[3509962021,"AREA DE ATENCION A LA CIUDADANIA","WEB","DERECHO DE PETICION DE INTERES GENERAL",1,"GESTIONADOS"]
[3514942021,"SUBDIRECCION DE ADMINISTRACION INMOBILIARIA Y DE ESPACIO PUBLICO","ESCRITO","DERECHO DE PETICION DE INTERES PARTICULAR",20,"PENDIENTE"]
[3514982021,"SUBDIRECCION DE REGISTRO INMOBILIARIO","ESCRITO","DERECHO DE PETICION DE INTERES PARTICULAR",15,"GESTIONADOS"]
[3515472021,"OFICINA ASESORA JURIDICA","ESCRITO","DERECHO DE PETICION DE INTERES PARTICULAR",2,"GESTIONADOS"]
[3516502021,"SUBDIRECCION DE REGISTRO INMOBILIARIO","WEB","DERECHO DE PETICION DE INTERES GENERAL",20,"PENDIENTE"]
[3517422021,"SUBDIRECCION DE ADMINISTRACION INMOBILIARIA Y DE ESPACIO PUBLICO","WEB","DERECHO DE PETICION DE INTERES GENERAL",20,"PENDIENTE"]
[3518772021,"SUBDIRECCION DE REGISTRO INMOBILIARIO","WEB","DERECHO DE PETICION DE INTERES GENERAL",20,"PENDIENTE"]
[3519432021,"AREA DE ATENCION A LA CIUDADANIA","WEB","SOLICITUD DE ACCESO A LA INFORMACION",1,"GESTIONADOS"]
[3519432021,"SUBDIRECCION DE REGISTRO INMOBILIARIO","WEB","SOLICITUD DE ACCESO A LA INFORMACION",14,"PENDIENTE"]
[3521242021,"SUBDIRECCION DE ADMINISTRACION INMOBILIARIA Y DE ESPACIO PUBLICO","WEB","DERECHO DE PETICION DE INTERES GENERAL",20,"PENDIENTE"]
[3521512021,"SUBDIRECCION DE ADMINISTRACION INMOBILIARIA Y DE ESPACIO PUBLICO","ESCRITO","DERECHO DE PETICION DE INTERES PARTICULAR",20,"PENDIENTE"]
[3521782021,"SUBDIRECCION DE REGISTRO INMOBILIARIO","ESCRITO","DERECHO DE PETICION DE INTERES PARTICULAR",15,"GESTIONADOS"]
[3521922021,"SUBDIRECCION DE ADMINISTRACION INMOBILIARIA Y DE ESPACIO PUBLICO","ESCRITO","DERECHO DE PETICION DE INTERES PARTICULAR",20,"PENDIENTE"]
[3522022021,"SUBDIRECCION DE ADMINISTRACION INMOBILIARIA Y DE ESPACIO PUBLICO","ESCRITO","DERECHO DE PETICION DE INTERES PARTICULAR",20,"PENDIENTE"]
[3522152021,"SUBDIRECCION DE ADMINISTRACION INMOBILIARIA Y DE ESPACIO PUBLICO","ESCRITO","DERECHO DE PETICION DE INTERES PARTICULAR",20,"PENDIENTE"]
[3522322021,"SUBDIRECCION DE ADMINISTRACION INMOBILIARIA Y DE ESPACIO PUBLICO","ESCRITO","DERECHO DE PETICION DE INTERES PARTICULAR",20,"PENDIENTE"]
[3522442021,"SUBDIRECCION DE ADMINISTRACION INMOBILIARIA Y DE ESPACIO PUBLICO","ESCRITO","DERECHO DE PETICION DE INTERES PARTICULAR",20,"PENDIENTE"]
[3523142021,"AREA DE ATENCION A LA CIUDADANIA","WEB","DERECHO DE PETICION DE INTERES GENERAL",1,"GESTIONADOS"]
[3523142021,"SUBDIRECCION DE ADMINISTRACION INMOBILIARIA Y DE ESPACIO PUBLICO","WEB","DERECHO DE PETICION DE INTERES GENERAL",19,"PENDIENTE"]
[3524492021,"SUBDIRECCION DE REGISTRO INMOBILIARIO","ESCRITO","DERECHO DE PETICION DE INTERES PARTICULAR",15,"GESTIONADOS"]
[3524712021,"SUBDIRECCION DE ADMINISTRACION INMOBILIARIA Y DE ESPACIO PUBLICO","ESCRITO","DERECHO DE PETICION DE INTERES PARTICULAR",20,"PENDIENTE"]
[3525082021,"SUBDIRECCION DE ADMINISTRACION INMOBILIARIA Y DE ESPACIO PUBLICO","ESCRITO","DERECHO DE PETICION DE INTERES PARTICULAR",20,"PENDIENTE"]
[3525292021,"AREA DE ATENCION A LA CIUDADANIA","ESCRITO","DERECHO DE PETICION DE INTERES PARTICULAR",19,"GESTIONADOS"]
[3525292021,"SUBDIRECCION DE REGISTRO INMOBILIARIO","ESCRITO","DERECHO DE PETICION DE INTERES PARTICULAR",19,"GESTIONADOS"]
[3532872021,"AREA DE ATENCION A LA CIUDADANIA","WEB","QUEJA",1,"GESTIONADOS"]
[3532972021,"AREA DE ATENCION A LA CIUDADANIA","WEB","QUEJA",1,"GESTIONADOS"]
[3534762021,"AREA DE ATENCION A LA CIUDADANIA","WEB","DERECHO DE PETICION DE INTERES GENERAL",1,"GESTIONADOS"]
[3534762021,"SUBDIRECCION DE ADMINISTRACION INMOBILIARIA Y DE ESPACIO PUBLICO","WEB","DERECHO DE PETICION DE INTERES GENERAL",17,"PENDIENTE"]
[3535722021,"AREA DE ATENCION A LA CIUDADANIA","WEB","DERECHO DE PETICION DE INTERES GENERAL",1,"GESTIONADOS"]
[3536552021,"AREA DE ATENCION A LA CIUDADANIA","TELEFONO","DERECHO DE PETICION DE INTERES PARTICULAR",1,"GESTIONADOS"]
[3536722021,"AREA DE ATENCION A LA CIUDADANIA","WEB","DERECHO DE PETICION DE INTERES GENERAL",1,"GESTIONADOS"]
[3536742021,"AREA DE ATENCION A LA CIUDADANIA","TELEFONO","DERECHO DE PETICION DE INTERES GENERAL",1,"GESTIONADOS"]
[3537272021,"AREA DE ATENCION A LA CIUDADANIA","E-MAIL","DERECHO DE PETICION DE INTERES GENERAL",1,"GESTIONADOS"]
[3537792021,"AREA DE ATENCION A LA CIUDADANIA","WEB","DERECHO DE PETICION DE INTERES GENERAL",1,"GESTIONADOS"]
[3537812021,"AREA DE ATENCION A LA CIUDADANIA","WEB","DERECHO DE PETICION DE INTERES PARTICULAR",1,"GESTIONADOS"]
[3537822021,"AREA DE ATENCION A LA CIUDADANIA","WEB","DERECHO DE PETICION DE INTERES GENERAL",1,"GESTIONADOS"]
[3537822021,"SUBDIRECCION DE ADMINISTRACION INMOBILIARIA Y DE ESPACIO PUBLICO","WEB","DERECHO DE PETICION DE INTERES GENERAL",20,"PENDIENTE"]
[3539262021,"AREA DE ATENCION A LA CIUDADANIA","WEB","DERECHO DE PETICION DE INTERES PARTICULAR",1,"GESTIONADOS"]
[3540052021,"AREA DE ATENCION A LA CIUDADANIA","TELEFONO","DERECHO DE PETICION DE INTERES PARTICULAR",1,"GESTIONADOS"]
[3540052021,"SUBDIRECCION DE ADMINISTRACION INMOBILIARIA Y DE ESPACIO PUBLICO","TELEFONO","DERECHO DE PETICION DE INTERES PARTICULAR",19,"PENDIENTE"]
[3541982021,"AREA DE ATENCION A LA CIUDADANIA","ESCRITO","DERECHO DE PETICION DE INTERES PARTICULAR",1,"GESTIONADOS"]
[3541982021,"SUBDIRECCION DE REGISTRO INMOBILIARIO","ESCRITO","DERECHO DE PETICION DE INTERES PARTICULAR",19,"PENDIENTE"]
[3542372021,"AREA DE ATENCION A LA CIUDADANIA","ESCRITO","DERECHO DE PETICION DE INTERES PARTICULAR",1,"GESTIONADOS"]
[3542372021,"SUBDIRECCION DE REGISTRO INMOBILIARIO","ESCRITO","DERECHO DE PETICION DE INTERES PARTICULAR",19,"GESTIONADOS"]
[3542582021,"AREA DE ATENCION A LA CIUDADANIA","ESCRITO","DERECHO DE PETICION DE INTERES PARTICULAR",1,"GESTIONADOS"]
[3542582021,"SUBDIRECCION DE REGISTRO INMOBILIARIO","ESCRITO","DERECHO DE PETICION DE INTERES PARTICULAR",15,"GESTIONADOS"]
[3542642021,"AREA DE ATENCION A LA CIUDADANIA","WEB","DERECHO DE PETICION DE INTERES GENERAL",1,"GESTIONADOS"]
[3542832021,"AREA DE ATENCION A LA CIUDADANIA","ESCRITO","DERECHO DE PETICION DE INTERES GENERAL",1,"GESTIONADOS"]
[3542832021,"SUBDIRECCION DE ADMINISTRACION INMOBILIARIA Y DE ESPACIO PUBLICO","ESCRITO","DERECHO DE PETICION DE INTERES GENERAL",19,"PENDIENTE"]
[3542902021,"AREA DE ATENCION A LA CIUDADANIA","ESCRITO","DERECHO DE PETICION DE INTERES PARTICULAR",1,"GESTIONADOS"]
[3542902021,"SUBDIRECCION DE REGISTRO INMOBILIARIO","ESCRITO","DERECHO DE PETICION DE INTERES PARTICULAR",19,"PENDIENTE"]
[3542952021,"AREA DE ATENCION A LA CIUDADANIA","ESCRITO","DERECHO DE PETICION DE INTERES GENERAL",1,"GESTIONADOS"]
[3542952021,"SUBDIRECCION DE REGISTRO INMOBILIARIO","ESCRITO","DERECHO DE PETICION DE INTERES GENERAL",15,"GESTIONADOS"]
[3542992021,"AREA DE ATENCION A LA CIUDADANIA","ESCRITO","DERECHO DE PETICION DE INTERES PARTICULAR",1,"GESTIONADOS"]
[3542992021,"SUBDIRECCION DE ADMINISTRACION INMOBILIARIA Y DE ESPACIO PUBLICO","ESCRITO","DERECHO DE PETICION DE INTERES PARTICULAR",19,"PENDIENTE"]
[3543202021,"AREA DE ATENCION A LA CIUDADANIA","TELEFONO","DERECHO DE PETICION DE INTERES GENERAL",1,"GESTIONADOS"]
[3543202021,"SUBDIRECCION DE REGISTRO INMOBILIARIO","TELEFONO","DERECHO DE PETICION DE INTERES GENERAL",19,"PENDIENTE"]
[3543352021,"AREA DE ATENCION A LA CIUDADANIA","ESCRITO","DERECHO DE PETICION DE INTERES PARTICULAR",1,"GESTIONADOS"]
[3543352021,"SUBDIRECCION DE ADMINISTRACION INMOBILIARIA Y DE ESPACIO PUBLICO","ESCRITO","DERECHO DE PETICION DE INTERES PARTICULAR",19,"PENDIENTE"]
[3543602021,"AREA DE ATENCION A LA CIUDADANIA","ESCRITO","DERECHO DE PETICION DE INTERES PARTICULAR",1,"GESTIONADOS"]
[3543602021,"SUBDIRECCION DE ADMINISTRACION INMOBILIARIA Y DE ESPACIO PUBLICO","ESCRITO","DERECHO DE PETICION DE INTERES PARTICULAR",19,"PENDIENTE"]
[3543742021,"AREA DE ATENCION A LA CIUDADANIA","WEB","DERECHO DE PETICION DE INTERES PARTICULAR",1,"GESTIONADOS"]
[3543742021,"SUBDIRECCION DE ADMINISTRACION INMOBILIARIA Y DE ESPACIO PUBLICO","WEB","DERECHO DE PETICION DE INTERES PARTICULAR",19,"PENDIENTE"]
[3544612021,"AREA DE ATENCION A LA CIUDADANIA","TELEFONO","DERECHO DE PETICION DE INTERES GENERAL",1,"GESTIONADOS"]
[3545152021,"AREA DE ATENCION A LA CIUDADANIA","WEB","QUEJA",1,"GESTIONADOS"]
[3545382021,"AREA DE ATENCION A LA CIUDADANIA","WEB","DERECHO DE PETICION DE INTERES PARTICULAR",1,"GESTIONADOS"]
[3545382021,"SUBDIRECCION DE REGISTRO INMOBILIARIO","WEB","DERECHO DE PETICION DE INTERES PARTICULAR",19,"PENDIENTE"]
[3545772021,"AREA DE ATENCION A LA CIUDADANIA","TELEFONO","DERECHO DE PETICION DE INTERES PARTICULAR",1,"GESTIONADOS"]
[3546502021,"AREA DE ATENCION A LA CIUDADANIA","ESCRITO","DERECHO DE PETICION DE INTERES PARTICULAR",1,"GESTIONADOS"]
[3546502021,"SUBDIRECCION DE ADMINISTRACION INMOBILIARIA Y DE ESPACIO PUBLICO","ESCRITO","DERECHO DE PETICION DE INTERES PARTICULAR",19,"PENDIENTE"]
[3546792021,"AREA DE ATENCION A LA CIUDADANIA","ESCRITO","DERECHO DE PETICION DE INTERES PARTICULAR",1,"GESTIONADOS"]
[3546792021,"SUBDIRECCION DE REGISTRO INMOBILIARIO","ESCRITO","DERECHO DE PETICION DE INTERES PARTICULAR",16,"GESTIONADOS"]
[3546892021,"AREA DE ATENCION A LA CIUDADANIA","ESCRITO","DERECHO DE PETICION DE INTERES PARTICULAR",1,"GESTIONADOS"]
[3546892021,"SUBDIRECCION DE ADMINISTRACION INMOBILIARIA Y DE ESPACIO PUBLICO","ESCRITO","DERECHO DE PETICION DE INTERES PARTICULAR",19,"PENDIENTE"]
[3552452021,"AREA DE ATENCION A LA CIUDADANIA","TELEFONO","DERECHO DE PETICION DE INTERES GENERAL",1,"GESTIONADOS"]
[3552452021,"SUBDIRECCION DE REGISTRO INMOBILIARIO","TELEFONO","DERECHO DE PETICION DE INTERES GENERAL",19,"PENDIENTE"]
[3552732021,"AREA DE ATENCION A LA CIUDADANIA","WEB","DERECHO DE PETICION DE INTERES PARTICULAR",1,"GESTIONADOS"]
[3552882021,"AREA DE ATENCION A LA CIUDADANIA","ESCRITO","DERECHO DE PETICION DE INTERES PARTICULAR",1,"GESTIONADOS"]
[3552882021,"SUBDIRECCION DE ADMINISTRACION INMOBILIARIA Y DE ESPACIO PUBLICO","ESCRITO","DERECHO DE PETICION DE INTERES PARTICULAR",19,"PENDIENTE"]
[3552902021,"AREA DE ATENCION A LA CIUDADANIA","ESCRITO","DERECHO DE PETICION DE INTERES PARTICULAR",1,"GESTIONADOS"]
[3552902021,"SUBDIRECCION DE ADMINISTRACION INMOBILIARIA Y DE ESPACIO PUBLICO","ESCRITO","DERECHO DE PETICION DE INTERES PARTICULAR",19,"PENDIENTE"]
[3555482021,"AREA DE ATENCION A LA CIUDADANIA","ESCRITO","DERECHO DE PETICION DE INTERES PARTICULAR",1,"GESTIONADOS"]
[3555482021,"SUBDIRECCION DE ADMINISTRACION INMOBILIARIA Y DE ESPACIO PUBLICO","ESCRITO","DERECHO DE PETICION DE INTERES PARTICULAR",19,"PENDIENTE"]
[3555522021,"AREA DE ATENCION A LA CIUDADANIA","ESCRITO","DERECHO DE PETICION DE INTERES PARTICULAR",1,"GESTIONADOS"]
[3555522021,"SUBDIRECCION DE ADMINISTRACION INMOBILIARIA Y DE ESPACIO PUBLICO","ESCRITO","DERECHO DE PETICION DE INTERES PARTICULAR",19,"PENDIENTE"]
[3555582021,"AREA DE ATENCION A LA CIUDADANIA","ESCRITO","DERECHO DE PETICION DE INTERES PARTICULAR",1,"GESTIONADOS"]
[3555582021,"SUBDIRECCION DE ADMINISTRACION INMOBILIARIA Y DE ESPACIO PUBLICO","ESCRITO","DERECHO DE PETICION DE INTERES PARTICULAR",19,"PENDIENTE"]
[3555652021,"AREA DE ATENCION A LA CIUDADANIA","ESCRITO","DERECHO DE PETICION DE INTERES PARTICULAR",1,"GESTIONADOS"]
[3555652021,"SUBDIRECCION DE ADMINISTRACION INMOBILIARIA Y DE ESPACIO PUBLICO","ESCRITO","DERECHO DE PETICION DE INTERES PARTICULAR",19,"PENDIENTE"]
[3555702021,"AREA DE ATENCION A LA CIUDADANIA","ESCRITO","DERECHO DE PETICION DE INTERES PARTICULAR",1,"GESTIONADOS"]
[3555702021,"SUBDIRECCION DE ADMINISTRACION INMOBILIARIA Y DE ESPACIO PUBLICO","ESCRITO","DERECHO DE PETICION DE INTERES PARTICULAR",19,"PENDIENTE"]
[3555922021,"AREA DE ATENCION A LA CIUDADANIA","WEB","DERECHO DE PETICION DE INTERES PARTICULAR",1,"GESTIONADOS"]
[3556912021,"AREA DE ATENCION A LA CIUDADANIA","WEB","DERECHO DE PETICION DE INTERES PARTICULAR",1,"GESTIONADOS"]
[3557062021,"AREA DE ATENCION A LA CIUDADANIA","ESCRITO","DERECHO DE PETICION DE INTERES PARTICULAR",1,"GESTIONADOS"]
[3558322021,"AREA DE ATENCION A LA CIUDADANIA","WEB","DERECHO DE PETICION DE INTERES PARTICULAR",1,"GESTIONADOS"]
[3559112021,"AREA DE ATENCION A LA CIUDADANIA","TELEFONO","DERECHO DE PETICION DE INTERES PARTICULAR",1,"GESTIONADOS"]
[3559952021,"AREA DE ATENCION A LA CIUDADANIA","WEB","DERECHO DE PETICION DE INTERES PARTICULAR",1,"GESTIONADOS"]
[3559952021,"SUBDIRECCION DE ADMINISTRACION INMOBILIARIA Y DE ESPACIO PUBLICO","WEB","DERECHO DE PETICION DE INTERES PARTICULAR",17,"PENDIENTE"]
[3562352021,"AREA DE ATENCION A LA CIUDADANIA","WEB","DERECHO DE PETICION DE INTERES PARTICULAR",1,"GESTIONADOS"]
[3562352021,"SUBDIRECCION DE REGISTRO INMOBILIARIO","WEB","DERECHO DE PETICION DE INTERES PARTICULAR",16,"GESTIONADOS"]
[3565632021,"AREA DE ATENCION A LA CIUDADANIA","ESCRITO","DERECHO DE PETICION DE INTERES PARTICULAR",1,"GESTIONADOS"]
[3565632021,"SUBDIRECCION DE ADMINISTRACION INMOBILIARIA Y DE ESPACIO PUBLICO","ESCRITO","DERECHO DE PETICION DE INTERES PARTICULAR",18,"PENDIENTE"]
[3565982021,"AREA DE ATENCION A LA CIUDADANIA","ESCRITO","DERECHO DE PETICION DE INTERES PARTICULAR",1,"GESTIONADOS"]
[3565982021,"SUBDIRECCION DE ADMINISTRACION INMOBILIARIA Y DE ESPACIO PUBLICO","ESCRITO","DERECHO DE PETICION DE INTERES PARTICULAR",18,"PENDIENTE"]
[3566122021,"AREA DE ATENCION A LA CIUDADANIA","ESCRITO","DERECHO DE PETICION DE INTERES PARTICULAR",1,"GESTIONADOS"]
[3566122021,"SUBDIRECCION DE ADMINISTRACION INMOBILIARIA Y DE ESPACIO PUBLICO","ESCRITO","DERECHO DE PETICION DE INTERES PARTICULAR",18,"PENDIENTE"]
[3566482021,"AREA DE ATENCION A LA CIUDADANIA","ESCRITO","DERECHO DE PETICION DE INTERES PARTICULAR",1,"GESTIONADOS"]
[3566482021,"SUBDIRECCION DE ADMINISTRACION INMOBILIARIA Y DE ESPACIO PUBLICO","ESCRITO","DERECHO DE PETICION DE INTERES PARTICULAR",18,"PENDIENTE"]
[3566902021,"AREA DE ATENCION A LA CIUDADANIA","WEB","DERECHO DE PETICION DE INTERES GENERAL",1,"GESTIONADOS"]
[3568312021,"AREA DE ATENCION A LA CIUDADANIA","WEB","DERECHO DE PETICION DE INTERES PARTICULAR",1,"GESTIONADOS"]
[3570852021,"AREA DE ATENCION A LA CIUDADANIA","WEB","DERECHO DE PETICION DE INTERES PARTICULAR",1,"GESTIONADOS"]
[3570852021,"SUBDIRECCION DE ADMINISTRACION INMOBILIARIA Y DE ESPACIO PUBLICO","WEB","DERECHO DE PETICION DE INTERES PARTICULAR",14,"PENDIENTE"]
[3571502021,"AREA DE ATENCION A LA CIUDADANIA","WEB","DERECHO DE PETICION DE INTERES PARTICULAR",1,"GESTIONADOS"]
[3571502021,"SUBDIRECCION DE ADMINISTRACION INMOBILIARIA Y DE ESPACIO PUBLICO","WEB","DERECHO DE PETICION DE INTERES PARTICULAR",18,"PENDIENTE"]
[3572312021,"AREA DE ATENCION A LA CIUDADANIA","WEB","DERECHO DE PETICION DE INTERES GENERAL",1,"GESTIONADOS"]
[3572312021,"SUBDIRECCION DE ADMINISTRACION INMOBILIARIA Y DE ESPACIO PUBLICO","WEB","DERECHO DE PETICION DE INTERES GENERAL",18,"PENDIENTE"]
[3574562021,"AREA DE ATENCION A LA CIUDADANIA","WEB","DERECHO DE PETICION DE INTERES GENERAL",1,"GESTIONADOS"]
[3574892021,"AREA DE ATENCION A LA CIUDADANIA","WEB","DERECHO DE PETICION DE INTERES PARTICULAR",1,"GESTIONADOS"]
[3574892021,"SUBDIRECCION DE REGISTRO INMOBILIARIO","WEB","DERECHO DE PETICION DE INTERES PARTICULAR",18,"PENDIENTE"]
[3577722021,"AREA DE ATENCION A LA CIUDADANIA","ESCRITO","DERECHO DE PETICION DE INTERES PARTICULAR",1,"GESTIONADOS"]
[3577722021,"SUBDIRECCION DE ADMINISTRACION INMOBILIARIA Y DE ESPACIO PUBLICO","ESCRITO","DERECHO DE PETICION DE INTERES PARTICULAR",17,"PENDIENTE"]
[3577782021,"AREA DE ATENCION A LA CIUDADANIA","ESCRITO","DERECHO DE PETICION DE INTERES PARTICULAR",1,"GESTIONADOS"]
[3577782021,"SUBDIRECCION DE ADMINISTRACION INMOBILIARIA Y DE ESPACIO PUBLICO","ESCRITO","DERECHO DE PETICION DE INTERES PARTICULAR",17,"PENDIENTE"]
[3577882021,"AREA DE ATENCION A LA CIUDADANIA","ESCRITO","DERECHO DE PETICION DE INTERES PARTICULAR",1,"GESTIONADOS"]
[3577882021,"SUBDIRECCION DE ADMINISTRACION INMOBILIARIA Y DE ESPACIO PUBLICO","ESCRITO","DERECHO DE PETICION DE INTERES PARTICULAR",17,"PENDIENTE"]
[3577952021,"AREA DE ATENCION A LA CIUDADANIA","ESCRITO","DERECHO DE PETICION DE INTERES PARTICULAR",1,"GESTIONADOS"]
[3577952021,"SUBDIRECCION DE ADMINISTRACION INMOBILIARIA Y DE ESPACIO PUBLICO","ESCRITO","DERECHO DE PETICION DE INTERES PARTICULAR",17,"PENDIENTE"]
[3578222021,"AREA DE ATENCION A LA CIUDADANIA","ESCRITO","DERECHO DE PETICION DE INTERES PARTICULAR",1,"GESTIONADOS"]
[3578222021,"SUBDIRECCION DE ADMINISTRACION INMOBILIARIA Y DE ESPACIO PUBLICO","ESCRITO","DERECHO DE PETICION DE INTERES PARTICULAR",17,"PENDIENTE"]
[3578292021,"AREA DE ATENCION A LA CIUDADANIA","ESCRITO","DERECHO DE PETICION DE INTERES PARTICULAR",1,"GESTIONADOS"]
[3578292021,"SUBDIRECCION DE ADMINISTRACION INMOBILIARIA Y DE ESPACIO PUBLICO","ESCRITO","DERECHO DE PETICION DE INTERES PARTICULAR",17,"PENDIENTE"]
[3578312021,"AREA DE ATENCION A LA CIUDADANIA","ESCRITO","DERECHO DE PETICION DE INTERES PARTICULAR",1,"GESTIONADOS"]
[3578312021,"SUBDIRECCION DE REGISTRO INMOBILIARIO","ESCRITO","DERECHO DE PETICION DE INTERES PARTICULAR",17,"GESTIONADOS"]
[3578462021,"AREA DE ATENCION A LA CIUDADANIA","ESCRITO","DERECHO DE PETICION DE INTERES GENERAL",1,"GESTIONADOS"]
[3578462021,"SUBDIRECCION DE ADMINISTRACION INMOBILIARIA Y DE ESPACIO PUBLICO","ESCRITO","DERECHO DE PETICION DE INTERES GENERAL",17,"PENDIENTE"]
[3581102021,"AREA DE ATENCION A LA CIUDADANIA","WEB","DERECHO DE PETICION DE INTERES GENERAL",1,"GESTIONADOS"]
[3582832021,"AREA DE ATENCION A LA CIUDADANIA","BUZON","DERECHO DE PETICION DE INTERES GENERAL",1,"GESTIONADOS"]
[3583222021,"AREA DE ATENCION A LA CIUDADANIA","WEB","DERECHO DE PETICION DE INTERES GENERAL",1,"GESTIONADOS"]
[3584422021,"AREA DE ATENCION A LA CIUDADANIA","E-MAIL","DERECHO DE PETICION DE INTERES PARTICULAR",1,"GESTIONADOS"]
[3584422021,"SUBDIRECCION DE ADMINISTRACION INMOBILIARIA Y DE ESPACIO PUBLICO","E-MAIL","DERECHO DE PETICION DE INTERES PARTICULAR",17,"PENDIENTE"]
[3584952021,"AREA DE ATENCION A LA CIUDADANIA","WEB","DERECHO DE PETICION DE INTERES GENERAL",2,"GESTIONADOS"]
[3585332021,"AREA DE ATENCION A LA CIUDADANIA","WEB","DERECHO DE PETICION DE INTERES GENERAL",1,"GESTIONADOS"]
[3585332021,"SUBDIRECCION ADMINISTRATIVA  FINANCIERA Y DE CONTROL DISCIPLINARIO","WEB","DERECHO DE PETICION DE INTERES GENERAL",1,"GESTIONADOS"]
[3585332021,"SUBDIRECCION DE ADMINISTRACION INMOBILIARIA Y DE ESPACIO PUBLICO","WEB","DERECHO DE PETICION DE INTERES GENERAL",17,"PENDIENTE"]
[3588902021,"AREA DE ATENCION A LA CIUDADANIA","ESCRITO","DERECHO DE PETICION DE INTERES PARTICULAR",1,"GESTIONADOS"]
[3588902021,"SUBDIRECCION DE ADMINISTRACION INMOBILIARIA Y DE ESPACIO PUBLICO","ESCRITO","DERECHO DE PETICION DE INTERES PARTICULAR",17,"PENDIENTE"]
[3589302021,"AREA DE ATENCION A LA CIUDADANIA","ESCRITO","DERECHO DE PETICION DE INTERES PARTICULAR",1,"GESTIONADOS"]
[3589302021,"SUBDIRECCION DE ADMINISTRACION INMOBILIARIA Y DE ESPACIO PUBLICO","ESCRITO","DERECHO DE PETICION DE INTERES PARTICULAR",17,"PENDIENTE"]
[3589462021,"AREA DE ATENCION A LA CIUDADANIA","ESCRITO","DERECHO DE PETICION DE INTERES PARTICULAR",1,"GESTIONADOS"]
[3589462021,"SUBDIRECCION DE ADMINISTRACION INMOBILIARIA Y DE ESPACIO PUBLICO","ESCRITO","DERECHO DE PETICION DE INTERES PARTICULAR",17,"PENDIENTE"]
[3589602021,"AREA DE ATENCION A LA CIUDADANIA","WEB","DERECHO DE PETICION DE INTERES GENERAL",1,"GESTIONADOS"]
[3589602021,"SUBDIRECCION ADMINISTRATIVA  FINANCIERA Y DE CONTROL DISCIPLINARIO","WEB","DERECHO DE PETICION DE INTERES GENERAL",1,"GESTIONADOS"]
[3590122021,"AREA DE ATENCION A LA CIUDADANIA","ESCRITO","DERECHO DE PETICION DE INTERES PARTICULAR",1,"GESTIONADOS"]
[3590122021,"SUBDIRECCION DE ADMINISTRACION INMOBILIARIA Y DE ESPACIO PUBLICO","ESCRITO","DERECHO DE PETICION DE INTERES PARTICULAR",17,"PENDIENTE"]
[3590342021,"AREA DE ATENCION A LA CIUDADANIA","WEB","QUEJA",1,"GESTIONADOS"]
[3590342021,"SUBDIRECCION DE ADMINISTRACION INMOBILIARIA Y DE ESPACIO PUBLICO","WEB","QUEJA",17,"PENDIENTE"]
[3590452021,"AREA DE ATENCION A LA CIUDADANIA","WEB","QUEJA",1,"GESTIONADOS"]
[3590472021,"AREA DE ATENCION A LA CIUDADANIA","WEB","CONSULTA",1,"GESTIONADOS"]
[3591552021,"AREA DE ATENCION A LA CIUDADANIA","TELEFONO","DERECHO DE PETICION DE INTERES PARTICULAR",1,"GESTIONADOS"]
[3591552021,"SUBDIRECCION DE ADMINISTRACION INMOBILIARIA Y DE ESPACIO PUBLICO","TELEFONO","DERECHO DE PETICION DE INTERES PARTICULAR",17,"PENDIENTE"]
[3593202021,"AREA DE ATENCION A LA CIUDADANIA","TELEFONO","DERECHO DE PETICION DE INTERES GENERAL",1,"GESTIONADOS"]
[3593202021,"SUBDIRECCION DE ADMINISTRACION INMOBILIARIA Y DE ESPACIO PUBLICO","TELEFONO","DERECHO DE PETICION DE INTERES GENERAL",17,"PENDIENTE"]
[3593332021,"AREA DE ATENCION A LA CIUDADANIA","WEB","CONSULTA",1,"GESTIONADOS"]
[3593332021,"SUBDIRECCION DE REGISTRO INMOBILIARIO","WEB","CONSULTA",17,"PENDIENTE"]
[3600372021,"AREA DE ATENCION A LA CIUDADANIA","E-MAIL","DERECHO DE PETICION DE INTERES PARTICULAR",1,"GESTIONADOS"]
[3600632021,"AREA DE ATENCION A LA CIUDADANIA","TELEFONO","DERECHO DE PETICION DE INTERES GENERAL",1,"GESTIONADOS"]
[3602222021,"AREA DE ATENCION A LA CIUDADANIA","WEB","DERECHO DE PETICION DE INTERES PARTICULAR",1,"GESTIONADOS"]
[3603322021,"AREA DE ATENCION A LA CIUDADANIA","ESCRITO","DERECHO DE PETICION DE INTERES PARTICULAR",1,"GESTIONADOS"]
[3603322021,"SUBDIRECCION DE ADMINISTRACION INMOBILIARIA Y DE ESPACIO PUBLICO","ESCRITO","DERECHO DE PETICION DE INTERES PARTICULAR",16,"PENDIENTE"]
[3603612021,"AREA DE ATENCION A LA CIUDADANIA","ESCRITO","DERECHO DE PETICION DE INTERES PARTICULAR",1,"GESTIONADOS"]
[3603612021,"SUBDIRECCION ADMINISTRATIVA  FINANCIERA Y DE CONTROL DISCIPLINARIO","ESCRITO","DERECHO DE PETICION DE INTERES PARTICULAR",1,"GESTIONADOS"]
[3603612021,"SUBDIRECCION ADMINISTRATIVA Y FINANCIERA","ESCRITO","DERECHO DE PETICION DE INTERES PARTICULAR",7,"GESTIONADOS"]
[3603712021,"AREA DE ATENCION A LA CIUDADANIA","ESCRITO","DERECHO DE PETICION DE INTERES PARTICULAR",1,"GESTIONADOS"]
[3603712021,"SUBDIRECCION ADMINISTRATIVA  FINANCIERA Y DE CONTROL DISCIPLINARIO","ESCRITO","DERECHO DE PETICION DE INTERES PARTICULAR",1,"GESTIONADOS"]
[3603712021,"SUBDIRECCION ADMINISTRATIVA Y FINANCIERA","ESCRITO","DERECHO DE PETICION DE INTERES PARTICULAR",7,"GESTIONADOS"]
[3603962021,"AREA DE ATENCION A LA CIUDADANIA","ESCRITO","DERECHO DE PETICION DE INTERES PARTICULAR",1,"GESTIONADOS"]
[3603962021,"SUBDIRECCION ADMINISTRATIVA  FINANCIERA Y DE CONTROL DISCIPLINARIO","ESCRITO","DERECHO DE PETICION DE INTERES PARTICULAR",1,"GESTIONADOS"]
[3603962021,"SUBDIRECCION ADMINISTRATIVA Y FINANCIERA","ESCRITO","DERECHO DE PETICION DE INTERES PARTICULAR",7,"GESTIONADOS"]
[3604142021,"AREA DE ATENCION A LA CIUDADANIA","ESCRITO","DERECHO DE PETICION DE INTERES PARTICULAR",1,"GESTIONADOS"]
[3604142021,"SUBDIRECCION DE ADMINISTRACION INMOBILIARIA Y DE ESPACIO PUBLICO","ESCRITO","DERECHO DE PETICION DE INTERES PARTICULAR",16,"PENDIENTE"]
[3604332021,"AREA DE ATENCION A LA CIUDADANIA","ESCRITO","DERECHO DE PETICION DE INTERES PARTICULAR",1,"GESTIONADOS"]
[3604332021,"SUBDIRECCION DE ADMINISTRACION INMOBILIARIA Y DE ESPACIO PUBLICO","ESCRITO","DERECHO DE PETICION DE INTERES PARTICULAR",16,"PENDIENTE"]
[3604802021,"AREA DE ATENCION A LA CIUDADANIA","ESCRITO","DERECHO DE PETICION DE INTERES PARTICULAR",1,"GESTIONADOS"]
[3604802021,"SUBDIRECCION DE ADMINISTRACION INMOBILIARIA Y DE ESPACIO PUBLICO","ESCRITO","DERECHO DE PETICION DE INTERES PARTICULAR",16,"PENDIENTE"]
[3604942021,"AREA DE ATENCION A LA CIUDADANIA","ESCRITO","DERECHO DE PETICION DE INTERES PARTICULAR",1,"GESTIONADOS"]
[3604942021,"SUBDIRECCION DE ADMINISTRACION INMOBILIARIA Y DE ESPACIO PUBLICO","ESCRITO","DERECHO DE PETICION DE INTERES PARTICULAR",16,"PENDIENTE"]
[3605092021,"AREA DE ATENCION A LA CIUDADANIA","ESCRITO","DERECHO DE PETICION DE INTERES PARTICULAR",1,"GESTIONADOS"]
[3605092021,"SUBDIRECCION ADMINISTRATIVA Y FINANCIERA","ESCRITO","DERECHO DE PETICION DE INTERES PARTICULAR",7,"GESTIONADOS"]
[3605092021,"SUBDIRECCION DE ADMINISTRACION INMOBILIARIA Y DE ESPACIO PUBLICO","ESCRITO","DERECHO DE PETICION DE INTERES PARTICULAR",3,"GESTIONADOS"]
[3605222021,"AREA DE ATENCION A LA CIUDADANIA","ESCRITO","DERECHO DE PETICION DE INTERES PARTICULAR",1,"GESTIONADOS"]
[3605222021,"SUBDIRECCION DE ADMINISTRACION INMOBILIARIA Y DE ESPACIO PUBLICO","ESCRITO","DERECHO DE PETICION DE INTERES PARTICULAR",16,"PENDIENTE"]
[3605222021,"SUBDIRECCION DE REGISTRO INMOBILIARIO","ESCRITO","DERECHO DE PETICION DE INTERES PARTICULAR",12,"GESTIONADOS"]
[3605472021,"AREA DE ATENCION A LA CIUDADANIA","ESCRITO","DERECHO DE PETICION DE INTERES PARTICULAR",1,"GESTIONADOS"]
[3605472021,"SUBDIRECCION DE ADMINISTRACION INMOBILIARIA Y DE ESPACIO PUBLICO","ESCRITO","DERECHO DE PETICION DE INTERES PARTICULAR",16,"PENDIENTE"]
[3608142021,"AREA DE ATENCION A LA CIUDADANIA","WEB","DERECHO DE PETICION DE INTERES GENERAL",1,"GESTIONADOS"]
[3609012021,"AREA DE ATENCION A LA CIUDADANIA","ESCRITO","DERECHO DE PETICION DE INTERES PARTICULAR",1,"GESTIONADOS"]
[3609012021,"SUBDIRECCION DE ADMINISTRACION INMOBILIARIA Y DE ESPACIO PUBLICO","ESCRITO","DERECHO DE PETICION DE INTERES PARTICULAR",16,"PENDIENTE"]
[3609152021,"AREA DE ATENCION A LA CIUDADANIA","ESCRITO","DERECHO DE PETICION DE INTERES GENERAL",1,"GESTIONADOS"]
[3609152021,"SUBDIRECCION DE REGISTRO INMOBILIARIO","ESCRITO","DERECHO DE PETICION DE INTERES GENERAL",16,"PENDIENTE"]
[3609192021,"AREA DE ATENCION A LA CIUDADANIA","WEB","DERECHO DE PETICION DE INTERES GENERAL",1,"GESTIONADOS"]
[3609222021,"AREA DE ATENCION A LA CIUDADANIA","PRESENCIAL","DERECHO DE PETICION DE INTERES PARTICULAR",1,"GESTIONADOS"]
[3609282021,"AREA DE ATENCION A LA CIUDADANIA","ESCRITO","DERECHO DE PETICION DE INTERES PARTICULAR",1,"GESTIONADOS"]
[3609282021,"SUBDIRECCION DE ADMINISTRACION INMOBILIARIA Y DE ESPACIO PUBLICO","ESCRITO","DERECHO DE PETICION DE INTERES PARTICULAR",16,"PENDIENTE"]
[3609352021,"AREA DE ATENCION A LA CIUDADANIA","ESCRITO","DERECHO DE PETICION DE INTERES PARTICULAR",1,"GESTIONADOS"]
[3609352021,"SUBDIRECCION DE ADMINISTRACION INMOBILIARIA Y DE ESPACIO PUBLICO","ESCRITO","DERECHO DE PETICION DE INTERES PARTICULAR",16,"PENDIENTE"]
[3609422021,"AREA DE ATENCION A LA CIUDADANIA","ESCRITO","DERECHO DE PETICION DE INTERES PARTICULAR",1,"GESTIONADOS"]
[3609422021,"SUBDIRECCION DE ADMINISTRACION INMOBILIARIA Y DE ESPACIO PUBLICO","ESCRITO","DERECHO DE PETICION DE INTERES PARTICULAR",16,"PENDIENTE"]
[3609502021,"AREA DE ATENCION A LA CIUDADANIA","ESCRITO","DERECHO DE PETICION DE INTERES PARTICULAR",1,"GESTIONADOS"]
[3609502021,"SUBDIRECCION DE ADMINISTRACION INMOBILIARIA Y DE ESPACIO PUBLICO","ESCRITO","DERECHO DE PETICION DE INTERES PARTICULAR",16,"PENDIENTE"]
[3609702021,"AREA DE ATENCION A LA CIUDADANIA","ESCRITO","DERECHO DE PETICION DE INTERES PARTICULAR",1,"GESTIONADOS"]
[3609702021,"SUBDIRECCION DE ADMINISTRACION INMOBILIARIA Y DE ESPACIO PUBLICO","ESCRITO","DERECHO DE PETICION DE INTERES PARTICULAR",16,"PENDIENTE"]
[3609792021,"AREA DE ATENCION A LA CIUDADANIA","ESCRITO","DERECHO DE PETICION DE INTERES PARTICULAR",1,"GESTIONADOS"]
[3609792021,"SUBDIRECCION ADMINISTRATIVA Y FINANCIERA","ESCRITO","DERECHO DE PETICION DE INTERES PARTICULAR",7,"GESTIONADOS"]
[3609912021,"AREA DE ATENCION A LA CIUDADANIA","ESCRITO","DERECHO DE PETICION DE INTERES PARTICULAR",1,"GESTIONADOS"]
[3609912021,"SUBDIRECCION DE REGISTRO INMOBILIARIO","ESCRITO","DERECHO DE PETICION DE INTERES PARTICULAR",16,"GESTIONADOS"]
[3610022021,"AREA DE ATENCION A LA CIUDADANIA","ESCRITO","DERECHO DE PETICION DE INTERES PARTICULAR",1,"GESTIONADOS"]
[3610022021,"SUBDIRECCION DE ADMINISTRACION INMOBILIARIA Y DE ESPACIO PUBLICO","ESCRITO","DERECHO DE PETICION DE INTERES PARTICULAR",16,"PENDIENTE"]
[3610092021,"AREA DE ATENCION A LA CIUDADANIA","WEB","DERECHO DE PETICION DE INTERES PARTICULAR",1,"GESTIONADOS"]
[3610252021,"AREA DE ATENCION A LA CIUDADANIA","ESCRITO","DERECHO DE PETICION DE INTERES PARTICULAR",1,"GESTIONADOS"]
[3610252021,"SUBDIRECCION DE REGISTRO INMOBILIARIO","ESCRITO","DERECHO DE PETICION DE INTERES PARTICULAR",16,"PENDIENTE"]
[3610462021,"AREA DE ATENCION A LA CIUDADANIA","ESCRITO","DERECHO DE PETICION DE INTERES PARTICULAR",1,"GESTIONADOS"]
[3610462021,"SUBDIRECCION DE ADMINISTRACION INMOBILIARIA Y DE ESPACIO PUBLICO","ESCRITO","DERECHO DE PETICION DE INTERES PARTICULAR",16,"PENDIENTE"]
[3610582021,"AREA DE ATENCION A LA CIUDADANIA","ESCRITO","DERECHO DE PETICION DE INTERES PARTICULAR",1,"GESTIONADOS"]
[3610582021,"SUBDIRECCION DE ADMINISTRACION INMOBILIARIA Y DE ESPACIO PUBLICO","ESCRITO","DERECHO DE PETICION DE INTERES PARTICULAR",16,"PENDIENTE"]
[3610712021,"AREA DE ATENCION A LA CIUDADANIA","ESCRITO","DERECHO DE PETICION DE INTERES PARTICULAR",1,"GESTIONADOS"]
[3610712021,"SUBDIRECCION DE ADMINISTRACION INMOBILIARIA Y DE ESPACIO PUBLICO","ESCRITO","DERECHO DE PETICION DE INTERES PARTICULAR",16,"PENDIENTE"]
[3610772021,"AREA DE ATENCION A LA CIUDADANIA","ESCRITO","DERECHO DE PETICION DE INTERES PARTICULAR",1,"GESTIONADOS"]
[3610772021,"SUBDIRECCION DE REGISTRO INMOBILIARIO","ESCRITO","DERECHO DE PETICION DE INTERES PARTICULAR",16,"PENDIENTE"]
[3610842021,"AREA DE ATENCION A LA CIUDADANIA","ESCRITO","DERECHO DE PETICION DE INTERES PARTICULAR",1,"GESTIONADOS"]
[3610842021,"SUBDIRECCION DE ADMINISTRACION INMOBILIARIA Y DE ESPACIO PUBLICO","ESCRITO","DERECHO DE PETICION DE INTERES PARTICULAR",16,"PENDIENTE"]
[3610882021,"AREA DE ATENCION A LA CIUDADANIA","ESCRITO","DERECHO DE PETICION DE INTERES PARTICULAR",1,"GESTIONADOS"]
[3610882021,"SUBDIRECCION DE ADMINISTRACION INMOBILIARIA Y DE ESPACIO PUBLICO","ESCRITO","DERECHO DE PETICION DE INTERES PARTICULAR",16,"PENDIENTE"]
[3610912021,"AREA DE ATENCION A LA CIUDADANIA","ESCRITO","DERECHO DE PETICION DE INTERES PARTICULAR",1,"GESTIONADOS"]
[3610912021,"SUBDIRECCION DE ADMINISTRACION INMOBILIARIA Y DE ESPACIO PUBLICO","ESCRITO","DERECHO DE PETICION DE INTERES PARTICULAR",16,"PENDIENTE"]
[3612752021,"AREA DE ATENCION A LA CIUDADANIA","WEB","DERECHO DE PETICION DE INTERES GENERAL",1,"GESTIONADOS"]
[3612862021,"AREA DE ATENCION A LA CIUDADANIA","WEB","DERECHO DE PETICION DE INTERES GENERAL",2,"GESTIONADOS"]
[3614782021,"AREA DE ATENCION A LA CIUDADANIA","TELEFONO","DERECHO DE PETICION DE INTERES GENERAL",1,"GESTIONADOS"]
[3615472021,"AREA DE ATENCION A LA CIUDADANIA","WEB","DERECHO DE PETICION DE INTERES PARTICULAR",1,"GESTIONADOS"]
[3616442021,"AREA DE ATENCION A LA CIUDADANIA","WEB","DERECHO DE PETICION DE INTERES PARTICULAR",1,"GESTIONADOS"]
[3616442021,"SUBDIRECCION DE ADMINISTRACION INMOBILIARIA Y DE ESPACIO PUBLICO","WEB","DERECHO DE PETICION DE INTERES PARTICULAR",16,"PENDIENTE"]
[3616612021,"AREA DE ATENCION A LA CIUDADANIA","WEB","DERECHO DE PETICION DE INTERES GENERAL",1,"GESTIONADOS"]
[3616612021,"SUBDIRECCION DE ADMINISTRACION INMOBILIARIA Y DE ESPACIO PUBLICO","WEB","DERECHO DE PETICION DE INTERES GENERAL",16,"PENDIENTE"]
[3616662021,"AREA DE ATENCION A LA CIUDADANIA","WEB","CONSULTA",1,"GESTIONADOS"]
[3616852021,"AREA DE ATENCION A LA CIUDADANIA","WEB","DERECHO DE PETICION DE INTERES GENERAL",1,"GESTIONADOS"]
[3616852021,"SUBDIRECCION ADMINISTRATIVA  FINANCIERA Y DE CONTROL DISCIPLINARIO","WEB","DERECHO DE PETICION DE INTERES GENERAL",1,"GESTIONADOS"]
[3616892021,"AREA DE ATENCION A LA CIUDADANIA","WEB","DERECHO DE PETICION DE INTERES GENERAL",1,"GESTIONADOS"]
[3616892021,"SUBDIRECCION ADMINISTRATIVA  FINANCIERA Y DE CONTROL DISCIPLINARIO","WEB","DERECHO DE PETICION DE INTERES GENERAL",1,"GESTIONADOS"]
[3617092021,"AREA DE ATENCION A LA CIUDADANIA","WEB","DERECHO DE PETICION DE INTERES GENERAL",1,"GESTIONADOS"]
[3617362021,"AREA DE ATENCION A LA CIUDADANIA","WEB","DERECHO DE PETICION DE INTERES GENERAL",1,"GESTIONADOS"]
[3617642021,"AREA DE ATENCION A LA CIUDADANIA","WEB","DERECHO DE PETICION DE INTERES GENERAL",1,"GESTIONADOS"]
[3617642021,"SUBDIRECCION DE ADMINISTRACION INMOBILIARIA Y DE ESPACIO PUBLICO","WEB","DERECHO DE PETICION DE INTERES GENERAL",16,"PENDIENTE"]
[3617662021,"AREA DE ATENCION A LA CIUDADANIA","WEB","DERECHO DE PETICION DE INTERES GENERAL",1,"GESTIONADOS"]
[3618572021,"AREA DE ATENCION A LA CIUDADANIA","WEB","CONSULTA",1,"GESTIONADOS"]
[3618572021,"SUBDIRECCION DE ADMINISTRACION INMOBILIARIA Y DE ESPACIO PUBLICO","WEB","CONSULTA",16,"PENDIENTE"]
[3618912021,"AREA DE ATENCION A LA CIUDADANIA","WEB","QUEJA",1,"GESTIONADOS"]
[3619072021,"AREA DE ATENCION A LA CIUDADANIA","WEB","DERECHO DE PETICION DE INTERES GENERAL",1,"GESTIONADOS"]
[3619072021,"SUBDIRECCION DE ADMINISTRACION INMOBILIARIA Y DE ESPACIO PUBLICO","WEB","DERECHO DE PETICION DE INTERES GENERAL",16,"PENDIENTE"]
[3619392021,"AREA DE ATENCION A LA CIUDADANIA","WEB","DERECHO DE PETICION DE INTERES PARTICULAR",2,"GESTIONADOS"]
[3620502021,"AREA DE ATENCION A LA CIUDADANIA","WEB","DERECHO DE PETICION DE INTERES PARTICULAR",1,"GESTIONADOS"]
[3620782021,"AREA DE ATENCION A LA CIUDADANIA","WEB","QUEJA",1,"GESTIONADOS"]
[3622022021,"AREA DE ATENCION A LA CIUDADANIA","WEB","DERECHO DE PETICION DE INTERES GENERAL",1,"GESTIONADOS"]
[3622042021,"AREA DE ATENCION A LA CIUDADANIA","WEB","QUEJA",1,"GESTIONADOS"]
[3622082021,"AREA DE ATENCION A LA CIUDADANIA","WEB","QUEJA",1,"GESTIONADOS"]
[3622092021,"AREA DE ATENCION A LA CIUDADANIA","WEB","DERECHO DE PETICION DE INTERES PARTICULAR",1,"GESTIONADOS"]
[3622092021,"SUBDIRECCION DE ADMINISTRACION INMOBILIARIA Y DE ESPACIO PUBLICO","WEB","DERECHO DE PETICION DE INTERES PARTICULAR",15,"PENDIENTE"]
[3625272021,"AREA DE ATENCION A LA CIUDADANIA","WEB","DERECHO DE PETICION DE INTERES GENERAL",1,"GESTIONADOS"]
[3627132021,"AREA DE ATENCION A LA CIUDADANIA","TELEFONO","DERECHO DE PETICION DE INTERES GENERAL",1,"GESTIONADOS"]
[3627132021,"SUBDIRECCION DE ADMINISTRACION INMOBILIARIA Y DE ESPACIO PUBLICO","TELEFONO","DERECHO DE PETICION DE INTERES GENERAL",15,"PENDIENTE"]
[3627542021,"AREA DE ATENCION A LA CIUDADANIA","WEB","DERECHO DE PETICION DE INTERES GENERAL",2,"GESTIONADOS"]
[3628122021,"AREA DE ATENCION A LA CIUDADANIA","WEB","DERECHO DE PETICION DE INTERES PARTICULAR",1,"GESTIONADOS"]
[3628122021,"SUBDIRECCION DE ADMINISTRACION INMOBILIARIA Y DE ESPACIO PUBLICO","WEB","DERECHO DE PETICION DE INTERES PARTICULAR",15,"PENDIENTE"]
[3628562021,"AREA DE ATENCION A LA CIUDADANIA","WEB","QUEJA",1,"GESTIONADOS"]
[3629122021,"AREA DE ATENCION A LA CIUDADANIA","WEB","DERECHO DE PETICION DE INTERES PARTICULAR",1,"GESTIONADOS"]
[3629122021,"SUBDIRECCION DE ADMINISTRACION INMOBILIARIA Y DE ESPACIO PUBLICO","WEB","DERECHO DE PETICION DE INTERES PARTICULAR",14,"PENDIENTE"]
[3629212021,"AREA DE ATENCION A LA CIUDADANIA","ESCRITO","DERECHO DE PETICION DE INTERES PARTICULAR",2,"GESTIONADOS"]
[3629212021,"SUBDIRECCION ADMINISTRATIVA  FINANCIERA Y DE CONTROL DISCIPLINARIO","ESCRITO","DERECHO DE PETICION DE INTERES PARTICULAR",2,"GESTIONADOS"]
[3629212021,"SUBDIRECCION ADMINISTRATIVA Y FINANCIERA","ESCRITO","DERECHO DE PETICION DE INTERES PARTICULAR",15,"PENDIENTE"]
[3629382021,"AREA DE ATENCION A LA CIUDADANIA","ESCRITO","DERECHO DE PETICION DE INTERES PARTICULAR",3,"GESTIONADOS"]
[3629382021,"SUBDIRECCION ADMINISTRATIVA  FINANCIERA Y DE CONTROL DISCIPLINARIO","ESCRITO","DERECHO DE PETICION DE INTERES PARTICULAR",5,"GESTIONADOS"]
[3629382021,"SUBDIRECCION ADMINISTRATIVA Y FINANCIERA","ESCRITO","DERECHO DE PETICION DE INTERES PARTICULAR",15,"PENDIENTE"]
[3629482021,"AREA DE ATENCION A LA CIUDADANIA","ESCRITO","DERECHO DE PETICION DE INTERES PARTICULAR",2,"GESTIONADOS"]
[3629482021,"SUBDIRECCION ADMINISTRATIVA  FINANCIERA Y DE CONTROL DISCIPLINARIO","ESCRITO","DERECHO DE PETICION DE INTERES PARTICULAR",2,"GESTIONADOS"]
[3629482021,"SUBDIRECCION ADMINISTRATIVA Y FINANCIERA","ESCRITO","DERECHO DE PETICION DE INTERES PARTICULAR",15,"PENDIENTE"]
[3629812021,"AREA DE ATENCION A LA CIUDADANIA","ESCRITO","DERECHO DE PETICION DE INTERES PARTICULAR",1,"GESTIONADOS"]
[3629812021,"SUBDIRECCION DE ADMINISTRACION INMOBILIARIA Y DE ESPACIO PUBLICO","ESCRITO","DERECHO DE PETICION DE INTERES PARTICULAR",15,"PENDIENTE"]
[3629962021,"AREA DE ATENCION A LA CIUDADANIA","ESCRITO","DERECHO DE PETICION DE INTERES PARTICULAR",1,"GESTIONADOS"]
[3629962021,"SUBDIRECCION DE ADMINISTRACION INMOBILIARIA Y DE ESPACIO PUBLICO","ESCRITO","DERECHO DE PETICION DE INTERES PARTICULAR",15,"PENDIENTE"]
[3630092021,"AREA DE ATENCION A LA CIUDADANIA","TELEFONO","DERECHO DE PETICION DE INTERES GENERAL",1,"GESTIONADOS"]
[3630152021,"AREA DE ATENCION A LA CIUDADANIA","ESCRITO","DERECHO DE PETICION DE INTERES PARTICULAR",1,"GESTIONADOS"]
[3630152021,"SUBDIRECCION DE ADMINISTRACION INMOBILIARIA Y DE ESPACIO PUBLICO","ESCRITO","DERECHO DE PETICION DE INTERES PARTICULAR",15,"PENDIENTE"]
[3631502021,"AREA DE ATENCION A LA CIUDADANIA","ESCRITO","DERECHO DE PETICION DE INTERES PARTICULAR",1,"GESTIONADOS"]
[3631502021,"SUBDIRECCION DE ADMINISTRACION INMOBILIARIA Y DE ESPACIO PUBLICO","ESCRITO","DERECHO DE PETICION DE INTERES PARTICULAR",15,"PENDIENTE"]
[3631622021,"AREA DE ATENCION A LA CIUDADANIA","ESCRITO","DERECHO DE PETICION DE INTERES PARTICULAR",1,"GESTIONADOS"]
[3631622021,"SUBDIRECCION DE ADMINISTRACION INMOBILIARIA Y DE ESPACIO PUBLICO","ESCRITO","DERECHO DE PETICION DE INTERES PARTICULAR",15,"PENDIENTE"]
[3631772021,"AREA DE ATENCION A LA CIUDADANIA","ESCRITO","DERECHO DE PETICION DE INTERES PARTICULAR",1,"GESTIONADOS"]
[3631772021,"SUBDIRECCION DE ADMINISTRACION INMOBILIARIA Y DE ESPACIO PUBLICO","ESCRITO","DERECHO DE PETICION DE INTERES PARTICULAR",15,"PENDIENTE"]
[3631812021,"AREA DE ATENCION A LA CIUDADANIA","WEB","DERECHO DE PETICION DE INTERES GENERAL",1,"GESTIONADOS"]
[3631902021,"AREA DE ATENCION A LA CIUDADANIA","ESCRITO","DERECHO DE PETICION DE INTERES PARTICULAR",1,"GESTIONADOS"]
[3631902021,"SUBDIRECCION DE REGISTRO INMOBILIARIO","ESCRITO","DERECHO DE PETICION DE INTERES PARTICULAR",15,"PENDIENTE"]
[3632102021,"AREA DE ATENCION A LA CIUDADANIA","ESCRITO","DERECHO DE PETICION DE INTERES PARTICULAR",1,"GESTIONADOS"]
[3632102021,"SUBDIRECCION DE REGISTRO INMOBILIARIO","ESCRITO","DERECHO DE PETICION DE INTERES PARTICULAR",14,"GESTIONADOS"]
[3633032021,"AREA DE ATENCION A LA CIUDADANIA","ESCRITO","DERECHO DE PETICION DE INTERES GENERAL",1,"GESTIONADOS"]
[3633032021,"SUBDIRECCION DE ADMINISTRACION INMOBILIARIA Y DE ESPACIO PUBLICO","ESCRITO","DERECHO DE PETICION DE INTERES GENERAL",15,"PENDIENTE"]
[3633072021,"AREA DE ATENCION A LA CIUDADANIA","ESCRITO","DERECHO DE PETICION DE INTERES PARTICULAR",1,"GESTIONADOS"]
[3633072021,"SUBDIRECCION DE REGISTRO INMOBILIARIO","ESCRITO","DERECHO DE PETICION DE INTERES PARTICULAR",15,"PENDIENTE"]
[3633162021,"AREA DE ATENCION A LA CIUDADANIA","ESCRITO","DERECHO DE PETICION DE INTERES PARTICULAR",1,"GESTIONADOS"]
[3633162021,"SUBDIRECCION DE ADMINISTRACION INMOBILIARIA Y DE ESPACIO PUBLICO","ESCRITO","DERECHO DE PETICION DE INTERES PARTICULAR",15,"PENDIENTE"]
[3633412021,"AREA DE ATENCION A LA CIUDADANIA","ESCRITO","DERECHO DE PETICION DE INTERES PARTICULAR",1,"GESTIONADOS"]
[3633412021,"SUBDIRECCION DE ADMINISTRACION INMOBILIARIA Y DE ESPACIO PUBLICO","ESCRITO","DERECHO DE PETICION DE INTERES PARTICULAR",15,"PENDIENTE"]
[3633522021,"AREA DE ATENCION A LA CIUDADANIA","ESCRITO","DERECHO DE PETICION DE INTERES PARTICULAR",1,"GESTIONADOS"]
[3633522021,"SUBDIRECCION DE ADMINISTRACION INMOBILIARIA Y DE ESPACIO PUBLICO","ESCRITO","DERECHO DE PETICION DE INTERES PARTICULAR",15,"PENDIENTE"]
[3633762021,"AREA DE ATENCION A LA CIUDADANIA","ESCRITO","DERECHO DE PETICION DE INTERES PARTICULAR",1,"GESTIONADOS"]
[3633762021,"SUBDIRECCION DE ADMINISTRACION INMOBILIARIA Y DE ESPACIO PUBLICO","ESCRITO","DERECHO DE PETICION DE INTERES PARTICULAR",15,"PENDIENTE"]
[3633962021,"AREA DE ATENCION A LA CIUDADANIA","ESCRITO","DERECHO DE PETICION DE INTERES PARTICULAR",1,"GESTIONADOS"]
[3633962021,"SUBDIRECCION DE ADMINISTRACION INMOBILIARIA Y DE ESPACIO PUBLICO","ESCRITO","DERECHO DE PETICION DE INTERES PARTICULAR",15,"PENDIENTE"]
[3638072021,"AREA DE ATENCION A LA CIUDADANIA","ESCRITO","DERECHO DE PETICION DE INTERES PARTICULAR",1,"GESTIONADOS"]
[3638072021,"SUBDIRECCION DE ADMINISTRACION INMOBILIARIA Y DE ESPACIO PUBLICO","ESCRITO","DERECHO DE PETICION DE INTERES PARTICULAR",15,"PENDIENTE"]
[3638362021,"AREA DE ATENCION A LA CIUDADANIA","WEB","DERECHO DE PETICION DE INTERES GENERAL",1,"GESTIONADOS"]
[3638462021,"AREA DE ATENCION A LA CIUDADANIA","WEB","DERECHO DE PETICION DE INTERES GENERAL",1,"GESTIONADOS"]
[3639112021,"AREA DE ATENCION A LA CIUDADANIA","WEB","DERECHO DE PETICION DE INTERES GENERAL",1,"GESTIONADOS"]
[3639122021,"AREA DE ATENCION A LA CIUDADANIA","WEB","DERECHO DE PETICION DE INTERES PARTICULAR",1,"GESTIONADOS"]
[3639182021,"AREA DE ATENCION A LA CIUDADANIA","ESCRITO","DERECHO DE PETICION DE INTERES PARTICULAR",1,"GESTIONADOS"]
[3639182021,"SUBDIRECCION DE ADMINISTRACION INMOBILIARIA Y DE ESPACIO PUBLICO","ESCRITO","DERECHO DE PETICION DE INTERES PARTICULAR",15,"PENDIENTE"]
[3639192021,"AREA DE ATENCION A LA CIUDADANIA","ESCRITO","DERECHO DE PETICION DE INTERES PARTICULAR",1,"GESTIONADOS"]
[3639192021,"SUBDIRECCION DE ADMINISTRACION INMOBILIARIA Y DE ESPACIO PUBLICO","ESCRITO","DERECHO DE PETICION DE INTERES PARTICULAR",15,"PENDIENTE"]
[3639252021,"AREA DE ATENCION A LA CIUDADANIA","ESCRITO","DERECHO DE PETICION DE INTERES PARTICULAR",1,"GESTIONADOS"]
[3639252021,"SUBDIRECCION DE ADMINISTRACION INMOBILIARIA Y DE ESPACIO PUBLICO","ESCRITO","DERECHO DE PETICION DE INTERES PARTICULAR",15,"PENDIENTE"]
[3639272021,"AREA DE ATENCION A LA CIUDADANIA","ESCRITO","DERECHO DE PETICION DE INTERES PARTICULAR",1,"GESTIONADOS"]
[3639272021,"SUBDIRECCION DE REGISTRO INMOBILIARIO","ESCRITO","DERECHO DE PETICION DE INTERES PARTICULAR",15,"PENDIENTE"]
[3639302021,"AREA DE ATENCION A LA CIUDADANIA","ESCRITO","DERECHO DE PETICION DE INTERES PARTICULAR",1,"GESTIONADOS"]
[3639302021,"SUBDIRECCION DE REGISTRO INMOBILIARIO","ESCRITO","DERECHO DE PETICION DE INTERES PARTICULAR",15,"PENDIENTE"]
[3639332021,"AREA DE ATENCION A LA CIUDADANIA","ESCRITO","DERECHO DE PETICION DE INTERES PARTICULAR",1,"GESTIONADOS"]
[3639332021,"SUBDIRECCION DE ADMINISTRACION INMOBILIARIA Y DE ESPACIO PUBLICO","ESCRITO","DERECHO DE PETICION DE INTERES PARTICULAR",15,"PENDIENTE"]
[3641462021,"AREA DE ATENCION A LA CIUDADANIA","WEB","DERECHO DE PETICION DE INTERES GENERAL",14,"PENDIENTE"]
[3641462021,"SUBDIRECCION ADMINISTRATIVA  FINANCIERA Y DE CONTROL DISCIPLINARIO","WEB","DERECHO DE PETICION DE INTERES GENERAL",1,"GESTIONADOS"]
[3641962021,"AREA DE ATENCION A LA CIUDADANIA","WEB","DERECHO DE PETICION DE INTERES GENERAL",1,"GESTIONADOS"]
[3641962021,"SUBDIRECCION ADMINISTRATIVA  FINANCIERA Y DE CONTROL DISCIPLINARIO","WEB","DERECHO DE PETICION DE INTERES GENERAL",1,"GESTIONADOS"]
[3641962021,"SUBDIRECCION DE ADMINISTRACION INMOBILIARIA Y DE ESPACIO PUBLICO","WEB","DERECHO DE PETICION DE INTERES GENERAL",14,"PENDIENTE"]
[3642462021,"AREA DE ATENCION A LA CIUDADANIA","WEB","QUEJA",1,"GESTIONADOS"]
[3643272021,"AREA DE ATENCION A LA CIUDADANIA","WEB","DERECHO DE PETICION DE INTERES GENERAL",1,"GESTIONADOS"]
[3643752021,"AREA DE ATENCION A LA CIUDADANIA","TELEFONO","DERECHO DE PETICION DE INTERES GENERAL",1,"GESTIONADOS"]
[3644262021,"AREA DE ATENCION A LA CIUDADANIA","WEB","DERECHO DE PETICION DE INTERES GENERAL",1,"GESTIONADOS"]
[3646582021,"AREA DE ATENCION A LA CIUDADANIA","WEB","CONSULTA",1,"GESTIONADOS"]
[3646582021,"SUBDIRECCION DE ADMINISTRACION INMOBILIARIA Y DE ESPACIO PUBLICO","WEB","CONSULTA",14,"PENDIENTE"]
[3646962021,"AREA DE ATENCION A LA CIUDADANIA","WEB","DERECHO DE PETICION DE INTERES PARTICULAR",3,"GESTIONADOS"]
[3646962021,"SUBDIRECCION DE ADMINISTRACION INMOBILIARIA Y DE ESPACIO PUBLICO","WEB","DERECHO DE PETICION DE INTERES PARTICULAR",14,"PENDIENTE"]
[3648522021,"AREA DE ATENCION A LA CIUDADANIA","WEB","DERECHO DE PETICION DE INTERES PARTICULAR",1,"GESTIONADOS"]
[3648522021,"SUBDIRECCION DE ADMINISTRACION INMOBILIARIA Y DE ESPACIO PUBLICO","WEB","DERECHO DE PETICION DE INTERES PARTICULAR",14,"PENDIENTE"]
[3648572021,"AREA DE ATENCION A LA CIUDADANIA","ESCRITO","DERECHO DE PETICION DE INTERES PARTICULAR",1,"GESTIONADOS"]
[3648572021,"SUBDIRECCION DE ADMINISTRACION INMOBILIARIA Y DE ESPACIO PUBLICO","ESCRITO","DERECHO DE PETICION DE INTERES PARTICULAR",14,"PENDIENTE"]
[3648682021,"AREA DE ATENCION A LA CIUDADANIA","WEB","QUEJA",1,"GESTIONADOS"]
[3648682021,"SUBDIRECCION DE ADMINISTRACION INMOBILIARIA Y DE ESPACIO PUBLICO","WEB","QUEJA",14,"PENDIENTE"]
[3648742021,"AREA DE ATENCION A LA CIUDADANIA","ESCRITO","DERECHO DE PETICION DE INTERES PARTICULAR",1,"GESTIONADOS"]
[3648742021,"SUBDIRECCION DE ADMINISTRACION INMOBILIARIA Y DE ESPACIO PUBLICO","ESCRITO","DERECHO DE PETICION DE INTERES PARTICULAR",14,"PENDIENTE"]
[3650252021,"AREA DE ATENCION A LA CIUDADANIA","ESCRITO","DERECHO DE PETICION DE INTERES PARTICULAR",1,"GESTIONADOS"]
[3650252021,"DESPACHO","ESCRITO","DERECHO DE PETICION DE INTERES PARTICULAR",1,"GESTIONADOS"]
[3650252021,"SUBDIRECCION DE ADMINISTRACION INMOBILIARIA Y DE ESPACIO PUBLICO","ESCRITO","DERECHO DE PETICION DE INTERES PARTICULAR",14,"PENDIENTE"]
[3650362021,"AREA DE ATENCION A LA CIUDADANIA","ESCRITO","DERECHO DE PETICION DE INTERES PARTICULAR",1,"GESTIONADOS"]
[3650362021,"SUBDIRECCION DE ADMINISTRACION INMOBILIARIA Y DE ESPACIO PUBLICO","ESCRITO","DERECHO DE PETICION DE INTERES PARTICULAR",14,"PENDIENTE"]
[3650582021,"AREA DE ATENCION A LA CIUDADANIA","ESCRITO","DERECHO DE PETICION DE INTERES PARTICULAR",1,"GESTIONADOS"]
[3650582021,"SUBDIRECCION DE ADMINISTRACION INMOBILIARIA Y DE ESPACIO PUBLICO","ESCRITO","DERECHO DE PETICION DE INTERES PARTICULAR",14,"PENDIENTE"]
[3650732021,"AREA DE ATENCION A LA CIUDADANIA","ESCRITO","DERECHO DE PETICION DE INTERES PARTICULAR",1,"GESTIONADOS"]
[3650732021,"SUBDIRECCION DE ADMINISTRACION INMOBILIARIA Y DE ESPACIO PUBLICO","ESCRITO","DERECHO DE PETICION DE INTERES PARTICULAR",14,"PENDIENTE"]
[3650872021,"AREA DE ATENCION A LA CIUDADANIA","ESCRITO","DERECHO DE PETICION DE INTERES PARTICULAR",1,"GESTIONADOS"]
[3650872021,"SUBDIRECCION DE ADMINISTRACION INMOBILIARIA Y DE ESPACIO PUBLICO","ESCRITO","DERECHO DE PETICION DE INTERES PARTICULAR",14,"PENDIENTE"]
[3650912021,"AREA DE ATENCION A LA CIUDADANIA","ESCRITO","DERECHO DE PETICION DE INTERES PARTICULAR",1,"GESTIONADOS"]
[3650912021,"SUBDIRECCION DE ADMINISTRACION INMOBILIARIA Y DE ESPACIO PUBLICO","ESCRITO","DERECHO DE PETICION DE INTERES PARTICULAR",14,"PENDIENTE"]
[3650942021,"AREA DE ATENCION A LA CIUDADANIA","ESCRITO","DERECHO DE PETICION DE INTERES PARTICULAR",1,"GESTIONADOS"]
[3650942021,"SUBDIRECCION DE ADMINISTRACION INMOBILIARIA Y DE ESPACIO PUBLICO","ESCRITO","DERECHO DE PETICION DE INTERES PARTICULAR",14,"PENDIENTE"]
[3651022021,"AREA DE ATENCION A LA CIUDADANIA","ESCRITO","DERECHO DE PETICION DE INTERES PARTICULAR",1,"GESTIONADOS"]
[3651022021,"SUBDIRECCION DE ADMINISTRACION INMOBILIARIA Y DE ESPACIO PUBLICO","ESCRITO","DERECHO DE PETICION DE INTERES PARTICULAR",14,"PENDIENTE"]
[3654732021,"AREA DE ATENCION A LA CIUDADANIA","WEB","DERECHO DE PETICION DE INTERES PARTICULAR",1,"GESTIONADOS"]
[3654732021,"SUBDIRECCION DE ADMINISTRACION INMOBILIARIA Y DE ESPACIO PUBLICO","WEB","DERECHO DE PETICION DE INTERES PARTICULAR",10,"PENDIENTE"]
[3655602021,"AREA DE ATENCION A LA CIUDADANIA","WEB","DERECHO DE PETICION DE INTERES GENERAL",1,"GESTIONADOS"]
[3655852021,"AREA DE ATENCION A LA CIUDADANIA","WEB","DERECHO DE PETICION DE INTERES GENERAL",1,"GESTIONADOS"]
[3656392021,"AREA DE ATENCION A LA CIUDADANIA","WEB","DERECHO DE PETICION DE INTERES GENERAL",1,"GESTIONADOS"]
[3657032021,"AREA DE ATENCION A LA CIUDADANIA","WEB","DERECHO DE PETICION DE INTERES GENERAL",1,"GESTIONADOS"]
[3657032021,"SUBDIRECCION DE ADMINISTRACION INMOBILIARIA Y DE ESPACIO PUBLICO","WEB","DERECHO DE PETICION DE INTERES GENERAL",14,"PENDIENTE"]
[3657052021,"AREA DE ATENCION A LA CIUDADANIA","WEB","DERECHO DE PETICION DE INTERES PARTICULAR",1,"GESTIONADOS"]
[3657182021,"AREA DE ATENCION A LA CIUDADANIA","WEB","DERECHO DE PETICION DE INTERES GENERAL",1,"GESTIONADOS"]
[3657282021,"AREA DE ATENCION A LA CIUDADANIA","WEB","DERECHO DE PETICION DE INTERES GENERAL",1,"GESTIONADOS"]
[3657582021,"AREA DE ATENCION A LA CIUDADANIA","WEB","DERECHO DE PETICION DE INTERES PARTICULAR",1,"GESTIONADOS"]
[3658862021,"AREA DE ATENCION A LA CIUDADANIA","ESCRITO","DERECHO DE PETICION DE INTERES GENERAL",1,"GESTIONADOS"]
[3658862021,"SUBDIRECCION DE ADMINISTRACION INMOBILIARIA Y DE ESPACIO PUBLICO","ESCRITO","DERECHO DE PETICION DE INTERES GENERAL",12,"PENDIENTE"]
[3658952021,"AREA DE ATENCION A LA CIUDADANIA","ESCRITO","DERECHO DE PETICION DE INTERES GENERAL",1,"GESTIONADOS"]
[3658952021,"SUBDIRECCION DE ADMINISTRACION INMOBILIARIA Y DE ESPACIO PUBLICO","ESCRITO","DERECHO DE PETICION DE INTERES GENERAL",12,"PENDIENTE"]
[3661682021,"AREA DE ATENCION A LA CIUDADANIA","WEB","DERECHO DE PETICION DE INTERES GENERAL",1,"GESTIONADOS"]
[3662482021,"AREA DE ATENCION A LA CIUDADANIA","WEB","DERECHO DE PETICION DE INTERES GENERAL",1,"GESTIONADOS"]
[3662482021,"SUBDIRECCION DE ADMINISTRACION INMOBILIARIA Y DE ESPACIO PUBLICO","WEB","DERECHO DE PETICION DE INTERES GENERAL",13,"PENDIENTE"]
[3663212021,"AREA DE ATENCION A LA CIUDADANIA","WEB","QUEJA",1,"GESTIONADOS"]
[3664582021,"AREA DE ATENCION A LA CIUDADANIA","WEB","DERECHO DE PETICION DE INTERES PARTICULAR",1,"GESTIONADOS"]
[3665952021,"AREA DE ATENCION A LA CIUDADANIA","WEB","DERECHO DE PETICION DE INTERES GENERAL",1,"GESTIONADOS"]
[3665952021,"SUBDIRECCION ADMINISTRATIVA  FINANCIERA Y DE CONTROL DISCIPLINARIO","WEB","DERECHO DE PETICION DE INTERES GENERAL",1,"GESTIONADOS"]
[3667062021,"AREA DE ATENCION A LA CIUDADANIA","WEB","DERECHO DE PETICION DE INTERES PARTICULAR",1,"GESTIONADOS"]
[3667062021,"SUBDIRECCION DE ADMINISTRACION INMOBILIARIA Y DE ESPACIO PUBLICO","WEB","DERECHO DE PETICION DE INTERES PARTICULAR",13,"PENDIENTE"]
[3668112021,"AREA DE ATENCION A LA CIUDADANIA","WEB","DERECHO DE PETICION DE INTERES PARTICULAR",1,"GESTIONADOS"]
[3668112021,"SUBDIRECCION DE REGISTRO INMOBILIARIO","WEB","DERECHO DE PETICION DE INTERES PARTICULAR",13,"PENDIENTE"]
[3668982021,"AREA DE ATENCION A LA CIUDADANIA","ESCRITO","DERECHO DE PETICION DE INTERES PARTICULAR",1,"GESTIONADOS"]
[3668982021,"SUBDIRECCION DE ADMINISTRACION INMOBILIARIA Y DE ESPACIO PUBLICO","ESCRITO","DERECHO DE PETICION DE INTERES PARTICULAR",13,"PENDIENTE"]
[3669092021,"AREA DE ATENCION A LA CIUDADANIA","ESCRITO","DERECHO DE PETICION DE INTERES PARTICULAR",1,"GESTIONADOS"]
[3669092021,"SUBDIRECCION DE ADMINISTRACION INMOBILIARIA Y DE ESPACIO PUBLICO","ESCRITO","DERECHO DE PETICION DE INTERES PARTICULAR",13,"PENDIENTE"]
[3669642021,"AREA DE ATENCION A LA CIUDADANIA","WEB","DERECHO DE PETICION DE INTERES GENERAL",1,"GESTIONADOS"]
[3669672021,"AREA DE ATENCION A LA CIUDADANIA","ESCRITO","DERECHO DE PETICION DE INTERES PARTICULAR",1,"GESTIONADOS"]
[3669672021,"SUBDIRECCION DE REGISTRO INMOBILIARIO","ESCRITO","DERECHO DE PETICION DE INTERES PARTICULAR",13,"PENDIENTE"]
[3670222021,"AREA DE ATENCION A LA CIUDADANIA","REDES SOCIALES","DERECHO DE PETICION DE INTERES PARTICULAR",1,"GESTIONADOS"]
[3670412021,"AREA DE ATENCION A LA CIUDADANIA","ESCRITO","DERECHO DE PETICION DE INTERES PARTICULAR",1,"GESTIONADOS"]
[3670412021,"SUBDIRECCION DE ADMINISTRACION INMOBILIARIA Y DE ESPACIO PUBLICO","ESCRITO","DERECHO DE PETICION DE INTERES PARTICULAR",13,"PENDIENTE"]
[3670822021,"AREA DE ATENCION A LA CIUDADANIA","WEB","DERECHO DE PETICION DE INTERES PARTICULAR",1,"GESTIONADOS"]
[3670822021,"SUBDIRECCION DE ADMINISTRACION INMOBILIARIA Y DE ESPACIO PUBLICO","WEB","DERECHO DE PETICION DE INTERES PARTICULAR",13,"PENDIENTE"]
[3672012021,"AREA DE ATENCION A LA CIUDADANIA","WEB","DERECHO DE PETICION DE INTERES PARTICULAR",1,"GESTIONADOS"]
[3672012021,"SUBDIRECCION DE REGISTRO INMOBILIARIO","WEB","DERECHO DE PETICION DE INTERES PARTICULAR",13,"PENDIENTE"]
[3672342021,"AREA DE ATENCION A LA CIUDADANIA","ESCRITO","DERECHO DE PETICION DE INTERES PARTICULAR",1,"GESTIONADOS"]
[3672342021,"SUBDIRECCION DE ADMINISTRACION INMOBILIARIA Y DE ESPACIO PUBLICO","ESCRITO","DERECHO DE PETICION DE INTERES PARTICULAR",13,"PENDIENTE"]
[3672352021,"AREA DE ATENCION A LA CIUDADANIA","ESCRITO","DERECHO DE PETICION DE INTERES PARTICULAR",1,"GESTIONADOS"]
[3672352021,"SUBDIRECCION DE ADMINISTRACION INMOBILIARIA Y DE ESPACIO PUBLICO","ESCRITO","DERECHO DE PETICION DE INTERES PARTICULAR",13,"PENDIENTE"]
[3672392021,"AREA DE ATENCION A LA CIUDADANIA","ESCRITO","DERECHO DE PETICION DE INTERES PARTICULAR",1,"GESTIONADOS"]
[3672392021,"SUBDIRECCION DE REGISTRO INMOBILIARIO","ESCRITO","DERECHO DE PETICION DE INTERES PARTICULAR",13,"PENDIENTE"]
[3672542021,"AREA DE ATENCION A LA CIUDADANIA","ESCRITO","DERECHO DE PETICION DE INTERES PARTICULAR",1,"GESTIONADOS"]
[3672542021,"SUBDIRECCION DE ADMINISTRACION INMOBILIARIA Y DE ESPACIO PUBLICO","ESCRITO","DERECHO DE PETICION DE INTERES PARTICULAR",13,"PENDIENTE"]
[3672562021,"AREA DE ATENCION A LA CIUDADANIA","WEB","DERECHO DE PETICION DE INTERES GENERAL",1,"GESTIONADOS"]
[3672572021,"AREA DE ATENCION A LA CIUDADANIA","ESCRITO","DERECHO DE PETICION DE INTERES PARTICULAR",1,"GESTIONADOS"]
[3672572021,"SUBDIRECCION DE REGISTRO INMOBILIARIO","ESCRITO","DERECHO DE PETICION DE INTERES PARTICULAR",13,"PENDIENTE"]
[3672642021,"AREA DE ATENCION A LA CIUDADANIA","ESCRITO","DERECHO DE PETICION DE INTERES PARTICULAR",1,"GESTIONADOS"]
[3672642021,"DESPACHO","ESCRITO","DERECHO DE PETICION DE INTERES PARTICULAR",13,"GESTIONADOS"]
[3672642021,"SUBDIRECCION DE ADMINISTRACION INMOBILIARIA Y DE ESPACIO PUBLICO","ESCRITO","DERECHO DE PETICION DE INTERES PARTICULAR",13,"PENDIENTE"]
[3672942021,"AREA DE ATENCION A LA CIUDADANIA","ESCRITO","DERECHO DE PETICION DE INTERES PARTICULAR",1,"GESTIONADOS"]
[3672942021,"SUBDIRECCION DE ADMINISTRACION INMOBILIARIA Y DE ESPACIO PUBLICO","ESCRITO","DERECHO DE PETICION DE INTERES PARTICULAR",13,"PENDIENTE"]
[3673002021,"AREA DE ATENCION A LA CIUDADANIA","ESCRITO","DERECHO DE PETICION DE INTERES PARTICULAR",1,"GESTIONADOS"]
[3673002021,"SUBDIRECCION DE ADMINISTRACION INMOBILIARIA Y DE ESPACIO PUBLICO","ESCRITO","DERECHO DE PETICION DE INTERES PARTICULAR",13,"PENDIENTE"]
[3674422021,"AREA DE ATENCION A LA CIUDADANIA","WEB","DERECHO DE PETICION DE INTERES PARTICULAR",1,"GESTIONADOS"]
[3674422021,"SUBDIRECCION DE ADMINISTRACION INMOBILIARIA Y DE ESPACIO PUBLICO","WEB","DERECHO DE PETICION DE INTERES PARTICULAR",12,"PENDIENTE"]
[3675912021,"AREA DE ATENCION A LA CIUDADANIA","TELEFONO","DERECHO DE PETICION DE INTERES GENERAL",1,"GESTIONADOS"]
[3675912021,"SUBDIRECCION DE ADMINISTRACION INMOBILIARIA Y DE ESPACIO PUBLICO","TELEFONO","DERECHO DE PETICION DE INTERES GENERAL",11,"PENDIENTE"]
[3675962021,"AREA DE ATENCION A LA CIUDADANIA","WEB","DERECHO DE PETICION DE INTERES GENERAL",1,"GESTIONADOS"]
[3675962021,"SUBDIRECCION DE ADMINISTRACION INMOBILIARIA Y DE ESPACIO PUBLICO","WEB","DERECHO DE PETICION DE INTERES GENERAL",12,"PENDIENTE"]
[3676092021,"AREA DE ATENCION A LA CIUDADANIA","TELEFONO","DERECHO DE PETICION DE INTERES GENERAL",1,"GESTIONADOS"]
[3676182021,"AREA DE ATENCION A LA CIUDADANIA","WEB","DERECHO DE PETICION DE INTERES GENERAL",1,"GESTIONADOS"]
[3676182021,"SUBDIRECCION DE ADMINISTRACION INMOBILIARIA Y DE ESPACIO PUBLICO","WEB","DERECHO DE PETICION DE INTERES GENERAL",12,"PENDIENTE"]
[3678262021,"AREA DE ATENCION A LA CIUDADANIA","WEB","DERECHO DE PETICION DE INTERES GENERAL",1,"GESTIONADOS"]
[3678262021,"SUBDIRECCION DE ADMINISTRACION INMOBILIARIA Y DE ESPACIO PUBLICO","WEB","DERECHO DE PETICION DE INTERES GENERAL",12,"PENDIENTE"]
[3678522021,"AREA DE ATENCION A LA CIUDADANIA","WEB","DERECHO DE PETICION DE INTERES GENERAL",1,"GESTIONADOS"]
[3679082021,"AREA DE ATENCION A LA CIUDADANIA","WEB","DERECHO DE PETICION DE INTERES GENERAL",1,"GESTIONADOS"]
[3680142021,"AREA DE ATENCION A LA CIUDADANIA","ESCRITO","DERECHO DE PETICION DE INTERES PARTICULAR",1,"GESTIONADOS"]
[3680142021,"SUBDIRECCION DE ADMINISTRACION INMOBILIARIA Y DE ESPACIO PUBLICO","ESCRITO","DERECHO DE PETICION DE INTERES PARTICULAR",12,"PENDIENTE"]
[3680192021,"AREA DE ATENCION A LA CIUDADANIA","WEB","DERECHO DE PETICION DE INTERES GENERAL",1,"GESTIONADOS"]
[3680192021,"SUBDIRECCION DE ADMINISTRACION INMOBILIARIA Y DE ESPACIO PUBLICO","WEB","DERECHO DE PETICION DE INTERES GENERAL",12,"PENDIENTE"]
[3680262021,"AREA DE ATENCION A LA CIUDADANIA","ESCRITO","DERECHO DE PETICION DE INTERES PARTICULAR",1,"GESTIONADOS"]
[3680262021,"SUBDIRECCION DE ADMINISTRACION INMOBILIARIA Y DE ESPACIO PUBLICO","ESCRITO","DERECHO DE PETICION DE INTERES PARTICULAR",12,"PENDIENTE"]
[3680322021,"AREA DE ATENCION A LA CIUDADANIA","ESCRITO","DERECHO DE PETICION DE INTERES PARTICULAR",1,"GESTIONADOS"]
[3680322021,"SUBDIRECCION DE ADMINISTRACION INMOBILIARIA Y DE ESPACIO PUBLICO","ESCRITO","DERECHO DE PETICION DE INTERES PARTICULAR",12,"PENDIENTE"]
[3680482021,"AREA DE ATENCION A LA CIUDADANIA","ESCRITO","DERECHO DE PETICION DE INTERES PARTICULAR",1,"GESTIONADOS"]
[3680482021,"SUBDIRECCION DE ADMINISTRACION INMOBILIARIA Y DE ESPACIO PUBLICO","ESCRITO","DERECHO DE PETICION DE INTERES PARTICULAR",12,"PENDIENTE"]
[3680682021,"AREA DE ATENCION A LA CIUDADANIA","WEB","DERECHO DE PETICION DE INTERES PARTICULAR",1,"GESTIONADOS"]
[3680902021,"AREA DE ATENCION A LA CIUDADANIA","ESCRITO","DERECHO DE PETICION DE INTERES PARTICULAR",1,"GESTIONADOS"]
[3681562021,"AREA DE ATENCION A LA CIUDADANIA","WEB","DERECHO DE PETICION DE INTERES PARTICULAR",1,"GESTIONADOS"]
[3681632021,"AREA DE ATENCION A LA CIUDADANIA","ESCRITO","DERECHO DE PETICION DE INTERES PARTICULAR",1,"GESTIONADOS"]
[3681632021,"OFICINA ASESORA JURIDICA","ESCRITO","DERECHO DE PETICION DE INTERES PARTICULAR",10,"GESTIONADOS"]
[3681832021,"AREA DE ATENCION A LA CIUDADANIA","REDES SOCIALES","DERECHO DE PETICION DE INTERES PARTICULAR",1,"GESTIONADOS"]
[3681912021,"AREA DE ATENCION A LA CIUDADANIA","REDES SOCIALES","DERECHO DE PETICION DE INTERES PARTICULAR",1,"GESTIONADOS"]
[3682412021,"AREA DE ATENCION A LA CIUDADANIA","WEB","DERECHO DE PETICION DE INTERES PARTICULAR",12,"PENDIENTE"]
[3682842021,"AREA DE ATENCION A LA CIUDADANIA","TELEFONO","DERECHO DE PETICION DE INTERES GENERAL",1,"GESTIONADOS"]
[3682922021,"AREA DE ATENCION A LA CIUDADANIA","WEB","DERECHO DE PETICION DE INTERES PARTICULAR",1,"GESTIONADOS"]
[3682922021,"SUBDIRECCION DE ADMINISTRACION INMOBILIARIA Y DE ESPACIO PUBLICO","WEB","DERECHO DE PETICION DE INTERES PARTICULAR",12,"PENDIENTE"]
[3683572021,"AREA DE ATENCION A LA CIUDADANIA","ESCRITO","DERECHO DE PETICION DE INTERES PARTICULAR",1,"GESTIONADOS"]
[3683572021,"SUBDIRECCION DE ADMINISTRACION INMOBILIARIA Y DE ESPACIO PUBLICO","ESCRITO","DERECHO DE PETICION DE INTERES PARTICULAR",12,"PENDIENTE"]
[3683682021,"AREA DE ATENCION A LA CIUDADANIA","ESCRITO","DERECHO DE PETICION DE INTERES PARTICULAR",1,"GESTIONADOS"]
[3683682021,"SUBDIRECCION DE REGISTRO INMOBILIARIO","ESCRITO","DERECHO DE PETICION DE INTERES PARTICULAR",12,"PENDIENTE"]
[3683822021,"AREA DE ATENCION A LA CIUDADANIA","WEB","DERECHO DE PETICION DE INTERES GENERAL",1,"GESTIONADOS"]
[3683912021,"AREA DE ATENCION A LA CIUDADANIA","ESCRITO","DERECHO DE PETICION DE INTERES PARTICULAR",1,"GESTIONADOS"]
[3683912021,"SUBDIRECCION DE ADMINISTRACION INMOBILIARIA Y DE ESPACIO PUBLICO","ESCRITO","DERECHO DE PETICION DE INTERES PARTICULAR",12,"PENDIENTE"]
[3683932021,"AREA DE ATENCION A LA CIUDADANIA","ESCRITO","DERECHO DE PETICION DE INTERES PARTICULAR",1,"GESTIONADOS"]
[3683932021,"SUBDIRECCION DE REGISTRO INMOBILIARIO","ESCRITO","DERECHO DE PETICION DE INTERES PARTICULAR",12,"PENDIENTE"]
[3683952021,"AREA DE ATENCION A LA CIUDADANIA","ESCRITO","DERECHO DE PETICION DE INTERES PARTICULAR",1,"GESTIONADOS"]
[3683952021,"SUBDIRECCION DE ADMINISTRACION INMOBILIARIA Y DE ESPACIO PUBLICO","ESCRITO","DERECHO DE PETICION DE INTERES PARTICULAR",12,"PENDIENTE"]
[3684092021,"AREA DE ATENCION A LA CIUDADANIA","ESCRITO","DERECHO DE PETICION DE INTERES PARTICULAR",1,"GESTIONADOS"]
[3684092021,"DESPACHO","ESCRITO","DERECHO DE PETICION DE INTERES PARTICULAR",4,"GESTIONADOS"]
[3684092021,"SUBDIRECCION DE ADMINISTRACION INMOBILIARIA Y DE ESPACIO PUBLICO","ESCRITO","DERECHO DE PETICION DE INTERES PARTICULAR",12,"PENDIENTE"]
[3684252021,"AREA DE ATENCION A LA CIUDADANIA","ESCRITO","DERECHO DE PETICION DE INTERES PARTICULAR",1,"GESTIONADOS"]
[3684532021,"AREA DE ATENCION A LA CIUDADANIA","E-MAIL","DERECHO DE PETICION DE INTERES PARTICULAR",1,"GESTIONADOS"]
[3686272021,"AREA DE ATENCION A LA CIUDADANIA","WEB","DERECHO DE PETICION DE INTERES PARTICULAR",1,"GESTIONADOS"]
[3686272021,"SUBDIRECCION DE ADMINISTRACION INMOBILIARIA Y DE ESPACIO PUBLICO","WEB","DERECHO DE PETICION DE INTERES PARTICULAR",12,"PENDIENTE"]
[3686412021,"AREA DE ATENCION A LA CIUDADANIA","ESCRITO","DERECHO DE PETICION DE INTERES GENERAL",1,"GESTIONADOS"]
[3686412021,"SUBDIRECCION DE ADMINISTRACION INMOBILIARIA Y DE ESPACIO PUBLICO","ESCRITO","DERECHO DE PETICION DE INTERES GENERAL",8,"PENDIENTE"]
[3687142021,"AREA DE ATENCION A LA CIUDADANIA","WEB","DERECHO DE PETICION DE INTERES GENERAL",3,"GESTIONADOS"]
[3687142021,"SUBDIRECCION ADMINISTRATIVA  FINANCIERA Y DE CONTROL DISCIPLINARIO","WEB","DERECHO DE PETICION DE INTERES GENERAL",2,"GESTIONADOS"]
[3687582021,"AREA DE ATENCION A LA CIUDADANIA","TELEFONO","DERECHO DE PETICION DE INTERES GENERAL",1,"GESTIONADOS"]
[3687582021,"SUBDIRECCION DE ADMINISTRACION INMOBILIARIA Y DE ESPACIO PUBLICO","TELEFONO","DERECHO DE PETICION DE INTERES GENERAL",12,"PENDIENTE"]
[3689622021,"AREA DE ATENCION A LA CIUDADANIA","WEB","CONSULTA",1,"GESTIONADOS"]
[3689622021,"SUBDIRECCION DE REGISTRO INMOBILIARIO","WEB","CONSULTA",11,"PENDIENTE"]
[3690422021,"AREA DE ATENCION A LA CIUDADANIA","WEB","DERECHO DE PETICION DE INTERES GENERAL",1,"GESTIONADOS"]
[3690422021,"SUBDIRECCION DE ADMINISTRACION INMOBILIARIA Y DE ESPACIO PUBLICO","WEB","DERECHO DE PETICION DE INTERES GENERAL",7,"PENDIENTE"]
[3690522021,"AREA DE ATENCION A LA CIUDADANIA","TELEFONO","DERECHO DE PETICION DE INTERES GENERAL",1,"GESTIONADOS"]
[3693802021,"AREA DE ATENCION A LA CIUDADANIA","WEB","DERECHO DE PETICION DE INTERES PARTICULAR",1,"GESTIONADOS"]
[3693802021,"SUBDIRECCION DE ADMINISTRACION INMOBILIARIA Y DE ESPACIO PUBLICO","WEB","DERECHO DE PETICION DE INTERES PARTICULAR",11,"PENDIENTE"]
[3694922021,"AREA DE ATENCION A LA CIUDADANIA","ESCRITO","DERECHO DE PETICION DE INTERES PARTICULAR",1,"GESTIONADOS"]
[3694922021,"SUBDIRECCION DE REGISTRO INMOBILIARIO","ESCRITO","DERECHO DE PETICION DE INTERES PARTICULAR",11,"PENDIENTE"]
[3695222021,"AREA DE ATENCION A LA CIUDADANIA","ESCRITO","DERECHO DE PETICION DE INTERES PARTICULAR",1,"GESTIONADOS"]
[3695222021,"OFICINA ASESORA JURIDICA","ESCRITO","DERECHO DE PETICION DE INTERES PARTICULAR",11,"GESTIONADOS"]
[3695582021,"AREA DE ATENCION A LA CIUDADANIA","WEB","DERECHO DE PETICION DE INTERES PARTICULAR",1,"GESTIONADOS"]
[3696472021,"AREA DE ATENCION A LA CIUDADANIA","ESCRITO","DERECHO DE PETICION DE INTERES PARTICULAR",1,"GESTIONADOS"]
[3696472021,"SUBDIRECCION DE ADMINISTRACION INMOBILIARIA Y DE ESPACIO PUBLICO","ESCRITO","DERECHO DE PETICION DE INTERES PARTICULAR",11,"PENDIENTE"]
[3697162021,"AREA DE ATENCION A LA CIUDADANIA","ESCRITO","DERECHO DE PETICION DE INTERES PARTICULAR",1,"GESTIONADOS"]
[3697162021,"SUBDIRECCION DE REGISTRO INMOBILIARIO","ESCRITO","DERECHO DE PETICION DE INTERES PARTICULAR",11,"PENDIENTE"]
[3697322021,"AREA DE ATENCION A LA CIUDADANIA","ESCRITO","DERECHO DE PETICION DE INTERES PARTICULAR",1,"GESTIONADOS"]
[3697322021,"SUBDIRECCION DE ADMINISTRACION INMOBILIARIA Y DE ESPACIO PUBLICO","ESCRITO","DERECHO DE PETICION DE INTERES PARTICULAR",11,"PENDIENTE"]
[3697332021,"AREA DE ATENCION A LA CIUDADANIA","ESCRITO","DERECHO DE PETICION DE INTERES PARTICULAR",1,"GESTIONADOS"]
[3697332021,"SUBDIRECCION DE ADMINISTRACION INMOBILIARIA Y DE ESPACIO PUBLICO","ESCRITO","DERECHO DE PETICION DE INTERES PARTICULAR",11,"PENDIENTE"]
[3697352021,"AREA DE ATENCION A LA CIUDADANIA","ESCRITO","DERECHO DE PETICION DE INTERES PARTICULAR",1,"GESTIONADOS"]
[3697352021,"SUBDIRECCION DE ADMINISTRACION INMOBILIARIA Y DE ESPACIO PUBLICO","ESCRITO","DERECHO DE PETICION DE INTERES PARTICULAR",11,"PENDIENTE"]
[3697392021,"AREA DE ATENCION A LA CIUDADANIA","ESCRITO","DERECHO DE PETICION DE INTERES PARTICULAR",1,"GESTIONADOS"]
[3697392021,"SUBDIRECCION DE ADMINISTRACION INMOBILIARIA Y DE ESPACIO PUBLICO","ESCRITO","DERECHO DE PETICION DE INTERES PARTICULAR",11,"PENDIENTE"]
[3697582021,"AREA DE ATENCION A LA CIUDADANIA","ESCRITO","DERECHO DE PETICION DE INTERES PARTICULAR",1,"GESTIONADOS"]
[3697582021,"SUBDIRECCION DE REGISTRO INMOBILIARIO","ESCRITO","DERECHO DE PETICION DE INTERES PARTICULAR",11,"PENDIENTE"]
[3701762021,"AREA DE ATENCION A LA CIUDADANIA","WEB","DERECHO DE PETICION DE INTERES GENERAL",1,"GESTIONADOS"]
[3701782021,"AREA DE ATENCION A LA CIUDADANIA","WEB","DERECHO DE PETICION DE INTERES GENERAL",1,"GESTIONADOS"]
[3701792021,"AREA DE ATENCION A LA CIUDADANIA","WEB","DERECHO DE PETICION DE INTERES GENERAL",1,"GESTIONADOS"]
[3702762021,"AREA DE ATENCION A LA CIUDADANIA","WEB","DERECHO DE PETICION DE INTERES GENERAL",1,"GESTIONADOS"]
[3702762021,"SUBDIRECCION DE ADMINISTRACION INMOBILIARIA Y DE ESPACIO PUBLICO","WEB","DERECHO DE PETICION DE INTERES GENERAL",11,"PENDIENTE"]
[3703372021,"AREA DE ATENCION A LA CIUDADANIA","WEB","DERECHO DE PETICION DE INTERES PARTICULAR",1,"GESTIONADOS"]
[3703372021,"SUBDIRECCION DE ADMINISTRACION INMOBILIARIA Y DE ESPACIO PUBLICO","WEB","DERECHO DE PETICION DE INTERES PARTICULAR",11,"PENDIENTE"]
[3703802021,"AREA DE ATENCION A LA CIUDADANIA","WEB","DERECHO DE PETICION DE INTERES GENERAL",1,"GESTIONADOS"]
[3703802021,"SUBDIRECCION DE ADMINISTRACION INMOBILIARIA Y DE ESPACIO PUBLICO","WEB","DERECHO DE PETICION DE INTERES GENERAL",11,"PENDIENTE"]
[3704592021,"AREA DE ATENCION A LA CIUDADANIA","TELEFONO","DERECHO DE PETICION DE INTERES GENERAL",1,"GESTIONADOS"]
[3704662021,"AREA DE ATENCION A LA CIUDADANIA","WEB","CONSULTA",1,"GESTIONADOS"]
[3704662021,"SUBDIRECCION DE ADMINISTRACION INMOBILIARIA Y DE ESPACIO PUBLICO","WEB","CONSULTA",11,"PENDIENTE"]
[3704672021,"AREA DE ATENCION A LA CIUDADANIA","WEB","CONSULTA",1,"GESTIONADOS"]
[3704682021,"AREA DE ATENCION A LA CIUDADANIA","WEB","CONSULTA",1,"GESTIONADOS"]
[3704702021,"AREA DE ATENCION A LA CIUDADANIA","WEB","CONSULTA",1,"GESTIONADOS"]
[3704772021,"AREA DE ATENCION A LA CIUDADANIA","WEB","CONSULTA",2,"GESTIONADOS"]
[3704772021,"DESPACHO","WEB","CONSULTA",11,"GESTIONADOS"]
[3705372021,"AREA DE ATENCION A LA CIUDADANIA","WEB","DERECHO DE PETICION DE INTERES GENERAL",1,"GESTIONADOS"]
[3705582021,"AREA DE ATENCION A LA CIUDADANIA","WEB","DERECHO DE PETICION DE INTERES PARTICULAR",1,"GESTIONADOS"]
[3705722021,"AREA DE ATENCION A LA CIUDADANIA","WEB","DERECHO DE PETICION DE INTERES GENERAL",1,"GESTIONADOS"]
[3705722021,"SUBDIRECCION DE ADMINISTRACION INMOBILIARIA Y DE ESPACIO PUBLICO","WEB","DERECHO DE PETICION DE INTERES GENERAL",10,"PENDIENTE"]
[3706402021,"AREA DE ATENCION A LA CIUDADANIA","WEB","DERECHO DE PETICION DE INTERES PARTICULAR",1,"GESTIONADOS"]
[3706402021,"SUBDIRECCION DE ADMINISTRACION INMOBILIARIA Y DE ESPACIO PUBLICO","WEB","DERECHO DE PETICION DE INTERES PARTICULAR",11,"PENDIENTE"]
[3706422021,"AREA DE ATENCION A LA CIUDADANIA","WEB","QUEJA",1,"GESTIONADOS"]
[3706552021,"AREA DE ATENCION A LA CIUDADANIA","WEB","DERECHO DE PETICION DE INTERES PARTICULAR",1,"GESTIONADOS"]
[3706552021,"SUBDIRECCION DE ADMINISTRACION INMOBILIARIA Y DE ESPACIO PUBLICO","WEB","DERECHO DE PETICION DE INTERES PARTICULAR",11,"PENDIENTE"]
[3707252021,"AREA DE ATENCION A LA CIUDADANIA","WEB","CONSULTA",1,"GESTIONADOS"]
[3707742021,"AREA DE ATENCION A LA CIUDADANIA","WEB","DERECHO DE PETICION DE INTERES PARTICULAR",1,"GESTIONADOS"]
[3707852021,"AREA DE ATENCION A LA CIUDADANIA","WEB","DERECHO DE PETICION DE INTERES GENERAL",1,"GESTIONADOS"]
[3707852021,"SUBDIRECCION DE ADMINISTRACION INMOBILIARIA Y DE ESPACIO PUBLICO","WEB","DERECHO DE PETICION DE INTERES GENERAL",11,"PENDIENTE"]
[3707872021,"AREA DE ATENCION A LA CIUDADANIA","WEB","DERECHO DE PETICION DE INTERES GENERAL",1,"GESTIONADOS"]
[3707872021,"SUBDIRECCION DE ADMINISTRACION INMOBILIARIA Y DE ESPACIO PUBLICO","WEB","DERECHO DE PETICION DE INTERES GENERAL",11,"PENDIENTE"]
[3707952021,"AREA DE ATENCION A LA CIUDADANIA","WEB","DERECHO DE PETICION DE INTERES PARTICULAR",1,"GESTIONADOS"]
[3707952021,"SUBDIRECCION DE ADMINISTRACION INMOBILIARIA Y DE ESPACIO PUBLICO","WEB","DERECHO DE PETICION DE INTERES PARTICULAR",11,"PENDIENTE"]
[3709172021,"AREA DE ATENCION A LA CIUDADANIA","TELEFONO","DERECHO DE PETICION DE INTERES GENERAL",1,"GESTIONADOS"]
[3710282021,"AREA DE ATENCION A LA CIUDADANIA","WEB","DERECHO DE PETICION DE INTERES GENERAL",1,"GESTIONADOS"]
[3711612021,"AREA DE ATENCION A LA CIUDADANIA","ESCRITO","DERECHO DE PETICION DE INTERES PARTICULAR",1,"GESTIONADOS"]
[3711612021,"SUBDIRECCION DE REGISTRO INMOBILIARIO","ESCRITO","DERECHO DE PETICION DE INTERES PARTICULAR",10,"PENDIENTE"]
[3714252021,"AREA DE ATENCION A LA CIUDADANIA","WEB","DERECHO DE PETICION DE INTERES GENERAL",1,"GESTIONADOS"]
[3714252021,"SUBDIRECCION DE ADMINISTRACION INMOBILIARIA Y DE ESPACIO PUBLICO","WEB","DERECHO DE PETICION DE INTERES GENERAL",10,"PENDIENTE"]
[3714542021,"AREA DE ATENCION A LA CIUDADANIA","ESCRITO","DERECHO DE PETICION DE INTERES GENERAL",1,"GESTIONADOS"]
[3714542021,"SUBDIRECCION DE ADMINISTRACION INMOBILIARIA Y DE ESPACIO PUBLICO","ESCRITO","DERECHO DE PETICION DE INTERES GENERAL",10,"PENDIENTE"]
[3714592021,"AREA DE ATENCION A LA CIUDADANIA","WEB","DERECHO DE PETICION DE INTERES PARTICULAR",1,"GESTIONADOS"]
[3714592021,"SUBDIRECCION DE ADMINISTRACION INMOBILIARIA Y DE ESPACIO PUBLICO","WEB","DERECHO DE PETICION DE INTERES PARTICULAR",10,"PENDIENTE"]
[3715202021,"AREA DE ATENCION A LA CIUDADANIA","WEB","DERECHO DE PETICION DE INTERES PARTICULAR",1,"GESTIONADOS"]
[3715202021,"OFICINA ASESORA JURIDICA","WEB","DERECHO DE PETICION DE INTERES PARTICULAR",8,"GESTIONADOS"]
[3716142021,"AREA DE ATENCION A LA CIUDADANIA","ESCRITO","DERECHO DE PETICION DE INTERES PARTICULAR",1,"GESTIONADOS"]
[3716142021,"SUBDIRECCION DE ADMINISTRACION INMOBILIARIA Y DE ESPACIO PUBLICO","ESCRITO","DERECHO DE PETICION DE INTERES PARTICULAR",10,"PENDIENTE"]
[3716282021,"AREA DE ATENCION A LA CIUDADANIA","ESCRITO","DERECHO DE PETICION DE INTERES PARTICULAR",1,"GESTIONADOS"]
[3716282021,"SUBDIRECCION DE ADMINISTRACION INMOBILIARIA Y DE ESPACIO PUBLICO","ESCRITO","DERECHO DE PETICION DE INTERES PARTICULAR",10,"PENDIENTE"]
[3716392021,"AREA DE ATENCION A LA CIUDADANIA","ESCRITO","DERECHO DE PETICION DE INTERES PARTICULAR",1,"GESTIONADOS"]
[3716392021,"SUBDIRECCION DE REGISTRO INMOBILIARIO","ESCRITO","DERECHO DE PETICION DE INTERES PARTICULAR",10,"PENDIENTE"]
[3716742021,"AREA DE ATENCION A LA CIUDADANIA","ESCRITO","DERECHO DE PETICION DE INTERES PARTICULAR",1,"GESTIONADOS"]
[3716742021,"SUBDIRECCION ADMINISTRATIVA Y FINANCIERA","ESCRITO","DERECHO DE PETICION DE INTERES PARTICULAR",10,"PENDIENTE"]
[3717062021,"AREA DE ATENCION A LA CIUDADANIA","WEB","DERECHO DE PETICION DE INTERES PARTICULAR",2,"GESTIONADOS"]
[3717062021,"SUBDIRECCION DE ADMINISTRACION INMOBILIARIA Y DE ESPACIO PUBLICO","WEB","DERECHO DE PETICION DE INTERES PARTICULAR",10,"PENDIENTE"]
[3717352021,"AREA DE ATENCION A LA CIUDADANIA","ESCRITO","DERECHO DE PETICION DE INTERES PARTICULAR",1,"GESTIONADOS"]
[3717352021,"SUBDIRECCION DE ADMINISTRACION INMOBILIARIA Y DE ESPACIO PUBLICO","ESCRITO","DERECHO DE PETICION DE INTERES PARTICULAR",10,"PENDIENTE"]
[3718652021,"AREA DE ATENCION A LA CIUDADANIA","ESCRITO","DERECHO DE PETICION DE INTERES PARTICULAR",1,"GESTIONADOS"]
[3718652021,"SUBDIRECCION DE REGISTRO INMOBILIARIO","ESCRITO","DERECHO DE PETICION DE INTERES PARTICULAR",10,"PENDIENTE"]
[3718772021,"AREA DE ATENCION A LA CIUDADANIA","ESCRITO","DERECHO DE PETICION DE INTERES PARTICULAR",1,"GESTIONADOS"]
[3718772021,"SUBDIRECCION DE ADMINISTRACION INMOBILIARIA Y DE ESPACIO PUBLICO","ESCRITO","DERECHO DE PETICION DE INTERES PARTICULAR",10,"PENDIENTE"]
[3718922021,"AREA DE ATENCION A LA CIUDADANIA","ESCRITO","DERECHO DE PETICION DE INTERES PARTICULAR",1,"GESTIONADOS"]
[3718922021,"SUBDIRECCION ADMINISTRATIVA Y FINANCIERA","ESCRITO","DERECHO DE PETICION DE INTERES PARTICULAR",10,"PENDIENTE"]
[3719332021,"AREA DE ATENCION A LA CIUDADANIA","WEB","DERECHO DE PETICION DE INTERES GENERAL",1,"GESTIONADOS"]
[3719642021,"AREA DE ATENCION A LA CIUDADANIA","ESCRITO","DERECHO DE PETICION DE INTERES PARTICULAR",1,"GESTIONADOS"]
[3719642021,"SUBDIRECCION DE REGISTRO INMOBILIARIO","ESCRITO","DERECHO DE PETICION DE INTERES PARTICULAR",10,"PENDIENTE"]
[3720182021,"AREA DE ATENCION A LA CIUDADANIA","ESCRITO","DERECHO DE PETICION DE INTERES PARTICULAR",1,"GESTIONADOS"]
[3720342021,"AREA DE ATENCION A LA CIUDADANIA","ESCRITO","DERECHO DE PETICION DE INTERES PARTICULAR",1,"GESTIONADOS"]
[3720342021,"OFICINA ASESORA JURIDICA","ESCRITO","DERECHO DE PETICION DE INTERES PARTICULAR",10,"GESTIONADOS"]
[3720452021,"AREA DE ATENCION A LA CIUDADANIA","ESCRITO","DERECHO DE PETICION DE INTERES PARTICULAR",1,"GESTIONADOS"]
[3720452021,"OFICINA ASESORA JURIDICA","ESCRITO","DERECHO DE PETICION DE INTERES PARTICULAR",10,"GESTIONADOS"]
[3720592021,"AREA DE ATENCION A LA CIUDADANIA","ESCRITO","DERECHO DE PETICION DE INTERES PARTICULAR",1,"GESTIONADOS"]
[3720592021,"SUBDIRECCION DE ADMINISTRACION INMOBILIARIA Y DE ESPACIO PUBLICO","ESCRITO","DERECHO DE PETICION DE INTERES PARTICULAR",10,"PENDIENTE"]
[3725912021,"AREA DE ATENCION A LA CIUDADANIA","E-MAIL","DERECHO DE PETICION DE INTERES PARTICULAR",1,"GESTIONADOS"]
[3726252021,"AREA DE ATENCION A LA CIUDADANIA","WEB","DERECHO DE PETICION DE INTERES PARTICULAR",1,"GESTIONADOS"]
[3726262021,"AREA DE ATENCION A LA CIUDADANIA","WEB","DERECHO DE PETICION DE INTERES PARTICULAR",1,"GESTIONADOS"]
[3726272021,"AREA DE ATENCION A LA CIUDADANIA","WEB","DERECHO DE PETICION DE INTERES PARTICULAR",1,"GESTIONADOS"]
[3726272021,"SUBDIRECCION DE REGISTRO INMOBILIARIO","WEB","DERECHO DE PETICION DE INTERES PARTICULAR",9,"PENDIENTE"]
[3728322021,"AREA DE ATENCION A LA CIUDADANIA","WEB","DERECHO DE PETICION DE INTERES GENERAL",1,"GESTIONADOS"]
[3728322021,"SUBDIRECCION DE ADMINISTRACION INMOBILIARIA Y DE ESPACIO PUBLICO","WEB","DERECHO DE PETICION DE INTERES GENERAL",5,"PENDIENTE"]
[3731012021,"AREA DE ATENCION A LA CIUDADANIA","TELEFONO","DERECHO DE PETICION DE INTERES PARTICULAR",1,"GESTIONADOS"]
[3731012021,"SUBDIRECCION DE REGISTRO INMOBILIARIO","TELEFONO","DERECHO DE PETICION DE INTERES PARTICULAR",9,"PENDIENTE"]
[3732632021,"AREA DE ATENCION A LA CIUDADANIA","WEB","QUEJA",1,"GESTIONADOS"]
[3732632021,"DESPACHO","WEB","QUEJA",9,"GESTIONADOS"]
[3732632021,"SUBDIRECCION ADMINISTRATIVA  FINANCIERA Y DE CONTROL DISCIPLINARIO","WEB","QUEJA",9,"PENDIENTE"]
[3732712021,"AREA DE ATENCION A LA CIUDADANIA","ESCRITO","DERECHO DE PETICION DE INTERES PARTICULAR",1,"GESTIONADOS"]
[3732712021,"SUBDIRECCION DE ADMINISTRACION INMOBILIARIA Y DE ESPACIO PUBLICO","ESCRITO","DERECHO DE PETICION DE INTERES PARTICULAR",9,"PENDIENTE"]
[3732732021,"AREA DE ATENCION A LA CIUDADANIA","WEB","QUEJA",1,"GESTIONADOS"]
[3732732021,"DESPACHO","WEB","QUEJA",1,"GESTIONADOS"]
[3732732021,"SUBDIRECCION ADMINISTRATIVA  FINANCIERA Y DE CONTROL DISCIPLINARIO","WEB","QUEJA",7,"GESTIONADOS"]
[3732762021,"AREA DE ATENCION A LA CIUDADANIA","WEB","DENUNCIA POR ACTOS DE CORRUPCION",1,"GESTIONADOS"]
[3732762021,"SUBDIRECCION ADMINISTRATIVA  FINANCIERA Y DE CONTROL DISCIPLINARIO","WEB","DENUNCIA POR ACTOS DE CORRUPCION",7,"GESTIONADOS"]
[3732882021,"AREA DE ATENCION A LA CIUDADANIA","ESCRITO","DERECHO DE PETICION DE INTERES PARTICULAR",1,"GESTIONADOS"]
[3732882021,"SUBDIRECCION DE ADMINISTRACION INMOBILIARIA Y DE ESPACIO PUBLICO","ESCRITO","DERECHO DE PETICION DE INTERES PARTICULAR",9,"PENDIENTE"]
[3733272021,"AREA DE ATENCION A LA CIUDADANIA","ESCRITO","DERECHO DE PETICION DE INTERES PARTICULAR",1,"GESTIONADOS"]
[3733272021,"SUBDIRECCION DE ADMINISTRACION INMOBILIARIA Y DE ESPACIO PUBLICO","ESCRITO","DERECHO DE PETICION DE INTERES PARTICULAR",9,"PENDIENTE"]
[3733452021,"AREA DE ATENCION A LA CIUDADANIA","WEB","DERECHO DE PETICION DE INTERES PARTICULAR",1,"GESTIONADOS"]
[3736672021,"AREA DE ATENCION A LA CIUDADANIA","WEB","DERECHO DE PETICION DE INTERES PARTICULAR",1,"GESTIONADOS"]
[3736672021,"OFICINA ASESORA JURIDICA","WEB","DERECHO DE PETICION DE INTERES PARTICULAR",1,"PENDIENTE"]
[3736822021,"AREA DE ATENCION A LA CIUDADANIA","WEB","DERECHO DE PETICION DE INTERES PARTICULAR",1,"GESTIONADOS"]
[3736872021,"AREA DE ATENCION A LA CIUDADANIA","WEB","DERECHO DE PETICION DE INTERES GENERAL",1,"GESTIONADOS"]
[3737112021,"AREA DE ATENCION A LA CIUDADANIA","WEB","DERECHO DE PETICION DE INTERES PARTICULAR",1,"GESTIONADOS"]
[3737582021,"AREA DE ATENCION A LA CIUDADANIA","WEB","DERECHO DE PETICION DE INTERES PARTICULAR",1,"GESTIONADOS"]
[3738132021,"AREA DE ATENCION A LA CIUDADANIA","WEB","DERECHO DE PETICION DE INTERES PARTICULAR",1,"GESTIONADOS"]
[3738132021,"SUBDIRECCION DE ADMINISTRACION INMOBILIARIA Y DE ESPACIO PUBLICO","WEB","DERECHO DE PETICION DE INTERES PARTICULAR",9,"PENDIENTE"]
[3738152021,"AREA DE ATENCION A LA CIUDADANIA","WEB","DERECHO DE PETICION DE INTERES PARTICULAR",1,"GESTIONADOS"]
[3738152021,"SUBDIRECCION DE REGISTRO INMOBILIARIO","WEB","DERECHO DE PETICION DE INTERES PARTICULAR",9,"PENDIENTE"]
[3740222021,"AREA DE ATENCION A LA CIUDADANIA","WEB","DERECHO DE PETICION DE INTERES GENERAL",1,"GESTIONADOS"]
[3740432021,"AREA DE ATENCION A LA CIUDADANIA","ESCRITO","DERECHO DE PETICION DE INTERES PARTICULAR",1,"GESTIONADOS"]
[3740432021,"SUBDIRECCION DE ADMINISTRACION INMOBILIARIA Y DE ESPACIO PUBLICO","ESCRITO","DERECHO DE PETICION DE INTERES PARTICULAR",9,"PENDIENTE"]
[3740462021,"AREA DE ATENCION A LA CIUDADANIA","ESCRITO","DERECHO DE PETICION DE INTERES PARTICULAR",1,"GESTIONADOS"]
[3740462021,"SUBDIRECCION DE ADMINISTRACION INMOBILIARIA Y DE ESPACIO PUBLICO","ESCRITO","DERECHO DE PETICION DE INTERES PARTICULAR",9,"PENDIENTE"]
[3740522021,"AREA DE ATENCION A LA CIUDADANIA","ESCRITO","DERECHO DE PETICION DE INTERES PARTICULAR",1,"GESTIONADOS"]
[3740522021,"SUBDIRECCION DE ADMINISTRACION INMOBILIARIA Y DE ESPACIO PUBLICO","ESCRITO","DERECHO DE PETICION DE INTERES PARTICULAR",9,"PENDIENTE"]
[3740582021,"AREA DE ATENCION A LA CIUDADANIA","ESCRITO","DERECHO DE PETICION DE INTERES PARTICULAR",1,"GESTIONADOS"]
[3740582021,"SUBDIRECCION DE ADMINISTRACION INMOBILIARIA Y DE ESPACIO PUBLICO","ESCRITO","DERECHO DE PETICION DE INTERES PARTICULAR",9,"PENDIENTE"]
[3740612021,"AREA DE ATENCION A LA CIUDADANIA","ESCRITO","DERECHO DE PETICION DE INTERES PARTICULAR",1,"GESTIONADOS"]
[3740612021,"SUBDIRECCION DE ADMINISTRACION INMOBILIARIA Y DE ESPACIO PUBLICO","ESCRITO","DERECHO DE PETICION DE INTERES PARTICULAR",9,"PENDIENTE"]
[3740702021,"AREA DE ATENCION A LA CIUDADANIA","WEB","DERECHO DE PETICION DE INTERES PARTICULAR",1,"GESTIONADOS"]
[3740702021,"SUBDIRECCION DE ADMINISTRACION INMOBILIARIA Y DE ESPACIO PUBLICO","WEB","DERECHO DE PETICION DE INTERES PARTICULAR",9,"PENDIENTE"]
[3740732021,"AREA DE ATENCION A LA CIUDADANIA","WEB","DERECHO DE PETICION DE INTERES PARTICULAR",1,"GESTIONADOS"]
[3740772021,"AREA DE ATENCION A LA CIUDADANIA","WEB","DERECHO DE PETICION DE INTERES GENERAL",1,"GESTIONADOS"]
[3740772021,"SUBDIRECCION DE ADMINISTRACION INMOBILIARIA Y DE ESPACIO PUBLICO","WEB","DERECHO DE PETICION DE INTERES GENERAL",7,"PENDIENTE"]
[3740882021,"AREA DE ATENCION A LA CIUDADANIA","WEB","DERECHO DE PETICION DE INTERES PARTICULAR",1,"GESTIONADOS"]
[3742812021,"AREA DE ATENCION A LA CIUDADANIA","ESCRITO","DERECHO DE PETICION DE INTERES PARTICULAR",1,"GESTIONADOS"]
[3742812021,"SUBDIRECCION DE ADMINISTRACION INMOBILIARIA Y DE ESPACIO PUBLICO","ESCRITO","DERECHO DE PETICION DE INTERES PARTICULAR",8,"PENDIENTE"]
[3742922021,"AREA DE ATENCION A LA CIUDADANIA","ESCRITO","DERECHO DE PETICION DE INTERES PARTICULAR",1,"GESTIONADOS"]
[3742922021,"SUBDIRECCION DE ADMINISTRACION INMOBILIARIA Y DE ESPACIO PUBLICO","ESCRITO","DERECHO DE PETICION DE INTERES PARTICULAR",8,"PENDIENTE"]
[3743022021,"AREA DE ATENCION A LA CIUDADANIA","ESCRITO","DERECHO DE PETICION DE INTERES PARTICULAR",1,"GESTIONADOS"]
[3743022021,"SUBDIRECCION DE ADMINISTRACION INMOBILIARIA Y DE ESPACIO PUBLICO","ESCRITO","DERECHO DE PETICION DE INTERES PARTICULAR",8,"PENDIENTE"]
[3743272021,"AREA DE ATENCION A LA CIUDADANIA","ESCRITO","DERECHO DE PETICION DE INTERES PARTICULAR",1,"GESTIONADOS"]
[3743272021,"SUBDIRECCION DE ADMINISTRACION INMOBILIARIA Y DE ESPACIO PUBLICO","ESCRITO","DERECHO DE PETICION DE INTERES PARTICULAR",8,"PENDIENTE"]
[3744362021,"AREA DE ATENCION A LA CIUDADANIA","WEB","DERECHO DE PETICION DE INTERES PARTICULAR",1,"GESTIONADOS"]
[3744362021,"SUBDIRECCION DE ADMINISTRACION INMOBILIARIA Y DE ESPACIO PUBLICO","WEB","DERECHO DE PETICION DE INTERES PARTICULAR",6,"PENDIENTE"]
[3744622021,"AREA DE ATENCION A LA CIUDADANIA","WEB","DERECHO DE PETICION DE INTERES PARTICULAR",1,"GESTIONADOS"]
[3744962021,"AREA DE ATENCION A LA CIUDADANIA","WEB","DERECHO DE PETICION DE INTERES PARTICULAR",1,"GESTIONADOS"]
[3744962021,"SUBDIRECCION DE ADMINISTRACION INMOBILIARIA Y DE ESPACIO PUBLICO","WEB","DERECHO DE PETICION DE INTERES PARTICULAR",6,"PENDIENTE"]
[3746072021,"AREA DE ATENCION A LA CIUDADANIA","WEB","DERECHO DE PETICION DE INTERES GENERAL",1,"GESTIONADOS"]
[3746522021,"AREA DE ATENCION A LA CIUDADANIA","WEB","DERECHO DE PETICION DE INTERES GENERAL",1,"GESTIONADOS"]
[3746522021,"SUBDIRECCION DE ADMINISTRACION INMOBILIARIA Y DE ESPACIO PUBLICO","WEB","DERECHO DE PETICION DE INTERES GENERAL",8,"PENDIENTE"]
[3748042021,"AREA DE ATENCION A LA CIUDADANIA","WEB","DERECHO DE PETICION DE INTERES GENERAL",1,"GESTIONADOS"]
[3748312021,"AREA DE ATENCION A LA CIUDADANIA","WEB","DERECHO DE PETICION DE INTERES GENERAL",1,"GESTIONADOS"]
[3748402021,"AREA DE ATENCION A LA CIUDADANIA","WEB","DERECHO DE PETICION DE INTERES PARTICULAR",1,"GESTIONADOS"]
[3748402021,"SUBDIRECCION DE REGISTRO INMOBILIARIO","WEB","DERECHO DE PETICION DE INTERES PARTICULAR",8,"PENDIENTE"]
[3749112021,"AREA DE ATENCION A LA CIUDADANIA","WEB","DERECHO DE PETICION DE INTERES GENERAL",1,"GESTIONADOS"]
[3749112021,"SUBDIRECCION ADMINISTRATIVA  FINANCIERA Y DE CONTROL DISCIPLINARIO","WEB","DERECHO DE PETICION DE INTERES GENERAL",1,"GESTIONADOS"]
[3749452021,"AREA DE ATENCION A LA CIUDADANIA","TELEFONO","DERECHO DE PETICION DE INTERES PARTICULAR",1,"GESTIONADOS"]
[3750792021,"AREA DE ATENCION A LA CIUDADANIA","ESCRITO","DERECHO DE PETICION DE INTERES PARTICULAR",1,"GESTIONADOS"]
[3750792021,"SUBDIRECCION DE ADMINISTRACION INMOBILIARIA Y DE ESPACIO PUBLICO","ESCRITO","DERECHO DE PETICION DE INTERES PARTICULAR",8,"PENDIENTE"]
[3750902021,"AREA DE ATENCION A LA CIUDADANIA","WEB","DERECHO DE PETICION DE INTERES PARTICULAR",1,"GESTIONADOS"]
[3750902021,"SUBDIRECCION DE ADMINISTRACION INMOBILIARIA Y DE ESPACIO PUBLICO","WEB","DERECHO DE PETICION DE INTERES PARTICULAR",8,"PENDIENTE"]
[3751172021,"AREA DE ATENCION A LA CIUDADANIA","WEB","DERECHO DE PETICION DE INTERES PARTICULAR",1,"GESTIONADOS"]
[3751592021,"AREA DE ATENCION A LA CIUDADANIA","WEB","DERECHO DE PETICION DE INTERES GENERAL",1,"GESTIONADOS"]
[3751962021,"AREA DE ATENCION A LA CIUDADANIA","ESCRITO","DERECHO DE PETICION DE INTERES PARTICULAR",1,"GESTIONADOS"]
[3751962021,"OFICINA ASESORA JURIDICA","ESCRITO","DERECHO DE PETICION DE INTERES PARTICULAR",8,"PENDIENTE"]
[3752112021,"AREA DE ATENCION A LA CIUDADANIA","ESCRITO","DERECHO DE PETICION DE INTERES PARTICULAR",1,"GESTIONADOS"]
[3752112021,"SUBDIRECCION ADMINISTRATIVA Y FINANCIERA","ESCRITO","DERECHO DE PETICION DE INTERES PARTICULAR",8,"PENDIENTE"]
[3752382021,"AREA DE ATENCION A LA CIUDADANIA","ESCRITO","DERECHO DE PETICION DE INTERES PARTICULAR",1,"GESTIONADOS"]
[3752382021,"SUBDIRECCION DE ADMINISTRACION INMOBILIARIA Y DE ESPACIO PUBLICO","ESCRITO","DERECHO DE PETICION DE INTERES PARTICULAR",8,"PENDIENTE"]
[3752532021,"AREA DE ATENCION A LA CIUDADANIA","ESCRITO","DERECHO DE PETICION DE INTERES PARTICULAR",1,"GESTIONADOS"]
[3752532021,"SUBDIRECCION ADMINISTRATIVA Y FINANCIERA","ESCRITO","DERECHO DE PETICION DE INTERES PARTICULAR",8,"PENDIENTE"]
[3752632021,"AREA DE ATENCION A LA CIUDADANIA","WEB","QUEJA",8,"PENDIENTE"]
[3752682021,"AREA DE ATENCION A LA CIUDADANIA","ESCRITO","DERECHO DE PETICION DE INTERES PARTICULAR",1,"GESTIONADOS"]
[3752682021,"SUBDIRECCION DE ADMINISTRACION INMOBILIARIA Y DE ESPACIO PUBLICO","ESCRITO","DERECHO DE PETICION DE INTERES PARTICULAR",8,"PENDIENTE"]
[3753342021,"AREA DE ATENCION A LA CIUDADANIA","ESCRITO","DERECHO DE PETICION DE INTERES PARTICULAR",1,"GESTIONADOS"]
[3753342021,"SUBDIRECCION DE ADMINISTRACION INMOBILIARIA Y DE ESPACIO PUBLICO","ESCRITO","DERECHO DE PETICION DE INTERES PARTICULAR",8,"PENDIENTE"]
[3753402021,"AREA DE ATENCION A LA CIUDADANIA","ESCRITO","DERECHO DE PETICION DE INTERES PARTICULAR",1,"GESTIONADOS"]
[3753402021,"SUBDIRECCION DE ADMINISTRACION INMOBILIARIA Y DE ESPACIO PUBLICO","ESCRITO","DERECHO DE PETICION DE INTERES PARTICULAR",8,"PENDIENTE"]
[3753442021,"AREA DE ATENCION A LA CIUDADANIA","ESCRITO","DERECHO DE PETICION DE INTERES PARTICULAR",1,"GESTIONADOS"]
[3753442021,"SUBDIRECCION DE REGISTRO INMOBILIARIO","ESCRITO","DERECHO DE PETICION DE INTERES PARTICULAR",8,"PENDIENTE"]
[3754862021,"AREA DE ATENCION A LA CIUDADANIA","WEB","QUEJA",1,"GESTIONADOS"]
[3755002021,"AREA DE ATENCION A LA CIUDADANIA","TELEFONO","DERECHO DE PETICION DE INTERES GENERAL",1,"GESTIONADOS"]
[3756382021,"AREA DE ATENCION A LA CIUDADANIA","WEB","DERECHO DE PETICION DE INTERES PARTICULAR",1,"GESTIONADOS"]
[3756402021,"AREA DE ATENCION A LA CIUDADANIA","WEB","DERECHO DE PETICION DE INTERES GENERAL",1,"GESTIONADOS"]
[3756402021,"SUBDIRECCION DE ADMINISTRACION INMOBILIARIA Y DE ESPACIO PUBLICO","WEB","DERECHO DE PETICION DE INTERES GENERAL",8,"PENDIENTE"]
[3756422021,"AREA DE ATENCION A LA CIUDADANIA","WEB","QUEJA",1,"GESTIONADOS"]
[3756452021,"AREA DE ATENCION A LA CIUDADANIA","WEB","QUEJA",1,"GESTIONADOS"]
[3756892021,"AREA DE ATENCION A LA CIUDADANIA","WEB","DERECHO DE PETICION DE INTERES GENERAL",1,"GESTIONADOS"]
[3760582021,"AREA DE ATENCION A LA CIUDADANIA","WEB","DERECHO DE PETICION DE INTERES PARTICULAR",1,"GESTIONADOS"]
[3760582021,"SUBDIRECCION DE ADMINISTRACION INMOBILIARIA Y DE ESPACIO PUBLICO","WEB","DERECHO DE PETICION DE INTERES PARTICULAR",7,"PENDIENTE"]
[3760912021,"AREA DE ATENCION A LA CIUDADANIA","WEB","CONSULTA",1,"GESTIONADOS"]
[3760912021,"SUBDIRECCION DE REGISTRO INMOBILIARIO","WEB","CONSULTA",7,"PENDIENTE"]
[3761752021,"AREA DE ATENCION A LA CIUDADANIA","TELEFONO","DERECHO DE PETICION DE INTERES GENERAL",1,"GESTIONADOS"]
[3761852021,"AREA DE ATENCION A LA CIUDADANIA","ESCRITO","DERECHO DE PETICION DE INTERES PARTICULAR",1,"GESTIONADOS"]
[3761852021,"SUBDIRECCION ADMINISTRATIVA Y FINANCIERA","ESCRITO","DERECHO DE PETICION DE INTERES PARTICULAR",7,"PENDIENTE"]
[3761982021,"AREA DE ATENCION A LA CIUDADANIA","WEB","DERECHO DE PETICION DE INTERES PARTICULAR",1,"GESTIONADOS"]
[3762162021,"AREA DE ATENCION A LA CIUDADANIA","ESCRITO","DERECHO DE PETICION DE INTERES PARTICULAR",1,"GESTIONADOS"]
[3762162021,"SUBDIRECCION DE REGISTRO INMOBILIARIO","ESCRITO","DERECHO DE PETICION DE INTERES PARTICULAR",7,"PENDIENTE"]
[3762422021,"AREA DE ATENCION A LA CIUDADANIA","ESCRITO","SOLICITUD DE COPIA",1,"GESTIONADOS"]
[3762422021,"SUBDIRECCION DE REGISTRO INMOBILIARIO","ESCRITO","SOLICITUD DE COPIA",7,"PENDIENTE"]
[3762852021,"AREA DE ATENCION A LA CIUDADANIA","ESCRITO","DERECHO DE PETICION DE INTERES PARTICULAR",1,"GESTIONADOS"]
[3762852021,"SUBDIRECCION DE REGISTRO INMOBILIARIO","ESCRITO","DERECHO DE PETICION DE INTERES PARTICULAR",7,"PENDIENTE"]
[3763222021,"AREA DE ATENCION A LA CIUDADANIA","ESCRITO","DERECHO DE PETICION DE INTERES PARTICULAR",1,"GESTIONADOS"]
[3763222021,"SUBDIRECCION DE ADMINISTRACION INMOBILIARIA Y DE ESPACIO PUBLICO","ESCRITO","DERECHO DE PETICION DE INTERES PARTICULAR",7,"PENDIENTE"]
[3763352021,"AREA DE ATENCION A LA CIUDADANIA","TELEFONO","DERECHO DE PETICION DE INTERES GENERAL",1,"GESTIONADOS"]
[3763352021,"SUBDIRECCION DE ADMINISTRACION INMOBILIARIA Y DE ESPACIO PUBLICO","TELEFONO","DERECHO DE PETICION DE INTERES GENERAL",7,"PENDIENTE"]
[3763562021,"AREA DE ATENCION A LA CIUDADANIA","ESCRITO","DERECHO DE PETICION DE INTERES GENERAL",1,"GESTIONADOS"]
[3763562021,"SUBDIRECCION DE ADMINISTRACION INMOBILIARIA Y DE ESPACIO PUBLICO","ESCRITO","DERECHO DE PETICION DE INTERES GENERAL",4,"PENDIENTE"]
[3764802021,"AREA DE ATENCION A LA CIUDADANIA","WEB","DERECHO DE PETICION DE INTERES PARTICULAR",1,"GESTIONADOS"]
[3764802021,"SUBDIRECCION DE ADMINISTRACION INMOBILIARIA Y DE ESPACIO PUBLICO","WEB","DERECHO DE PETICION DE INTERES PARTICULAR",7,"PENDIENTE"]
[3765152021,"AREA DE ATENCION A LA CIUDADANIA","ESCRITO","DERECHO DE PETICION DE INTERES PARTICULAR",1,"GESTIONADOS"]
[3765152021,"SUBDIRECCION DE ADMINISTRACION INMOBILIARIA Y DE ESPACIO PUBLICO","ESCRITO","DERECHO DE PETICION DE INTERES PARTICULAR",7,"PENDIENTE"]
[3766172021,"AREA DE ATENCION A LA CIUDADANIA","ESCRITO","DERECHO DE PETICION DE INTERES PARTICULAR",1,"GESTIONADOS"]
[3766172021,"SUBDIRECCION DE REGISTRO INMOBILIARIO","ESCRITO","DERECHO DE PETICION DE INTERES PARTICULAR",7,"PENDIENTE"]
[3767512021,"AREA DE ATENCION A LA CIUDADANIA","ESCRITO","DERECHO DE PETICION DE INTERES PARTICULAR",1,"GESTIONADOS"]
[3767512021,"SUBDIRECCION DE REGISTRO INMOBILIARIO","ESCRITO","DERECHO DE PETICION DE INTERES PARTICULAR",7,"PENDIENTE"]
[3769072021,"AREA DE ATENCION A LA CIUDADANIA","TELEFONO","DERECHO DE PETICION DE INTERES GENERAL",1,"GESTIONADOS"]
[3769072021,"SUBDIRECCION DE ADMINISTRACION INMOBILIARIA Y DE ESPACIO PUBLICO","TELEFONO","DERECHO DE PETICION DE INTERES GENERAL",7,"PENDIENTE"]
[3770952021,"AREA DE ATENCION A LA CIUDADANIA","ESCRITO","DERECHO DE PETICION DE INTERES PARTICULAR",1,"GESTIONADOS"]
[3770952021,"SUBDIRECCION DE ADMINISTRACION INMOBILIARIA Y DE ESPACIO PUBLICO","ESCRITO","DERECHO DE PETICION DE INTERES PARTICULAR",7,"PENDIENTE"]
[3770972021,"AREA DE ATENCION A LA CIUDADANIA","ESCRITO","DERECHO DE PETICION DE INTERES PARTICULAR",1,"GESTIONADOS"]
[3770972021,"SUBDIRECCION DE ADMINISTRACION INMOBILIARIA Y DE ESPACIO PUBLICO","ESCRITO","DERECHO DE PETICION DE INTERES PARTICULAR",7,"PENDIENTE"]
[3770992021,"AREA DE ATENCION A LA CIUDADANIA","ESCRITO","DERECHO DE PETICION DE INTERES PARTICULAR",1,"GESTIONADOS"]
[3770992021,"SUBDIRECCION DE ADMINISTRACION INMOBILIARIA Y DE ESPACIO PUBLICO","ESCRITO","DERECHO DE PETICION DE INTERES PARTICULAR",7,"PENDIENTE"]
[3771002021,"AREA DE ATENCION A LA CIUDADANIA","ESCRITO","DERECHO DE PETICION DE INTERES PARTICULAR",1,"GESTIONADOS"]
[3771002021,"SUBDIRECCION DE ADMINISTRACION INMOBILIARIA Y DE ESPACIO PUBLICO","ESCRITO","DERECHO DE PETICION DE INTERES PARTICULAR",7,"PENDIENTE"]
[3771012021,"AREA DE ATENCION A LA CIUDADANIA","ESCRITO","DERECHO DE PETICION DE INTERES PARTICULAR",1,"GESTIONADOS"]
[3771012021,"SUBDIRECCION DE ADMINISTRACION INMOBILIARIA Y DE ESPACIO PUBLICO","ESCRITO","DERECHO DE PETICION DE INTERES PARTICULAR",7,"PENDIENTE"]
[3771022021,"AREA DE ATENCION A LA CIUDADANIA","ESCRITO","DERECHO DE PETICION DE INTERES PARTICULAR",1,"GESTIONADOS"]
[3771022021,"SUBDIRECCION DE REGISTRO INMOBILIARIO","ESCRITO","DERECHO DE PETICION DE INTERES PARTICULAR",7,"PENDIENTE"]
[3771032021,"AREA DE ATENCION A LA CIUDADANIA","ESCRITO","DERECHO DE PETICION DE INTERES PARTICULAR",1,"GESTIONADOS"]
[3771032021,"SUBDIRECCION DE ADMINISTRACION INMOBILIARIA Y DE ESPACIO PUBLICO","ESCRITO","DERECHO DE PETICION DE INTERES PARTICULAR",7,"PENDIENTE"]
[3771042021,"AREA DE ATENCION A LA CIUDADANIA","ESCRITO","DERECHO DE PETICION DE INTERES PARTICULAR",1,"GESTIONADOS"]
[3771042021,"SUBDIRECCION DE REGISTRO INMOBILIARIO","ESCRITO","DERECHO DE PETICION DE INTERES PARTICULAR",7,"PENDIENTE"]
[3771062021,"AREA DE ATENCION A LA CIUDADANIA","ESCRITO","DERECHO DE PETICION DE INTERES PARTICULAR",1,"GESTIONADOS"]
[3771062021,"SUBDIRECCION DE ADMINISTRACION INMOBILIARIA Y DE ESPACIO PUBLICO","ESCRITO","DERECHO DE PETICION DE INTERES PARTICULAR",7,"PENDIENTE"]
[3771072021,"AREA DE ATENCION A LA CIUDADANIA","ESCRITO","DERECHO DE PETICION DE INTERES PARTICULAR",1,"GESTIONADOS"]
[3771072021,"SUBDIRECCION DE ADMINISTRACION INMOBILIARIA Y DE ESPACIO PUBLICO","ESCRITO","DERECHO DE PETICION DE INTERES PARTICULAR",7,"PENDIENTE"]
[3772052021,"AREA DE ATENCION A LA CIUDADANIA","TELEFONO","DERECHO DE PETICION DE INTERES GENERAL",1,"GESTIONADOS"]
[3772052021,"SUBDIRECCION DE ADMINISTRACION INMOBILIARIA Y DE ESPACIO PUBLICO","TELEFONO","DERECHO DE PETICION DE INTERES GENERAL",7,"PENDIENTE"]
[3772072021,"AREA DE ATENCION A LA CIUDADANIA","WEB","QUEJA",1,"GESTIONADOS"]
[3772092021,"AREA DE ATENCION A LA CIUDADANIA","WEB","QUEJA",2,"GESTIONADOS"]
[3772112021,"AREA DE ATENCION A LA CIUDADANIA","WEB","QUEJA",1,"GESTIONADOS"]
[3772362021,"AREA DE ATENCION A LA CIUDADANIA","TELEFONO","DERECHO DE PETICION DE INTERES GENERAL",1,"GESTIONADOS"]
[3772462021,"AREA DE ATENCION A LA CIUDADANIA","WEB","QUEJA",2,"GESTIONADOS"]
[3772902021,"AREA DE ATENCION A LA CIUDADANIA","TELEFONO","DERECHO DE PETICION DE INTERES GENERAL",1,"GESTIONADOS"]
[3773062021,"AREA DE ATENCION A LA CIUDADANIA","WEB","RECLAMO",2,"GESTIONADOS"]
[3773242021,"AREA DE ATENCION A LA CIUDADANIA","WEB","DERECHO DE PETICION DE INTERES GENERAL",1,"GESTIONADOS"]
[3773562021,"AREA DE ATENCION A LA CIUDADANIA","WEB","QUEJA",1,"GESTIONADOS"]
[3774422021,"AREA DE ATENCION A LA CIUDADANIA","WEB","RECLAMO",1,"GESTIONADOS"]
[3775562021,"AREA DE ATENCION A LA CIUDADANIA","TELEFONO","QUEJA",1,"GESTIONADOS"]
[3775712021,"AREA DE ATENCION A LA CIUDADANIA","WEB","DERECHO DE PETICION DE INTERES GENERAL",1,"GESTIONADOS"]
[3775712021,"SUBDIRECCION DE ADMINISTRACION INMOBILIARIA Y DE ESPACIO PUBLICO","WEB","DERECHO DE PETICION DE INTERES GENERAL",7,"PENDIENTE"]
[3776972021,"AREA DE ATENCION A LA CIUDADANIA","WEB","QUEJA",1,"GESTIONADOS"]
[3777622021,"AREA DE ATENCION A LA CIUDADANIA","WEB","DERECHO DE PETICION DE INTERES GENERAL",1,"GESTIONADOS"]
[3777622021,"SUBDIRECCION DE ADMINISTRACION INMOBILIARIA Y DE ESPACIO PUBLICO","WEB","DERECHO DE PETICION DE INTERES GENERAL",6,"PENDIENTE"]
[3778922021,"AREA DE ATENCION A LA CIUDADANIA","WEB","DERECHO DE PETICION DE INTERES PARTICULAR",6,"PENDIENTE"]
[3779382021,"AREA DE ATENCION A LA CIUDADANIA","E-MAIL","DERECHO DE PETICION DE INTERES PARTICULAR",1,"GESTIONADOS"]
[3781872021,"AREA DE ATENCION A LA CIUDADANIA","WEB","DERECHO DE PETICION DE INTERES GENERAL",1,"GESTIONADOS"]
[3781872021,"SUBDIRECCION DE ADMINISTRACION INMOBILIARIA Y DE ESPACIO PUBLICO","WEB","DERECHO DE PETICION DE INTERES GENERAL",4,"PENDIENTE"]
[3782902021,"AREA DE ATENCION A LA CIUDADANIA","WEB","DERECHO DE PETICION DE INTERES PARTICULAR",1,"GESTIONADOS"]
[3782902021,"SUBDIRECCION DE ADMINISTRACION INMOBILIARIA Y DE ESPACIO PUBLICO","WEB","DERECHO DE PETICION DE INTERES PARTICULAR",6,"PENDIENTE"]
[3783892021,"AREA DE ATENCION A LA CIUDADANIA","WEB","DERECHO DE PETICION DE INTERES GENERAL",1,"GESTIONADOS"]
[3783922021,"AREA DE ATENCION A LA CIUDADANIA","ESCRITO","DERECHO DE PETICION DE INTERES GENERAL",1,"GESTIONADOS"]
[3783922021,"SUBDIRECCION DE REGISTRO INMOBILIARIO","ESCRITO","DERECHO DE PETICION DE INTERES GENERAL",4,"PENDIENTE"]
[3784742021,"AREA DE ATENCION A LA CIUDADANIA","ESCRITO","DERECHO DE PETICION DE INTERES PARTICULAR",1,"GESTIONADOS"]
[3784742021,"DESPACHO","ESCRITO","DERECHO DE PETICION DE INTERES PARTICULAR",6,"GESTIONADOS"]
[3784822021,"AREA DE ATENCION A LA CIUDADANIA","ESCRITO","DERECHO DE PETICION DE INTERES PARTICULAR",1,"GESTIONADOS"]
[3784822021,"SUBDIRECCION DE ADMINISTRACION INMOBILIARIA Y DE ESPACIO PUBLICO","ESCRITO","DERECHO DE PETICION DE INTERES PARTICULAR",6,"PENDIENTE"]
[3784902021,"AREA DE ATENCION A LA CIUDADANIA","ESCRITO","DERECHO DE PETICION DE INTERES PARTICULAR",1,"GESTIONADOS"]
[3784902021,"SUBDIRECCION DE ADMINISTRACION INMOBILIARIA Y DE ESPACIO PUBLICO","ESCRITO","DERECHO DE PETICION DE INTERES PARTICULAR",6,"PENDIENTE"]
[3785132021,"AREA DE ATENCION A LA CIUDADANIA","ESCRITO","DERECHO DE PETICION DE INTERES PARTICULAR",1,"GESTIONADOS"]
[3785132021,"SUBDIRECCION DE ADMINISTRACION INMOBILIARIA Y DE ESPACIO PUBLICO","ESCRITO","DERECHO DE PETICION DE INTERES PARTICULAR",6,"PENDIENTE"]
[3785342021,"AREA DE ATENCION A LA CIUDADANIA","ESCRITO","DERECHO DE PETICION DE INTERES PARTICULAR",1,"GESTIONADOS"]
[3785342021,"SUBDIRECCION DE ADMINISTRACION INMOBILIARIA Y DE ESPACIO PUBLICO","ESCRITO","DERECHO DE PETICION DE INTERES PARTICULAR",6,"PENDIENTE"]
[3785562021,"AREA DE ATENCION A LA CIUDADANIA","ESCRITO","DERECHO DE PETICION DE INTERES PARTICULAR",1,"GESTIONADOS"]
[3785562021,"SUBDIRECCION DE REGISTRO INMOBILIARIO","ESCRITO","DERECHO DE PETICION DE INTERES PARTICULAR",6,"PENDIENTE"]
[3785962021,"AREA DE ATENCION A LA CIUDADANIA","WEB","CONSULTA",1,"GESTIONADOS"]
[3785962021,"SUBDIRECCION DE REGISTRO INMOBILIARIO","WEB","CONSULTA",6,"PENDIENTE"]
[3786512021,"AREA DE ATENCION A LA CIUDADANIA","WEB","QUEJA",1,"GESTIONADOS"]
[3786672021,"AREA DE ATENCION A LA CIUDADANIA","WEB","DERECHO DE PETICION DE INTERES GENERAL",1,"GESTIONADOS"]
[3786912021,"AREA DE ATENCION A LA CIUDADANIA","ESCRITO","DERECHO DE PETICION DE INTERES PARTICULAR",1,"GESTIONADOS"]
[3786912021,"SUBDIRECCION DE ADMINISTRACION INMOBILIARIA Y DE ESPACIO PUBLICO","ESCRITO","DERECHO DE PETICION DE INTERES PARTICULAR",6,"PENDIENTE"]
[3786962021,"AREA DE ATENCION A LA CIUDADANIA","ESCRITO","DERECHO DE PETICION DE INTERES PARTICULAR",1,"GESTIONADOS"]
[3786962021,"SUBDIRECCION DE ADMINISTRACION INMOBILIARIA Y DE ESPACIO PUBLICO","ESCRITO","DERECHO DE PETICION DE INTERES PARTICULAR",6,"PENDIENTE"]
[3786982021,"AREA DE ATENCION A LA CIUDADANIA","ESCRITO","DERECHO DE PETICION DE INTERES PARTICULAR",1,"GESTIONADOS"]
[3786982021,"SUBDIRECCION DE ADMINISTRACION INMOBILIARIA Y DE ESPACIO PUBLICO","ESCRITO","DERECHO DE PETICION DE INTERES PARTICULAR",6,"PENDIENTE"]
[3787082021,"AREA DE ATENCION A LA CIUDADANIA","ESCRITO","DERECHO DE PETICION DE INTERES PARTICULAR",1,"GESTIONADOS"]
[3787082021,"SUBDIRECCION DE ADMINISTRACION INMOBILIARIA Y DE ESPACIO PUBLICO","ESCRITO","DERECHO DE PETICION DE INTERES PARTICULAR",6,"PENDIENTE"]
[3787102021,"AREA DE ATENCION A LA CIUDADANIA","ESCRITO","DERECHO DE PETICION DE INTERES PARTICULAR",1,"GESTIONADOS"]
[3787102021,"SUBDIRECCION DE ADMINISTRACION INMOBILIARIA Y DE ESPACIO PUBLICO","ESCRITO","DERECHO DE PETICION DE INTERES PARTICULAR",6,"PENDIENTE"]
[3787962021,"AREA DE ATENCION A LA CIUDADANIA","ESCRITO","DERECHO DE PETICION DE INTERES PARTICULAR",1,"GESTIONADOS"]
[3787962021,"SUBDIRECCION DE ADMINISTRACION INMOBILIARIA Y DE ESPACIO PUBLICO","ESCRITO","DERECHO DE PETICION DE INTERES PARTICULAR",6,"PENDIENTE"]
[3788052021,"AREA DE ATENCION A LA CIUDADANIA","ESCRITO","DERECHO DE PETICION DE INTERES PARTICULAR",1,"GESTIONADOS"]
[3788052021,"SUBDIRECCION DE ADMINISTRACION INMOBILIARIA Y DE ESPACIO PUBLICO","ESCRITO","DERECHO DE PETICION DE INTERES PARTICULAR",6,"PENDIENTE"]
[3788712021,"AREA DE ATENCION A LA CIUDADANIA","WEB","DERECHO DE PETICION DE INTERES PARTICULAR",1,"GESTIONADOS"]
[3788712021,"SUBDIRECCION DE REGISTRO INMOBILIARIO","WEB","DERECHO DE PETICION DE INTERES PARTICULAR",6,"PENDIENTE"]
[3789152021,"AREA DE ATENCION A LA CIUDADANIA","WEB","DERECHO DE PETICION DE INTERES PARTICULAR",1,"GESTIONADOS"]
[3789152021,"SUBDIRECCION DE ADMINISTRACION INMOBILIARIA Y DE ESPACIO PUBLICO","WEB","DERECHO DE PETICION DE INTERES PARTICULAR",6,"PENDIENTE"]
[3789172021,"AREA DE ATENCION A LA CIUDADANIA","WEB","DERECHO DE PETICION DE INTERES PARTICULAR",1,"GESTIONADOS"]
[3789172021,"SUBDIRECCION DE ADMINISTRACION INMOBILIARIA Y DE ESPACIO PUBLICO","WEB","DERECHO DE PETICION DE INTERES PARTICULAR",5,"PENDIENTE"]
[3789212021,"AREA DE ATENCION A LA CIUDADANIA","WEB","DERECHO DE PETICION DE INTERES PARTICULAR",1,"GESTIONADOS"]
[3789212021,"SUBDIRECCION DE ADMINISTRACION INMOBILIARIA Y DE ESPACIO PUBLICO","WEB","DERECHO DE PETICION DE INTERES PARTICULAR",5,"PENDIENTE"]
[3791212021,"AREA DE ATENCION A LA CIUDADANIA","WEB","QUEJA",1,"GESTIONADOS"]
[3791862021,"AREA DE ATENCION A LA CIUDADANIA","WEB","DERECHO DE PETICION DE INTERES PARTICULAR",1,"GESTIONADOS"]
[3791922021,"AREA DE ATENCION A LA CIUDADANIA","WEB","DERECHO DE PETICION DE INTERES PARTICULAR",1,"GESTIONADOS"]
[3792432021,"AREA DE ATENCION A LA CIUDADANIA","WEB","CONSULTA",1,"GESTIONADOS"]
[3793702021,"AREA DE ATENCION A LA CIUDADANIA","WEB","DERECHO DE PETICION DE INTERES GENERAL",1,"GESTIONADOS"]
[3795802021,"AREA DE ATENCION A LA CIUDADANIA","WEB","DERECHO DE PETICION DE INTERES PARTICULAR",1,"GESTIONADOS"]
[3795802021,"SUBDIRECCION DE ADMINISTRACION INMOBILIARIA Y DE ESPACIO PUBLICO","WEB","DERECHO DE PETICION DE INTERES PARTICULAR",5,"PENDIENTE"]
[3802172021,"AREA DE ATENCION A LA CIUDADANIA","ESCRITO","DERECHO DE PETICION DE INTERES PARTICULAR",1,"GESTIONADOS"]
[3802172021,"SUBDIRECCION DE ADMINISTRACION INMOBILIARIA Y DE ESPACIO PUBLICO","ESCRITO","DERECHO DE PETICION DE INTERES PARTICULAR",5,"PENDIENTE"]
[3802522021,"AREA DE ATENCION A LA CIUDADANIA","ESCRITO","DERECHO DE PETICION DE INTERES PARTICULAR",1,"GESTIONADOS"]
[3802522021,"SUBDIRECCION DE ADMINISTRACION INMOBILIARIA Y DE ESPACIO PUBLICO","ESCRITO","DERECHO DE PETICION DE INTERES PARTICULAR",5,"PENDIENTE"]
[3802562021,"AREA DE ATENCION A LA CIUDADANIA","ESCRITO","DERECHO DE PETICION DE INTERES PARTICULAR",1,"GESTIONADOS"]
[3802562021,"SUBDIRECCION DE REGISTRO INMOBILIARIO","ESCRITO","DERECHO DE PETICION DE INTERES PARTICULAR",5,"PENDIENTE"]
[3802622021,"AREA DE ATENCION A LA CIUDADANIA","ESCRITO","DERECHO DE PETICION DE INTERES PARTICULAR",1,"GESTIONADOS"]
[3802622021,"DESPACHO","ESCRITO","DERECHO DE PETICION DE INTERES PARTICULAR",5,"GESTIONADOS"]
[3802622021,"SUBDIRECCION DE ADMINISTRACION INMOBILIARIA Y DE ESPACIO PUBLICO","ESCRITO","DERECHO DE PETICION DE INTERES PARTICULAR",5,"PENDIENTE"]
[3802722021,"AREA DE ATENCION A LA CIUDADANIA","ESCRITO","DERECHO DE PETICION DE INTERES GENERAL",1,"GESTIONADOS"]
[3803742021,"AREA DE ATENCION A LA CIUDADANIA","TELEFONO","DERECHO DE PETICION DE INTERES GENERAL",1,"GESTIONADOS"]
[3804322021,"AREA DE ATENCION A LA CIUDADANIA","WEB","DERECHO DE PETICION DE INTERES GENERAL",1,"GESTIONADOS"]
[3805132021,"AREA DE ATENCION A LA CIUDADANIA","WEB","CONSULTA",1,"GESTIONADOS"]
[3805132021,"SUBDIRECCION DE REGISTRO INMOBILIARIO","WEB","CONSULTA",5,"PENDIENTE"]
[3806342021,"AREA DE ATENCION A LA CIUDADANIA","WEB","DERECHO DE PETICION DE INTERES PARTICULAR",1,"GESTIONADOS"]
[3806412021,"AREA DE ATENCION A LA CIUDADANIA","WEB","DERECHO DE PETICION DE INTERES PARTICULAR",1,"GESTIONADOS"]
[3806682021,"AREA DE ATENCION A LA CIUDADANIA","WEB","CONSULTA",1,"GESTIONADOS"]
[3806682021,"SUBDIRECCION DE REGISTRO INMOBILIARIO","WEB","CONSULTA",3,"PENDIENTE"]
[3807322021,"AREA DE ATENCION A LA CIUDADANIA","WEB","DERECHO DE PETICION DE INTERES GENERAL",1,"GESTIONADOS"]
[3807382021,"AREA DE ATENCION A LA CIUDADANIA","WEB","DERECHO DE PETICION DE INTERES GENERAL",1,"GESTIONADOS"]
[3809102021,"AREA DE ATENCION A LA CIUDADANIA","ESCRITO","DERECHO DE PETICION DE INTERES PARTICULAR",1,"GESTIONADOS"]
[3809102021,"SUBDIRECCION DE ADMINISTRACION INMOBILIARIA Y DE ESPACIO PUBLICO","ESCRITO","DERECHO DE PETICION DE INTERES PARTICULAR",5,"PENDIENTE"]
[3809182021,"AREA DE ATENCION A LA CIUDADANIA","ESCRITO","DERECHO DE PETICION DE INTERES PARTICULAR",1,"GESTIONADOS"]
[3809182021,"SUBDIRECCION DE ADMINISTRACION INMOBILIARIA Y DE ESPACIO PUBLICO","ESCRITO","DERECHO DE PETICION DE INTERES PARTICULAR",5,"PENDIENTE"]
[3809212021,"AREA DE ATENCION A LA CIUDADANIA","ESCRITO","DERECHO DE PETICION DE INTERES PARTICULAR",1,"GESTIONADOS"]
[3809212021,"SUBDIRECCION DE ADMINISTRACION INMOBILIARIA Y DE ESPACIO PUBLICO","ESCRITO","DERECHO DE PETICION DE INTERES PARTICULAR",5,"PENDIENTE"]
[3809872021,"AREA DE ATENCION A LA CIUDADANIA","WEB","QUEJA",1,"GESTIONADOS"]
[3812052021,"AREA DE ATENCION A LA CIUDADANIA","WEB","DERECHO DE PETICION DE INTERES PARTICULAR",1,"GESTIONADOS"]
[3812232021,"AREA DE ATENCION A LA CIUDADANIA","TELEFONO","DERECHO DE PETICION DE INTERES GENERAL",1,"GESTIONADOS"]
[3812352021,"AREA DE ATENCION A LA CIUDADANIA","WEB","DERECHO DE PETICION DE INTERES PARTICULAR",1,"GESTIONADOS"]
[3812352021,"SUBDIRECCION DE ADMINISTRACION INMOBILIARIA Y DE ESPACIO PUBLICO","WEB","DERECHO DE PETICION DE INTERES PARTICULAR",4,"PENDIENTE"]
[3812402021,"AREA DE ATENCION A LA CIUDADANIA","WEB","DERECHO DE PETICION DE INTERES GENERAL",4,"PENDIENTE"]
[3814382021,"AREA DE ATENCION A LA CIUDADANIA","ESCRITO","DERECHO DE PETICION DE INTERES PARTICULAR",1,"GESTIONADOS"]
[3814382021,"SUBDIRECCION DE ADMINISTRACION INMOBILIARIA Y DE ESPACIO PUBLICO","ESCRITO","DERECHO DE PETICION DE INTERES PARTICULAR",4,"PENDIENTE"]
[3814562021,"AREA DE ATENCION A LA CIUDADANIA","ESCRITO","DERECHO DE PETICION DE INTERES PARTICULAR",1,"GESTIONADOS"]
[3814562021,"SUBDIRECCION DE ADMINISTRACION INMOBILIARIA Y DE ESPACIO PUBLICO","ESCRITO","DERECHO DE PETICION DE INTERES PARTICULAR",4,"PENDIENTE"]
[3815042021,"AREA DE ATENCION A LA CIUDADANIA","WEB","DERECHO DE PETICION DE INTERES PARTICULAR",1,"GESTIONADOS"]
[3815122021,"AREA DE ATENCION A LA CIUDADANIA","WEB","DERECHO DE PETICION DE INTERES GENERAL",1,"GESTIONADOS"]
[3815122021,"SUBDIRECCION DE ADMINISTRACION INMOBILIARIA Y DE ESPACIO PUBLICO","WEB","DERECHO DE PETICION DE INTERES GENERAL",4,"PENDIENTE"]
[3816212021,"AREA DE ATENCION A LA CIUDADANIA","WEB","DERECHO DE PETICION DE INTERES PARTICULAR",1,"GESTIONADOS"]
[3816212021,"SUBDIRECCION DE REGISTRO INMOBILIARIO","WEB","DERECHO DE PETICION DE INTERES PARTICULAR",4,"PENDIENTE"]
[3817502021,"AREA DE ATENCION A LA CIUDADANIA","E-MAIL","DERECHO DE PETICION DE INTERES PARTICULAR",1,"GESTIONADOS"]
[3818182021,"AREA DE ATENCION A LA CIUDADANIA","ESCRITO","DERECHO DE PETICION DE INTERES PARTICULAR",1,"GESTIONADOS"]
[3818182021,"SUBDIRECCION DE REGISTRO INMOBILIARIO","ESCRITO","DERECHO DE PETICION DE INTERES PARTICULAR",4,"PENDIENTE"]
[3818512021,"AREA DE ATENCION A LA CIUDADANIA","ESCRITO","SOLICITUD DE COPIA",1,"GESTIONADOS"]
[3818512021,"SUBDIRECCION DE ADMINISTRACION INMOBILIARIA Y DE ESPACIO PUBLICO","ESCRITO","SOLICITUD DE COPIA",4,"PENDIENTE"]
[3821992021,"AREA DE ATENCION A LA CIUDADANIA","ESCRITO","DERECHO DE PETICION DE INTERES PARTICULAR",1,"GESTIONADOS"]
[3821992021,"SUBDIRECCION DE ADMINISTRACION INMOBILIARIA Y DE ESPACIO PUBLICO","ESCRITO","DERECHO DE PETICION DE INTERES PARTICULAR",4,"PENDIENTE"]
[3825062021,"AREA DE ATENCION A LA CIUDADANIA","ESCRITO","DERECHO DE PETICION DE INTERES PARTICULAR",1,"GESTIONADOS"]
[3825062021,"SUBDIRECCION DE REGISTRO INMOBILIARIO","ESCRITO","DERECHO DE PETICION DE INTERES PARTICULAR",4,"PENDIENTE"]
[3826732021,"AREA DE ATENCION A LA CIUDADANIA","WEB","DERECHO DE PETICION DE INTERES PARTICULAR",1,"GESTIONADOS"]
[3826732021,"SUBDIRECCION DE REGISTRO INMOBILIARIO","WEB","DERECHO DE PETICION DE INTERES PARTICULAR",3,"PENDIENTE"]
[3827352021,"AREA DE ATENCION A LA CIUDADANIA","WEB","DERECHO DE PETICION DE INTERES PARTICULAR",1,"GESTIONADOS"]
[3833972021,"AREA DE ATENCION A LA CIUDADANIA","ESCRITO","DERECHO DE PETICION DE INTERES PARTICULAR",1,"GESTIONADOS"]
[3833972021,"SUBDIRECCION DE ADMINISTRACION INMOBILIARIA Y DE ESPACIO PUBLICO","ESCRITO","DERECHO DE PETICION DE INTERES PARTICULAR",3,"PENDIENTE"]
[3834092021,"AREA DE ATENCION A LA CIUDADANIA","ESCRITO","DERECHO DE PETICION DE INTERES PARTICULAR",1,"GESTIONADOS"]
[3834092021,"SUBDIRECCION DE ADMINISTRACION INMOBILIARIA Y DE ESPACIO PUBLICO","ESCRITO","DERECHO DE PETICION DE INTERES PARTICULAR",3,"PENDIENTE"]
[3834242021,"AREA DE ATENCION A LA CIUDADANIA","ESCRITO","DERECHO DE PETICION DE INTERES PARTICULAR",1,"GESTIONADOS"]
[3834242021,"OFICINA ASESORA JURIDICA","ESCRITO","DERECHO DE PETICION DE INTERES PARTICULAR",3,"GESTIONADOS"]
[3834242021,"SUBDIRECCION DE ADMINISTRACION INMOBILIARIA Y DE ESPACIO PUBLICO","ESCRITO","DERECHO DE PETICION DE INTERES PARTICULAR",3,"PENDIENTE"]
[3834772021,"AREA DE ATENCION A LA CIUDADANIA","ESCRITO","DERECHO DE PETICION DE INTERES PARTICULAR",1,"GESTIONADOS"]
[3834772021,"SUBDIRECCION DE ADMINISTRACION INMOBILIARIA Y DE ESPACIO PUBLICO","ESCRITO","DERECHO DE PETICION DE INTERES PARTICULAR",3,"PENDIENTE"]
[3837202021,"AREA DE ATENCION A LA CIUDADANIA","ESCRITO","DERECHO DE PETICION DE INTERES PARTICULAR",1,"GESTIONADOS"]
[3837202021,"SUBDIRECCION DE ADMINISTRACION INMOBILIARIA Y DE ESPACIO PUBLICO","ESCRITO","DERECHO DE PETICION DE INTERES PARTICULAR",3,"PENDIENTE"]
[3837262021,"AREA DE ATENCION A LA CIUDADANIA","ESCRITO","DERECHO DE PETICION DE INTERES PARTICULAR",1,"GESTIONADOS"]
[3837262021,"SUBDIRECCION DE ADMINISTRACION INMOBILIARIA Y DE ESPACIO PUBLICO","ESCRITO","DERECHO DE PETICION DE INTERES PARTICULAR",3,"PENDIENTE"]
[3837642021,"AREA DE ATENCION A LA CIUDADANIA","E-MAIL","DERECHO DE PETICION DE INTERES PARTICULAR",1,"GESTIONADOS"]
[3837642021,"OFICINA ASESORA JURIDICA","E-MAIL","DERECHO DE PETICION DE INTERES PARTICULAR",1,"PENDIENTE"]
[3838592021,"AREA DE ATENCION A LA CIUDADANIA","ESCRITO","DERECHO DE PETICION DE INTERES PARTICULAR",1,"GESTIONADOS"]
[3838592021,"SUBDIRECCION DE ADMINISTRACION INMOBILIARIA Y DE ESPACIO PUBLICO","ESCRITO","DERECHO DE PETICION DE INTERES PARTICULAR",3,"PENDIENTE"]
[3838672021,"AREA DE ATENCION A LA CIUDADANIA","ESCRITO","DERECHO DE PETICION DE INTERES PARTICULAR",1,"GESTIONADOS"]
[3838672021,"SUBDIRECCION DE REGISTRO INMOBILIARIO","ESCRITO","DERECHO DE PETICION DE INTERES PARTICULAR",3,"PENDIENTE"]
[3838932021,"AREA DE ATENCION A LA CIUDADANIA","WEB","DERECHO DE PETICION DE INTERES PARTICULAR",1,"GESTIONADOS"]
[3839302021,"AREA DE ATENCION A LA CIUDADANIA","ESCRITO","DERECHO DE PETICION DE INTERES PARTICULAR",1,"GESTIONADOS"]
[3839302021,"SUBDIRECCION DE REGISTRO INMOBILIARIO","ESCRITO","DERECHO DE PETICION DE INTERES PARTICULAR",3,"PENDIENTE"]
[3839382021,"AREA DE ATENCION A LA CIUDADANIA","ESCRITO","DERECHO DE PETICION DE INTERES PARTICULAR",1,"GESTIONADOS"]
[3839382021,"SUBDIRECCION DE ADMINISTRACION INMOBILIARIA Y DE ESPACIO PUBLICO","ESCRITO","DERECHO DE PETICION DE INTERES PARTICULAR",3,"PENDIENTE"]
[3839402021,"AREA DE ATENCION A LA CIUDADANIA","ESCRITO","DERECHO DE PETICION DE INTERES PARTICULAR",1,"GESTIONADOS"]
[3839402021,"SUBDIRECCION DE ADMINISTRACION INMOBILIARIA Y DE ESPACIO PUBLICO","ESCRITO","DERECHO DE PETICION DE INTERES PARTICULAR",3,"PENDIENTE"]
[3839422021,"AREA DE ATENCION A LA CIUDADANIA","ESCRITO","DERECHO DE PETICION DE INTERES PARTICULAR",1,"GESTIONADOS"]
[3839422021,"OFICINA ASESORA JURIDICA","ESCRITO","DERECHO DE PETICION DE INTERES PARTICULAR",3,"GESTIONADOS"]
[3839422021,"SUBDIRECCION DE ADMINISTRACION INMOBILIARIA Y DE ESPACIO PUBLICO","ESCRITO","DERECHO DE PETICION DE INTERES PARTICULAR",3,"PENDIENTE"]
[3839462021,"AREA DE ATENCION A LA CIUDADANIA","WEB","DERECHO DE PETICION DE INTERES PARTICULAR",1,"GESTIONADOS"]
[3840062021,"AREA DE ATENCION A LA CIUDADANIA","WEB","DERECHO DE PETICION DE INTERES GENERAL",1,"GESTIONADOS"]
[3843372021,"AREA DE ATENCION A LA CIUDADANIA","ESCRITO","DERECHO DE PETICION DE INTERES PARTICULAR",1,"GESTIONADOS"]
[3843372021,"SUBDIRECCION DE ADMINISTRACION INMOBILIARIA Y DE ESPACIO PUBLICO","ESCRITO","DERECHO DE PETICION DE INTERES PARTICULAR",2,"PENDIENTE"]
[3843532021,"AREA DE ATENCION A LA CIUDADANIA","ESCRITO","DERECHO DE PETICION DE INTERES PARTICULAR",1,"GESTIONADOS"]
[3843532021,"SUBDIRECCION DE ADMINISTRACION INMOBILIARIA Y DE ESPACIO PUBLICO","ESCRITO","DERECHO DE PETICION DE INTERES PARTICULAR",2,"PENDIENTE"]
[3843622021,"AREA DE ATENCION A LA CIUDADANIA","ESCRITO","DERECHO DE PETICION DE INTERES PARTICULAR",1,"GESTIONADOS"]
[3843622021,"SUBDIRECCION DE REGISTRO INMOBILIARIO","ESCRITO","DERECHO DE PETICION DE INTERES PARTICULAR",2,"PENDIENTE"]
[3843872021,"AREA DE ATENCION A LA CIUDADANIA","ESCRITO","DERECHO DE PETICION DE INTERES PARTICULAR",1,"GESTIONADOS"]
[3843872021,"SUBDIRECCION DE REGISTRO INMOBILIARIO","ESCRITO","DERECHO DE PETICION DE INTERES PARTICULAR",1,"PENDIENTE"]
[3843882021,"AREA DE ATENCION A LA CIUDADANIA","ESCRITO","DERECHO DE PETICION DE INTERES PARTICULAR",1,"GESTIONADOS"]
[3843882021,"SUBDIRECCION DE ADMINISTRACION INMOBILIARIA Y DE ESPACIO PUBLICO","ESCRITO","DERECHO DE PETICION DE INTERES PARTICULAR",2,"PENDIENTE"]
[3848182021,"AREA DE ATENCION A LA CIUDADANIA","WEB","SOLICITUD DE ACCESO A LA INFORMACION",1,"PENDIENTE"]
[3848402021,"AREA DE ATENCION A LA CIUDADANIA","ESCRITO","DERECHO DE PETICION DE INTERES PARTICULAR",1,"GESTIONADOS"]
[3848402021,"SUBDIRECCION DE REGISTRO INMOBILIARIO","ESCRITO","DERECHO DE PETICION DE INTERES PARTICULAR",2,"PENDIENTE"]
[3848822021,"AREA DE ATENCION A LA CIUDADANIA","ESCRITO","SOLICITUD DE ACCESO A LA INFORMACION",1,"PENDIENTE"]
[3850592021,"AREA DE ATENCION A LA CIUDADANIA","TELEFONO","DERECHO DE PETICION DE INTERES GENERAL",1,"GESTIONADOS"]
[3851562021,"AREA DE ATENCION A LA CIUDADANIA","WEB","DERECHO DE PETICION DE INTERES PARTICULAR",1,"GESTIONADOS"]
[3851882021,"AREA DE ATENCION A LA CIUDADANIA","WEB","DERECHO DE PETICION DE INTERES PARTICULAR",1,"GESTIONADOS"]
[3854622021,"AREA DE ATENCION A LA CIUDADANIA","WEB","DERECHO DE PETICION DE INTERES GENERAL",1,"GESTIONADOS"]
[3855162021,"AREA DE ATENCION A LA CIUDADANIA","WEB","DERECHO DE PETICION DE INTERES GENERAL",1,"GESTIONADOS"]
[3855272021,"AREA DE ATENCION A LA CIUDADANIA","WEB","DERECHO DE PETICION DE INTERES GENERAL",1,"GESTIONADOS"]
[3855272021,"OFICINA ASESORA JURIDICA","WEB","DERECHO DE PETICION DE INTERES GENERAL",2,"PENDIENTE"]
[3855632021,"AREA DE ATENCION A LA CIUDADANIA","WEB","DERECHO DE PETICION DE INTERES GENERAL",1,"GESTIONADOS"]
[3856272021,"AREA DE ATENCION A LA CIUDADANIA","WEB","DERECHO DE PETICION DE INTERES PARTICULAR",1,"GESTIONADOS"]
[3856272021,"SUBDIRECCION DE ADMINISTRACION INMOBILIARIA Y DE ESPACIO PUBLICO","WEB","DERECHO DE PETICION DE INTERES PARTICULAR",2,"PENDIENTE"]
[3856322021,"AREA DE ATENCION A LA CIUDADANIA","WEB","SOLICITUD DE COPIA",2,"GESTIONADOS"]
[3856382021,"AREA DE ATENCION A LA CIUDADANIA","WEB","SOLICITUD DE COPIA",1,"GESTIONADOS"]
[3856382021,"SUBDIRECCION DE REGISTRO INMOBILIARIO","WEB","SOLICITUD DE COPIA",2,"PENDIENTE"]
[3856422021,"AREA DE ATENCION A LA CIUDADANIA","WEB","DERECHO DE PETICION DE INTERES GENERAL",1,"GESTIONADOS"]
[3857352021,"AREA DE ATENCION A LA CIUDADANIA","WEB","DERECHO DE PETICION DE INTERES PARTICULAR",1,"GESTIONADOS"]
[3858142021,"AREA DE ATENCION A LA CIUDADANIA","WEB","DERECHO DE PETICION DE INTERES GENERAL",1,"GESTIONADOS"]
[3858142021,"SUBDIRECCION DE ADMINISTRACION INMOBILIARIA Y DE ESPACIO PUBLICO","WEB","DERECHO DE PETICION DE INTERES GENERAL",1,"PENDIENTE"]
[3858452021,"SUBDIRECCION ADMINISTRATIVA  FINANCIERA Y DE CONTROL DISCIPLINARIO","WEB","DENUNCIA POR ACTOS DE CORRUPCION",2,"PENDIENTE"]
[3858592021,"AREA DE ATENCION A LA CIUDADANIA","WEB","DERECHO DE PETICION DE INTERES GENERAL",1,"GESTIONADOS"]
[3859892021,"AREA DE ATENCION A LA CIUDADANIA","WEB","QUEJA",1,"GESTIONADOS"]
[3859992021,"AREA DE ATENCION A LA CIUDADANIA","WEB","QUEJA",1,"GESTIONADOS"]
[3866452021,"AREA DE ATENCION A LA CIUDADANIA","WEB","DERECHO DE PETICION DE INTERES PARTICULAR",1,"GESTIONADOS"]
[3866452021,"SUBDIRECCION DE ADMINISTRACION INMOBILIARIA Y DE ESPACIO PUBLICO","WEB","DERECHO DE PETICION DE INTERES PARTICULAR",1,"PENDIENTE"]
[3866482021,"AREA DE ATENCION A LA CIUDADANIA","WEB","CONSULTA",1,"GESTIONADOS"]
[3866482021,"SUBDIRECCION DE REGISTRO INMOBILIARIO","WEB","CONSULTA",1,"PENDIENTE"]
[3866872021,"AREA DE ATENCION A LA CIUDADANIA","WEB","QUEJA",1,"GESTIONADOS"]
[3868482021,"AREA DE ATENCION A LA CIUDADANIA","WEB","QUEJA",1,"GESTIONADOS"]
[3868592021,"AREA DE ATENCION A LA CIUDADANIA","ESCRITO","DERECHO DE PETICION DE INTERES PARTICULAR",1,"GESTIONADOS"]
[3868592021,"SUBDIRECCION DE ADMINISTRACION INMOBILIARIA Y DE ESPACIO PUBLICO","ESCRITO","DERECHO DE PETICION DE INTERES PARTICULAR",1,"PENDIENTE"]
[3868692021,"AREA DE ATENCION A LA CIUDADANIA","ESCRITO","DERECHO DE PETICION DE INTERES PARTICULAR",1,"GESTIONADOS"]
[3868692021,"SUBDIRECCION DE ADMINISTRACION INMOBILIARIA Y DE ESPACIO PUBLICO","ESCRITO","DERECHO DE PETICION DE INTERES PARTICULAR",1,"PENDIENTE"]
[3868842021,"AREA DE ATENCION A LA CIUDADANIA","ESCRITO","DERECHO DE PETICION DE INTERES PARTICULAR",1,"GESTIONADOS"]
[3868842021,"SUBDIRECCION DE REGISTRO INMOBILIARIO","ESCRITO","DERECHO DE PETICION DE INTERES PARTICULAR",1,"PENDIENTE"]
[3869072021,"AREA DE ATENCION A LA CIUDADANIA","ESCRITO","DERECHO DE PETICION DE INTERES PARTICULAR",1,"GESTIONADOS"]
[3869072021,"SUBDIRECCION DE ADMINISTRACION INMOBILIARIA Y DE ESPACIO PUBLICO","ESCRITO","DERECHO DE PETICION DE INTERES PARTICULAR",1,"PENDIENTE"]
[3869182021,"AREA DE ATENCION A LA CIUDADANIA","ESCRITO","DERECHO DE PETICION DE INTERES PARTICULAR",1,"GESTIONADOS"]
[3869182021,"SUBDIRECCION DE ADMINISTRACION INMOBILIARIA Y DE ESPACIO PUBLICO","ESCRITO","DERECHO DE PETICION DE INTERES PARTICULAR",1,"PENDIENTE"]
[3869252021,"AREA DE ATENCION A LA CIUDADANIA","ESCRITO","DERECHO DE PETICION DE INTERES PARTICULAR",1,"GESTIONADOS"]
[3869252021,"SUBDIRECCION DE REGISTRO INMOBILIARIO","ESCRITO","DERECHO DE PETICION DE INTERES PARTICULAR",1,"PENDIENTE"]
[3869452021,"AREA DE ATENCION A LA CIUDADANIA","ESCRITO","DERECHO DE PETICION DE INTERES PARTICULAR",1,"GESTIONADOS"]
[3869452021,"SUBDIRECCION DE ADMINISTRACION INMOBILIARIA Y DE ESPACIO PUBLICO","ESCRITO","DERECHO DE PETICION DE INTERES PARTICULAR",1,"PENDIENTE"]
[3869772021,"AREA DE ATENCION A LA CIUDADANIA","ESCRITO","DERECHO DE PETICION DE INTERES PARTICULAR",1,"GESTIONADOS"]
[3869772021,"SUBDIRECCION DE REGISTRO INMOBILIARIO","ESCRITO","DERECHO DE PETICION DE INTERES PARTICULAR",1,"PENDIENTE"]
[3869922021,"AREA DE ATENCION A LA CIUDADANIA","ESCRITO","DERECHO DE PETICION DE INTERES PARTICULAR",1,"GESTIONADOS"]
[3869922021,"SUBDIRECCION DE ADMINISTRACION INMOBILIARIA Y DE ESPACIO PUBLICO","ESCRITO","DERECHO DE PETICION DE INTERES PARTICULAR",1,"PENDIENTE"]
[3870122021,"AREA DE ATENCION A LA CIUDADANIA","ESCRITO","DERECHO DE PETICION DE INTERES PARTICULAR",1,"GESTIONADOS"]
[3870122021,"SUBDIRECCION DE ADMINISTRACION INMOBILIARIA Y DE ESPACIO PUBLICO","ESCRITO","DERECHO DE PETICION DE INTERES PARTICULAR",1,"PENDIENTE"]
[3870222021,"AREA DE ATENCION A LA CIUDADANIA","WEB","DERECHO DE PETICION DE INTERES GENERAL",1,"GESTIONADOS"]
[3871422021,"AREA DE ATENCION A LA CIUDADANIA","WEB","DERECHO DE PETICION DE INTERES GENERAL",1,"GESTIONADOS"]
[3877572021,"AREA DE ATENCION A LA CIUDADANIA","WEB","DERECHO DE PETICION DE INTERES GENERAL",1,"PENDIENTE"]
[3878552021,"AREA DE ATENCION A LA CIUDADANIA","PRESENCIAL","DERECHO DE PETICION DE INTERES GENERAL",1,"GESTIONADOS"]
[3878552021,"SUBDIRECCION DE ADMINISTRACION INMOBILIARIA Y DE ESPACIO PUBLICO","PRESENCIAL","DERECHO DE PETICION DE INTERES GENERAL",1,"PENDIENTE"]
[3881742021,"AREA DE ATENCION A LA CIUDADANIA","E-MAIL","DERECHO DE PETICION DE INTERES PARTICULAR",1,"GESTIONADOS"]
[3881742021,"SUBDIRECCION DE ADMINISTRACION INMOBILIARIA Y DE ESPACIO PUBLICO","E-MAIL","DERECHO DE PETICION DE INTERES PARTICULAR",1,"PENDIENTE"]
[3882002021,"AREA DE ATENCION A LA CIUDADANIA","ESCRITO","DERECHO DE PETICION DE INTERES PARTICULAR",1,"GESTIONADOS"]
[3882002021,"SUBDIRECCION DE ADMINISTRACION INMOBILIARIA Y DE ESPACIO PUBLICO","ESCRITO","DERECHO DE PETICION DE INTERES PARTICULAR",1,"PENDIENTE"]
[3882072021,"AREA DE ATENCION A LA CIUDADANIA","ESCRITO","DERECHO DE PETICION DE INTERES PARTICULAR",1,"GESTIONADOS"]
[3882072021,"SUBDIRECCION DE ADMINISTRACION INMOBILIARIA Y DE ESPACIO PUBLICO","ESCRITO","DERECHO DE PETICION DE INTERES PARTICULAR",1,"PENDIENTE"]
[3882182021,"AREA DE ATENCION A LA CIUDADANIA","ESCRITO","DERECHO DE PETICION DE INTERES PARTICULAR",1,"GESTIONADOS"]
[3882182021,"SUBDIRECCION DE ADMINISTRACION INMOBILIARIA Y DE ESPACIO PUBLICO","ESCRITO","DERECHO DE PETICION DE INTERES PARTICULAR",1,"PENDIENTE"]
[3882242021,"AREA DE ATENCION A LA CIUDADANIA","ESCRITO","DERECHO DE PETICION DE INTERES PARTICULAR",1,"GESTIONADOS"]
[3882242021,"SUBDIRECCION DE REGISTRO INMOBILIARIO","ESCRITO","DERECHO DE PETICION DE INTERES PARTICULAR",1,"PENDIENTE"]
[3882632021,"AREA DE ATENCION A LA CIUDADANIA","WEB","QUEJA",1,"GESTIONADOS"]
[3885232021,"AREA DE ATENCION A LA CIUDADANIA","WEB","DERECHO DE PETICION DE INTERES PARTICULAR",1,"GESTIONADOS"]
[3885392021,"AREA DE ATENCION A LA CIUDADANIA","WEB","DERECHO DE PETICION DE INTERES GENERAL",1,"GESTIONADOS"]
[3885522021,"AREA DE ATENCION A LA CIUDADANIA","WEB","RECLAMO",1,"PENDIENTE"]
[3885622021,"AREA DE ATENCION A LA CIUDADANIA","WEB","QUEJA",1,"GESTIONADOS"]
[3887162021,"AREA DE ATENCION A LA CIUDADANIA","ESCRITO","DERECHO DE PETICION DE INTERES PARTICULAR",1,"GESTIONADOS"]
[3887162021,"SUBDIRECCION DE ADMINISTRACION INMOBILIARIA Y DE ESPACIO PUBLICO","ESCRITO","DERECHO DE PETICION DE INTERES PARTICULAR",1,"PENDIENTE"]
[3887392021,"AREA DE ATENCION A LA CIUDADANIA","ESCRITO","DERECHO DE PETICION DE INTERES PARTICULAR",1,"GESTIONADOS"]
[3887392021,"SUBDIRECCION DE ADMINISTRACION INMOBILIARIA Y DE ESPACIO PUBLICO","ESCRITO","DERECHO DE PETICION DE INTERES PARTICULAR",1,"PENDIENTE"]
[3888452021,"AREA DE ATENCION A LA CIUDADANIA","WEB","QUEJA",1,"GESTIONADOS"]
[3888592021,"AREA DE ATENCION A LA CIUDADANIA","WEB","DERECHO DE PETICION DE INTERES PARTICULAR",1,"GESTIONADOS"]
[3889502021,"SUBDIRECCION ADMINISTRATIVA  FINANCIERA Y DE CONTROL DISCIPLINARIO","WEB","DENUNCIA POR ACTOS DE CORRUPCION",1,"PENDIENTE"]
[3889552021,"AREA DE ATENCION A LA CIUDADANIA","WEB","QUEJA",1,"PENDIENTE"]
[3889622021,"AREA DE ATENCION A LA CIUDADANIA","WEB","QUEJA",1,"PENDIENTE"]
[3889642021,"AREA DE ATENCION A LA CIUDADANIA","WEB","QUEJA",1,"PENDIENTE"]
[]
["TRASLADOS"]
["Número petición\nNumero de registro en el Sistema","Dependencia:\nNombre asociado al usuario que tiene a cargo la petición ","Canal:\nNombre del canal parametrizado en el sistema por el cual fue registrada la petición","Tipología actualizada: \nTipo de documento utilizado por la entidad","Traslado a otras Entidades: \nPeticiones que por competencia son trasladadas a otras entidades.","Entidad Destino","Estado del Requerimiento\n \"Gestionado\" o \"Pendiente\" de respuesta definitiva por  parte de la Defensoría del Espacio Público o de las entidades competentes"]
["Número petición","Dependencia","Canal","Estado petición final","Entidad que recibe","Tipo reporte"]
[2998262021,"SUBDIRECCION DE ADMINISTRACION INMOBILIARIA Y DE ESPACIO PUBLICO","ESCRITO","Solucionado - Por traslado","CODENSA","GESTIONADOS"]
[3057872021,"SUBDIRECCION DE ADMINISTRACION INMOBILIARIA Y DE ESPACIO PUBLICO","WEB","Solucionado - Por traslado","SECRETARIA DE GOBIERNO","GESTIONADOS"]
[3067332021,"SUBDIRECCION DE ADMINISTRACION INMOBILIARIA Y DE ESPACIO PUBLICO","ESCRITO","Solucionado - Por traslado","SECRETARIA DE GOBIERNO","GESTIONADOS"]
[3067362021,"SUBDIRECCION DE ADMINISTRACION INMOBILIARIA Y DE ESPACIO PUBLICO","ESCRITO","Solucionado - Por traslado","SECRETARIA DE GOBIERNO","GESTIONADOS"]
[3067402021,"SUBDIRECCION DE ADMINISTRACION INMOBILIARIA Y DE ESPACIO PUBLICO","ESCRITO","Solucionado - Por traslado","SECRETARIA DE GOBIERNO","GESTIONADOS"]
[3067802021,"SUBDIRECCION DE ADMINISTRACION INMOBILIARIA Y DE ESPACIO PUBLICO","ESCRITO","Solucionado - Por traslado","IDARTES - INSTITUTO DE LAS ARTES","GESTIONADOS"]
[3071972021,"SUBDIRECCION DE ADMINISTRACION INMOBILIARIA Y DE ESPACIO PUBLICO","ESCRITO","Solucionado - Por traslado","IDU","GESTIONADOS"]
[3074602021,"SUBDIRECCION DE ADMINISTRACION INMOBILIARIA Y DE ESPACIO PUBLICO","WEB","Solucionado - Por traslado","SECRETARIA DE PLANEACION","GESTIONADOS"]
[3085172021,"SUBDIRECCION DE ADMINISTRACION INMOBILIARIA Y DE ESPACIO PUBLICO","WEB","Solucionado - Por traslado","SECRETARIA DE GOBIERNO","GESTIONADOS"]
[3086572021,"AREA DE ATENCION A LA CIUDADANIA","WEB","Solucionado - Por traslado","SECRETARIA DE GOBIERNO","GESTIONADOS"]
[3086962021,"SUBDIRECCION DE ADMINISTRACION INMOBILIARIA Y DE ESPACIO PUBLICO","WEB","Solucionado - Por traslado","SECRETARIA DE GOBIERNO","GESTIONADOS"]
[3090522021,"SUBDIRECCION DE ADMINISTRACION INMOBILIARIA Y DE ESPACIO PUBLICO","WEB","Solucionado - Por traslado","SECRETARIA DE GOBIERNO","GESTIONADOS"]
[3090862021,"SUBDIRECCION DE ADMINISTRACION INMOBILIARIA Y DE ESPACIO PUBLICO","WEB","Solucionado - Por traslado","SECRETARIA DE GOBIERNO","GESTIONADOS"]
[3091092021,"SUBDIRECCION DE ADMINISTRACION INMOBILIARIA Y DE ESPACIO PUBLICO","WEB","Solucionado - Por traslado","JBB - JARDIN BOTANICO","GESTIONADOS"]
[3097292021,"SUBDIRECCION DE ADMINISTRACION INMOBILIARIA Y DE ESPACIO PUBLICO","ESCRITO","Solucionado - Por traslado","IDPAC","GESTIONADOS"]
[3097332021,"SUBDIRECCION DE ADMINISTRACION INMOBILIARIA Y DE ESPACIO PUBLICO","ESCRITO","Solucionado - Por traslado","SECRETARIA DE GOBIERNO","GESTIONADOS"]
[3097432021,"SUBDIRECCION DE ADMINISTRACION INMOBILIARIA Y DE ESPACIO PUBLICO","ESCRITO","Solucionado - Por traslado","IDPAC","GESTIONADOS"]
[3100742021,"SUBDIRECCION DE ADMINISTRACION INMOBILIARIA Y DE ESPACIO PUBLICO","WEB","Solucionado - Por traslado","SECRETARIA DE INTEGRACION SOCIAL","GESTIONADOS"]
[3115712021,"SUBDIRECCION DE ADMINISTRACION INMOBILIARIA Y DE ESPACIO PUBLICO","WEB","Solucionado - Por traslado","SECRETARIA DE GOBIERNO","GESTIONADOS"]
[3118262021,"SUBDIRECCION DE ADMINISTRACION INMOBILIARIA Y DE ESPACIO PUBLICO","WEB","Solucionado - Por traslado","SECRETARIA MOVILIDAD","GESTIONADOS"]
[3118442021,"SUBDIRECCION DE ADMINISTRACION INMOBILIARIA Y DE ESPACIO PUBLICO","ESCRITO","Solucionado - Por traslado","SECRETARIA MOVILIDAD","GESTIONADOS"]
[3119852021,"SUBDIRECCION DE ADMINISTRACION INMOBILIARIA Y DE ESPACIO PUBLICO","WEB","Solucionado - Por traslado","SECRETARIA DE GOBIERNO","GESTIONADOS"]
[3122132021,"SUBDIRECCION DE ADMINISTRACION INMOBILIARIA Y DE ESPACIO PUBLICO","WEB","Solucionado - Por traslado","SECRETARIA DE GOBIERNO","GESTIONADOS"]
[3125892021,"SUBDIRECCION DE ADMINISTRACION INMOBILIARIA Y DE ESPACIO PUBLICO","ESCRITO","Solucionado - Por traslado","IPES","GESTIONADOS"]
[3126202021,"SUBDIRECCION DE ADMINISTRACION INMOBILIARIA Y DE ESPACIO PUBLICO","ESCRITO","Solucionado - Por traslado","SECRETARIA DE GOBIERNO","GESTIONADOS"]
[3126302021,"SUBDIRECCION DE ADMINISTRACION INMOBILIARIA Y DE ESPACIO PUBLICO","ESCRITO","Solucionado - Por traslado","IDRD","GESTIONADOS"]
[3126852021,"SUBDIRECCION DE ADMINISTRACION INMOBILIARIA Y DE ESPACIO PUBLICO","ESCRITO","Solucionado - Por traslado","CODENSA","GESTIONADOS"]
[3128382021,"SUBDIRECCION DE ADMINISTRACION INMOBILIARIA Y DE ESPACIO PUBLICO","WEB","Solucionado - Por traslado","SECRETARIA DE GOBIERNO","GESTIONADOS"]
[3129282021,"SUBDIRECCION DE ADMINISTRACION INMOBILIARIA Y DE ESPACIO PUBLICO","ESCRITO","Solucionado - Por traslado","SECRETARIA DE GOBIERNO","GESTIONADOS"]
[3129992021,"SUBDIRECCION DE ADMINISTRACION INMOBILIARIA Y DE ESPACIO PUBLICO","WEB","Solucionado - Por traslado","SECRETARIA DE GOBIERNO","GESTIONADOS"]
[3130412021,"SUBDIRECCION DE ADMINISTRACION INMOBILIARIA Y DE ESPACIO PUBLICO","ESCRITO","Solucionado - Por traslado","SECRETARIA DE GOBIERNO","GESTIONADOS"]
[3131602021,"SUBDIRECCION DE ADMINISTRACION INMOBILIARIA Y DE ESPACIO PUBLICO","ESCRITO","Solucionado - Por traslado","SECRETARIA DE DESARROLLO ECONOMICO","GESTIONADOS"]
[3132302021,"SUBDIRECCION DE ADMINISTRACION INMOBILIARIA Y DE ESPACIO PUBLICO","ESCRITO","Solucionado - Por traslado","SECRETARIA DE GOBIERNO","GESTIONADOS"]
[3133822021,"SUBDIRECCION DE ADMINISTRACION INMOBILIARIA Y DE ESPACIO PUBLICO","WEB","Solucionado - Por traslado","SECRETARIA DE GOBIERNO","GESTIONADOS"]
[3149492021,"SUBDIRECCION DE ADMINISTRACION INMOBILIARIA Y DE ESPACIO PUBLICO","WEB","Solucionado - Por traslado","SECRETARIA DE GOBIERNO","GESTIONADOS"]
[3150272021,"SUBDIRECCION DE ADMINISTRACION INMOBILIARIA Y DE ESPACIO PUBLICO","WEB","Solucionado - Por traslado","SECRETARIA DE GOBIERNO","GESTIONADOS"]
[3150282021,"AREA DE ATENCION A LA CIUDADANIA","WEB","Solucionado - Por traslado","UMV - UNIDAD DE MANTENIMIENTO VIAL","GESTIONADOS"]
[3152802021,"SUBDIRECCION DE ADMINISTRACION INMOBILIARIA Y DE ESPACIO PUBLICO","WEB","Solucionado - Por traslado","SECRETARIA DE GOBIERNO","GESTIONADOS"]
[3157132021,"SUBDIRECCION DE ADMINISTRACION INMOBILIARIA Y DE ESPACIO PUBLICO","ESCRITO","Solucionado - Por traslado","IDU","GESTIONADOS"]
[3157152021,"SUBDIRECCION DE ADMINISTRACION INMOBILIARIA Y DE ESPACIO PUBLICO","ESCRITO","Solucionado - Por traslado","IDPAC","GESTIONADOS"]
[3160972021,"SUBDIRECCION DE ADMINISTRACION INMOBILIARIA Y DE ESPACIO PUBLICO","WEB","Solucionado - Por traslado","IPES","GESTIONADOS"]
[3162702021,"SUBDIRECCION DE ADMINISTRACION INMOBILIARIA Y DE ESPACIO PUBLICO","WEB","Solucionado - Por traslado","IPES","GESTIONADOS"]
[3163562021,"SUBDIRECCION DE ADMINISTRACION INMOBILIARIA Y DE ESPACIO PUBLICO","WEB","Solucionado - Por traslado","SECRETARIA DE GOBIERNO","GESTIONADOS"]
[3171232021,"SUBDIRECCION DE ADMINISTRACION INMOBILIARIA Y DE ESPACIO PUBLICO","WEB","Solucionado - Por traslado","SECRETARIA DE GOBIERNO","GESTIONADOS"]
[3178682021,"SUBDIRECCION DE ADMINISTRACION INMOBILIARIA Y DE ESPACIO PUBLICO","WEB","Solucionado - Por traslado","SECRETARIA DE GOBIERNO","GESTIONADOS"]
[3179292021,"SUBDIRECCION DE ADMINISTRACION INMOBILIARIA Y DE ESPACIO PUBLICO","WEB","Solucionado - Por traslado","SECRETARIA MOVILIDAD","GESTIONADOS"]
[3179942021,"SUBDIRECCION DE ADMINISTRACION INMOBILIARIA Y DE ESPACIO PUBLICO","WEB","Solucionado - Por traslado","SECRETARIA DE GOBIERNO","GESTIONADOS"]
[3182672021,"SUBDIRECCION DE ADMINISTRACION INMOBILIARIA Y DE ESPACIO PUBLICO","WEB","Solucionado - Por traslado","IPES","GESTIONADOS"]
[3184432021,"SUBDIRECCION DE ADMINISTRACION INMOBILIARIA Y DE ESPACIO PUBLICO","WEB","Solucionado - Por traslado","SECRETARIA DE GOBIERNO","GESTIONADOS"]
[3185162021,"SUBDIRECCION DE ADMINISTRACION INMOBILIARIA Y DE ESPACIO PUBLICO","ESCRITO","Solucionado - Por traslado","IDRD","GESTIONADOS"]
[3186402021,"SUBDIRECCION DE ADMINISTRACION INMOBILIARIA Y DE ESPACIO PUBLICO","WEB","Solucionado - Por traslado","SECRETARIA DE GOBIERNO","GESTIONADOS"]
[3187682021,"SUBDIRECCION DE ADMINISTRACION INMOBILIARIA Y DE ESPACIO PUBLICO","ESCRITO","Solucionado - Por traslado","ACUEDUCTO - EAAB-ESP","GESTIONADOS"]
[3187852021,"SUBDIRECCION DE ADMINISTRACION INMOBILIARIA Y DE ESPACIO PUBLICO","ESCRITO","Solucionado - Por traslado","SECRETARIA DE GOBIERNO","GESTIONADOS"]
[3187912021,"SUBDIRECCION DE ADMINISTRACION INMOBILIARIA Y DE ESPACIO PUBLICO","ESCRITO","Solucionado - Por traslado","IDU","GESTIONADOS"]
[3188312021,"SUBDIRECCION DE ADMINISTRACION INMOBILIARIA Y DE ESPACIO PUBLICO","ESCRITO","Solucionado - Por traslado","IDRD","GESTIONADOS"]
[3191382021,"SUBDIRECCION DE ADMINISTRACION INMOBILIARIA Y DE ESPACIO PUBLICO","ESCRITO","Solucionado - Por traslado","PERSONERIA DE BOGOTA","GESTIONADOS"]
[3191582021,"SUBDIRECCION DE ADMINISTRACION INMOBILIARIA Y DE ESPACIO PUBLICO","ESCRITO","Solucionado - Por traslado","SECRETARIA DE GOBIERNO","GESTIONADOS"]
[3192772021,"AREA DE ATENCION A LA CIUDADANIA","E-MAIL","Solucionado - Por traslado","CATASTRO","GESTIONADOS"]
[3194262021,"SUBDIRECCION DE ADMINISTRACION INMOBILIARIA Y DE ESPACIO PUBLICO","E-MAIL","Solucionado - Por traslado","SECRETARIA DE GOBIERNO","GESTIONADOS"]
[3200582021,"SUBDIRECCION DE ADMINISTRACION INMOBILIARIA Y DE ESPACIO PUBLICO","ESCRITO","Solucionado - Por traslado","SECRETARIA DE GOBIERNO","GESTIONADOS"]
[3200702021,"SUBDIRECCION DE ADMINISTRACION INMOBILIARIA Y DE ESPACIO PUBLICO","ESCRITO","Solucionado - Por traslado","SECRETARIA DE GOBIERNO","GESTIONADOS"]
[3200852021,"SUBDIRECCION DE ADMINISTRACION INMOBILIARIA Y DE ESPACIO PUBLICO","ESCRITO","Solucionado - Por traslado","IDPAC","GESTIONADOS"]
[3202812021,"SUBDIRECCION DE ADMINISTRACION INMOBILIARIA Y DE ESPACIO PUBLICO","TELEFONO","Solucionado - Por traslado","SECRETARIA DE GOBIERNO","GESTIONADOS"]
[3210172021,"SUBDIRECCION DE ADMINISTRACION INMOBILIARIA Y DE ESPACIO PUBLICO","WEB","Solucionado - Por traslado","SECRETARIA DE GOBIERNO","GESTIONADOS"]
[3218592021,"SUBDIRECCION DE ADMINISTRACION INMOBILIARIA Y DE ESPACIO PUBLICO","ESCRITO","Solucionado - Por traslado","SECRETARIA MOVILIDAD","GESTIONADOS"]
[3218772021,"SUBDIRECCION DE ADMINISTRACION INMOBILIARIA Y DE ESPACIO PUBLICO","ESCRITO","Solucionado - Por traslado","IPES","GESTIONADOS"]
[3222812021,"SUBDIRECCION DE ADMINISTRACION INMOBILIARIA Y DE ESPACIO PUBLICO","E-MAIL","Solucionado - Por traslado","SECRETARIA MOVILIDAD","GESTIONADOS"]
[3223612021,"SUBDIRECCION DE ADMINISTRACION INMOBILIARIA Y DE ESPACIO PUBLICO","ESCRITO","Solucionado - Por traslado","SECRETARIA DE PLANEACION","GESTIONADOS"]
[3224062021,"SUBDIRECCION DE ADMINISTRACION INMOBILIARIA Y DE ESPACIO PUBLICO","ESCRITO","Solucionado - Por traslado","SECRETARIA DE GOBIERNO","GESTIONADOS"]
[3224952021,"SUBDIRECCION DE ADMINISTRACION INMOBILIARIA Y DE ESPACIO PUBLICO","WEB","Solucionado - Por traslado","IDRD","GESTIONADOS"]
[3230872021,"SUBDIRECCION DE REGISTRO INMOBILIARIO","ESCRITO","Solucionado - Por traslado","SECRETARIA DE PLANEACION","GESTIONADOS"]
[3230892021,"SUBDIRECCION DE ADMINISTRACION INMOBILIARIA Y DE ESPACIO PUBLICO","ESCRITO","Solucionado - Por traslado","SECRETARIA DE GOBIERNO","GESTIONADOS"]
[3231132021,"SUBDIRECCION DE ADMINISTRACION INMOBILIARIA Y DE ESPACIO PUBLICO","ESCRITO","Solucionado - Por traslado","IDPC","GESTIONADOS"]
[3231642021,"SUBDIRECCION DE ADMINISTRACION INMOBILIARIA Y DE ESPACIO PUBLICO","ESCRITO","Solucionado - Por traslado","CONCEJO DE BOGOTA","GESTIONADOS"]
[3234622021,"SUBDIRECCION DE ADMINISTRACION INMOBILIARIA Y DE ESPACIO PUBLICO","TELEFONO","Solucionado - Por traslado","SECRETARIA MOVILIDAD","GESTIONADOS"]
[3243162021,"SUBDIRECCION DE ADMINISTRACION INMOBILIARIA Y DE ESPACIO PUBLICO","WEB","Solucionado - Por traslado","SECRETARIA MOVILIDAD","GESTIONADOS"]
[3250092021,"SUBDIRECCION DE ADMINISTRACION INMOBILIARIA Y DE ESPACIO PUBLICO","ESCRITO","Solucionado - Por traslado","IDU","GESTIONADOS"]
[3250182021,"SUBDIRECCION DE ADMINISTRACION INMOBILIARIA Y DE ESPACIO PUBLICO","ESCRITO","Solucionado - Por traslado","IDRD","GESTIONADOS"]
[3251122021,"SUBDIRECCION DE ADMINISTRACION INMOBILIARIA Y DE ESPACIO PUBLICO","ESCRITO","Solucionado - Por traslado","SECRETARIA DE GOBIERNO","GESTIONADOS"]
[3253582021,"SUBDIRECCION DE ADMINISTRACION INMOBILIARIA Y DE ESPACIO PUBLICO","ESCRITO","Solucionado - Por traslado","SECRETARIA DE GOBIERNO","GESTIONADOS"]
[3260632021,"SUBDIRECCION DE ADMINISTRACION INMOBILIARIA Y DE ESPACIO PUBLICO","WEB","Solucionado - Por traslado","SECRETARIA DE GOBIERNO","GESTIONADOS"]
[3261342021,"SUBDIRECCION DE ADMINISTRACION INMOBILIARIA Y DE ESPACIO PUBLICO","WEB","Solucionado - Por traslado","IDPYBA","GESTIONADOS"]
[3263632021,"SUBDIRECCION DE ADMINISTRACION INMOBILIARIA Y DE ESPACIO PUBLICO","WEB","Solucionado - Por traslado","SECRETARIA DE GOBIERNO","GESTIONADOS"]
[3264652021,"SUBDIRECCION DE ADMINISTRACION INMOBILIARIA Y DE ESPACIO PUBLICO","WEB","Solucionado - Por traslado","SECRETARIA DE GOBIERNO","GESTIONADOS"]
[3264892021,"SUBDIRECCION DE ADMINISTRACION INMOBILIARIA Y DE ESPACIO PUBLICO","WEB","Solucionado - Por traslado","SECRETARIA DE GOBIERNO","GESTIONADOS"]
[3273412021,"SUBDIRECCION DE ADMINISTRACION INMOBILIARIA Y DE ESPACIO PUBLICO","ESCRITO","Solucionado - Por traslado","SECRETARIA DE GOBIERNO","GESTIONADOS"]
[3281132021,"AREA DE ATENCION A LA CIUDADANIA","ESCRITO","Solucionado - Por traslado","CATASTRO","GESTIONADOS"]
[3282232021,"SUBDIRECCION DE ADMINISTRACION INMOBILIARIA Y DE ESPACIO PUBLICO","ESCRITO","Solucionado - Por traslado","SECRETARIA DE GOBIERNO","GESTIONADOS"]
[3287602021,"SUBDIRECCION DE ADMINISTRACION INMOBILIARIA Y DE ESPACIO PUBLICO","ESCRITO","Solucionado - Por traslado","IDPAC","GESTIONADOS"]
[3287812021,"AREA DE ATENCION A LA CIUDADANIA","ESCRITO","Solucionado - Por traslado","IDRD","GESTIONADOS"]
[3287982021,"SUBDIRECCION DE ADMINISTRACION INMOBILIARIA Y DE ESPACIO PUBLICO","ESCRITO","Solucionado - Por traslado","IDU","GESTIONADOS"]
[3288412021,"SUBDIRECCION DE ADMINISTRACION INMOBILIARIA Y DE ESPACIO PUBLICO","ESCRITO","Solucionado - Por traslado","SECRETARIA DE GOBIERNO","GESTIONADOS"]
[3288592021,"SUBDIRECCION DE ADMINISTRACION INMOBILIARIA Y DE ESPACIO PUBLICO","ESCRITO","Solucionado - Por traslado","SECRETARIA DE GOBIERNO","GESTIONADOS"]
[3288962021,"SUBDIRECCION DE ADMINISTRACION INMOBILIARIA Y DE ESPACIO PUBLICO","ESCRITO","Solucionado - Por traslado","SECRETARIA DE GOBIERNO","GESTIONADOS"]
[3289562021,"SUBDIRECCION DE ADMINISTRACION INMOBILIARIA Y DE ESPACIO PUBLICO","ESCRITO","Solucionado - Por traslado","IDPAC","GESTIONADOS"]
[3290232021,"SUBDIRECCION DE ADMINISTRACION INMOBILIARIA Y DE ESPACIO PUBLICO","ESCRITO","Solucionado - Por traslado","IDRD","GESTIONADOS"]
[3290672021,"SUBDIRECCION DE ADMINISTRACION INMOBILIARIA Y DE ESPACIO PUBLICO","ESCRITO","Solucionado - Por traslado","IPES","GESTIONADOS"]
[3292992021,"SUBDIRECCION DE ADMINISTRACION INMOBILIARIA Y DE ESPACIO PUBLICO","ESCRITO","Solucionado - Por traslado","SECRETARIA MOVILIDAD","GESTIONADOS"]
[3305732021,"SUBDIRECCION DE ADMINISTRACION INMOBILIARIA Y DE ESPACIO PUBLICO","ESCRITO","Solucionado - Por traslado","SECRETARIA MOVILIDAD","GESTIONADOS"]
[3307752021,"SUBDIRECCION DE ADMINISTRACION INMOBILIARIA Y DE ESPACIO PUBLICO","ESCRITO","Solucionado - Por traslado","IDU","GESTIONADOS"]
[3307892021,"SUBDIRECCION DE ADMINISTRACION INMOBILIARIA Y DE ESPACIO PUBLICO","ESCRITO","Solucionado - Por traslado","IDPAC","GESTIONADOS"]
[3308982021,"SUBDIRECCION DE ADMINISTRACION INMOBILIARIA Y DE ESPACIO PUBLICO","WEB","Solucionado - Por traslado","SECRETARIA DE GOBIERNO","GESTIONADOS"]
[3309282021,"SUBDIRECCION DE ADMINISTRACION INMOBILIARIA Y DE ESPACIO PUBLICO","E-MAIL","Solucionado - Por traslado","SECRETARIA DE GOBIERNO","GESTIONADOS"]
[3309312021,"SUBDIRECCION DE ADMINISTRACION INMOBILIARIA Y DE ESPACIO PUBLICO","WEB","Solucionado - Por traslado","SECRETARIA DE GOBIERNO","GESTIONADOS"]
[3309432021,"SUBDIRECCION DE ADMINISTRACION INMOBILIARIA Y DE ESPACIO PUBLICO","ESCRITO","Solucionado - Por traslado","UAESP","GESTIONADOS"]
[3309862021,"SUBDIRECCION DE ADMINISTRACION INMOBILIARIA Y DE ESPACIO PUBLICO","WEB","Solucionado - Por traslado","SECRETARIA DE GOBIERNO","GESTIONADOS"]
[3310012021,"SUBDIRECCION DE ADMINISTRACION INMOBILIARIA Y DE ESPACIO PUBLICO","WEB","Solucionado - Por traslado","SECRETARIA DE GOBIERNO","GESTIONADOS"]
[3310062021,"SUBDIRECCION DE ADMINISTRACION INMOBILIARIA Y DE ESPACIO PUBLICO","WEB","Solucionado - Por traslado","SECRETARIA DE GOBIERNO","GESTIONADOS"]
[3311152021,"SUBDIRECCION DE ADMINISTRACION INMOBILIARIA Y DE ESPACIO PUBLICO","E-MAIL","Solucionado - Por traslado","IDRD","GESTIONADOS"]
[3311292021,"SUBDIRECCION DE ADMINISTRACION INMOBILIARIA Y DE ESPACIO PUBLICO","E-MAIL","Solucionado - Por traslado","LA TERMINAL DE TRANSPORTE","GESTIONADOS"]
[3311742021,"SUBDIRECCION DE ADMINISTRACION INMOBILIARIA Y DE ESPACIO PUBLICO","E-MAIL","Solucionado - Por traslado","IPES","GESTIONADOS"]
[3311892021,"SUBDIRECCION DE ADMINISTRACION INMOBILIARIA Y DE ESPACIO PUBLICO","E-MAIL","Solucionado - Por traslado","IPES","GESTIONADOS"]
[3312292021,"SUBDIRECCION DE ADMINISTRACION INMOBILIARIA Y DE ESPACIO PUBLICO","E-MAIL","Solucionado - Por traslado","SECRETARIA DE GOBIERNO","GESTIONADOS"]
[3312602021,"SUBDIRECCION DE REGISTRO INMOBILIARIO","ESCRITO","Solucionado - Por traslado","SECRETARIA DE PLANEACION","GESTIONADOS"]
[3313422021,"SUBDIRECCION DE ADMINISTRACION INMOBILIARIA Y DE ESPACIO PUBLICO","WEB","Solucionado - Por traslado","IPES","GESTIONADOS"]
[3313642021,"SUBDIRECCION DE ADMINISTRACION INMOBILIARIA Y DE ESPACIO PUBLICO","ESCRITO","Solucionado - Por traslado","IDU","GESTIONADOS"]
[3313802021,"SUBDIRECCION DE ADMINISTRACION INMOBILIARIA Y DE ESPACIO PUBLICO","ESCRITO","Solucionado - Por traslado","IPES","GESTIONADOS"]
[3318982021,"SUBDIRECCION DE ADMINISTRACION INMOBILIARIA Y DE ESPACIO PUBLICO","ESCRITO","Solucionado - Por traslado","SECRETARIA DE GOBIERNO","GESTIONADOS"]
[3322502021,"SUBDIRECCION DE ADMINISTRACION INMOBILIARIA Y DE ESPACIO PUBLICO","TELEFONO","Solucionado - Por traslado","IPES","GESTIONADOS"]
[3326832021,"SUBDIRECCION DE ADMINISTRACION INMOBILIARIA Y DE ESPACIO PUBLICO","ESCRITO","Solucionado - Por traslado","SECRETARIA DE GOBIERNO","GESTIONADOS"]
[3328122021,"SUBDIRECCION DE ADMINISTRACION INMOBILIARIA Y DE ESPACIO PUBLICO","WEB","Solucionado - Por traslado","SECRETARIA DE GOBIERNO","GESTIONADOS"]
[3329502021,"SUBDIRECCION DE ADMINISTRACION INMOBILIARIA Y DE ESPACIO PUBLICO","ESCRITO","Solucionado - Por traslado","IDPAC","GESTIONADOS"]
[3338142021,"SUBDIRECCION DE ADMINISTRACION INMOBILIARIA Y DE ESPACIO PUBLICO","WEB","Solucionado - Por traslado","IDIGER","GESTIONADOS"]
[3338972021,"SUBDIRECCION DE ADMINISTRACION INMOBILIARIA Y DE ESPACIO PUBLICO","ESCRITO","Solucionado - Por traslado","SECRETARIA MOVILIDAD","GESTIONADOS"]
[3339572021,"SUBDIRECCION DE ADMINISTRACION INMOBILIARIA Y DE ESPACIO PUBLICO","WEB","Solucionado - Por traslado","CODENSA","GESTIONADOS"]
[3342412021,"SUBDIRECCION DE ADMINISTRACION INMOBILIARIA Y DE ESPACIO PUBLICO","ESCRITO","Solucionado - Por traslado","CODENSA","GESTIONADOS"]
[3344672021,"SUBDIRECCION DE ADMINISTRACION INMOBILIARIA Y DE ESPACIO PUBLICO","ESCRITO","Solucionado - Por traslado","IDRD","GESTIONADOS"]
[3345592021,"SUBDIRECCION DE ADMINISTRACION INMOBILIARIA Y DE ESPACIO PUBLICO","ESCRITO","Solucionado - Por traslado","SECRETARIA DE GOBIERNO","GESTIONADOS"]
[3345652021,"SUBDIRECCION DE ADMINISTRACION INMOBILIARIA Y DE ESPACIO PUBLICO","ESCRITO","Solucionado - Por traslado","SECRETARIA DE GOBIERNO","GESTIONADOS"]
[3348832021,"SUBDIRECCION DE ADMINISTRACION INMOBILIARIA Y DE ESPACIO PUBLICO","ESCRITO","Solucionado - Por traslado","SECRETARIA DE GOBIERNO","GESTIONADOS"]
[3349172021,"SUBDIRECCION DE ADMINISTRACION INMOBILIARIA Y DE ESPACIO PUBLICO","ESCRITO","Solucionado - Por traslado","IPES","GESTIONADOS"]
[3349312021,"SUBDIRECCION DE ADMINISTRACION INMOBILIARIA Y DE ESPACIO PUBLICO","ESCRITO","Solucionado - Por traslado","IPES","GESTIONADOS"]
[3356972021,"SUBDIRECCION DE ADMINISTRACION INMOBILIARIA Y DE ESPACIO PUBLICO","WEB","Solucionado - Por traslado","SECRETARIA MOVILIDAD","GESTIONADOS"]
[3358412021,"SUBDIRECCION DE ADMINISTRACION INMOBILIARIA Y DE ESPACIO PUBLICO","WEB","Solucionado - Por traslado","IDU","GESTIONADOS"]
[3361772021,"SUBDIRECCION DE ADMINISTRACION INMOBILIARIA Y DE ESPACIO PUBLICO","ESCRITO","Solucionado - Por traslado","IDU","GESTIONADOS"]
[3361962021,"SUBDIRECCION DE ADMINISTRACION INMOBILIARIA Y DE ESPACIO PUBLICO","ESCRITO","Solucionado - Por traslado","IDPAC","GESTIONADOS"]
[3362022021,"SUBDIRECCION DE ADMINISTRACION INMOBILIARIA Y DE ESPACIO PUBLICO","ESCRITO","Solucionado - Por traslado","SECRETARIA DE GOBIERNO","GESTIONADOS"]
[3368562021,"SUBDIRECCION DE ADMINISTRACION INMOBILIARIA Y DE ESPACIO PUBLICO","ESCRITO","Solucionado - Por traslado","IDU","GESTIONADOS"]
[3368922021,"SUBDIRECCION DE ADMINISTRACION INMOBILIARIA Y DE ESPACIO PUBLICO","ESCRITO","Solucionado - Por traslado","IDU","GESTIONADOS"]
[3369242021,"SUBDIRECCION DE ADMINISTRACION INMOBILIARIA Y DE ESPACIO PUBLICO","E-MAIL","Solucionado - Por traslado","SECRETARIA DE GOBIERNO","GESTIONADOS"]
[3371042021,"SUBDIRECCION DE ADMINISTRACION INMOBILIARIA Y DE ESPACIO PUBLICO","ESCRITO","Solucionado - Por traslado","IPES","GESTIONADOS"]
[3371552021,"SUBDIRECCION DE ADMINISTRACION INMOBILIARIA Y DE ESPACIO PUBLICO","ESCRITO","Solucionado - Por traslado","SECRETARIA DE GOBIERNO","GESTIONADOS"]
[3372262021,"SUBDIRECCION DE ADMINISTRACION INMOBILIARIA Y DE ESPACIO PUBLICO","ESCRITO","Solucionado - Por traslado","SECRETARIA DE GOBIERNO","GESTIONADOS"]
[3375112021,"SUBDIRECCION DE ADMINISTRACION INMOBILIARIA Y DE ESPACIO PUBLICO","ESCRITO","Solucionado - Por traslado","IDPAC","GESTIONADOS"]
[3376862021,"SUBDIRECCION DE ADMINISTRACION INMOBILIARIA Y DE ESPACIO PUBLICO","WEB","Solucionado - Por traslado","SECRETARIA DE GOBIERNO","GESTIONADOS"]
[3504512021,"AREA DE ATENCION A LA CIUDADANIA","WEB","Solucionado - Por traslado","SECRETARIA DE GOBIERNO","GESTIONADOS"]
[3532872021,"AREA DE ATENCION A LA CIUDADANIA","WEB","Solucionado - Por traslado","SECRETARIA DE GOBIERNO","GESTIONADOS"]
[3532972021,"AREA DE ATENCION A LA CIUDADANIA","WEB","Solucionado - Por traslado","SECRETARIA DE AMBIENTE","GESTIONADOS"]
[3535722021,"AREA DE ATENCION A LA CIUDADANIA","WEB","Solucionado - Por traslado","SECRETARIA DE GOBIERNO","GESTIONADOS"]
[3536552021,"AREA DE ATENCION A LA CIUDADANIA","TELEFONO","Solucionado - Por traslado","SECRETARIA DE GOBIERNO","GESTIONADOS"]
[3536722021,"AREA DE ATENCION A LA CIUDADANIA","WEB","Solucionado - Por traslado","SECRETARIA DE GOBIERNO","GESTIONADOS"]
[3536742021,"AREA DE ATENCION A LA CIUDADANIA","TELEFONO","Solucionado - Por traslado","SECRETARIA DE AMBIENTE","GESTIONADOS"]
[3537812021,"AREA DE ATENCION A LA CIUDADANIA","WEB","Solucionado - Por traslado","ACUEDUCTO - EAAB-ESP","GESTIONADOS"]
[3539262021,"AREA DE ATENCION A LA CIUDADANIA","WEB","Solucionado - Por traslado","SECRETARIA DE GOBIERNO","GESTIONADOS"]
[3542642021,"AREA DE ATENCION A LA CIUDADANIA","WEB","Solucionado - Por traslado","SECRETARIA DE AMBIENTE","GESTIONADOS"]
[3544612021,"AREA DE ATENCION A LA CIUDADANIA","TELEFONO","Solucionado - Por traslado","SECRETARIA DE GOBIERNO","GESTIONADOS"]
[3545152021,"AREA DE ATENCION A LA CIUDADANIA","WEB","Solucionado - Por traslado","SECRETARIA DE GOBIERNO","GESTIONADOS"]
[3545772021,"AREA DE ATENCION A LA CIUDADANIA","TELEFONO","Solucionado - Por traslado","SECRETARIA MOVILIDAD","GESTIONADOS"]
[3552452021,"AREA DE ATENCION A LA CIUDADANIA","TELEFONO","Solucionado por asignar - Trasladar","CATASTRO","GESTIONADOS"]
[3555922021,"AREA DE ATENCION A LA CIUDADANIA","WEB","Solucionado - Por traslado","SECRETARIA DE GOBIERNO","GESTIONADOS"]
[3556912021,"AREA DE ATENCION A LA CIUDADANIA","WEB","Solucionado - Por traslado","SECRETARIA DE AMBIENTE","GESTIONADOS"]
[3558322021,"AREA DE ATENCION A LA CIUDADANIA","WEB","Solucionado - Por traslado","SECRETARIA DE AMBIENTE","GESTIONADOS"]
[3566902021,"AREA DE ATENCION A LA CIUDADANIA","WEB","Solucionado - Por traslado","SECRETARIA DE AMBIENTE","GESTIONADOS"]
[3568312021,"AREA DE ATENCION A LA CIUDADANIA","WEB","Solucionado - Por traslado","SECRETARIA DE AMBIENTE","GESTIONADOS"]
[3574562021,"AREA DE ATENCION A LA CIUDADANIA","WEB","Solucionado - Por traslado","SECRETARIA DE AMBIENTE","GESTIONADOS"]
[3581102021,"AREA DE ATENCION A LA CIUDADANIA","WEB","Solucionado - Por traslado","SECRETARIA DE GOBIERNO","GESTIONADOS"]
[3583222021,"AREA DE ATENCION A LA CIUDADANIA","WEB","Solucionado - Por traslado","IPES","GESTIONADOS"]
[3584952021,"AREA DE ATENCION A LA CIUDADANIA","WEB","Solucionado - Por traslado","SECRETARIA DE GOBIERNO","GESTIONADOS"]
[3590452021,"AREA DE ATENCION A LA CIUDADANIA","WEB","Solucionado - Por traslado","SECRETARIA DE GOBIERNO","GESTIONADOS"]
[3590472021,"AREA DE ATENCION A LA CIUDADANIA","WEB","Solucionado - Por traslado","IDIPRON","GESTIONADOS"]
[3600372021,"AREA DE ATENCION A LA CIUDADANIA","E-MAIL","Solucionado - Por traslado","IDU","GESTIONADOS"]
[3608142021,"AREA DE ATENCION A LA CIUDADANIA","WEB","Solucionado - Por traslado","SECRETARIA DE AMBIENTE","GESTIONADOS"]
[3609192021,"AREA DE ATENCION A LA CIUDADANIA","WEB","Solucionado - Por traslado","ACUEDUCTO - EAAB-ESP","GESTIONADOS"]
[3609222021,"AREA DE ATENCION A LA CIUDADANIA","PRESENCIAL","Solucionado - Por traslado","SECRETARIA DE AMBIENTE","GESTIONADOS"]
[3610092021,"AREA DE ATENCION A LA CIUDADANIA","WEB","Solucionado - Por traslado","ACUEDUCTO - EAAB-ESP","GESTIONADOS"]
[3612752021,"AREA DE ATENCION A LA CIUDADANIA","WEB","Solucionado - Por traslado","SECRETARIA DE AMBIENTE","GESTIONADOS"]
[3612862021,"AREA DE ATENCION A LA CIUDADANIA","WEB","Solucionado - Por traslado","SECRETARIA DE AMBIENTE","GESTIONADOS"]
[3615472021,"AREA DE ATENCION A LA CIUDADANIA","WEB","Solucionado - Por traslado","SECRETARIA DE GOBIERNO","GESTIONADOS"]
[3616662021,"AREA DE ATENCION A LA CIUDADANIA","WEB","Solucionado - Por traslado","SECRETARIA DE GOBIERNO","GESTIONADOS"]
[3616852021,"AREA DE ATENCION A LA CIUDADANIA","WEB","Solucionado - Por traslado","SECRETARIA DE GOBIERNO","GESTIONADOS"]
[3616892021,"AREA DE ATENCION A LA CIUDADANIA","WEB","Solucionado - Por traslado","ACUEDUCTO - EAAB-ESP","GESTIONADOS"]
[3617362021,"AREA DE ATENCION A LA CIUDADANIA","WEB","Solucionado - Por traslado","SECRETARIA DE GOBIERNO","GESTIONADOS"]
[3618912021,"AREA DE ATENCION A LA CIUDADANIA","WEB","Solucionado - Por traslado","SECRETARIA DE GOBIERNO","GESTIONADOS"]
[3619392021,"AREA DE ATENCION A LA CIUDADANIA","WEB","Solucionado - Por traslado","SECRETARIA DE AMBIENTE","GESTIONADOS"]
[3622022021,"AREA DE ATENCION A LA CIUDADANIA","WEB","Solucionado - Por traslado","SECRETARIA DE AMBIENTE","GESTIONADOS"]
[3627542021,"AREA DE ATENCION A LA CIUDADANIA","WEB","Solucionado - Por traslado","SECRETARIA DE AMBIENTE","GESTIONADOS"]
[3628562021,"AREA DE ATENCION A LA CIUDADANIA","WEB","Solucionado - Por traslado","SECRETARIA DE GOBIERNO","GESTIONADOS"]
[3631812021,"AREA DE ATENCION A LA CIUDADANIA","WEB","Solucionado - Por traslado","SECRETARIA DE GOBIERNO","GESTIONADOS"]
[3638362021,"AREA DE ATENCION A LA CIUDADANIA","WEB","Solucionado - Por traslado","SECRETARIA DE GOBIERNO","GESTIONADOS"]
[3638462021,"AREA DE ATENCION A LA CIUDADANIA","WEB","Solucionado - Por traslado","SECRETARIA DE DESARROLLO ECONOMICO","GESTIONADOS"]
[3639122021,"AREA DE ATENCION A LA CIUDADANIA","WEB","Solucionado - Por traslado","SECRETARIA DE GOBIERNO","GESTIONADOS"]
[3642462021,"AREA DE ATENCION A LA CIUDADANIA","WEB","Solucionado - Por traslado","SECRETARIA DE GOBIERNO","GESTIONADOS"]
[3643272021,"AREA DE ATENCION A LA CIUDADANIA","WEB","Solucionado - Por traslado","SECRETARIA DE AMBIENTE","GESTIONADOS"]
[3643752021,"AREA DE ATENCION A LA CIUDADANIA","TELEFONO","Solucionado - Por traslado","SECRETARIA DE GOBIERNO","GESTIONADOS"]
[3644262021,"AREA DE ATENCION A LA CIUDADANIA","WEB","Solucionado - Por traslado","SECRETARIA DE GOBIERNO","GESTIONADOS"]
[3646962021,"AREA DE ATENCION A LA CIUDADANIA","WEB","Solucionado - Por traslado","SECRETARIA DE GOBIERNO","GESTIONADOS"]
[3654732021,"AREA DE ATENCION A LA CIUDADANIA","WEB","Solucionado por asignar - Trasladar","UAESP","GESTIONADOS"]
[3655602021,"AREA DE ATENCION A LA CIUDADANIA","WEB","Solucionado - Por traslado","SECRETARIA DE GOBIERNO","GESTIONADOS"]
[3655852021,"AREA DE ATENCION A LA CIUDADANIA","WEB","Solucionado - Por traslado","IPES","GESTIONADOS"]
[3656392021,"AREA DE ATENCION A LA CIUDADANIA","WEB","Solucionado - Por traslado","SECRETARIA DEL HABITAT","GESTIONADOS"]
[3657052021,"AREA DE ATENCION A LA CIUDADANIA","WEB","Solucionado - Por traslado","SECRETARIA DE GOBIERNO","GESTIONADOS"]
[3657182021,"AREA DE ATENCION A LA CIUDADANIA","WEB","Solucionado - Por traslado","SECRETARIA DE GOBIERNO","GESTIONADOS"]
[3657282021,"AREA DE ATENCION A LA CIUDADANIA","WEB","Solucionado - Por traslado","SECRETARIA DE GOBIERNO","GESTIONADOS"]
[3657582021,"AREA DE ATENCION A LA CIUDADANIA","WEB","Solucionado - Por traslado","SECRETARIA DE GOBIERNO","GESTIONADOS"]
[3661682021,"AREA DE ATENCION A LA CIUDADANIA","WEB","Solucionado - Por traslado","SECRETARIA DE GOBIERNO","GESTIONADOS"]
[3663212021,"AREA DE ATENCION A LA CIUDADANIA","WEB","Solucionado - Por traslado","SECRETARIA DE GOBIERNO","GESTIONADOS"]
[3665952021,"AREA DE ATENCION A LA CIUDADANIA","WEB","Solucionado - Por traslado","SECRETARIA DE GOBIERNO","GESTIONADOS"]
[3670222021,"AREA DE ATENCION A LA CIUDADANIA","REDES SOCIALES","Solucionado - Por traslado","SECRETARIA DE AMBIENTE","GESTIONADOS"]
[3672012021,"AREA DE ATENCION A LA CIUDADANIA","WEB","Solucionado por asignar - Trasladar","CATASTRO","GESTIONADOS"]
[3672562021,"AREA DE ATENCION A LA CIUDADANIA","WEB","Solucionado - Por traslado","SECRETARIA DE GOBIERNO","GESTIONADOS"]
[3676092021,"AREA DE ATENCION A LA CIUDADANIA","TELEFONO","Solucionado - Por traslado","SECRETARIA DE INTEGRACION SOCIAL","GESTIONADOS"]
[3678522021,"AREA DE ATENCION A LA CIUDADANIA","WEB","Solucionado - Por traslado","SECRETARIA DE GOBIERNO","GESTIONADOS"]
[3679082021,"AREA DE ATENCION A LA CIUDADANIA","WEB","Solucionado - Por traslado","SECRETARIA DE GOBIERNO","GESTIONADOS"]
[3680682021,"AREA DE ATENCION A LA CIUDADANIA","WEB","Solucionado - Por traslado","SECRETARIA DE AMBIENTE","GESTIONADOS"]
[3681562021,"AREA DE ATENCION A LA CIUDADANIA","WEB","Solucionado - Por traslado","SECRETARIA DE GOBIERNO","GESTIONADOS"]
[3681832021,"AREA DE ATENCION A LA CIUDADANIA","REDES SOCIALES","Solucionado - Por traslado","SECRETARIA DE GOBIERNO","GESTIONADOS"]
[3681912021,"AREA DE ATENCION A LA CIUDADANIA","REDES SOCIALES","Solucionado - Por traslado","SECRETARIA DE GOBIERNO","GESTIONADOS"]
[3683822021,"AREA DE ATENCION A LA CIUDADANIA","WEB","Solucionado - Por traslado","SECRETARIA GENERAL","GESTIONADOS"]
[3684532021,"AREA DE ATENCION A LA CIUDADANIA","E-MAIL","Solucionado - Por traslado","SECRETARIA DE GOBIERNO","GESTIONADOS"]
[3687142021,"AREA DE ATENCION A LA CIUDADANIA","WEB","Solucionado - Por traslado","CATASTRO","GESTIONADOS"]
[3690522021,"AREA DE ATENCION A LA CIUDADANIA","TELEFONO","Solucionado - Por traslado","SECRETARIA DE GOBIERNO","GESTIONADOS"]
[3695582021,"AREA DE ATENCION A LA CIUDADANIA","WEB","Solucionado - Por traslado","SECRETARIA DE GOBIERNO","GESTIONADOS"]
[3701762021,"AREA DE ATENCION A LA CIUDADANIA","WEB","Solucionado - Por traslado","SECRETARIA DE GOBIERNO","GESTIONADOS"]
[3701782021,"AREA DE ATENCION A LA CIUDADANIA","WEB","Solucionado - Por traslado","SECRETARIA DE GOBIERNO","GESTIONADOS"]
[3701792021,"AREA DE ATENCION A LA CIUDADANIA","WEB","Solucionado - Por traslado","SECRETARIA DE GOBIERNO","GESTIONADOS"]
[3704592021,"AREA DE ATENCION A LA CIUDADANIA","TELEFONO","Solucionado - Por traslado","SECRETARIA DE AMBIENTE","GESTIONADOS"]
[3705582021,"AREA DE ATENCION A LA CIUDADANIA","WEB","Solucionado - Por traslado","SECRETARIA DE GOBIERNO","GESTIONADOS"]
[3707252021,"AREA DE ATENCION A LA CIUDADANIA","WEB","Solucionado - Por traslado","SECRETARIA DE GOBIERNO","GESTIONADOS"]
[3707742021,"AREA DE ATENCION A LA CIUDADANIA","WEB","Solucionado - Por traslado","SECRETARIA DE GOBIERNO","GESTIONADOS"]
[3709172021,"AREA DE ATENCION A LA CIUDADANIA","TELEFONO","Solucionado - Por traslado","SECRETARIA DE AMBIENTE","GESTIONADOS"]
[3717062021,"AREA DE ATENCION A LA CIUDADANIA","WEB","Solucionado - Por traslado","IPES","GESTIONADOS"]
[3719332021,"AREA DE ATENCION A LA CIUDADANIA","WEB","Solucionado - Por traslado","SECRETARIA DE AMBIENTE","GESTIONADOS"]
[3720182021,"AREA DE ATENCION A LA CIUDADANIA","ESCRITO","Solucionado - Por traslado","SECRETARIA DE GOBIERNO","GESTIONADOS"]
[3725912021,"AREA DE ATENCION A LA CIUDADANIA","E-MAIL","Solucionado - Por traslado","UAESP","GESTIONADOS"]
[3726252021,"AREA DE ATENCION A LA CIUDADANIA","WEB","Solucionado - Por traslado","SECRETARIA DE AMBIENTE","GESTIONADOS"]
[3726262021,"AREA DE ATENCION A LA CIUDADANIA","WEB","Solucionado - Por traslado","SECRETARIA DE GOBIERNO","GESTIONADOS"]
[3736872021,"AREA DE ATENCION A LA CIUDADANIA","WEB","Solucionado - Por traslado","SECRETARIA DE GOBIERNO","GESTIONADOS"]
[3737582021,"AREA DE ATENCION A LA CIUDADANIA","WEB","Solucionado - Por traslado","SECRETARIA MOVILIDAD","GESTIONADOS"]
[3738132021,"AREA DE ATENCION A LA CIUDADANIA","WEB","Solucionado por asignar - Trasladar","SECRETARIA DE AMBIENTE","GESTIONADOS"]
[3740222021,"AREA DE ATENCION A LA CIUDADANIA","WEB","Solucionado - Por traslado","SECRETARIA DE GOBIERNO","GESTIONADOS"]
[3740702021,"AREA DE ATENCION A LA CIUDADANIA","WEB","Solucionado por asignar - Trasladar","IDRD","GESTIONADOS"]
[3740732021,"AREA DE ATENCION A LA CIUDADANIA","WEB","Solucionado - Por traslado","SECRETARIA DE GOBIERNO","GESTIONADOS"]
[3740882021,"AREA DE ATENCION A LA CIUDADANIA","WEB","Solucionado - Por traslado","SECRETARIA DE GOBIERNO","GESTIONADOS"]
[3744622021,"AREA DE ATENCION A LA CIUDADANIA","WEB","Solucionado - Por traslado","IDRD","GESTIONADOS"]
[3748042021,"AREA DE ATENCION A LA CIUDADANIA","WEB","Solucionado - Por traslado","SECRETARIA DE GOBIERNO","GESTIONADOS"]
[3748312021,"AREA DE ATENCION A LA CIUDADANIA","WEB","Solucionado - Por traslado","SECRETARIA DE GOBIERNO","GESTIONADOS"]
[3749112021,"AREA DE ATENCION A LA CIUDADANIA","WEB","Solucionado - Por traslado","SECRETARIA DE GOBIERNO","GESTIONADOS"]
[3749452021,"AREA DE ATENCION A LA CIUDADANIA","TELEFONO","Solucionado - Por traslado","SECRETARIA DE GOBIERNO","GESTIONADOS"]
[3750902021,"AREA DE ATENCION A LA CIUDADANIA","WEB","Solucionado por asignar - Trasladar","IDU","GESTIONADOS"]
[3751172021,"AREA DE ATENCION A LA CIUDADANIA","WEB","Solucionado - Por traslado","SECRETARIA DE GOBIERNO","GESTIONADOS"]
[3751592021,"AREA DE ATENCION A LA CIUDADANIA","WEB","Solucionado - Por traslado","SECRETARIA DE GOBIERNO","GESTIONADOS"]
[3754862021,"AREA DE ATENCION A LA CIUDADANIA","WEB","Solucionado - Por traslado","SECRETARIA DE GOBIERNO","GESTIONADOS"]
[3756382021,"AREA DE ATENCION A LA CIUDADANIA","WEB","Solucionado - Por traslado","IDRD","GESTIONADOS"]
[3756422021,"AREA DE ATENCION A LA CIUDADANIA","WEB","Solucionado - Por traslado","IDRD","GESTIONADOS"]
[3756892021,"AREA DE ATENCION A LA CIUDADANIA","WEB","Solucionado - Por traslado","IPES","GESTIONADOS"]
[3760582021,"AREA DE ATENCION A LA CIUDADANIA","WEB","Solucionado por asignar - Trasladar","SECRETARIA DE GOBIERNO","GESTIONADOS"]
[3761982021,"AREA DE ATENCION A LA CIUDADANIA","WEB","Solucionado - Por traslado","SECRETARIA DE GOBIERNO","GESTIONADOS"]
[3763352021,"AREA DE ATENCION A LA CIUDADANIA","TELEFONO","Solucionado por asignar - Trasladar","SECRETARIA DE SEGURIDAD","GESTIONADOS"]
[3764802021,"AREA DE ATENCION A LA CIUDADANIA","WEB","Solucionado por asignar - Trasladar","SECRETARIA DE GOBIERNO","GESTIONADOS"]
[3772072021,"AREA DE ATENCION A LA CIUDADANIA","WEB","Solucionado - Por traslado","SECRETARIA DE AMBIENTE","GESTIONADOS"]
[3772092021,"AREA DE ATENCION A LA CIUDADANIA","WEB","Solucionado - Por traslado","SECRETARIA DE GOBIERNO","GESTIONADOS"]
[3772362021,"AREA DE ATENCION A LA CIUDADANIA","TELEFONO","Solucionado - Por traslado","SECRETARIA DE GOBIERNO","GESTIONADOS"]
[3772462021,"AREA DE ATENCION A LA CIUDADANIA","WEB","Solucionado - Por traslado","SECRETARIA DE GOBIERNO","GESTIONADOS"]
[3773062021,"AREA DE ATENCION A LA CIUDADANIA","WEB","Solucionado - Por traslado","IDU","GESTIONADOS"]
[3773562021,"AREA DE ATENCION A LA CIUDADANIA","WEB","Solucionado - Por traslado","SECRETARIA DE GOBIERNO","GESTIONADOS"]
[3774422021,"AREA DE ATENCION A LA CIUDADANIA","WEB","Solucionado - Por traslado","SECRETARIA DE GOBIERNO","GESTIONADOS"]
[3775562021,"AREA DE ATENCION A LA CIUDADANIA","TELEFONO","Solucionado - Por traslado","SECRETARIA DE GOBIERNO","GESTIONADOS"]
[3775712021,"AREA DE ATENCION A LA CIUDADANIA","WEB","Solucionado por asignar - Trasladar","SECRETARIA DE GOBIERNO","GESTIONADOS"]
[3776972021,"AREA DE ATENCION A LA CIUDADANIA","WEB","Solucionado - Por traslado","SECRETARIA DE GOBIERNO","GESTIONADOS"]
[3777622021,"AREA DE ATENCION A LA CIUDADANIA","WEB","Solucionado por asignar - Trasladar","SECRETARIA DE GOBIERNO","GESTIONADOS"]
[3779382021,"AREA DE ATENCION A LA CIUDADANIA","E-MAIL","Solucionado - Por traslado","IDRD","GESTIONADOS"]
[3783892021,"AREA DE ATENCION A LA CIUDADANIA","WEB","Solucionado - Por traslado","SECRETARIA DE GOBIERNO","GESTIONADOS"]
[3786512021,"AREA DE ATENCION A LA CIUDADANIA","WEB","Solucionado - Por traslado","IPES","GESTIONADOS"]
[3786672021,"AREA DE ATENCION A LA CIUDADANIA","WEB","Solucionado - Por traslado","SECRETARIA DE GOBIERNO","GESTIONADOS"]
[3791212021,"AREA DE ATENCION A LA CIUDADANIA","WEB","Solucionado - Por traslado","UAESP","GESTIONADOS"]
[3791862021,"AREA DE ATENCION A LA CIUDADANIA","WEB","Solucionado - Por traslado","SECRETARIA DE GOBIERNO","GESTIONADOS"]
[3791922021,"AREA DE ATENCION A LA CIUDADANIA","WEB","Solucionado - Por traslado","SECRETARIA DE GOBIERNO","GESTIONADOS"]
[3792432021,"AREA DE ATENCION A LA CIUDADANIA","WEB","Solucionado - Por traslado","IDRD","GESTIONADOS"]
[3793702021,"AREA DE ATENCION A LA CIUDADANIA","WEB","Solucionado - Por traslado","SECRETARIA DE GOBIERNO","GESTIONADOS"]
[3795802021,"AREA DE ATENCION A LA CIUDADANIA","WEB","Solucionado por asignar - Trasladar","SECRETARIA DE GOBIERNO","GESTIONADOS"]
[3802722021,"AREA DE ATENCION A LA CIUDADANIA","ESCRITO","Solucionado - Por traslado","IDARTES - INSTITUTO DE LAS ARTES","GESTIONADOS"]
[3804322021,"AREA DE ATENCION A LA CIUDADANIA","WEB","Solucionado - Por traslado","SECRETARIA DE GOBIERNO","GESTIONADOS"]
[3806342021,"AREA DE ATENCION A LA CIUDADANIA","WEB","Solucionado - Por traslado","SECRETARIA DE GOBIERNO","GESTIONADOS"]
[3806412021,"AREA DE ATENCION A LA CIUDADANIA","WEB","Solucionado - Por traslado","IDU","GESTIONADOS"]
[3807382021,"AREA DE ATENCION A LA CIUDADANIA","WEB","Solucionado - Por traslado","IPES","GESTIONADOS"]
[3809872021,"AREA DE ATENCION A LA CIUDADANIA","WEB","Solucionado - Por traslado","SECRETARIA DE GOBIERNO","GESTIONADOS"]
[3812052021,"AREA DE ATENCION A LA CIUDADANIA","WEB","Solucionado - Por traslado","SECRETARIA DE GOBIERNO","GESTIONADOS"]
[3815042021,"AREA DE ATENCION A LA CIUDADANIA","WEB","Solucionado - Por traslado","CATASTRO","GESTIONADOS"]
[3815122021,"AREA DE ATENCION A LA CIUDADANIA","WEB","Solucionado por asignar - Trasladar","SECRETARIA DE GOBIERNO","GESTIONADOS"]
[3817502021,"AREA DE ATENCION A LA CIUDADANIA","E-MAIL","Solucionado - Por traslado","UAESP","GESTIONADOS"]
[3827352021,"AREA DE ATENCION A LA CIUDADANIA","WEB","Solucionado - Por traslado","IDRD","GESTIONADOS"]
[3838932021,"AREA DE ATENCION A LA CIUDADANIA","WEB","Solucionado - Por traslado","SECRETARIA DE GOBIERNO","GESTIONADOS"]
[3839462021,"AREA DE ATENCION A LA CIUDADANIA","WEB","Solucionado - Por traslado","SECRETARIA MOVILIDAD","GESTIONADOS"]
[3840062021,"AREA DE ATENCION A LA CIUDADANIA","WEB","Solucionado - Por traslado","SECRETARIA DE GOBIERNO","GESTIONADOS"]
[3851562021,"AREA DE ATENCION A LA CIUDADANIA","WEB","Solucionado - Por traslado","SECRETARIA DE GOBIERNO","GESTIONADOS"]
[3851882021,"AREA DE ATENCION A LA CIUDADANIA","WEB","Solucionado - Por traslado","SECRETARIA DE GOBIERNO","GESTIONADOS"]
[3854622021,"AREA DE ATENCION A LA CIUDADANIA","WEB","Solucionado - Por traslado","SECRETARIA DE GOBIERNO","GESTIONADOS"]
[3855162021,"AREA DE ATENCION A LA CIUDADANIA","WEB","Solucionado - Por traslado","SECRETARIA DE GOBIERNO","GESTIONADOS"]
[3855632021,"AREA DE ATENCION A LA CIUDADANIA","WEB","Solucionado - Por traslado","SECRETARIA MOVILIDAD","GESTIONADOS"]
[3856272021,"AREA DE ATENCION A LA CIUDADANIA","WEB","Solucionado por asignar - Trasladar","SECRETARIA DE GOBIERNO","GESTIONADOS"]
[3856322021,"AREA DE ATENCION A LA CIUDADANIA","WEB","Solucionado - Por traslado","IDIGER","GESTIONADOS"]
[3856422021,"AREA DE ATENCION A LA CIUDADANIA","WEB","Solucionado - Por traslado","SECRETARIA DE GOBIERNO","GESTIONADOS"]
[3857352021,"AREA DE ATENCION A LA CIUDADANIA","WEB","Solucionado - Por traslado","SECRETARIA DE GOBIERNO","GESTIONADOS"]
[3858592021,"AREA DE ATENCION A LA CIUDADANIA","WEB","Solucionado - Por traslado","SECRETARIA DE GOBIERNO","GESTIONADOS"]
[3859892021,"AREA DE ATENCION A LA CIUDADANIA","WEB","Solucionado - Por traslado","SECRETARIA DE GOBIERNO","GESTIONADOS"]
[3859992021,"AREA DE ATENCION A LA CIUDADANIA","WEB","Solucionado - Por traslado","SECRETARIA DE INTEGRACION SOCIAL","GESTIONADOS"]
[3866452021,"AREA DE ATENCION A LA CIUDADANIA","WEB","Solucionado por asignar - Trasladar","SECRETARIA DE GOBIERNO","GESTIONADOS"]
[3866872021,"AREA DE ATENCION A LA CIUDADANIA","WEB","Solucionado - Por traslado","SECRETARIA DE GOBIERNO","GESTIONADOS"]
[3868482021,"AREA DE ATENCION A LA CIUDADANIA","WEB","Solucionado - Por traslado","SECRETARIA DE AMBIENTE","GESTIONADOS"]
[3870222021,"AREA DE ATENCION A LA CIUDADANIA","WEB","Solucionado - Por traslado","SECRETARIA DE AMBIENTE","GESTIONADOS"]
[3871422021,"AREA DE ATENCION A LA CIUDADANIA","WEB","Solucionado - Por traslado","SECRETARIA DE GOBIERNO","GESTIONADOS"]
[3882632021,"AREA DE ATENCION A LA CIUDADANIA","WEB","Solucionado - Por traslado","SECRETARIA DE GOBIERNO","GESTIONADOS"]
[3885232021,"AREA DE ATENCION A LA CIUDADANIA","WEB","Solucionado - Por traslado","SECRETARIA DE GOBIERNO","GESTIONADOS"]
[3885392021,"AREA DE ATENCION A LA CIUDADANIA","WEB","Solucionado - Por traslado","SECRETARIA DE GOBIERNO","GESTIONADOS"]
[3885622021,"AREA DE ATENCION A LA CIUDADANIA","WEB","Solucionado - Por traslado","SECRETARIA DE GOBIERNO","GESTIONADOS"]
[3888452021,"AREA DE ATENCION A LA CIUDADANIA","WEB","Solucionado - Por traslado","ACUEDUCTO - EAAB-ESP","GESTIONADOS"]
[3888592021,"AREA DE ATENCION A LA CIUDADANIA","WEB","Solucionado - Por traslado","SECRETARIA DE GOBIERNO","GESTIONADOS"]
[]
["ASIGNADAS A LA ENTIDAD"]
["Número petición\nNumero de registro en el Sistema","Dependencia:\nNombre asociado al usuario que tiene a cargo la petición ","Canal:\nNombre del canal parametrizado en el sistema por el cual fue registrada la petición","Tipología actualizada: \nTipo de documento utilizado por la entidad","Días gestión\nDías calendario transcurridos desde la fecha de inicio de términos hasta el último día del mes","Estado del Requerimiento\n \"Gestionado\" o \"Pendiente\" de respuesta definitiva por  parte de la Defensoría del Espacio Público o de las entidades competentes"]
["Número petición","Dependencia","Canal","Tipo petición","Días gestión","Tipo reporte"]
[3015422021,"SUBDIRECCION DE ADMINISTRACION INMOBILIARIA Y DE ESPACIO PUBLICO","ESCRITO","SOLICITUD DE COPIA",29,"GESTIONADOS"]
[3015422021,"SUBDIRECCION DE REGISTRO INMOBILIARIO","ESCRITO","SOLICITUD DE COPIA",30,"GESTIONADOS"]
[3066402021,"SUBDIRECCION DE REGISTRO INMOBILIARIO","ESCRITO","DERECHO DE PETICION DE INTERES PARTICULAR",29,"GESTIONADOS"]
[3086572021,"SUBDIRECCION ADMINISTRATIVA  FINANCIERA Y DE CONTROL DISCIPLINARIO","WEB","DERECHO DE PETICION DE INTERES PARTICULAR",28,"GESTIONADOS"]
[3096512021,"SUBDIRECCION DE REGISTRO INMOBILIARIO","ESCRITO","DERECHO DE PETICION DE INTERES PARTICULAR",28,"GESTIONADOS"]
[3157052021,"SUBDIRECCION DE ADMINISTRACION INMOBILIARIA Y DE ESPACIO PUBLICO","WEB","DERECHO DE PETICION DE INTERES PARTICULAR",11,"PENDIENTE"]
[3222362021,"SUBDIRECCION DE REGISTRO INMOBILIARIO","WEB","DERECHO DE PETICION DE INTERES PARTICULAR",27,"GESTIONADOS"]
[3274432021,"OFICINA ASESORA JURIDICA","E-MAIL","DERECHO DE PETICION DE INTERES GENERAL",1,"GESTIONADOS"]
[3274432021,"SUBDIRECCION DE ADMINISTRACION INMOBILIARIA Y DE ESPACIO PUBLICO","E-MAIL","DERECHO DE PETICION DE INTERES GENERAL",18,"PENDIENTE"]
[3276802021,"SUBDIRECCION DE REGISTRO INMOBILIARIO","E-MAIL","DERECHO DE PETICION DE INTERES PARTICULAR",18,"PENDIENTE"]
[3281132021,"SUBDIRECCION DE REGISTRO INMOBILIARIO","ESCRITO","DERECHO DE PETICION DE INTERES PARTICULAR",28,"GESTIONADOS"]
[3287982021,"SUBDIRECCION DE REGISTRO INMOBILIARIO","ESCRITO","DERECHO DE PETICION DE INTERES PARTICULAR",29,"GESTIONADOS"]
[3290942021,"SUBDIRECCION DE ADMINISTRACION INMOBILIARIA Y DE ESPACIO PUBLICO","ESCRITO","DERECHO DE PETICION DE INTERES PARTICULAR",28,"GESTIONADOS"]
[3319022021,"SUBDIRECCION DE REGISTRO INMOBILIARIO","ESCRITO","DERECHO DE PETICION DE INTERES PARTICULAR",29,"GESTIONADOS"]
[3367832021,"OFICINA ASESORA JURIDICA","ESCRITO","DERECHO DE PETICION DE INTERES PARTICULAR",16,"GESTIONADOS"]
[3382082021,"SUBDIRECCION DE ADMINISTRACION INMOBILIARIA Y DE ESPACIO PUBLICO","ESCRITO","DERECHO DE PETICION DE INTERES PARTICULAR",27,"PENDIENTE"]
[3415802021,"SUBDIRECCION DE ADMINISTRACION INMOBILIARIA Y DE ESPACIO PUBLICO","WEB","DERECHO DE PETICION DE INTERES GENERAL",26,"PENDIENTE"]
[3483672021,"SUBDIRECCION DE ADMINISTRACION INMOBILIARIA Y DE ESPACIO PUBLICO","E-MAIL","DERECHO DE PETICION DE INTERES GENERAL",10,"PENDIENTE"]
[3501332021,"SUBDIRECCION DE REGISTRO INMOBILIARIO","ESCRITO","DERECHO DE PETICION DE INTERES PARTICULAR",17,"GESTIONADOS"]
[3515472021,"OFICINA ASESORA JURIDICA","ESCRITO","DERECHO DE PETICION DE INTERES PARTICULAR",2,"GESTIONADOS"]
[3519432021,"SUBDIRECCION DE REGISTRO INMOBILIARIO","WEB","SOLICITUD DE ACCESO A LA INFORMACION",14,"PENDIENTE"]
[3523142021,"SUBDIRECCION DE ADMINISTRACION INMOBILIARIA Y DE ESPACIO PUBLICO","WEB","DERECHO DE PETICION DE INTERES GENERAL",19,"PENDIENTE"]
[3534762021,"SUBDIRECCION DE ADMINISTRACION INMOBILIARIA Y DE ESPACIO PUBLICO","WEB","DERECHO DE PETICION DE INTERES GENERAL",17,"PENDIENTE"]
[3537822021,"SUBDIRECCION DE ADMINISTRACION INMOBILIARIA Y DE ESPACIO PUBLICO","WEB","DERECHO DE PETICION DE INTERES GENERAL",20,"PENDIENTE"]
[3540052021,"SUBDIRECCION DE ADMINISTRACION INMOBILIARIA Y DE ESPACIO PUBLICO","TELEFONO","DERECHO DE PETICION DE INTERES PARTICULAR",19,"PENDIENTE"]
[3541982021,"SUBDIRECCION DE REGISTRO INMOBILIARIO","ESCRITO","DERECHO DE PETICION DE INTERES PARTICULAR",19,"PENDIENTE"]
[3542372021,"SUBDIRECCION DE REGISTRO INMOBILIARIO","ESCRITO","DERECHO DE PETICION DE INTERES PARTICULAR",19,"GESTIONADOS"]
[3542582021,"SUBDIRECCION DE REGISTRO INMOBILIARIO","ESCRITO","DERECHO DE PETICION DE INTERES PARTICULAR",15,"GESTIONADOS"]
[3542832021,"SUBDIRECCION DE ADMINISTRACION INMOBILIARIA Y DE ESPACIO PUBLICO","ESCRITO","DERECHO DE PETICION DE INTERES GENERAL",19,"PENDIENTE"]
[3542902021,"SUBDIRECCION DE REGISTRO INMOBILIARIO","ESCRITO","DERECHO DE PETICION DE INTERES PARTICULAR",19,"PENDIENTE"]
[3542952021,"SUBDIRECCION DE REGISTRO INMOBILIARIO","ESCRITO","DERECHO DE PETICION DE INTERES GENERAL",15,"GESTIONADOS"]
[3542992021,"SUBDIRECCION DE ADMINISTRACION INMOBILIARIA Y DE ESPACIO PUBLICO","ESCRITO","DERECHO DE PETICION DE INTERES PARTICULAR",19,"PENDIENTE"]
[3543202021,"SUBDIRECCION DE REGISTRO INMOBILIARIO","TELEFONO","DERECHO DE PETICION DE INTERES GENERAL",19,"PENDIENTE"]
[3543352021,"SUBDIRECCION DE ADMINISTRACION INMOBILIARIA Y DE ESPACIO PUBLICO","ESCRITO","DERECHO DE PETICION DE INTERES PARTICULAR",19,"PENDIENTE"]
[3543602021,"SUBDIRECCION DE ADMINISTRACION INMOBILIARIA Y DE ESPACIO PUBLICO","ESCRITO","DERECHO DE PETICION DE INTERES PARTICULAR",19,"PENDIENTE"]
[3543742021,"SUBDIRECCION DE ADMINISTRACION INMOBILIARIA Y DE ESPACIO PUBLICO","WEB","DERECHO DE PETICION DE INTERES PARTICULAR",19,"PENDIENTE"]
[3545382021,"SUBDIRECCION DE REGISTRO INMOBILIARIO","WEB","DERECHO DE PETICION DE INTERES PARTICULAR",19,"PENDIENTE"]
[3546502021,"SUBDIRECCION DE ADMINISTRACION INMOBILIARIA Y DE ESPACIO PUBLICO","ESCRITO","DERECHO DE PETICION DE INTERES PARTICULAR",19,"PENDIENTE"]
[3546792021,"SUBDIRECCION DE REGISTRO INMOBILIARIO","ESCRITO","DERECHO DE PETICION DE INTERES PARTICULAR",16,"GESTIONADOS"]
[3546892021,"SUBDIRECCION DE ADMINISTRACION INMOBILIARIA Y DE ESPACIO PUBLICO","ESCRITO","DERECHO DE PETICION DE INTERES PARTICULAR",19,"PENDIENTE"]
[3552452021,"SUBDIRECCION DE REGISTRO INMOBILIARIO","TELEFONO","DERECHO DE PETICION DE INTERES GENERAL",19,"PENDIENTE"]
[3552882021,"SUBDIRECCION DE ADMINISTRACION INMOBILIARIA Y DE ESPACIO PUBLICO","ESCRITO","DERECHO DE PETICION DE INTERES PARTICULAR",19,"PENDIENTE"]
[3552902021,"SUBDIRECCION DE ADMINISTRACION INMOBILIARIA Y DE ESPACIO PUBLICO","ESCRITO","DERECHO DE PETICION DE INTERES PARTICULAR",19,"PENDIENTE"]
[3555482021,"SUBDIRECCION DE ADMINISTRACION INMOBILIARIA Y DE ESPACIO PUBLICO","ESCRITO","DERECHO DE PETICION DE INTERES PARTICULAR",19,"PENDIENTE"]
[3555522021,"SUBDIRECCION DE ADMINISTRACION INMOBILIARIA Y DE ESPACIO PUBLICO","ESCRITO","DERECHO DE PETICION DE INTERES PARTICULAR",19,"PENDIENTE"]
[3555582021,"SUBDIRECCION DE ADMINISTRACION INMOBILIARIA Y DE ESPACIO PUBLICO","ESCRITO","DERECHO DE PETICION DE INTERES PARTICULAR",19,"PENDIENTE"]
[3555652021,"SUBDIRECCION DE ADMINISTRACION INMOBILIARIA Y DE ESPACIO PUBLICO","ESCRITO","DERECHO DE PETICION DE INTERES PARTICULAR",19,"PENDIENTE"]
[3555702021,"SUBDIRECCION DE ADMINISTRACION INMOBILIARIA Y DE ESPACIO PUBLICO","ESCRITO","DERECHO DE PETICION DE INTERES PARTICULAR",19,"PENDIENTE"]
[3559952021,"SUBDIRECCION DE ADMINISTRACION INMOBILIARIA Y DE ESPACIO PUBLICO","WEB","DERECHO DE PETICION DE INTERES PARTICULAR",17,"PENDIENTE"]
[3562352021,"SUBDIRECCION DE REGISTRO INMOBILIARIO","WEB","DERECHO DE PETICION DE INTERES PARTICULAR",16,"GESTIONADOS"]
[3565632021,"SUBDIRECCION DE ADMINISTRACION INMOBILIARIA Y DE ESPACIO PUBLICO","ESCRITO","DERECHO DE PETICION DE INTERES PARTICULAR",18,"PENDIENTE"]
[3565982021,"SUBDIRECCION DE ADMINISTRACION INMOBILIARIA Y DE ESPACIO PUBLICO","ESCRITO","DERECHO DE PETICION DE INTERES PARTICULAR",18,"PENDIENTE"]
[3566122021,"SUBDIRECCION DE ADMINISTRACION INMOBILIARIA Y DE ESPACIO PUBLICO","ESCRITO","DERECHO DE PETICION DE INTERES PARTICULAR",18,"PENDIENTE"]
[3566482021,"SUBDIRECCION DE ADMINISTRACION INMOBILIARIA Y DE ESPACIO PUBLICO","ESCRITO","DERECHO DE PETICION DE INTERES PARTICULAR",18,"PENDIENTE"]
[3570852021,"SUBDIRECCION DE ADMINISTRACION INMOBILIARIA Y DE ESPACIO PUBLICO","WEB","DERECHO DE PETICION DE INTERES PARTICULAR",14,"PENDIENTE"]
[3571502021,"SUBDIRECCION DE ADMINISTRACION INMOBILIARIA Y DE ESPACIO PUBLICO","WEB","DERECHO DE PETICION DE INTERES PARTICULAR",18,"PENDIENTE"]
[3572312021,"SUBDIRECCION DE ADMINISTRACION INMOBILIARIA Y DE ESPACIO PUBLICO","WEB","DERECHO DE PETICION DE INTERES GENERAL",18,"PENDIENTE"]
[3574892021,"SUBDIRECCION DE REGISTRO INMOBILIARIO","WEB","DERECHO DE PETICION DE INTERES PARTICULAR",18,"PENDIENTE"]
[3577722021,"SUBDIRECCION DE ADMINISTRACION INMOBILIARIA Y DE ESPACIO PUBLICO","ESCRITO","DERECHO DE PETICION DE INTERES PARTICULAR",17,"PENDIENTE"]
[3577782021,"SUBDIRECCION DE ADMINISTRACION INMOBILIARIA Y DE ESPACIO PUBLICO","ESCRITO","DERECHO DE PETICION DE INTERES PARTICULAR",17,"PENDIENTE"]
[3577882021,"SUBDIRECCION DE ADMINISTRACION INMOBILIARIA Y DE ESPACIO PUBLICO","ESCRITO","DERECHO DE PETICION DE INTERES PARTICULAR",17,"PENDIENTE"]
[3577952021,"SUBDIRECCION DE ADMINISTRACION INMOBILIARIA Y DE ESPACIO PUBLICO","ESCRITO","DERECHO DE PETICION DE INTERES PARTICULAR",17,"PENDIENTE"]
[3578222021,"SUBDIRECCION DE ADMINISTRACION INMOBILIARIA Y DE ESPACIO PUBLICO","ESCRITO","DERECHO DE PETICION DE INTERES PARTICULAR",17,"PENDIENTE"]
[3578292021,"SUBDIRECCION DE ADMINISTRACION INMOBILIARIA Y DE ESPACIO PUBLICO","ESCRITO","DERECHO DE PETICION DE INTERES PARTICULAR",17,"PENDIENTE"]
[3578312021,"SUBDIRECCION DE REGISTRO INMOBILIARIO","ESCRITO","DERECHO DE PETICION DE INTERES PARTICULAR",17,"GESTIONADOS"]
[3578462021,"SUBDIRECCION DE ADMINISTRACION INMOBILIARIA Y DE ESPACIO PUBLICO","ESCRITO","DERECHO DE PETICION DE INTERES GENERAL",17,"PENDIENTE"]
[3584422021,"SUBDIRECCION DE ADMINISTRACION INMOBILIARIA Y DE ESPACIO PUBLICO","E-MAIL","DERECHO DE PETICION DE INTERES PARTICULAR",17,"PENDIENTE"]
[3585332021,"SUBDIRECCION ADMINISTRATIVA  FINANCIERA Y DE CONTROL DISCIPLINARIO","WEB","DERECHO DE PETICION DE INTERES GENERAL",1,"GESTIONADOS"]
[3585332021,"SUBDIRECCION DE ADMINISTRACION INMOBILIARIA Y DE ESPACIO PUBLICO","WEB","DERECHO DE PETICION DE INTERES GENERAL",17,"PENDIENTE"]
[3588902021,"SUBDIRECCION DE ADMINISTRACION INMOBILIARIA Y DE ESPACIO PUBLICO","ESCRITO","DERECHO DE PETICION DE INTERES PARTICULAR",17,"PENDIENTE"]
[3589302021,"SUBDIRECCION DE ADMINISTRACION INMOBILIARIA Y DE ESPACIO PUBLICO","ESCRITO","DERECHO DE PETICION DE INTERES PARTICULAR",17,"PENDIENTE"]
[3589462021,"SUBDIRECCION DE ADMINISTRACION INMOBILIARIA Y DE ESPACIO PUBLICO","ESCRITO","DERECHO DE PETICION DE INTERES PARTICULAR",17,"PENDIENTE"]
[3589602021,"SUBDIRECCION ADMINISTRATIVA  FINANCIERA Y DE CONTROL DISCIPLINARIO","WEB","DERECHO DE PETICION DE INTERES GENERAL",1,"GESTIONADOS"]
[3590122021,"SUBDIRECCION DE ADMINISTRACION INMOBILIARIA Y DE ESPACIO PUBLICO","ESCRITO","DERECHO DE PETICION DE INTERES PARTICULAR",17,"PENDIENTE"]
[3590342021,"SUBDIRECCION DE ADMINISTRACION INMOBILIARIA Y DE ESPACIO PUBLICO","WEB","QUEJA",17,"PENDIENTE"]
[3591552021,"SUBDIRECCION DE ADMINISTRACION INMOBILIARIA Y DE ESPACIO PUBLICO","TELEFONO","DERECHO DE PETICION DE INTERES PARTICULAR",17,"PENDIENTE"]
[3593202021,"SUBDIRECCION DE ADMINISTRACION INMOBILIARIA Y DE ESPACIO PUBLICO","TELEFONO","DERECHO DE PETICION DE INTERES GENERAL",17,"PENDIENTE"]
[3593332021,"SUBDIRECCION DE REGISTRO INMOBILIARIO","WEB","CONSULTA",17,"PENDIENTE"]
[3603322021,"SUBDIRECCION DE ADMINISTRACION INMOBILIARIA Y DE ESPACIO PUBLICO","ESCRITO","DERECHO DE PETICION DE INTERES PARTICULAR",16,"PENDIENTE"]
[3603612021,"SUBDIRECCION ADMINISTRATIVA  FINANCIERA Y DE CONTROL DISCIPLINARIO","ESCRITO","DERECHO DE PETICION DE INTERES PARTICULAR",1,"GESTIONADOS"]
[3603612021,"SUBDIRECCION ADMINISTRATIVA Y FINANCIERA","ESCRITO","DERECHO DE PETICION DE INTERES PARTICULAR",7,"GESTIONADOS"]
[3603712021,"SUBDIRECCION ADMINISTRATIVA  FINANCIERA Y DE CONTROL DISCIPLINARIO","ESCRITO","DERECHO DE PETICION DE INTERES PARTICULAR",1,"GESTIONADOS"]
[3603712021,"SUBDIRECCION ADMINISTRATIVA Y FINANCIERA","ESCRITO","DERECHO DE PETICION DE INTERES PARTICULAR",7,"GESTIONADOS"]
[3603962021,"SUBDIRECCION ADMINISTRATIVA  FINANCIERA Y DE CONTROL DISCIPLINARIO","ESCRITO","DERECHO DE PETICION DE INTERES PARTICULAR",1,"GESTIONADOS"]
[3603962021,"SUBDIRECCION ADMINISTRATIVA Y FINANCIERA","ESCRITO","DERECHO DE PETICION DE INTERES PARTICULAR",7,"GESTIONADOS"]
[3604142021,"SUBDIRECCION DE ADMINISTRACION INMOBILIARIA Y DE ESPACIO PUBLICO","ESCRITO","DERECHO DE PETICION DE INTERES PARTICULAR",16,"PENDIENTE"]
[3604332021,"SUBDIRECCION DE ADMINISTRACION INMOBILIARIA Y DE ESPACIO PUBLICO","ESCRITO","DERECHO DE PETICION DE INTERES PARTICULAR",16,"PENDIENTE"]
[3604802021,"SUBDIRECCION DE ADMINISTRACION INMOBILIARIA Y DE ESPACIO PUBLICO","ESCRITO","DERECHO DE PETICION DE INTERES PARTICULAR",16,"PENDIENTE"]
[3604942021,"SUBDIRECCION DE ADMINISTRACION INMOBILIARIA Y DE ESPACIO PUBLICO","ESCRITO","DERECHO DE PETICION DE INTERES PARTICULAR",16,"PENDIENTE"]
[3605092021,"SUBDIRECCION ADMINISTRATIVA Y FINANCIERA","ESCRITO","DERECHO DE PETICION DE INTERES PARTICULAR",7,"GESTIONADOS"]
[3605092021,"SUBDIRECCION DE ADMINISTRACION INMOBILIARIA Y DE ESPACIO PUBLICO","ESCRITO","DERECHO DE PETICION DE INTERES PARTICULAR",3,"GESTIONADOS"]
[3605222021,"SUBDIRECCION DE ADMINISTRACION INMOBILIARIA Y DE ESPACIO PUBLICO","ESCRITO","DERECHO DE PETICION DE INTERES PARTICULAR",16,"PENDIENTE"]
[3605222021,"SUBDIRECCION DE REGISTRO INMOBILIARIO","ESCRITO","DERECHO DE PETICION DE INTERES PARTICULAR",12,"GESTIONADOS"]
[3605472021,"SUBDIRECCION DE ADMINISTRACION INMOBILIARIA Y DE ESPACIO PUBLICO","ESCRITO","DERECHO DE PETICION DE INTERES PARTICULAR",16,"PENDIENTE"]
[3609012021,"SUBDIRECCION DE ADMINISTRACION INMOBILIARIA Y DE ESPACIO PUBLICO","ESCRITO","DERECHO DE PETICION DE INTERES PARTICULAR",16,"PENDIENTE"]
[3609152021,"SUBDIRECCION DE REGISTRO INMOBILIARIO","ESCRITO","DERECHO DE PETICION DE INTERES GENERAL",16,"PENDIENTE"]
[3609282021,"SUBDIRECCION DE ADMINISTRACION INMOBILIARIA Y DE ESPACIO PUBLICO","ESCRITO","DERECHO DE PETICION DE INTERES PARTICULAR",16,"PENDIENTE"]
[3609352021,"SUBDIRECCION DE ADMINISTRACION INMOBILIARIA Y DE ESPACIO PUBLICO","ESCRITO","DERECHO DE PETICION DE INTERES PARTICULAR",16,"PENDIENTE"]
[3609422021,"SUBDIRECCION DE ADMINISTRACION INMOBILIARIA Y DE ESPACIO PUBLICO","ESCRITO","DERECHO DE PETICION DE INTERES PARTICULAR",16,"PENDIENTE"]
[3609502021,"SUBDIRECCION DE ADMINISTRACION INMOBILIARIA Y DE ESPACIO PUBLICO","ESCRITO","DERECHO DE PETICION DE INTERES PARTICULAR",16,"PENDIENTE"]
[3609702021,"SUBDIRECCION DE ADMINISTRACION INMOBILIARIA Y DE ESPACIO PUBLICO","ESCRITO","DERECHO DE PETICION DE INTERES PARTICULAR",16,"PENDIENTE"]
[3609792021,"SUBDIRECCION ADMINISTRATIVA Y FINANCIERA","ESCRITO","DERECHO DE PETICION DE INTERES PARTICULAR",7,"GESTIONADOS"]
[3609912021,"SUBDIRECCION DE REGISTRO INMOBILIARIO","ESCRITO","DERECHO DE PETICION DE INTERES PARTICULAR",16,"GESTIONADOS"]
[3610022021,"SUBDIRECCION DE ADMINISTRACION INMOBILIARIA Y DE ESPACIO PUBLICO","ESCRITO","DERECHO DE PETICION DE INTERES PARTICULAR",16,"PENDIENTE"]
[3610252021,"SUBDIRECCION DE REGISTRO INMOBILIARIO","ESCRITO","DERECHO DE PETICION DE INTERES PARTICULAR",16,"PENDIENTE"]
[3610462021,"SUBDIRECCION DE ADMINISTRACION INMOBILIARIA Y DE ESPACIO PUBLICO","ESCRITO","DERECHO DE PETICION DE INTERES PARTICULAR",16,"PENDIENTE"]
[3610582021,"SUBDIRECCION DE ADMINISTRACION INMOBILIARIA Y DE ESPACIO PUBLICO","ESCRITO","DERECHO DE PETICION DE INTERES PARTICULAR",16,"PENDIENTE"]
[3610712021,"SUBDIRECCION DE ADMINISTRACION INMOBILIARIA Y DE ESPACIO PUBLICO","ESCRITO","DERECHO DE PETICION DE INTERES PARTICULAR",16,"PENDIENTE"]
[3610772021,"SUBDIRECCION DE REGISTRO INMOBILIARIO","ESCRITO","DERECHO DE PETICION DE INTERES PARTICULAR",16,"PENDIENTE"]
[3610842021,"SUBDIRECCION DE ADMINISTRACION INMOBILIARIA Y DE ESPACIO PUBLICO","ESCRITO","DERECHO DE PETICION DE INTERES PARTICULAR",16,"PENDIENTE"]
[3610882021,"SUBDIRECCION DE ADMINISTRACION INMOBILIARIA Y DE ESPACIO PUBLICO","ESCRITO","DERECHO DE PETICION DE INTERES PARTICULAR",16,"PENDIENTE"]
[3610912021,"SUBDIRECCION DE ADMINISTRACION INMOBILIARIA Y DE ESPACIO PUBLICO","ESCRITO","DERECHO DE PETICION DE INTERES PARTICULAR",16,"PENDIENTE"]
[3616442021,"SUBDIRECCION DE ADMINISTRACION INMOBILIARIA Y DE ESPACIO PUBLICO","WEB","DERECHO DE PETICION DE INTERES PARTICULAR",16,"PENDIENTE"]
[3616612021,"SUBDIRECCION DE ADMINISTRACION INMOBILIARIA Y DE ESPACIO PUBLICO","WEB","DERECHO DE PETICION DE INTERES GENERAL",16,"PENDIENTE"]
[3616852021,"SUBDIRECCION ADMINISTRATIVA  FINANCIERA Y DE CONTROL DISCIPLINARIO","WEB","DERECHO DE PETICION DE INTERES GENERAL",1,"GESTIONADOS"]
[3616892021,"SUBDIRECCION ADMINISTRATIVA  FINANCIERA Y DE CONTROL DISCIPLINARIO","WEB","DERECHO DE PETICION DE INTERES GENERAL",1,"GESTIONADOS"]
[3617642021,"SUBDIRECCION DE ADMINISTRACION INMOBILIARIA Y DE ESPACIO PUBLICO","WEB","DERECHO DE PETICION DE INTERES GENERAL",16,"PENDIENTE"]
[3618572021,"SUBDIRECCION DE ADMINISTRACION INMOBILIARIA Y DE ESPACIO PUBLICO","WEB","CONSULTA",16,"PENDIENTE"]
[3619072021,"SUBDIRECCION DE ADMINISTRACION INMOBILIARIA Y DE ESPACIO PUBLICO","WEB","DERECHO DE PETICION DE INTERES GENERAL",16,"PENDIENTE"]
[3622092021,"SUBDIRECCION DE ADMINISTRACION INMOBILIARIA Y DE ESPACIO PUBLICO","WEB","DERECHO DE PETICION DE INTERES PARTICULAR",15,"PENDIENTE"]
[3627132021,"SUBDIRECCION DE ADMINISTRACION INMOBILIARIA Y DE ESPACIO PUBLICO","TELEFONO","DERECHO DE PETICION DE INTERES GENERAL",15,"PENDIENTE"]
[3628122021,"SUBDIRECCION DE ADMINISTRACION INMOBILIARIA Y DE ESPACIO PUBLICO","WEB","DERECHO DE PETICION DE INTERES PARTICULAR",15,"PENDIENTE"]
[3629122021,"SUBDIRECCION DE ADMINISTRACION INMOBILIARIA Y DE ESPACIO PUBLICO","WEB","DERECHO DE PETICION DE INTERES PARTICULAR",14,"PENDIENTE"]
[3629212021,"SUBDIRECCION ADMINISTRATIVA  FINANCIERA Y DE CONTROL DISCIPLINARIO","ESCRITO","DERECHO DE PETICION DE INTERES PARTICULAR",2,"GESTIONADOS"]
[3629212021,"SUBDIRECCION ADMINISTRATIVA Y FINANCIERA","ESCRITO","DERECHO DE PETICION DE INTERES PARTICULAR",15,"PENDIENTE"]
[3629382021,"SUBDIRECCION ADMINISTRATIVA  FINANCIERA Y DE CONTROL DISCIPLINARIO","ESCRITO","DERECHO DE PETICION DE INTERES PARTICULAR",5,"GESTIONADOS"]
[3629382021,"SUBDIRECCION ADMINISTRATIVA Y FINANCIERA","ESCRITO","DERECHO DE PETICION DE INTERES PARTICULAR",15,"PENDIENTE"]
[3629482021,"SUBDIRECCION ADMINISTRATIVA  FINANCIERA Y DE CONTROL DISCIPLINARIO","ESCRITO","DERECHO DE PETICION DE INTERES PARTICULAR",2,"GESTIONADOS"]
[3629482021,"SUBDIRECCION ADMINISTRATIVA Y FINANCIERA","ESCRITO","DERECHO DE PETICION DE INTERES PARTICULAR",15,"PENDIENTE"]
[3629812021,"SUBDIRECCION DE ADMINISTRACION INMOBILIARIA Y DE ESPACIO PUBLICO","ESCRITO","DERECHO DE PETICION DE INTERES PARTICULAR",15,"PENDIENTE"]
[3629962021,"SUBDIRECCION DE ADMINISTRACION INMOBILIARIA Y DE ESPACIO PUBLICO","ESCRITO","DERECHO DE PETICION DE INTERES PARTICULAR",15,"PENDIENTE"]
[3630152021,"SUBDIRECCION DE ADMINISTRACION INMOBILIARIA Y DE ESPACIO PUBLICO","ESCRITO","DERECHO DE PETICION DE INTERES PARTICULAR",15,"PENDIENTE"]
[3631502021,"SUBDIRECCION DE ADMINISTRACION INMOBILIARIA Y DE ESPACIO PUBLICO","ESCRITO","DERECHO DE PETICION DE INTERES PARTICULAR",15,"PENDIENTE"]
[3631622021,"SUBDIRECCION DE ADMINISTRACION INMOBILIARIA Y DE ESPACIO PUBLICO","ESCRITO","DERECHO DE PETICION DE INTERES PARTICULAR",15,"PENDIENTE"]
[3631772021,"SUBDIRECCION DE ADMINISTRACION INMOBILIARIA Y DE ESPACIO PUBLICO","ESCRITO","DERECHO DE PETICION DE INTERES PARTICULAR",15,"PENDIENTE"]
[3631902021,"SUBDIRECCION DE REGISTRO INMOBILIARIO","ESCRITO","DERECHO DE PETICION DE INTERES PARTICULAR",15,"PENDIENTE"]
[3632102021,"SUBDIRECCION DE REGISTRO INMOBILIARIO","ESCRITO","DERECHO DE PETICION DE INTERES PARTICULAR",14,"GESTIONADOS"]
[3633032021,"SUBDIRECCION DE ADMINISTRACION INMOBILIARIA Y DE ESPACIO PUBLICO","ESCRITO","DERECHO DE PETICION DE INTERES GENERAL",15,"PENDIENTE"]
[3633072021,"SUBDIRECCION DE REGISTRO INMOBILIARIO","ESCRITO","DERECHO DE PETICION DE INTERES PARTICULAR",15,"PENDIENTE"]
[3633162021,"SUBDIRECCION DE ADMINISTRACION INMOBILIARIA Y DE ESPACIO PUBLICO","ESCRITO","DERECHO DE PETICION DE INTERES PARTICULAR",15,"PENDIENTE"]
[3633412021,"SUBDIRECCION DE ADMINISTRACION INMOBILIARIA Y DE ESPACIO PUBLICO","ESCRITO","DERECHO DE PETICION DE INTERES PARTICULAR",15,"PENDIENTE"]
[3633522021,"SUBDIRECCION DE ADMINISTRACION INMOBILIARIA Y DE ESPACIO PUBLICO","ESCRITO","DERECHO DE PETICION DE INTERES PARTICULAR",15,"PENDIENTE"]
[3633762021,"SUBDIRECCION DE ADMINISTRACION INMOBILIARIA Y DE ESPACIO PUBLICO","ESCRITO","DERECHO DE PETICION DE INTERES PARTICULAR",15,"PENDIENTE"]
[3633962021,"SUBDIRECCION DE ADMINISTRACION INMOBILIARIA Y DE ESPACIO PUBLICO","ESCRITO","DERECHO DE PETICION DE INTERES PARTICULAR",15,"PENDIENTE"]
[3638072021,"SUBDIRECCION DE ADMINISTRACION INMOBILIARIA Y DE ESPACIO PUBLICO","ESCRITO","DERECHO DE PETICION DE INTERES PARTICULAR",15,"PENDIENTE"]
[3639182021,"SUBDIRECCION DE ADMINISTRACION INMOBILIARIA Y DE ESPACIO PUBLICO","ESCRITO","DERECHO DE PETICION DE INTERES PARTICULAR",15,"PENDIENTE"]
[3639192021,"SUBDIRECCION DE ADMINISTRACION INMOBILIARIA Y DE ESPACIO PUBLICO","ESCRITO","DERECHO DE PETICION DE INTERES PARTICULAR",15,"PENDIENTE"]
[3639252021,"SUBDIRECCION DE ADMINISTRACION INMOBILIARIA Y DE ESPACIO PUBLICO","ESCRITO","DERECHO DE PETICION DE INTERES PARTICULAR",15,"PENDIENTE"]
[3639272021,"SUBDIRECCION DE REGISTRO INMOBILIARIO","ESCRITO","DERECHO DE PETICION DE INTERES PARTICULAR",15,"PENDIENTE"]
[3639302021,"SUBDIRECCION DE REGISTRO INMOBILIARIO","ESCRITO","DERECHO DE PETICION DE INTERES PARTICULAR",15,"PENDIENTE"]
[3639332021,"SUBDIRECCION DE ADMINISTRACION INMOBILIARIA Y DE ESPACIO PUBLICO","ESCRITO","DERECHO DE PETICION DE INTERES PARTICULAR",15,"PENDIENTE"]
[3641462021,"SUBDIRECCION ADMINISTRATIVA  FINANCIERA Y DE CONTROL DISCIPLINARIO","WEB","DERECHO DE PETICION DE INTERES GENERAL",1,"GESTIONADOS"]
[3641962021,"SUBDIRECCION ADMINISTRATIVA  FINANCIERA Y DE CONTROL DISCIPLINARIO","WEB","DERECHO DE PETICION DE INTERES GENERAL",1,"GESTIONADOS"]
[3641962021,"SUBDIRECCION DE ADMINISTRACION INMOBILIARIA Y DE ESPACIO PUBLICO","WEB","DERECHO DE PETICION DE INTERES GENERAL",14,"PENDIENTE"]
[3646582021,"SUBDIRECCION DE ADMINISTRACION INMOBILIARIA Y DE ESPACIO PUBLICO","WEB","CONSULTA",14,"PENDIENTE"]
[3646962021,"SUBDIRECCION DE ADMINISTRACION INMOBILIARIA Y DE ESPACIO PUBLICO","WEB","DERECHO DE PETICION DE INTERES PARTICULAR",14,"PENDIENTE"]
[3648522021,"SUBDIRECCION DE ADMINISTRACION INMOBILIARIA Y DE ESPACIO PUBLICO","WEB","DERECHO DE PETICION DE INTERES PARTICULAR",14,"PENDIENTE"]
[3648572021,"SUBDIRECCION DE ADMINISTRACION INMOBILIARIA Y DE ESPACIO PUBLICO","ESCRITO","DERECHO DE PETICION DE INTERES PARTICULAR",14,"PENDIENTE"]
[3648682021,"SUBDIRECCION DE ADMINISTRACION INMOBILIARIA Y DE ESPACIO PUBLICO","WEB","QUEJA",14,"PENDIENTE"]
[3648742021,"SUBDIRECCION DE ADMINISTRACION INMOBILIARIA Y DE ESPACIO PUBLICO","ESCRITO","DERECHO DE PETICION DE INTERES PARTICULAR",14,"PENDIENTE"]
[3650252021,"DESPACHO","ESCRITO","DERECHO DE PETICION DE INTERES PARTICULAR",1,"GESTIONADOS"]
[3650252021,"SUBDIRECCION DE ADMINISTRACION INMOBILIARIA Y DE ESPACIO PUBLICO","ESCRITO","DERECHO DE PETICION DE INTERES PARTICULAR",14,"PENDIENTE"]
[3650362021,"SUBDIRECCION DE ADMINISTRACION INMOBILIARIA Y DE ESPACIO PUBLICO","ESCRITO","DERECHO DE PETICION DE INTERES PARTICULAR",14,"PENDIENTE"]
[3650582021,"SUBDIRECCION DE ADMINISTRACION INMOBILIARIA Y DE ESPACIO PUBLICO","ESCRITO","DERECHO DE PETICION DE INTERES PARTICULAR",14,"PENDIENTE"]
[3650732021,"SUBDIRECCION DE ADMINISTRACION INMOBILIARIA Y DE ESPACIO PUBLICO","ESCRITO","DERECHO DE PETICION DE INTERES PARTICULAR",14,"PENDIENTE"]
[3650872021,"SUBDIRECCION DE ADMINISTRACION INMOBILIARIA Y DE ESPACIO PUBLICO","ESCRITO","DERECHO DE PETICION DE INTERES PARTICULAR",14,"PENDIENTE"]
[3650912021,"SUBDIRECCION DE ADMINISTRACION INMOBILIARIA Y DE ESPACIO PUBLICO","ESCRITO","DERECHO DE PETICION DE INTERES PARTICULAR",14,"PENDIENTE"]
[3650942021,"SUBDIRECCION DE ADMINISTRACION INMOBILIARIA Y DE ESPACIO PUBLICO","ESCRITO","DERECHO DE PETICION DE INTERES PARTICULAR",14,"PENDIENTE"]
[3651022021,"SUBDIRECCION DE ADMINISTRACION INMOBILIARIA Y DE ESPACIO PUBLICO","ESCRITO","DERECHO DE PETICION DE INTERES PARTICULAR",14,"PENDIENTE"]
[3654732021,"SUBDIRECCION DE ADMINISTRACION INMOBILIARIA Y DE ESPACIO PUBLICO","WEB","DERECHO DE PETICION DE INTERES PARTICULAR",10,"PENDIENTE"]
[3657032021,"SUBDIRECCION DE ADMINISTRACION INMOBILIARIA Y DE ESPACIO PUBLICO","WEB","DERECHO DE PETICION DE INTERES GENERAL",14,"PENDIENTE"]
[3658862021,"SUBDIRECCION DE ADMINISTRACION INMOBILIARIA Y DE ESPACIO PUBLICO","ESCRITO","DERECHO DE PETICION DE INTERES GENERAL",12,"PENDIENTE"]
[3658952021,"SUBDIRECCION DE ADMINISTRACION INMOBILIARIA Y DE ESPACIO PUBLICO","ESCRITO","DERECHO DE PETICION DE INTERES GENERAL",12,"PENDIENTE"]
[3662482021,"SUBDIRECCION DE ADMINISTRACION INMOBILIARIA Y DE ESPACIO PUBLICO","WEB","DERECHO DE PETICION DE INTERES GENERAL",13,"PENDIENTE"]
[3665952021,"SUBDIRECCION ADMINISTRATIVA  FINANCIERA Y DE CONTROL DISCIPLINARIO","WEB","DERECHO DE PETICION DE INTERES GENERAL",1,"GESTIONADOS"]
[3667062021,"SUBDIRECCION DE ADMINISTRACION INMOBILIARIA Y DE ESPACIO PUBLICO","WEB","DERECHO DE PETICION DE INTERES PARTICULAR",13,"PENDIENTE"]
[3668112021,"SUBDIRECCION DE REGISTRO INMOBILIARIO","WEB","DERECHO DE PETICION DE INTERES PARTICULAR",13,"PENDIENTE"]
[3668982021,"SUBDIRECCION DE ADMINISTRACION INMOBILIARIA Y DE ESPACIO PUBLICO","ESCRITO","DERECHO DE PETICION DE INTERES PARTICULAR",13,"PENDIENTE"]
[3669092021,"SUBDIRECCION DE ADMINISTRACION INMOBILIARIA Y DE ESPACIO PUBLICO","ESCRITO","DERECHO DE PETICION DE INTERES PARTICULAR",13,"PENDIENTE"]
[3669672021,"SUBDIRECCION DE REGISTRO INMOBILIARIO","ESCRITO","DERECHO DE PETICION DE INTERES PARTICULAR",13,"PENDIENTE"]
[3670412021,"SUBDIRECCION DE ADMINISTRACION INMOBILIARIA Y DE ESPACIO PUBLICO","ESCRITO","DERECHO DE PETICION DE INTERES PARTICULAR",13,"PENDIENTE"]
[3670822021,"SUBDIRECCION DE ADMINISTRACION INMOBILIARIA Y DE ESPACIO PUBLICO","WEB","DERECHO DE PETICION DE INTERES PARTICULAR",13,"PENDIENTE"]
[3672012021,"SUBDIRECCION DE REGISTRO INMOBILIARIO","WEB","DERECHO DE PETICION DE INTERES PARTICULAR",13,"PENDIENTE"]
[3672342021,"SUBDIRECCION DE ADMINISTRACION INMOBILIARIA Y DE ESPACIO PUBLICO","ESCRITO","DERECHO DE PETICION DE INTERES PARTICULAR",13,"PENDIENTE"]
[3672352021,"SUBDIRECCION DE ADMINISTRACION INMOBILIARIA Y DE ESPACIO PUBLICO","ESCRITO","DERECHO DE PETICION DE INTERES PARTICULAR",13,"PENDIENTE"]
[3672392021,"SUBDIRECCION DE REGISTRO INMOBILIARIO","ESCRITO","DERECHO DE PETICION DE INTERES PARTICULAR",13,"PENDIENTE"]
[3672542021,"SUBDIRECCION DE ADMINISTRACION INMOBILIARIA Y DE ESPACIO PUBLICO","ESCRITO","DERECHO DE PETICION DE INTERES PARTICULAR",13,"PENDIENTE"]
[3672572021,"SUBDIRECCION DE REGISTRO INMOBILIARIO","ESCRITO","DERECHO DE PETICION DE INTERES PARTICULAR",13,"PENDIENTE"]
[3672642021,"DESPACHO","ESCRITO","DERECHO DE PETICION DE INTERES PARTICULAR",13,"GESTIONADOS"]
[3672642021,"SUBDIRECCION DE ADMINISTRACION INMOBILIARIA Y DE ESPACIO PUBLICO","ESCRITO","DERECHO DE PETICION DE INTERES PARTICULAR",13,"PENDIENTE"]
[3672942021,"SUBDIRECCION DE ADMINISTRACION INMOBILIARIA Y DE ESPACIO PUBLICO","ESCRITO","DERECHO DE PETICION DE INTERES PARTICULAR",13,"PENDIENTE"]
[3673002021,"SUBDIRECCION DE ADMINISTRACION INMOBILIARIA Y DE ESPACIO PUBLICO","ESCRITO","DERECHO DE PETICION DE INTERES PARTICULAR",13,"PENDIENTE"]
[3674422021,"SUBDIRECCION DE ADMINISTRACION INMOBILIARIA Y DE ESPACIO PUBLICO","WEB","DERECHO DE PETICION DE INTERES PARTICULAR",12,"PENDIENTE"]
[3675912021,"SUBDIRECCION DE ADMINISTRACION INMOBILIARIA Y DE ESPACIO PUBLICO","TELEFONO","DERECHO DE PETICION DE INTERES GENERAL",11,"PENDIENTE"]
[3675962021,"SUBDIRECCION DE ADMINISTRACION INMOBILIARIA Y DE ESPACIO PUBLICO","WEB","DERECHO DE PETICION DE INTERES GENERAL",12,"PENDIENTE"]
[3676182021,"SUBDIRECCION DE ADMINISTRACION INMOBILIARIA Y DE ESPACIO PUBLICO","WEB","DERECHO DE PETICION DE INTERES GENERAL",12,"PENDIENTE"]
[3678262021,"SUBDIRECCION DE ADMINISTRACION INMOBILIARIA Y DE ESPACIO PUBLICO","WEB","DERECHO DE PETICION DE INTERES GENERAL",12,"PENDIENTE"]
[3680142021,"SUBDIRECCION DE ADMINISTRACION INMOBILIARIA Y DE ESPACIO PUBLICO","ESCRITO","DERECHO DE PETICION DE INTERES PARTICULAR",12,"PENDIENTE"]
[3680192021,"SUBDIRECCION DE ADMINISTRACION INMOBILIARIA Y DE ESPACIO PUBLICO","WEB","DERECHO DE PETICION DE INTERES GENERAL",12,"PENDIENTE"]
[3680262021,"SUBDIRECCION DE ADMINISTRACION INMOBILIARIA Y DE ESPACIO PUBLICO","ESCRITO","DERECHO DE PETICION DE INTERES PARTICULAR",12,"PENDIENTE"]
[3680322021,"SUBDIRECCION DE ADMINISTRACION INMOBILIARIA Y DE ESPACIO PUBLICO","ESCRITO","DERECHO DE PETICION DE INTERES PARTICULAR",12,"PENDIENTE"]
[3680482021,"SUBDIRECCION DE ADMINISTRACION INMOBILIARIA Y DE ESPACIO PUBLICO","ESCRITO","DERECHO DE PETICION DE INTERES PARTICULAR",12,"PENDIENTE"]
[3681632021,"OFICINA ASESORA JURIDICA","ESCRITO","DERECHO DE PETICION DE INTERES PARTICULAR",10,"GESTIONADOS"]
[3682922021,"SUBDIRECCION DE ADMINISTRACION INMOBILIARIA Y DE ESPACIO PUBLICO","WEB","DERECHO DE PETICION DE INTERES PARTICULAR",12,"PENDIENTE"]
[3683572021,"SUBDIRECCION DE ADMINISTRACION INMOBILIARIA Y DE ESPACIO PUBLICO","ESCRITO","DERECHO DE PETICION DE INTERES PARTICULAR",12,"PENDIENTE"]
[3683682021,"SUBDIRECCION DE REGISTRO INMOBILIARIO","ESCRITO","DERECHO DE PETICION DE INTERES PARTICULAR",12,"PENDIENTE"]
[3683912021,"SUBDIRECCION DE ADMINISTRACION INMOBILIARIA Y DE ESPACIO PUBLICO","ESCRITO","DERECHO DE PETICION DE INTERES PARTICULAR",12,"PENDIENTE"]
[3683932021,"SUBDIRECCION DE REGISTRO INMOBILIARIO","ESCRITO","DERECHO DE PETICION DE INTERES PARTICULAR",12,"PENDIENTE"]
[3683952021,"SUBDIRECCION DE ADMINISTRACION INMOBILIARIA Y DE ESPACIO PUBLICO","ESCRITO","DERECHO DE PETICION DE INTERES PARTICULAR",12,"PENDIENTE"]
[3684092021,"DESPACHO","ESCRITO","DERECHO DE PETICION DE INTERES PARTICULAR",4,"GESTIONADOS"]
[3684092021,"SUBDIRECCION DE ADMINISTRACION INMOBILIARIA Y DE ESPACIO PUBLICO","ESCRITO","DERECHO DE PETICION DE INTERES PARTICULAR",12,"PENDIENTE"]
[3686272021,"SUBDIRECCION DE ADMINISTRACION INMOBILIARIA Y DE ESPACIO PUBLICO","WEB","DERECHO DE PETICION DE INTERES PARTICULAR",12,"PENDIENTE"]
[3686412021,"SUBDIRECCION DE ADMINISTRACION INMOBILIARIA Y DE ESPACIO PUBLICO","ESCRITO","DERECHO DE PETICION DE INTERES GENERAL",8,"PENDIENTE"]
[3687142021,"SUBDIRECCION ADMINISTRATIVA  FINANCIERA Y DE CONTROL DISCIPLINARIO","WEB","DERECHO DE PETICION DE INTERES GENERAL",2,"GESTIONADOS"]
[3687582021,"SUBDIRECCION DE ADMINISTRACION INMOBILIARIA Y DE ESPACIO PUBLICO","TELEFONO","DERECHO DE PETICION DE INTERES GENERAL",12,"PENDIENTE"]
[3689622021,"SUBDIRECCION DE REGISTRO INMOBILIARIO","WEB","CONSULTA",11,"PENDIENTE"]
[3690422021,"SUBDIRECCION DE ADMINISTRACION INMOBILIARIA Y DE ESPACIO PUBLICO","WEB","DERECHO DE PETICION DE INTERES GENERAL",7,"PENDIENTE"]
[3693802021,"SUBDIRECCION DE ADMINISTRACION INMOBILIARIA Y DE ESPACIO PUBLICO","WEB","DERECHO DE PETICION DE INTERES PARTICULAR",11,"PENDIENTE"]
[3694922021,"SUBDIRECCION DE REGISTRO INMOBILIARIO","ESCRITO","DERECHO DE PETICION DE INTERES PARTICULAR",11,"PENDIENTE"]
[3695222021,"OFICINA ASESORA JURIDICA","ESCRITO","DERECHO DE PETICION DE INTERES PARTICULAR",11,"GESTIONADOS"]
[3696472021,"SUBDIRECCION DE ADMINISTRACION INMOBILIARIA Y DE ESPACIO PUBLICO","ESCRITO","DERECHO DE PETICION DE INTERES PARTICULAR",11,"PENDIENTE"]
[3697162021,"SUBDIRECCION DE REGISTRO INMOBILIARIO","ESCRITO","DERECHO DE PETICION DE INTERES PARTICULAR",11,"PENDIENTE"]
[3697322021,"SUBDIRECCION DE ADMINISTRACION INMOBILIARIA Y DE ESPACIO PUBLICO","ESCRITO","DERECHO DE PETICION DE INTERES PARTICULAR",11,"PENDIENTE"]
[3697332021,"SUBDIRECCION DE ADMINISTRACION INMOBILIARIA Y DE ESPACIO PUBLICO","ESCRITO","DERECHO DE PETICION DE INTERES PARTICULAR",11,"PENDIENTE"]
[3697352021,"SUBDIRECCION DE ADMINISTRACION INMOBILIARIA Y DE ESPACIO PUBLICO","ESCRITO","DERECHO DE PETICION DE INTERES PARTICULAR",11,"PENDIENTE"]
[3697392021,"SUBDIRECCION DE ADMINISTRACION INMOBILIARIA Y DE ESPACIO PUBLICO","ESCRITO","DERECHO DE PETICION DE INTERES PARTICULAR",11,"PENDIENTE"]
[3697582021,"SUBDIRECCION DE REGISTRO INMOBILIARIO","ESCRITO","DERECHO DE PETICION DE INTERES PARTICULAR",11,"PENDIENTE"]
[3702762021,"SUBDIRECCION DE ADMINISTRACION INMOBILIARIA Y DE ESPACIO PUBLICO","WEB","DERECHO DE PETICION DE INTERES GENERAL",11,"PENDIENTE"]
[3703372021,"SUBDIRECCION DE ADMINISTRACION INMOBILIARIA Y DE ESPACIO PUBLICO","WEB","DERECHO DE PETICION DE INTERES PARTICULAR",11,"PENDIENTE"]
[3703802021,"SUBDIRECCION DE ADMINISTRACION INMOBILIARIA Y DE ESPACIO PUBLICO","WEB","DERECHO DE PETICION DE INTERES GENERAL",11,"PENDIENTE"]
[3704662021,"SUBDIRECCION DE ADMINISTRACION INMOBILIARIA Y DE ESPACIO PUBLICO","WEB","CONSULTA",11,"PENDIENTE"]
[3704772021,"DESPACHO","WEB","CONSULTA",11,"GESTIONADOS"]
[3705722021,"SUBDIRECCION DE ADMINISTRACION INMOBILIARIA Y DE ESPACIO PUBLICO","WEB","DERECHO DE PETICION DE INTERES GENERAL",10,"PENDIENTE"]
[3706402021,"SUBDIRECCION DE ADMINISTRACION INMOBILIARIA Y DE ESPACIO PUBLICO","WEB","DERECHO DE PETICION DE INTERES PARTICULAR",11,"PENDIENTE"]
[3706552021,"SUBDIRECCION DE ADMINISTRACION INMOBILIARIA Y DE ESPACIO PUBLICO","WEB","DERECHO DE PETICION DE INTERES PARTICULAR",11,"PENDIENTE"]
[3707852021,"SUBDIRECCION DE ADMINISTRACION INMOBILIARIA Y DE ESPACIO PUBLICO","WEB","DERECHO DE PETICION DE INTERES GENERAL",11,"PENDIENTE"]
[3707872021,"SUBDIRECCION DE ADMINISTRACION INMOBILIARIA Y DE ESPACIO PUBLICO","WEB","DERECHO DE PETICION DE INTERES GENERAL",11,"PENDIENTE"]
[3707952021,"SUBDIRECCION DE ADMINISTRACION INMOBILIARIA Y DE ESPACIO PUBLICO","WEB","DERECHO DE PETICION DE INTERES PARTICULAR",11,"PENDIENTE"]
[3711612021,"SUBDIRECCION DE REGISTRO INMOBILIARIO","ESCRITO","DERECHO DE PETICION DE INTERES PARTICULAR",10,"PENDIENTE"]
[3714252021,"SUBDIRECCION DE ADMINISTRACION INMOBILIARIA Y DE ESPACIO PUBLICO","WEB","DERECHO DE PETICION DE INTERES GENERAL",10,"PENDIENTE"]
[3714542021,"SUBDIRECCION DE ADMINISTRACION INMOBILIARIA Y DE ESPACIO PUBLICO","ESCRITO","DERECHO DE PETICION DE INTERES GENERAL",10,"PENDIENTE"]
[3714592021,"SUBDIRECCION DE ADMINISTRACION INMOBILIARIA Y DE ESPACIO PUBLICO","WEB","DERECHO DE PETICION DE INTERES PARTICULAR",10,"PENDIENTE"]
[3715202021,"OFICINA ASESORA JURIDICA","WEB","DERECHO DE PETICION DE INTERES PARTICULAR",8,"GESTIONADOS"]
[3716142021,"SUBDIRECCION DE ADMINISTRACION INMOBILIARIA Y DE ESPACIO PUBLICO","ESCRITO","DERECHO DE PETICION DE INTERES PARTICULAR",10,"PENDIENTE"]
[3716282021,"SUBDIRECCION DE ADMINISTRACION INMOBILIARIA Y DE ESPACIO PUBLICO","ESCRITO","DERECHO DE PETICION DE INTERES PARTICULAR",10,"PENDIENTE"]
[3716392021,"SUBDIRECCION DE REGISTRO INMOBILIARIO","ESCRITO","DERECHO DE PETICION DE INTERES PARTICULAR",10,"PENDIENTE"]
[3716742021,"SUBDIRECCION ADMINISTRATIVA Y FINANCIERA","ESCRITO","DERECHO DE PETICION DE INTERES PARTICULAR",10,"PENDIENTE"]
[3717062021,"SUBDIRECCION DE ADMINISTRACION INMOBILIARIA Y DE ESPACIO PUBLICO","WEB","DERECHO DE PETICION DE INTERES PARTICULAR",10,"PENDIENTE"]
[3717352021,"SUBDIRECCION DE ADMINISTRACION INMOBILIARIA Y DE ESPACIO PUBLICO","ESCRITO","DERECHO DE PETICION DE INTERES PARTICULAR",10,"PENDIENTE"]
[3718652021,"SUBDIRECCION DE REGISTRO INMOBILIARIO","ESCRITO","DERECHO DE PETICION DE INTERES PARTICULAR",10,"PENDIENTE"]
[3718772021,"SUBDIRECCION DE ADMINISTRACION INMOBILIARIA Y DE ESPACIO PUBLICO","ESCRITO","DERECHO DE PETICION DE INTERES PARTICULAR",10,"PENDIENTE"]
[3718922021,"SUBDIRECCION ADMINISTRATIVA Y FINANCIERA","ESCRITO","DERECHO DE PETICION DE INTERES PARTICULAR",10,"PENDIENTE"]
[3719642021,"SUBDIRECCION DE REGISTRO INMOBILIARIO","ESCRITO","DERECHO DE PETICION DE INTERES PARTICULAR",10,"PENDIENTE"]
[3720342021,"OFICINA ASESORA JURIDICA","ESCRITO","DERECHO DE PETICION DE INTERES PARTICULAR",10,"GESTIONADOS"]
[3720452021,"OFICINA ASESORA JURIDICA","ESCRITO","DERECHO DE PETICION DE INTERES PARTICULAR",10,"GESTIONADOS"]
[3720592021,"SUBDIRECCION DE ADMINISTRACION INMOBILIARIA Y DE ESPACIO PUBLICO","ESCRITO","DERECHO DE PETICION DE INTERES PARTICULAR",10,"PENDIENTE"]
[3726272021,"SUBDIRECCION DE REGISTRO INMOBILIARIO","WEB","DERECHO DE PETICION DE INTERES PARTICULAR",9,"PENDIENTE"]
[3728322021,"SUBDIRECCION DE ADMINISTRACION INMOBILIARIA Y DE ESPACIO PUBLICO","WEB","DERECHO DE PETICION DE INTERES GENERAL",5,"PENDIENTE"]
[3731012021,"SUBDIRECCION DE REGISTRO INMOBILIARIO","TELEFONO","DERECHO DE PETICION DE INTERES PARTICULAR",9,"PENDIENTE"]
[3732632021,"DESPACHO","WEB","QUEJA",9,"GESTIONADOS"]
[3732632021,"SUBDIRECCION ADMINISTRATIVA  FINANCIERA Y DE CONTROL DISCIPLINARIO","WEB","QUEJA",9,"PENDIENTE"]
[3732712021,"SUBDIRECCION DE ADMINISTRACION INMOBILIARIA Y DE ESPACIO PUBLICO","ESCRITO","DERECHO DE PETICION DE INTERES PARTICULAR",9,"PENDIENTE"]
[3732732021,"DESPACHO","WEB","QUEJA",1,"GESTIONADOS"]
[3732732021,"SUBDIRECCION ADMINISTRATIVA  FINANCIERA Y DE CONTROL DISCIPLINARIO","WEB","QUEJA",7,"GESTIONADOS"]
[3732762021,"SUBDIRECCION ADMINISTRATIVA  FINANCIERA Y DE CONTROL DISCIPLINARIO","WEB","DENUNCIA POR ACTOS DE CORRUPCION",7,"GESTIONADOS"]
[3732882021,"SUBDIRECCION DE ADMINISTRACION INMOBILIARIA Y DE ESPACIO PUBLICO","ESCRITO","DERECHO DE PETICION DE INTERES PARTICULAR",9,"PENDIENTE"]
[3733272021,"SUBDIRECCION DE ADMINISTRACION INMOBILIARIA Y DE ESPACIO PUBLICO","ESCRITO","DERECHO DE PETICION DE INTERES PARTICULAR",9,"PENDIENTE"]
[3736672021,"OFICINA ASESORA JURIDICA","WEB","DERECHO DE PETICION DE INTERES PARTICULAR",1,"PENDIENTE"]
[3738132021,"SUBDIRECCION DE ADMINISTRACION INMOBILIARIA Y DE ESPACIO PUBLICO","WEB","DERECHO DE PETICION DE INTERES PARTICULAR",9,"PENDIENTE"]
[3738152021,"SUBDIRECCION DE REGISTRO INMOBILIARIO","WEB","DERECHO DE PETICION DE INTERES PARTICULAR",9,"PENDIENTE"]
[3740432021,"SUBDIRECCION DE ADMINISTRACION INMOBILIARIA Y DE ESPACIO PUBLICO","ESCRITO","DERECHO DE PETICION DE INTERES PARTICULAR",9,"PENDIENTE"]
[3740462021,"SUBDIRECCION DE ADMINISTRACION INMOBILIARIA Y DE ESPACIO PUBLICO","ESCRITO","DERECHO DE PETICION DE INTERES PARTICULAR",9,"PENDIENTE"]
[3740522021,"SUBDIRECCION DE ADMINISTRACION INMOBILIARIA Y DE ESPACIO PUBLICO","ESCRITO","DERECHO DE PETICION DE INTERES PARTICULAR",9,"PENDIENTE"]
[3740582021,"SUBDIRECCION DE ADMINISTRACION INMOBILIARIA Y DE ESPACIO PUBLICO","ESCRITO","DERECHO DE PETICION DE INTERES PARTICULAR",9,"PENDIENTE"]
[3740612021,"SUBDIRECCION DE ADMINISTRACION INMOBILIARIA Y DE ESPACIO PUBLICO","ESCRITO","DERECHO DE PETICION DE INTERES PARTICULAR",9,"PENDIENTE"]
[3740702021,"SUBDIRECCION DE ADMINISTRACION INMOBILIARIA Y DE ESPACIO PUBLICO","WEB","DERECHO DE PETICION DE INTERES PARTICULAR",9,"PENDIENTE"]
[3740772021,"SUBDIRECCION DE ADMINISTRACION INMOBILIARIA Y DE ESPACIO PUBLICO","WEB","DERECHO DE PETICION DE INTERES GENERAL",7,"PENDIENTE"]
[3742812021,"SUBDIRECCION DE ADMINISTRACION INMOBILIARIA Y DE ESPACIO PUBLICO","ESCRITO","DERECHO DE PETICION DE INTERES PARTICULAR",8,"PENDIENTE"]
[3742922021,"SUBDIRECCION DE ADMINISTRACION INMOBILIARIA Y DE ESPACIO PUBLICO","ESCRITO","DERECHO DE PETICION DE INTERES PARTICULAR",8,"PENDIENTE"]
[3743022021,"SUBDIRECCION DE ADMINISTRACION INMOBILIARIA Y DE ESPACIO PUBLICO","ESCRITO","DERECHO DE PETICION DE INTERES PARTICULAR",8,"PENDIENTE"]
[3743272021,"SUBDIRECCION DE ADMINISTRACION INMOBILIARIA Y DE ESPACIO PUBLICO","ESCRITO","DERECHO DE PETICION DE INTERES PARTICULAR",8,"PENDIENTE"]
[3744362021,"SUBDIRECCION DE ADMINISTRACION INMOBILIARIA Y DE ESPACIO PUBLICO","WEB","DERECHO DE PETICION DE INTERES PARTICULAR",6,"PENDIENTE"]
[3744962021,"SUBDIRECCION DE ADMINISTRACION INMOBILIARIA Y DE ESPACIO PUBLICO","WEB","DERECHO DE PETICION DE INTERES PARTICULAR",6,"PENDIENTE"]
[3746522021,"SUBDIRECCION DE ADMINISTRACION INMOBILIARIA Y DE ESPACIO PUBLICO","WEB","DERECHO DE PETICION DE INTERES GENERAL",8,"PENDIENTE"]
[3748402021,"SUBDIRECCION DE REGISTRO INMOBILIARIO","WEB","DERECHO DE PETICION DE INTERES PARTICULAR",8,"PENDIENTE"]
[3749112021,"SUBDIRECCION ADMINISTRATIVA  FINANCIERA Y DE CONTROL DISCIPLINARIO","WEB","DERECHO DE PETICION DE INTERES GENERAL",1,"GESTIONADOS"]
[3750792021,"SUBDIRECCION DE ADMINISTRACION INMOBILIARIA Y DE ESPACIO PUBLICO","ESCRITO","DERECHO DE PETICION DE INTERES PARTICULAR",8,"PENDIENTE"]
[3750902021,"SUBDIRECCION DE ADMINISTRACION INMOBILIARIA Y DE ESPACIO PUBLICO","WEB","DERECHO DE PETICION DE INTERES PARTICULAR",8,"PENDIENTE"]
[3751962021,"OFICINA ASESORA JURIDICA","ESCRITO","DERECHO DE PETICION DE INTERES PARTICULAR",8,"PENDIENTE"]
[3752112021,"SUBDIRECCION ADMINISTRATIVA Y FINANCIERA","ESCRITO","DERECHO DE PETICION DE INTERES PARTICULAR",8,"PENDIENTE"]
[3752382021,"SUBDIRECCION DE ADMINISTRACION INMOBILIARIA Y DE ESPACIO PUBLICO","ESCRITO","DERECHO DE PETICION DE INTERES PARTICULAR",8,"PENDIENTE"]
[3752532021,"SUBDIRECCION ADMINISTRATIVA Y FINANCIERA","ESCRITO","DERECHO DE PETICION DE INTERES PARTICULAR",8,"PENDIENTE"]
[3752682021,"SUBDIRECCION DE ADMINISTRACION INMOBILIARIA Y DE ESPACIO PUBLICO","ESCRITO","DERECHO DE PETICION DE INTERES PARTICULAR",8,"PENDIENTE"]
[3753342021,"SUBDIRECCION DE ADMINISTRACION INMOBILIARIA Y DE ESPACIO PUBLICO","ESCRITO","DERECHO DE PETICION DE INTERES PARTICULAR",8,"PENDIENTE"]
[3753402021,"SUBDIRECCION DE ADMINISTRACION INMOBILIARIA Y DE ESPACIO PUBLICO","ESCRITO","DERECHO DE PETICION DE INTERES PARTICULAR",8,"PENDIENTE"]
[3753442021,"SUBDIRECCION DE REGISTRO INMOBILIARIO","ESCRITO","DERECHO DE PETICION DE INTERES PARTICULAR",8,"PENDIENTE"]
[3756402021,"SUBDIRECCION DE ADMINISTRACION INMOBILIARIA Y DE ESPACIO PUBLICO","WEB","DERECHO DE PETICION DE INTERES GENERAL",8,"PENDIENTE"]
[3760582021,"SUBDIRECCION DE ADMINISTRACION INMOBILIARIA Y DE ESPACIO PUBLICO","WEB","DERECHO DE PETICION DE INTERES PARTICULAR",7,"PENDIENTE"]
[3760912021,"SUBDIRECCION DE REGISTRO INMOBILIARIO","WEB","CONSULTA",7,"PENDIENTE"]
[3761852021,"SUBDIRECCION ADMINISTRATIVA Y FINANCIERA","ESCRITO","DERECHO DE PETICION DE INTERES PARTICULAR",7,"PENDIENTE"]
[3762162021,"SUBDIRECCION DE REGISTRO INMOBILIARIO","ESCRITO","DERECHO DE PETICION DE INTERES PARTICULAR",7,"PENDIENTE"]
[3762422021,"SUBDIRECCION DE REGISTRO INMOBILIARIO","ESCRITO","SOLICITUD DE COPIA",7,"PENDIENTE"]
[3762852021,"SUBDIRECCION DE REGISTRO INMOBILIARIO","ESCRITO","DERECHO DE PETICION DE INTERES PARTICULAR",7,"PENDIENTE"]
[3763222021,"SUBDIRECCION DE ADMINISTRACION INMOBILIARIA Y DE ESPACIO PUBLICO","ESCRITO","DERECHO DE PETICION DE INTERES PARTICULAR",7,"PENDIENTE"]
[3763352021,"SUBDIRECCION DE ADMINISTRACION INMOBILIARIA Y DE ESPACIO PUBLICO","TELEFONO","DERECHO DE PETICION DE INTERES GENERAL",7,"PENDIENTE"]
[3763562021,"SUBDIRECCION DE ADMINISTRACION INMOBILIARIA Y DE ESPACIO PUBLICO","ESCRITO","DERECHO DE PETICION DE INTERES GENERAL",4,"PENDIENTE"]
[3764802021,"SUBDIRECCION DE ADMINISTRACION INMOBILIARIA Y DE ESPACIO PUBLICO","WEB","DERECHO DE PETICION DE INTERES PARTICULAR",7,"PENDIENTE"]
[3765152021,"SUBDIRECCION DE ADMINISTRACION INMOBILIARIA Y DE ESPACIO PUBLICO","ESCRITO","DERECHO DE PETICION DE INTERES PARTICULAR",7,"PENDIENTE"]
[3766172021,"SUBDIRECCION DE REGISTRO INMOBILIARIO","ESCRITO","DERECHO DE PETICION DE INTERES PARTICULAR",7,"PENDIENTE"]
[3767512021,"SUBDIRECCION DE REGISTRO INMOBILIARIO","ESCRITO","DERECHO DE PETICION DE INTERES PARTICULAR",7,"PENDIENTE"]
[3769072021,"SUBDIRECCION DE ADMINISTRACION INMOBILIARIA Y DE ESPACIO PUBLICO","TELEFONO","DERECHO DE PETICION DE INTERES GENERAL",7,"PENDIENTE"]
[3770952021,"SUBDIRECCION DE ADMINISTRACION INMOBILIARIA Y DE ESPACIO PUBLICO","ESCRITO","DERECHO DE PETICION DE INTERES PARTICULAR",7,"PENDIENTE"]
[3770972021,"SUBDIRECCION DE ADMINISTRACION INMOBILIARIA Y DE ESPACIO PUBLICO","ESCRITO","DERECHO DE PETICION DE INTERES PARTICULAR",7,"PENDIENTE"]
[3770992021,"SUBDIRECCION DE ADMINISTRACION INMOBILIARIA Y DE ESPACIO PUBLICO","ESCRITO","DERECHO DE PETICION DE INTERES PARTICULAR",7,"PENDIENTE"]
[3771002021,"SUBDIRECCION DE ADMINISTRACION INMOBILIARIA Y DE ESPACIO PUBLICO","ESCRITO","DERECHO DE PETICION DE INTERES PARTICULAR",7,"PENDIENTE"]
[3771012021,"SUBDIRECCION DE ADMINISTRACION INMOBILIARIA Y DE ESPACIO PUBLICO","ESCRITO","DERECHO DE PETICION DE INTERES PARTICULAR",7,"PENDIENTE"]
[3771022021,"SUBDIRECCION DE REGISTRO INMOBILIARIO","ESCRITO","DERECHO DE PETICION DE INTERES PARTICULAR",7,"PENDIENTE"]
[3771032021,"SUBDIRECCION DE ADMINISTRACION INMOBILIARIA Y DE ESPACIO PUBLICO","ESCRITO","DERECHO DE PETICION DE INTERES PARTICULAR",7,"PENDIENTE"]
[3771042021,"SUBDIRECCION DE REGISTRO INMOBILIARIO","ESCRITO","DERECHO DE PETICION DE INTERES PARTICULAR",7,"PENDIENTE"]
[3771062021,"SUBDIRECCION DE ADMINISTRACION INMOBILIARIA Y DE ESPACIO PUBLICO","ESCRITO","DERECHO DE PETICION DE INTERES PARTICULAR",7,"PENDIENTE"]
[3771072021,"SUBDIRECCION DE ADMINISTRACION INMOBILIARIA Y DE ESPACIO PUBLICO","ESCRITO","DERECHO DE PETICION DE INTERES PARTICULAR",7,"PENDIENTE"]
[3772052021,"SUBDIRECCION DE ADMINISTRACION INMOBILIARIA Y DE ESPACIO PUBLICO","TELEFONO","DERECHO DE PETICION DE INTERES GENERAL",7,"PENDIENTE"]
[3775712021,"SUBDIRECCION DE ADMINISTRACION INMOBILIARIA Y DE ESPACIO PUBLICO","WEB","DERECHO DE PETICION DE INTERES GENERAL",7,"PENDIENTE"]
[3777622021,"SUBDIRECCION DE ADMINISTRACION INMOBILIARIA Y DE ESPACIO PUBLICO","WEB","DERECHO DE PETICION DE INTERES GENERAL",6,"PENDIENTE"]
[3781872021,"SUBDIRECCION DE ADMINISTRACION INMOBILIARIA Y DE ESPACIO PUBLICO","WEB","DERECHO DE PETICION DE INTERES GENERAL",4,"PENDIENTE"]
[3782902021,"SUBDIRECCION DE ADMINISTRACION INMOBILIARIA Y DE ESPACIO PUBLICO","WEB","DERECHO DE PETICION DE INTERES PARTICULAR",6,"PENDIENTE"]
[3783922021,"SUBDIRECCION DE REGISTRO INMOBILIARIO","ESCRITO","DERECHO DE PETICION DE INTERES GENERAL",4,"PENDIENTE"]
[3784742021,"DESPACHO","ESCRITO","DERECHO DE PETICION DE INTERES PARTICULAR",6,"GESTIONADOS"]
[3784822021,"SUBDIRECCION DE ADMINISTRACION INMOBILIARIA Y DE ESPACIO PUBLICO","ESCRITO","DERECHO DE PETICION DE INTERES PARTICULAR",6,"PENDIENTE"]
[3784902021,"SUBDIRECCION DE ADMINISTRACION INMOBILIARIA Y DE ESPACIO PUBLICO","ESCRITO","DERECHO DE PETICION DE INTERES PARTICULAR",6,"PENDIENTE"]
[3785132021,"SUBDIRECCION DE ADMINISTRACION INMOBILIARIA Y DE ESPACIO PUBLICO","ESCRITO","DERECHO DE PETICION DE INTERES PARTICULAR",6,"PENDIENTE"]
[3785342021,"SUBDIRECCION DE ADMINISTRACION INMOBILIARIA Y DE ESPACIO PUBLICO","ESCRITO","DERECHO DE PETICION DE INTERES PARTICULAR",6,"PENDIENTE"]
[3785562021,"SUBDIRECCION DE REGISTRO INMOBILIARIO","ESCRITO","DERECHO DE PETICION DE INTERES PARTICULAR",6,"PENDIENTE"]
[3785962021,"SUBDIRECCION DE REGISTRO INMOBILIARIO","WEB","CONSULTA",6,"PENDIENTE"]
[3786912021,"SUBDIRECCION DE ADMINISTRACION INMOBILIARIA Y DE ESPACIO PUBLICO","ESCRITO","DERECHO DE PETICION DE INTERES PARTICULAR",6,"PENDIENTE"]
[3786962021,"SUBDIRECCION DE ADMINISTRACION INMOBILIARIA Y DE ESPACIO PUBLICO","ESCRITO","DERECHO DE PETICION DE INTERES PARTICULAR",6,"PENDIENTE"]
[3786982021,"SUBDIRECCION DE ADMINISTRACION INMOBILIARIA Y DE ESPACIO PUBLICO","ESCRITO","DERECHO DE PETICION DE INTERES PARTICULAR",6,"PENDIENTE"]
[3787082021,"SUBDIRECCION DE ADMINISTRACION INMOBILIARIA Y DE ESPACIO PUBLICO","ESCRITO","DERECHO DE PETICION DE INTERES PARTICULAR",6,"PENDIENTE"]
[3787102021,"SUBDIRECCION DE ADMINISTRACION INMOBILIARIA Y DE ESPACIO PUBLICO","ESCRITO","DERECHO DE PETICION DE INTERES PARTICULAR",6,"PENDIENTE"]
[3787962021,"SUBDIRECCION DE ADMINISTRACION INMOBILIARIA Y DE ESPACIO PUBLICO","ESCRITO","DERECHO DE PETICION DE INTERES PARTICULAR",6,"PENDIENTE"]
[3788052021,"SUBDIRECCION DE ADMINISTRACION INMOBILIARIA Y DE ESPACIO PUBLICO","ESCRITO","DERECHO DE PETICION DE INTERES PARTICULAR",6,"PENDIENTE"]
[3788712021,"SUBDIRECCION DE REGISTRO INMOBILIARIO","WEB","DERECHO DE PETICION DE INTERES PARTICULAR",6,"PENDIENTE"]
[3789152021,"SUBDIRECCION DE ADMINISTRACION INMOBILIARIA Y DE ESPACIO PUBLICO","WEB","DERECHO DE PETICION DE INTERES PARTICULAR",6,"PENDIENTE"]
[3789172021,"SUBDIRECCION DE ADMINISTRACION INMOBILIARIA Y DE ESPACIO PUBLICO","WEB","DERECHO DE PETICION DE INTERES PARTICULAR",5,"PENDIENTE"]
[3789212021,"SUBDIRECCION DE ADMINISTRACION INMOBILIARIA Y DE ESPACIO PUBLICO","WEB","DERECHO DE PETICION DE INTERES PARTICULAR",5,"PENDIENTE"]
[3795802021,"SUBDIRECCION DE ADMINISTRACION INMOBILIARIA Y DE ESPACIO PUBLICO","WEB","DERECHO DE PETICION DE INTERES PARTICULAR",5,"PENDIENTE"]
[3802172021,"SUBDIRECCION DE ADMINISTRACION INMOBILIARIA Y DE ESPACIO PUBLICO","ESCRITO","DERECHO DE PETICION DE INTERES PARTICULAR",5,"PENDIENTE"]
[3802522021,"SUBDIRECCION DE ADMINISTRACION INMOBILIARIA Y DE ESPACIO PUBLICO","ESCRITO","DERECHO DE PETICION DE INTERES PARTICULAR",5,"PENDIENTE"]
[3802562021,"SUBDIRECCION DE REGISTRO INMOBILIARIO","ESCRITO","DERECHO DE PETICION DE INTERES PARTICULAR",5,"PENDIENTE"]
[3802622021,"DESPACHO","ESCRITO","DERECHO DE PETICION DE INTERES PARTICULAR",5,"GESTIONADOS"]
[3802622021,"SUBDIRECCION DE ADMINISTRACION INMOBILIARIA Y DE ESPACIO PUBLICO","ESCRITO","DERECHO DE PETICION DE INTERES PARTICULAR",5,"PENDIENTE"]
[3805132021,"SUBDIRECCION DE REGISTRO INMOBILIARIO","WEB","CONSULTA",5,"PENDIENTE"]
[3806682021,"SUBDIRECCION DE REGISTRO INMOBILIARIO","WEB","CONSULTA",3,"PENDIENTE"]
[3809102021,"SUBDIRECCION DE ADMINISTRACION INMOBILIARIA Y DE ESPACIO PUBLICO","ESCRITO","DERECHO DE PETICION DE INTERES PARTICULAR",5,"PENDIENTE"]
[3809182021,"SUBDIRECCION DE ADMINISTRACION INMOBILIARIA Y DE ESPACIO PUBLICO","ESCRITO","DERECHO DE PETICION DE INTERES PARTICULAR",5,"PENDIENTE"]
[3809212021,"SUBDIRECCION DE ADMINISTRACION INMOBILIARIA Y DE ESPACIO PUBLICO","ESCRITO","DERECHO DE PETICION DE INTERES PARTICULAR",5,"PENDIENTE"]
[3812352021,"SUBDIRECCION DE ADMINISTRACION INMOBILIARIA Y DE ESPACIO PUBLICO","WEB","DERECHO DE PETICION DE INTERES PARTICULAR",4,"PENDIENTE"]
[3814382021,"SUBDIRECCION DE ADMINISTRACION INMOBILIARIA Y DE ESPACIO PUBLICO","ESCRITO","DERECHO DE PETICION DE INTERES PARTICULAR",4,"PENDIENTE"]
[3814562021,"SUBDIRECCION DE ADMINISTRACION INMOBILIARIA Y DE ESPACIO PUBLICO","ESCRITO","DERECHO DE PETICION DE INTERES PARTICULAR",4,"PENDIENTE"]
[3815122021,"SUBDIRECCION DE ADMINISTRACION INMOBILIARIA Y DE ESPACIO PUBLICO","WEB","DERECHO DE PETICION DE INTERES GENERAL",4,"PENDIENTE"]
[3816212021,"SUBDIRECCION DE REGISTRO INMOBILIARIO","WEB","DERECHO DE PETICION DE INTERES PARTICULAR",4,"PENDIENTE"]
[3818182021,"SUBDIRECCION DE REGISTRO INMOBILIARIO","ESCRITO","DERECHO DE PETICION DE INTERES PARTICULAR",4,"PENDIENTE"]
[3818512021,"SUBDIRECCION DE ADMINISTRACION INMOBILIARIA Y DE ESPACIO PUBLICO","ESCRITO","SOLICITUD DE COPIA",4,"PENDIENTE"]
[3821992021,"SUBDIRECCION DE ADMINISTRACION INMOBILIARIA Y DE ESPACIO PUBLICO","ESCRITO","DERECHO DE PETICION DE INTERES PARTICULAR",4,"PENDIENTE"]
[3825062021,"SUBDIRECCION DE REGISTRO INMOBILIARIO","ESCRITO","DERECHO DE PETICION DE INTERES PARTICULAR",4,"PENDIENTE"]
[3826732021,"SUBDIRECCION DE REGISTRO INMOBILIARIO","WEB","DERECHO DE PETICION DE INTERES PARTICULAR",3,"PENDIENTE"]
[3833972021,"SUBDIRECCION DE ADMINISTRACION INMOBILIARIA Y DE ESPACIO PUBLICO","ESCRITO","DERECHO DE PETICION DE INTERES PARTICULAR",3,"PENDIENTE"]
[3834092021,"SUBDIRECCION DE ADMINISTRACION INMOBILIARIA Y DE ESPACIO PUBLICO","ESCRITO","DERECHO DE PETICION DE INTERES PARTICULAR",3,"PENDIENTE"]
[3834242021,"OFICINA ASESORA JURIDICA","ESCRITO","DERECHO DE PETICION DE INTERES PARTICULAR",3,"GESTIONADOS"]
[3834242021,"SUBDIRECCION DE ADMINISTRACION INMOBILIARIA Y DE ESPACIO PUBLICO","ESCRITO","DERECHO DE PETICION DE INTERES PARTICULAR",3,"PENDIENTE"]
[3834772021,"SUBDIRECCION DE ADMINISTRACION INMOBILIARIA Y DE ESPACIO PUBLICO","ESCRITO","DERECHO DE PETICION DE INTERES PARTICULAR",3,"PENDIENTE"]
[3837202021,"SUBDIRECCION DE ADMINISTRACION INMOBILIARIA Y DE ESPACIO PUBLICO","ESCRITO","DERECHO DE PETICION DE INTERES PARTICULAR",3,"PENDIENTE"]
[3837262021,"SUBDIRECCION DE ADMINISTRACION INMOBILIARIA Y DE ESPACIO PUBLICO","ESCRITO","DERECHO DE PETICION DE INTERES PARTICULAR",3,"PENDIENTE"]
[3837642021,"OFICINA ASESORA JURIDICA","E-MAIL","DERECHO DE PETICION DE INTERES PARTICULAR",1,"PENDIENTE"]
[3838592021,"SUBDIRECCION DE ADMINISTRACION INMOBILIARIA Y DE ESPACIO PUBLICO","ESCRITO","DERECHO DE PETICION DE INTERES PARTICULAR",3,"PENDIENTE"]
[3838672021,"SUBDIRECCION DE REGISTRO INMOBILIARIO","ESCRITO","DERECHO DE PETICION DE INTERES PARTICULAR",3,"PENDIENTE"]
[3839302021,"SUBDIRECCION DE REGISTRO INMOBILIARIO","ESCRITO","DERECHO DE PETICION DE INTERES PARTICULAR",3,"PENDIENTE"]
[3839382021,"SUBDIRECCION DE ADMINISTRACION INMOBILIARIA Y DE ESPACIO PUBLICO","ESCRITO","DERECHO DE PETICION DE INTERES PARTICULAR",3,"PENDIENTE"]
[3839402021,"SUBDIRECCION DE ADMINISTRACION INMOBILIARIA Y DE ESPACIO PUBLICO","ESCRITO","DERECHO DE PETICION DE INTERES PARTICULAR",3,"PENDIENTE"]
[3839422021,"OFICINA ASESORA JURIDICA","ESCRITO","DERECHO DE PETICION DE INTERES PARTICULAR",3,"GESTIONADOS"]
[3839422021,"SUBDIRECCION DE ADMINISTRACION INMOBILIARIA Y DE ESPACIO PUBLICO","ESCRITO","DERECHO DE PETICION DE INTERES PARTICULAR",3,"PENDIENTE"]
[3843372021,"SUBDIRECCION DE ADMINISTRACION INMOBILIARIA Y DE ESPACIO PUBLICO","ESCRITO","DERECHO DE PETICION DE INTERES PARTICULAR",2,"PENDIENTE"]
[3843532021,"SUBDIRECCION DE ADMINISTRACION INMOBILIARIA Y DE ESPACIO PUBLICO","ESCRITO","DERECHO DE PETICION DE INTERES PARTICULAR",2,"PENDIENTE"]
[3843622021,"SUBDIRECCION DE REGISTRO INMOBILIARIO","ESCRITO","DERECHO DE PETICION DE INTERES PARTICULAR",2,"PENDIENTE"]
[3843872021,"SUBDIRECCION DE REGISTRO INMOBILIARIO","ESCRITO","DERECHO DE PETICION DE INTERES PARTICULAR",1,"PENDIENTE"]
[3843882021,"SUBDIRECCION DE ADMINISTRACION INMOBILIARIA Y DE ESPACIO PUBLICO","ESCRITO","DERECHO DE PETICION DE INTERES PARTICULAR",2,"PENDIENTE"]
[3848402021,"SUBDIRECCION DE REGISTRO INMOBILIARIO","ESCRITO","DERECHO DE PETICION DE INTERES PARTICULAR",2,"PENDIENTE"]
[3855272021,"OFICINA ASESORA JURIDICA","WEB","DERECHO DE PETICION DE INTERES GENERAL",2,"PENDIENTE"]
[3856272021,"SUBDIRECCION DE ADMINISTRACION INMOBILIARIA Y DE ESPACIO PUBLICO","WEB","DERECHO DE PETICION DE INTERES PARTICULAR",2,"PENDIENTE"]
[3856382021,"SUBDIRECCION DE REGISTRO INMOBILIARIO","WEB","SOLICITUD DE COPIA",2,"PENDIENTE"]
[3858142021,"SUBDIRECCION DE ADMINISTRACION INMOBILIARIA Y DE ESPACIO PUBLICO","WEB","DERECHO DE PETICION DE INTERES GENERAL",1,"PENDIENTE"]
[3858452021,"SUBDIRECCION ADMINISTRATIVA  FINANCIERA Y DE CONTROL DISCIPLINARIO","WEB","DENUNCIA POR ACTOS DE CORRUPCION",2,"PENDIENTE"]
[3866452021,"SUBDIRECCION DE ADMINISTRACION INMOBILIARIA Y DE ESPACIO PUBLICO","WEB","DERECHO DE PETICION DE INTERES PARTICULAR",1,"PENDIENTE"]
[3866482021,"SUBDIRECCION DE REGISTRO INMOBILIARIO","WEB","CONSULTA",1,"PENDIENTE"]
[3868592021,"SUBDIRECCION DE ADMINISTRACION INMOBILIARIA Y DE ESPACIO PUBLICO","ESCRITO","DERECHO DE PETICION DE INTERES PARTICULAR",1,"PENDIENTE"]
[3868692021,"SUBDIRECCION DE ADMINISTRACION INMOBILIARIA Y DE ESPACIO PUBLICO","ESCRITO","DERECHO DE PETICION DE INTERES PARTICULAR",1,"PENDIENTE"]
[3868842021,"SUBDIRECCION DE REGISTRO INMOBILIARIO","ESCRITO","DERECHO DE PETICION DE INTERES PARTICULAR",1,"PENDIENTE"]
[3869072021,"SUBDIRECCION DE ADMINISTRACION INMOBILIARIA Y DE ESPACIO PUBLICO","ESCRITO","DERECHO DE PETICION DE INTERES PARTICULAR",1,"PENDIENTE"]
[3869182021,"SUBDIRECCION DE ADMINISTRACION INMOBILIARIA Y DE ESPACIO PUBLICO","ESCRITO","DERECHO DE PETICION DE INTERES PARTICULAR",1,"PENDIENTE"]
[3869252021,"SUBDIRECCION DE REGISTRO INMOBILIARIO","ESCRITO","DERECHO DE PETICION DE INTERES PARTICULAR",1,"PENDIENTE"]
[3869452021,"SUBDIRECCION DE ADMINISTRACION INMOBILIARIA Y DE ESPACIO PUBLICO","ESCRITO","DERECHO DE PETICION DE INTERES PARTICULAR",1,"PENDIENTE"]
[3869772021,"SUBDIRECCION DE REGISTRO INMOBILIARIO","ESCRITO","DERECHO DE PETICION DE INTERES PARTICULAR",1,"PENDIENTE"]
[3869922021,"SUBDIRECCION DE ADMINISTRACION INMOBILIARIA Y DE ESPACIO PUBLICO","ESCRITO","DERECHO DE PETICION DE INTERES PARTICULAR",1,"PENDIENTE"]
[3870122021,"SUBDIRECCION DE ADMINISTRACION INMOBILIARIA Y DE ESPACIO PUBLICO","ESCRITO","DERECHO DE PETICION DE INTERES PARTICULAR",1,"PENDIENTE"]
[3878552021,"SUBDIRECCION DE ADMINISTRACION INMOBILIARIA Y DE ESPACIO PUBLICO","PRESENCIAL","DERECHO DE PETICION DE INTERES GENERAL",1,"PENDIENTE"]
[3881742021,"SUBDIRECCION DE ADMINISTRACION INMOBILIARIA Y DE ESPACIO PUBLICO","E-MAIL","DERECHO DE PETICION DE INTERES PARTICULAR",1,"PENDIENTE"]
[3882002021,"SUBDIRECCION DE ADMINISTRACION INMOBILIARIA Y DE ESPACIO PUBLICO","ESCRITO","DERECHO DE PETICION DE INTERES PARTICULAR",1,"PENDIENTE"]
[3882072021,"SUBDIRECCION DE ADMINISTRACION INMOBILIARIA Y DE ESPACIO PUBLICO","ESCRITO","DERECHO DE PETICION DE INTERES PARTICULAR",1,"PENDIENTE"]
[3882182021,"SUBDIRECCION DE ADMINISTRACION INMOBILIARIA Y DE ESPACIO PUBLICO","ESCRITO","DERECHO DE PETICION DE INTERES PARTICULAR",1,"PENDIENTE"]
[3882242021,"SUBDIRECCION DE REGISTRO INMOBILIARIO","ESCRITO","DERECHO DE PETICION DE INTERES PARTICULAR",1,"PENDIENTE"]
[3887162021,"SUBDIRECCION DE ADMINISTRACION INMOBILIARIA Y DE ESPACIO PUBLICO","ESCRITO","DERECHO DE PETICION DE INTERES PARTICULAR",1,"PENDIENTE"]
[3887392021,"SUBDIRECCION DE ADMINISTRACION INMOBILIARIA Y DE ESPACIO PUBLICO","ESCRITO","DERECHO DE PETICION DE INTERES PARTICULAR",1,"PENDIENTE"]
[3889502021,"SUBDIRECCION ADMINISTRATIVA  FINANCIERA Y DE CONTROL DISCIPLINARIO","WEB","DENUNCIA POR ACTOS DE CORRUPCION",1,"PENDIENTE"]
[]
["POR TEMAS"]
["DESTINO","TEMA","Cuenta de TEMA"]
["DESPACHO","Peticiones entre entidades",3]
[null,"Asuntos disciplinarios",2]
[null,"Desempeño de la entidad",1]
[null,"Asesoría en administración y sostenibilidad del espacio público",1]
[null,"Consulta radicado",1]
["OFICINA ASESORA JURIDICA","Contratos jurídica",5]
[null,"Asuntos Jurídicos",5]
[null,"Solicitud de Copia",1]
[null,"Competencia otras entidades",1]
["SUBDIRECCION DE ADMINISTRACION INMOBILIARIA Y DE ESPACIO PUBLICO","Asesoría en administración y sostenibilidad del espacio público",55]
[null,"Peticiones entre entidades",39]
[null,"Denuncia otros elementos",37]
[null,"Parqueaderos",23]
[null,"Autorización de uso",22]
["SUBDIRECCION DE REGISTRO INMOBILIARIO","Certificación de la propiedad inmobiliaria distrital",25]
[null,"Entrega de zonas de cesión",10]
[null,"Peticiones entre entidades",6]
[null,"Cabida y linderos",4]
[null,"Denuncia otros elementos",4]
["SUBDIRECCION ADMINISTRATIVA  FINANCIERA Y DE CONTROL DISCIPLINARIO","Competencia otras entidades",6]
[null,"Solicitud de Copia",4]
[null,"Parqueaderos",3]
[null,"Asuntos disciplinarios",2]
[null,"Denuncia otros elementos",1]
["SUBDIRECCION ADMINISTRATIVA Y FINANCIERA","Talento humano",6]
[null,"Denuncia otros elementos",1]
["AREA DE ATENCION A LA CIUDADANIA","Competencia otras entidades",150]
[null,"Denuncia otros elementos",18]
[null,"Denuncia extencion de actividad comercial",6]
[null,"Asesoría en administración y sostenibilidad del espacio público",5]
[null,"Sin información de fondo",4]
[]
[]
[]
[]
[]
["DESTINO","TEMA","Cuenta de TEMA"]
["DESPACHO","Peticiones entre entidades",3]
[null,"Asuntos disciplinarios",2]
[null,"Desempeño de la entidad",1]
[null,"Asesoría en administración y sostenibilidad del espacio público",1]
[null,"Consulta radicado",1]
["OFICINA ASESORA JURIDICA","Contratos jurídica",5]
[null,"Asuntos Jurídicos",5]
[null,"Solicitud de Copia",1]
[null,"Competencia otras entidades",1]
["SUBDIRECCION DE ADMINISTRACION INMOBILIARIA Y DE ESPACIO PUBLICO","Asesoría en administración y sostenibilidad del espacio público",55]
[null,"Peticiones entre entidades",39]
[null,"Denuncia otros elementos",37]
[null,"Parqueaderos",23]
[null,"Autorización de uso",22]
["SUBDIRECCION DE REGISTRO INMOBILIARIO","Certificación_de_la_propiedad_inmobiliaria_distrital",25]
[null,"Entrega de zonas de cesión",10]
[null,"Peticiones entre entidades",6]
[null,"Cabida y linderos",4]
[null,"Denuncia otros elementos",4]
["SUBDIRECCION ADMINISTRATIVA  FINANCIERA Y DE CONTROL DISCIPLINARIO","Competencia otras entidades",6]
[null,"Solicitud de Copia",4]
[null,"Parqueaderos",3]
[null,"Asuntos disciplinarios",2]
[null,"Denuncia otros elementos",1]
[null,"Talento humano",1]
[null,"Solicitud cita",1]
["SUBDIRECCION ADMINISTRATIVA Y FINANCIERA","Talento humano",6]
[null,"Denuncia otros elementos",1]
["AREA DE ATENCION A LA CIUDADANIA","Competencia otras entidades",150]
[null,"Denuncia otros elementos",18]
[null,"Denuncia extencion de actividad comercial",6]
[null,"Asesoría en administración y sostenibilidad del espacio público",5]
[null,"Sin información de fondo",4]